Workbook

Sheet DADOS
A1: =OFFSET(A1,-1,0)+1 ->  | J1: =CONCATENATE(A1,"-",B1) -> 
A2: 27477 | B2: PLE - Planilha de Levantamento de Eventos
A3: v005
A6: Nº OPERAÇÃO | B6: Nº SICONV | C6: GIGOV | D6: GESTOR | E6: PROGRAMA | F6: AÇÃO / MODALIDADE | H6: DATA ASSINATURA
A7: 862911/2017 | B7: 862911 | C7: 2293/2018 | D7: ME | E7: MINISTÉRIO DO ESPORTE | F7: INPLANTAÇÃO E MODERNIZAÇÃO DE INFRAESTRUTURA
A9: PROPONENTE / TOMADOR | D9: MUNICÍPIO / UF | E9: LOCALIDADE / ENDEREÇO | F9: OBJETO
A10: PREFEITURA MUNICIPAL DE CATANDUVAS/SC | D10: CATANDUVAS/SC | E10: RUA DA PAZ - ESQ. C/ RUA ANGELO GUERRA | F10: REFORMA E/OU MODERNIZAÇÃO DE QUADRA ESPORTIVA DO MUNICÍPIO DE CATANDUVAS/SC
A12: Nº CTEF | B12: EMPRESA EXECUTORA | D12: CNPJ | E12: OBJETO DO CTEF | H12: INÍCIO DA OBRA
D13: 6753967-4 | H13: 2019-02-01
A18: RESPONSÁVEIS TÉCNICOS:
A19: Elaboração do documento | C19: CREA/CAU
A20: MAX MOOSHAMMER | C20: 139.164-0
A22: Fiscalização | C22: CREA/CAU | D22: ART/RRT
A25: Execução | C25: CREA/CAU | D25: ART/RRT
A28: REPRESENTANTE TOMADOR / AG. PROMOTOR / TOMADOR
A29: Nome | C29: Cargo
A32: EVENTOS
A33: Núm do Evento | B33: Título do Evento
A34: 1 | B34: SERVIÇOS INICIAIS | J34: =CONCATENATE(A34,"-",B34) -> 1-SERVIÇOS INICIAIS
A35: =OFFSET(A35,-1,0)+1 -> 2 | B35: SAPATAS E CALICES | J35: =CONCATENATE(A35,"-",B35) -> 2-SAPATAS E CALICES
A36: =OFFSET(A36,-1,0)+1 -> 3 | B36: PILARES | J36: =CONCATENATE(A36,"-",B36) -> 3-PILARES
A37: =OFFSET(A37,-1,0)+1 -> 4 | B37: VIGAS | J37: =CONCATENATE(A37,"-",B37) -> 4-VIGAS
A38: 5 | B38: TESOURAS METÁLICAS | J38: 5-TESOURAS METÁLICAS
A39: 6 | B39: TERÇAS METÁLICAS | J39: 6-TERÇAS METÁLICAS
A40: 7 | B40: CALHAS | J40: 7-CALHAS
A41: 8 | B41: COBERTURA | J41: 8-COBERTURA
A42: 9 | B42: PISO DE CONCRETO | J42: 9-PISO DE CONCRETO
A43: 10 | B43: PINTURAS | J43: 10-PINTURAS
A44: 11 | B44: TUBOS | J44: 11-TUBOS
A45: 12 | B45: CALÇADAS | J45: 12-CALÇADAS
A46: =OFFSET(A46,-1,0)+1 -> 13 | B46: SERVIÇOS FINAIS | J46: =CONCATENATE(A46,"-",B46) -> 13-SERVIÇOS FINAIS
A49: INSTRUÇÕES DE USO E PREENCHIMENTO
A51: Informações gerais:
A53: 1. Este documento somente pode ser utilizado nas versões do Excel 2003 ou superior. Não devem ser utilizadas versões do BROffice.
A55: 2. Para funcionamento pleno desse arquivo, a Segurança de Macros do Excel deve ser habilitada.
A57: a. Na Versão Excel 2003, selecione na Faixa de Opções: Ferramentas --> Macro --> Segurança --> Na aba Nível de Segurança selecione a Opção "Baixo" --> Clique em OK --> Feche e abra o Excel novamente para utilizar a Planilha.
A58: b. Na Versão Excel 2007 ou superior, selecione na Faixa de Opções: Arquivo --> Opções --> Central de Confiabilidade --> Configurações da Central de Confiabilidade --> Configurações de Macro --> Habilitar todas as Macros --> Clique em OK --> Feche e abra o excel novamente para utilizar a Planilha.
A60: 3. O Preenchimento deve ser feito somente nas células em amarelo. As demais células são de preenchimento Automático e estão bloqueadas para edição.
A62: Instruções de preenchimento:
A64: Aba DADOS
A66: 1º passo: Na aba Dados, preencher os dados do contrato e identificação dos responsáveis;
A68: 2º passo: Incluir e nomear os eventos (pode ser alterado posteriormente também);
A70: Aba EVENTOGRAMA E QUANTITATIVOS
A72: 3º passo: Na aba Eventograma e Quantitativos, preencher os campos item, descrição e unidade a partir da planilha orçamentária da empresa vencedora da licitação;
A74: 4º passo: Em seguida, preencher as células da coluna Preço Total habilitadas na cor amarela somente para os itens de serviço;
A76: Obs.1: A planilha considera como itens de serviço aqueles que possuem os campos unidade e preço total preenchidos. Caso esses campos não sejam preenchidos, a planilha considera o item como um totalizador, preenchendo-o de cinza.
A78: 5º passo: Preencher as frentes de obra;
A80: 6º passo: Agrupar os eventos a partir do preenchimento de números inteiros sequenciais para cada serviço na coluna Núm. Evento;
A82: Obs.1: Serviços com mesmo número pertencerão ao mesmo agrupador de eventos.
A83: Obs.2: Deve ser atribuído um número de evento para todos os serviços da planilha orçamentária.
A84: Obs.3: Não deve ser preenchido número de evento para metas e níveis.
A85: Obs.4: Todos os serviços do orçamento precisam estar com Evento definido para acessar as abas Detalhamento, Cronograma, PLE e Resumo de Acompanhamento.
A87: 7º passo: Informar as quantidades de cada serviço por frente de obra;
A89: 8º passo: Verificar se os preços totais dos serviços e o valor total do orçamento estão iguais aos da planilha orçamentária proposta pela empresa vencedora da licitação.
A91: Aba DETALHAMENTO DE EVENTOS
A93: Planilha gerada de forma automática a partir dos dados informados na aba Eventograma e Quantitativos e tem por objetivo discriminar:
A94: · os serviços que compõem cada evento;
A95: · os quantitativos de cada serviço por frente de obra e por evento;
A96: · o valor total de cada evento;
A97: · o valor total de cada agrupador;
A98: · o valor total de cada frente de obra.
A100: É possível visualizar os valores/quantidades no modo Eventos ou modo Orçamento, e visualizar os valores/quantidades em sua Totalidade, ou somente os Executados, ou somente os A Executar.
A102: Aba CRONOGRAMA
A104: 9º passo: Informar nos campos em amarelo o número do período em que o evento será concluído. Se necessário, poderão ser usados os botões "Adicionar Ano" e "Excluir Ano" pra compatibilizar o cronograma mostrado abaixo com a necessidade do empreendimento.
A106: Aba PLE
A108: 10º passo: Selecionar o número da medição a ser feita.
A110: 11º passo: Digitar a data da medição no quadro abaixo.
A112: 12º passo: Preencher os campos em amarelo com o um número inteiro referente à medição em questão (período em que os eventos foram executados).
A114: Obs.1: Apenas preencher os eventos concluídos em sua totalidade. Não são considerados para fins de desembolso eventos parcialmente concluídos.
A115: Obs.2: Não devem ser alterados os eventos já preenchidos em medições anteriores.
A117: Aba RESUMO DE ACOMPANHAMENTO
A119: Planilha gerada automaticamente com o resumo do acompanhamento, inclusive o total por meta (para preenchimento do RRE) e comparação do cronograma previsto com o cronograma realizado.
A124: Orientações ao Tomador/Construtora:
A127: 1. Os formulários Eventograma e Quantitativos, Detalhamento de Eventos e Cronograma devem ser encaminhados para verificação e aceite pela CAIXA, preferencialmente, na fase de análise de engenharia, sendo admitida a sua apresentação para a
A128: verificação do processo licitatório ou reunião de partida de obra e, obrigatoriamente, exigida até a primeira solicitação de desbloqueio de recursos.
A130: 2. Os dados preenchidos na aba Eventograma e Quantitativos não devem ser alterados ao longo do acompanhamento da obra, apenas no caso de reprogramação, quando deverá ser submetido a reanálise e aceite pela CAIXA.
A132: 3. A cada solicitação de recursos, a Planilha de Levantamento de Eventos (PLE) deverá ser preenchida pelo Tomador e encaminhada à CAIXA em conjunto com a planilha Resumo de Acompanhamento.
A133: VR - VOLTA REDONDA
A134: VT - VITORIA

Sheet Eventograma_e_Quantitativos
B1: =ROW(Nível)-ROW(LIorçamento)+1 -> -16 | C1: =IF(D1="","",IF(ISNUMBER(VALUE(D1)),"Meta",IF(AND(F1<>"",I1<>""),"Serviço","Nível"))) ->  | G1: =IF(Nível="Serviço",SUMIF($N$15:$BK$15,"<>"&"",N1:BK1),"") ->  | H1: =IF(AND(ISNUMBER(G1),G1<>0),I1/G1,IF(G1=0,0,"")) ->  | K1: =IF(L1="","",VALUE(LEFT(L1,(FIND("-",L1,1))-1))) ->  | BM1: =IF(N$15="",0,IF(ISNUMBER(PreçoUnit),PreçoUnit*INDEX(Import.PLQ,$B1,BM$16),0)) -> 0 | BN1: 0 | BO1: 0 | BP1: 0 | BQ1: 0 | BR1: 0 | BS1: 0 | BT1: 0 | BU1: 0 | BV1: 0 | BW1: 0 | BX1: 0 | BY1: 0 | BZ1: 0 | CA1: 0 | CB1: 0 | CC1: 0 | CD1: 0 | CE1: 0 | CF1: 0 | CG1: 0 | CH1: 0 | CI1: 0 | CJ1: 0 | CK1: 0 | CL1: 0 | CM1: 0 | CN1: 0 | CO1: 0 | CP1: 0 | CQ1: 0 | CR1: 0 | CS1: =IF(AT$15="",0,IF(ISNUMBER(PreçoUnit),PreçoUnit*INDEX(Import.PLQ,$B1,CS$16),0)) -> 0 | CT1: 0 | CU1: 0 | CV1: 0 | CW1: 0 | CX1: 0 | CY1: 0 | CZ1: 0 | DA1: 0 | DB1: 0 | DC1: 0 | DD1: 0 | DE1: 0 | DF1: 0 | DG1: 0 | DH1: 0 | DI1: 0 | DJ1: 0 | DK1: =IF(D1="",0,IF(ISNUMBER(VALUE(D1)),VALUE(D1),LEFT(D1,FIND(".",D1)-1))) -> 0 | DL1: =SUM(DM1:FJ1) -> 0 | DM1: =IF(ISNUMBER(INDEX(Import.PLE,$K1,DM$16)),IF(INDEX(Import.PLE,$K1,DM$16)<=mediçao,BM1,0),0) -> 0 | DN1: 0 | DO1: 0 | DP1: 0 | DQ1: 0 | DR1: 0 | DS1: 0 | DT1: 0 | DU1: 0 | DV1: 0 | DW1: 0 | DX1: 0 | DY1: 0 | DZ1: 0 | EA1: 0 | EB1: 0 | EC1: 0 | ED1: 0 | EE1: 0 | EF1: 0 | EG1: 0 | EH1: 0 | EI1: 0 | EJ1: 0 | EK1: 0 | EL1: 0 | EM1: 0 | EN1: 0 | EO1: 0 | EP1: 0 | EQ1: 0 | ER1: 0 | ES1: =IF(ISNUMBER(INDEX(Import.PLE,$K1,ES$16)),IF(INDEX(Import.PLE,$K1,ES$16)<=mediçao,CS1,0),0) -> 0 | ET1: 0 | EU1: 0 | EV1: 0 | EW1: 0 | EX1: 0 | EY1: 0 | EZ1: 0 | FA1: 0 | FB1: 0 | FC1: 0 | FD1: 0 | FE1: 0 | FF1: 0 | FG1: 0 | FH1: 0 | FI1: 0 | FJ1: 0
B3: =ROW(Nível)-ROW(LIorçamento)+1 -> -14 | C3: Evento | D3: Evento | E3: =INDEX(Eventos,K3,2) ->  | F3: R$ | G3: =IF(Nível="Serviço",SUMIF($N$15:$BK$15,"<>"&"",N3:BK3),"") ->  | H3: =IF(AND(ISNUMBER(G3),G3<>0),I3/G3,IF(G3=0,0,"")) ->  | I3: =SUM(N3:BK3) -> 0 | K3: =INDEX(Eventos,ROW(Nível)-ROW(LForçamento),1) ->  | L3: =IF(AND(NumEvento<>"",Nível="Serviço"),INDEX(Eventos,NumEvento,2),"") ->  | N3: =IF(N$15="",0,SUMIF(Import.numEventos,$K3,OFFSET(PreçoServiçoPorFrente,0,N$16-1,,1))) -> 0 | O3: 0 | P3: 0 | Q3: 0 | R3: 0 | S3: 0 | T3: 0 | U3: 0 | V3: 0 | W3: 0 | X3: 0 | Y3: 0 | Z3: 0 | AA3: 0 | AB3: 0 | AC3: 0 | AD3: 0 | AE3: 0 | AF3: 0 | AG3: 0 | AH3: 0 | AI3: 0 | AJ3: 0 | AK3: 0 | AL3: 0 | AM3: 0 | AN3: 0 | AO3: 0 | AP3: 0 | AQ3: 0 | AR3: 0 | AS3: 0 | AT3: 0 | AU3: 0 | AV3: 0 | AW3: 0 | AX3: 0 | AY3: 0 | AZ3: 0 | BA3: 0 | BB3: 0 | BC3: 0 | BD3: 0 | BE3: 0 | BF3: 0 | BG3: 0 | BH3: 0 | BI3: 0 | BJ3: 0 | BK3: 0
E4: PLE - Planilha de Levantamento de Eventos Eventograma e Quantitativos | R4: Grau de Sigilo #PUBLICO | X4: Grau de Sigilo #PUBLICO | AD4: Grau de Sigilo #PUBLICO | AJ4: Grau de Sigilo #PUBLICO | AP4: Grau de Sigilo #PUBLICO | AV4: Grau de Sigilo #PUBLICO | BB4: Grau de Sigilo #PUBLICO | BH4: Grau de Sigilo #PUBLICO
BM14: Preço do Serviço por frente | DM14: Preço dos Serviços executados
C15: ="Valor Total do Orçamento: R$ "&TEXT(SUMIF(C18:C69,"Serviço",I18:I69),"#.#0,00") -> Valor Total do Orçamento: R$ 483.284,68 | L15: Frentes de Obra: | N15: ESTRUTURA TÉRREA | O15: ESTRUTURA SUPERIOR | P15: COBERTURA | Q15: QUADRA
B16: =COUNTA(OFFSET(Eventograma_e_Quantitativos!$K$17,1,0):OFFSET(Eventograma_e_Quantitativos!$K$57,-1,0))-COUNTBLANK(OFFSET(Eventograma_e_Quantitativos!$L$17,1,0):OFFSET(Eventograma_e_Quantitativos!$L$57,-1,0))<COUNTIF(OFFSET(Eventograma_e_Quantitativos!$C$17,1,0):OFFSET(Eventograma_e_Quantitativos!$C$57,-1,0),"Serviço") -> FALSE | C16: Nível | D16: Item | E16: Descrição | F16: Unid. | G16: Qtde. | H16: Preço Unit. (R$) | I16: Preço Total (R$) | K16: Núm. Evento | L16: Título dos Eventos | N16: 1 | O16: 2 | P16: 3 | Q16: 4 | R16: 5 | S16: 6 | T16: 7 | U16: 8 | V16: 9 | W16: 10 | X16: 11 | Y16: 12 | Z16: 13 | AA16: 14 | AB16: 15 | AC16: 16 | AD16: 17 | AE16: 18 | AF16: 19 | AG16: 20 | AH16: 21 | AI16: 22 | AJ16: 23 | AK16: 24 | AL16: 25 | AM16: 26 | AN16: 27 | AO16: 28 | AP16: 29 | AQ16: 30 | AR16: 31 | AS16: 32 | AT16: 33 | AU16: 34 | AV16: 35 | AW16: 36 | AX16: 37 | AY16: 38 | AZ16: 39 | BA16: 40 | BB16: 41 | BC16: 42 | BD16: 43 | BE16: 44 | BF16: 45 | BG16: 46 | BH16: 47 | BI16: 48 | BJ16: 49 | BK16: 50 | BM16: 1 | BN16: 2 | BO16: 3 | BP16: 4 | BQ16: 5 | BR16: 6 | BS16: 7 | BT16: 8 | BU16: 9 | BV16: 10 | BW16: 11 | BX16: 12 | BY16: 13 | BZ16: 14 | CA16: 15 | CB16: 16 | CC16: 17 | CD16: 18 | CE16: 19 | CF16: 20 | CG16: 21 | CH16: 22 | CI16: 23 | CJ16: 24 | CK16: 25 | CL16: 26 | CM16: 27 | CN16: 28 | CO16: 29 | CP16: 30 | CQ16: 31 | CR16: 32 | CS16: 33 | CT16: 34 | CU16: 35 | CV16: 36 | CW16: 37 | CX16: 38 | CY16: 39 | CZ16: 40 | DA16: 41 | DB16: 42 | DC16: 43 | DD16: 44 | DE16: 45 | DF16: 46 | DG16: 47 | DH16: 48 | DI16: 49 | DJ16: 50 | DK16: meta | DM16: 1 | DN16: 2 | DO16: 3 | DP16: 4 | DQ16: 5 | DR16: 6 | DS16: 7 | DT16: 8 | DU16: 9 | DV16: 10 | DW16: 11 | DX16: 12 | DY16: 13 | DZ16: 14 | EA16: 15 | EB16: 16 | EC16: 17 | ED16: 18 | EE16: 19 | EF16: 20 | EG16: 21 | EH16: 22 | EI16: 23 | EJ16: 24 | EK16: 25 | EL16: 26 | EM16: 27 | EN16: 28 | EO16: 29 | EP16: 30 | EQ16: 31 | ER16: 32 | ES16: 33 | ET16: 34 | EU16: 35 | EV16: 36 | EW16: 37 | EX16: 38 | EY16: 39 | EZ16: 40 | FA16: 41 | FB16: 42 | FC16: 43 | FD16: 44 | FE16: 45 | FF16: 46 | FG16: 47 | FH16: 48 | FI16: 49 | FJ16: 50
B18: =ROW(Nível)-ROW(LIorçamento)+1 -> 1 | C18: =IF(D18="","",IF(ISNUMBER(VALUE(D18)),"Meta",IF(AND(F18<>"",I18<>""),"Serviço","Nível"))) -> Nível | D18: 1. | E18: COBERTURA E REVITALIZAÇÃO QUADRA BAIRRO REGINA | G18: =IF(Nível="Serviço",SUMIF($N$15:$BK$15,"<>"&"",N18:BK18),"") ->  | H18: =IF(AND(ISNUMBER(G18),G18<>0),I18/G18,IF(G18=0,0,"")) ->  | I18: 483284.68 | K18: =IF(L18="","",VALUE(LEFT(L18,(FIND("-",L18,1))-1))) ->  | N18: 0 | BM18: =IF(N$15="",0,IF(ISNUMBER(PreçoUnit),PreçoUnit*INDEX(Import.PLQ,$B18,BM$16),0)) -> 0 | BN18: =IF(O$15="",0,IF(ISNUMBER(PreçoUnit),PreçoUnit*INDEX(Import.PLQ,$B18,BN$16),0)) -> 0 | BO18: =IF(P$15="",0,IF(ISNUMBER(PreçoUnit),PreçoUnit*INDEX(Import.PLQ,$B18,BO$16),0)) -> 0 | BP18: =IF(Q$15="",0,IF(ISNUMBER(PreçoUnit),PreçoUnit*INDEX(Import.PLQ,$B18,BP$16),0)) -> 0 | BQ18: =IF(R$15="",0,IF(ISNUMBER(PreçoUnit),PreçoUnit*INDEX(Import.PLQ,$B18,BQ$16),0)) -> 0 | BR18: =IF(S$15="",0,IF(ISNUMBER(PreçoUnit),PreçoUnit*INDEX(Import.PLQ,$B18,BR$16),0)) -> 0 | BS18: =IF(T$15="",0,IF(ISNUMBER(PreçoUnit),PreçoUnit*INDEX(Import.PLQ,$B18,BS$16),0)) -> 0 | BT18: =IF(U$15="",0,IF(ISNUMBER(PreçoUnit),PreçoUnit*INDEX(Import.PLQ,$B18,BT$16),0)) -> 0 | BU18: =IF(V$15="",0,IF(ISNUMBER(PreçoUnit),PreçoUnit*INDEX(Import.PLQ,$B18,BU$16),0)) -> 0 | BV18: =IF(W$15="",0,IF(ISNUMBER(PreçoUnit),PreçoUnit*INDEX(Import.PLQ,$B18,BV$16),0)) -> 0 | BW18: =IF(X$15="",0,IF(ISNUMBER(PreçoUnit),PreçoUnit*INDEX(Import.PLQ,$B18,BW$16),0)) -> 0 | BX18: =IF(Y$15="",0,IF(ISNUMBER(PreçoUnit),PreçoUnit*INDEX(Import.PLQ,$B18,BX$16),0)) -> 0 | BY18: =IF(Z$15="",0,IF(ISNUMBER(PreçoUnit),PreçoUnit*INDEX(Import.PLQ,$B18,BY$16),0)) -> 0 | BZ18: =IF(AA$15="",0,IF(ISNUMBER(PreçoUnit),PreçoUnit*INDEX(Import.PLQ,$B18,BZ$16),0)) -> 0 | CA18: =IF(AB$15="",0,IF(ISNUMBER(PreçoUnit),PreçoUnit*INDEX(Import.PLQ,$B18,CA$16),0)) -> 0 | CB18: =IF(AC$15="",0,IF(ISNUMBER(PreçoUnit),PreçoUnit*INDEX(Import.PLQ,$B18,CB$16),0)) -> 0 | CC18: =IF(AD$15="",0,IF(ISNUMBER(PreçoUnit),PreçoUnit*INDEX(Import.PLQ,$B18,CC$16),0)) -> 0 | CD18: =IF(AE$15="",0,IF(ISNUMBER(PreçoUnit),PreçoUnit*INDEX(Import.PLQ,$B18,CD$16),0)) -> 0 | CE18: =IF(AF$15="",0,IF(ISNUMBER(PreçoUnit),PreçoUnit*INDEX(Import.PLQ,$B18,CE$16),0)) -> 0 | CF18: =IF(AG$15="",0,IF(ISNUMBER(PreçoUnit),PreçoUnit*INDEX(Import.PLQ,$B18,CF$16),0)) -> 0 | CG18: =IF(AH$15="",0,IF(ISNUMBER(PreçoUnit),PreçoUnit*INDEX(Import.PLQ,$B18,CG$16),0)) -> 0 | CH18: =IF(AI$15="",0,IF(ISNUMBER(PreçoUnit),PreçoUnit*INDEX(Import.PLQ,$B18,CH$16),0)) -> 0 | CI18: =IF(AJ$15="",0,IF(ISNUMBER(PreçoUnit),PreçoUnit*INDEX(Import.PLQ,$B18,CI$16),0)) -> 0 | CJ18: =IF(AK$15="",0,IF(ISNUMBER(PreçoUnit),PreçoUnit*INDEX(Import.PLQ,$B18,CJ$16),0)) -> 0 | CK18: =IF(AL$15="",0,IF(ISNUMBER(PreçoUnit),PreçoUnit*INDEX(Import.PLQ,$B18,CK$16),0)) -> 0 | CL18: =IF(AM$15="",0,IF(ISNUMBER(PreçoUnit),PreçoUnit*INDEX(Import.PLQ,$B18,CL$16),0)) -> 0 | CM18: =IF(AN$15="",0,IF(ISNUMBER(PreçoUnit),PreçoUnit*INDEX(Import.PLQ,$B18,CM$16),0)) -> 0 | CN18: =IF(AO$15="",0,IF(ISNUMBER(PreçoUnit),PreçoUnit*INDEX(Import.PLQ,$B18,CN$16),0)) -> 0 | CO18: =IF(AP$15="",0,IF(ISNUMBER(PreçoUnit),PreçoUnit*INDEX(Import.PLQ,$B18,CO$16),0)) -> 0 | CP18: =IF(AQ$15="",0,IF(ISNUMBER(PreçoUnit),PreçoUnit*INDEX(Import.PLQ,$B18,CP$16),0)) -> 0 | CQ18: =IF(AR$15="",0,IF(ISNUMBER(PreçoUnit),PreçoUnit*INDEX(Import.PLQ,$B18,CQ$16),0)) -> 0 | CR18: =IF(AS$15="",0,IF(ISNUMBER(PreçoUnit),PreçoUnit*INDEX(Import.PLQ,$B18,CR$16),0)) -> 0 | CS18: =IF(AT$15="",0,IF(ISNUMBER(PreçoUnit),PreçoUnit*INDEX(Import.PLQ,$B18,CS$16),0)) -> 0 | CT18: =IF(AU$15="",0,IF(ISNUMBER(PreçoUnit),PreçoUnit*INDEX(Import.PLQ,$B18,CT$16),0)) -> 0 | CU18: =IF(AV$15="",0,IF(ISNUMBER(PreçoUnit),PreçoUnit*INDEX(Import.PLQ,$B18,CU$16),0)) -> 0 | CV18: =IF(AW$15="",0,IF(ISNUMBER(PreçoUnit),PreçoUnit*INDEX(Import.PLQ,$B18,CV$16),0)) -> 0 | CW18: =IF(AX$15="",0,IF(ISNUMBER(PreçoUnit),PreçoUnit*INDEX(Import.PLQ,$B18,CW$16),0)) -> 0 | CX18: =IF(AY$15="",0,IF(ISNUMBER(PreçoUnit),PreçoUnit*INDEX(Import.PLQ,$B18,CX$16),0)) -> 0 | CY18: =IF(AZ$15="",0,IF(ISNUMBER(PreçoUnit),PreçoUnit*INDEX(Import.PLQ,$B18,CY$16),0)) -> 0 | CZ18: =IF(BA$15="",0,IF(ISNUMBER(PreçoUnit),PreçoUnit*INDEX(Import.PLQ,$B18,CZ$16),0)) -> 0 | DA18: =IF(BB$15="",0,IF(ISNUMBER(PreçoUnit),PreçoUnit*INDEX(Import.PLQ,$B18,DA$16),0)) -> 0 | DB18: =IF(BC$15="",0,IF(ISNUMBER(PreçoUnit),PreçoUnit*INDEX(Import.PLQ,$B18,DB$16),0)) -> 0 | DC18: =IF(BD$15="",0,IF(ISNUMBER(PreçoUnit),PreçoUnit*INDEX(Import.PLQ,$B18,DC$16),0)) -> 0 | DD18: =IF(BE$15="",0,IF(ISNUMBER(PreçoUnit),PreçoUnit*INDEX(Import.PLQ,$B18,DD$16),0)) -> 0 | DE18: =IF(BF$15="",0,IF(ISNUMBER(PreçoUnit),PreçoUnit*INDEX(Import.PLQ,$B18,DE$16),0)) -> 0 | DF18: =IF(BG$15="",0,IF(ISNUMBER(PreçoUnit),PreçoUnit*INDEX(Import.PLQ,$B18,DF$16),0)) -> 0 | DG18: =IF(BH$15="",0,IF(ISNUMBER(PreçoUnit),PreçoUnit*INDEX(Import.PLQ,$B18,DG$16),0)) -> 0 | DH18: =IF(BI$15="",0,IF(ISNUMBER(PreçoUnit),PreçoUnit*INDEX(Import.PLQ,$B18,DH$16),0)) -> 0 | DI18: =IF(BJ$15="",0,IF(ISNUMBER(PreçoUnit),PreçoUnit*INDEX(Import.PLQ,$B18,DI$16),0)) -> 0 | DJ18: =IF(BK$15="",0,IF(ISNUMBER(PreçoUnit),PreçoUnit*INDEX(Import.PLQ,$B18,DJ$16),0)) -> 0 | DK18: =IF(D18="",0,IF(ISNUMBER(VALUE(D18)),VALUE(D18),LEFT(D18,FIND(".",D18)-1))) -> 1 | DL18: =SUM(DM18:FJ18) -> 0 | DM18: =IF(ISNUMBER(INDEX(Import.PLE,$K18,DM$16)),IF(INDEX(Import.PLE,$K18,DM$16)<=mediçao,BM18,0),0) -> 0 | DN18: =IF(ISNUMBER(INDEX(Import.PLE,$K18,DN$16)),IF(INDEX(Import.PLE,$K18,DN$16)<=mediçao,BN18,0),0) -> 0 | DO18: =IF(ISNUMBER(INDEX(Import.PLE,$K18,DO$16)),IF(INDEX(Import.PLE,$K18,DO$16)<=mediçao,BO18,0),0) -> 0 | DP18: =IF(ISNUMBER(INDEX(Import.PLE,$K18,DP$16)),IF(INDEX(Import.PLE,$K18,DP$16)<=mediçao,BP18,0),0) -> 0 | DQ18: =IF(ISNUMBER(INDEX(Import.PLE,$K18,DQ$16)),IF(INDEX(Import.PLE,$K18,DQ$16)<=mediçao,BQ18,0),0) -> 0 | DR18: =IF(ISNUMBER(INDEX(Import.PLE,$K18,DR$16)),IF(INDEX(Import.PLE,$K18,DR$16)<=mediçao,BR18,0),0) -> 0 | DS18: =IF(ISNUMBER(INDEX(Import.PLE,$K18,DS$16)),IF(INDEX(Import.PLE,$K18,DS$16)<=mediçao,BS18,0),0) -> 0 | DT18: =IF(ISNUMBER(INDEX(Import.PLE,$K18,DT$16)),IF(INDEX(Import.PLE,$K18,DT$16)<=mediçao,BT18,0),0) -> 0 | DU18: =IF(ISNUMBER(INDEX(Import.PLE,$K18,DU$16)),IF(INDEX(Import.PLE,$K18,DU$16)<=mediçao,BU18,0),0) -> 0 | DV18: =IF(ISNUMBER(INDEX(Import.PLE,$K18,DV$16)),IF(INDEX(Import.PLE,$K18,DV$16)<=mediçao,BV18,0),0) -> 0 | DW18: =IF(ISNUMBER(INDEX(Import.PLE,$K18,DW$16)),IF(INDEX(Import.PLE,$K18,DW$16)<=mediçao,BW18,0),0) -> 0 | DX18: =IF(ISNUMBER(INDEX(Import.PLE,$K18,DX$16)),IF(INDEX(Import.PLE,$K18,DX$16)<=mediçao,BX18,0),0) -> 0 | DY18: =IF(ISNUMBER(INDEX(Import.PLE,$K18,DY$16)),IF(INDEX(Import.PLE,$K18,DY$16)<=mediçao,BY18,0),0) -> 0 | DZ18: =IF(ISNUMBER(INDEX(Import.PLE,$K18,DZ$16)),IF(INDEX(Import.PLE,$K18,DZ$16)<=mediçao,BZ18,0),0) -> 0 | EA18: =IF(ISNUMBER(INDEX(Import.PLE,$K18,EA$16)),IF(INDEX(Import.PLE,$K18,EA$16)<=mediçao,CA18,0),0) -> 0 | EB18: =IF(ISNUMBER(INDEX(Import.PLE,$K18,EB$16)),IF(INDEX(Import.PLE,$K18,EB$16)<=mediçao,CB18,0),0) -> 0 | EC18: =IF(ISNUMBER(INDEX(Import.PLE,$K18,EC$16)),IF(INDEX(Import.PLE,$K18,EC$16)<=mediçao,CC18,0),0) -> 0 | ED18: =IF(ISNUMBER(INDEX(Import.PLE,$K18,ED$16)),IF(INDEX(Import.PLE,$K18,ED$16)<=mediçao,CD18,0),0) -> 0 | EE18: =IF(ISNUMBER(INDEX(Import.PLE,$K18,EE$16)),IF(INDEX(Import.PLE,$K18,EE$16)<=mediçao,CE18,0),0) -> 0 | EF18: =IF(ISNUMBER(INDEX(Import.PLE,$K18,EF$16)),IF(INDEX(Import.PLE,$K18,EF$16)<=mediçao,CF18,0),0) -> 0 | EG18: =IF(ISNUMBER(INDEX(Import.PLE,$K18,EG$16)),IF(INDEX(Import.PLE,$K18,EG$16)<=mediçao,CG18,0),0) -> 0 | EH18: =IF(ISNUMBER(INDEX(Import.PLE,$K18,EH$16)),IF(INDEX(Import.PLE,$K18,EH$16)<=mediçao,CH18,0),0) -> 0 | EI18: =IF(ISNUMBER(INDEX(Import.PLE,$K18,EI$16)),IF(INDEX(Import.PLE,$K18,EI$16)<=mediçao,CI18,0),0) -> 0 | EJ18: =IF(ISNUMBER(INDEX(Import.PLE,$K18,EJ$16)),IF(INDEX(Import.PLE,$K18,EJ$16)<=mediçao,CJ18,0),0) -> 0 | EK18: =IF(ISNUMBER(INDEX(Import.PLE,$K18,EK$16)),IF(INDEX(Import.PLE,$K18,EK$16)<=mediçao,CK18,0),0) -> 0 | EL18: =IF(ISNUMBER(INDEX(Import.PLE,$K18,EL$16)),IF(INDEX(Import.PLE,$K18,EL$16)<=mediçao,CL18,0),0) -> 0 | EM18: =IF(ISNUMBER(INDEX(Import.PLE,$K18,EM$16)),IF(INDEX(Import.PLE,$K18,EM$16)<=mediçao,CM18,0),0) -> 0 | EN18: =IF(ISNUMBER(INDEX(Import.PLE,$K18,EN$16)),IF(INDEX(Import.PLE,$K18,EN$16)<=mediçao,CN18,0),0) -> 0 | EO18: =IF(ISNUMBER(INDEX(Import.PLE,$K18,EO$16)),IF(INDEX(Import.PLE,$K18,EO$16)<=mediçao,CO18,0),0) -> 0 | EP18: =IF(ISNUMBER(INDEX(Import.PLE,$K18,EP$16)),IF(INDEX(Import.PLE,$K18,EP$16)<=mediçao,CP18,0),0) -> 0 | EQ18: =IF(ISNUMBER(INDEX(Import.PLE,$K18,EQ$16)),IF(INDEX(Import.PLE,$K18,EQ$16)<=mediçao,CQ18,0),0) -> 0 | ER18: =IF(ISNUMBER(INDEX(Import.PLE,$K18,ER$16)),IF(INDEX(Import.PLE,$K18,ER$16)<=mediçao,CR18,0),0) -> 0 | ES18: =IF(ISNUMBER(INDEX(Import.PLE,$K18,ES$16)),IF(INDEX(Import.PLE,$K18,ES$16)<=mediçao,CS18,0),0) -> 0 | ET18: =IF(ISNUMBER(INDEX(Import.PLE,$K18,ET$16)),IF(INDEX(Import.PLE,$K18,ET$16)<=mediçao,CT18,0),0) -> 0 | EU18: =IF(ISNUMBER(INDEX(Import.PLE,$K18,EU$16)),IF(INDEX(Import.PLE,$K18,EU$16)<=mediçao,CU18,0),0) -> 0 | EV18: =IF(ISNUMBER(INDEX(Import.PLE,$K18,EV$16)),IF(INDEX(Import.PLE,$K18,EV$16)<=mediçao,CV18,0),0) -> 0 | EW18: =IF(ISNUMBER(INDEX(Import.PLE,$K18,EW$16)),IF(INDEX(Import.PLE,$K18,EW$16)<=mediçao,CW18,0),0) -> 0 | EX18: =IF(ISNUMBER(INDEX(Import.PLE,$K18,EX$16)),IF(INDEX(Import.PLE,$K18,EX$16)<=mediçao,CX18,0),0) -> 0 | EY18: =IF(ISNUMBER(INDEX(Import.PLE,$K18,EY$16)),IF(INDEX(Import.PLE,$K18,EY$16)<=mediçao,CY18,0),0) -> 0 | EZ18: =IF(ISNUMBER(INDEX(Import.PLE,$K18,EZ$16)),IF(INDEX(Import.PLE,$K18,EZ$16)<=mediçao,CZ18,0),0) -> 0 | FA18: =IF(ISNUMBER(INDEX(Import.PLE,$K18,FA$16)),IF(INDEX(Import.PLE,$K18,FA$16)<=mediçao,DA18,0),0) -> 0 | FB18: =IF(ISNUMBER(INDEX(Import.PLE,$K18,FB$16)),IF(INDEX(Import.PLE,$K18,FB$16)<=mediçao,DB18,0),0) -> 0 | FC18: =IF(ISNUMBER(INDEX(Import.PLE,$K18,FC$16)),IF(INDEX(Import.PLE,$K18,FC$16)<=mediçao,DC18,0),0) -> 0 | FD18: =IF(ISNUMBER(INDEX(Import.PLE,$K18,FD$16)),IF(INDEX(Import.PLE,$K18,FD$16)<=mediçao,DD18,0),0) -> 0 | FE18: =IF(ISNUMBER(INDEX(Import.PLE,$K18,FE$16)),IF(INDEX(Import.PLE,$K18,FE$16)<=mediçao,DE18,0),0) -> 0 | FF18: =IF(ISNUMBER(INDEX(Import.PLE,$K18,FF$16)),IF(INDEX(Import.PLE,$K18,FF$16)<=mediçao,DF18,0),0) -> 0 | FG18: =IF(ISNUMBER(INDEX(Import.PLE,$K18,FG$16)),IF(INDEX(Import.PLE,$K18,FG$16)<=mediçao,DG18,0),0) -> 0 | FH18: =IF(ISNUMBER(INDEX(Import.PLE,$K18,FH$16)),IF(INDEX(Import.PLE,$K18,FH$16)<=mediçao,DH18,0),0) -> 0 | FI18: =IF(ISNUMBER(INDEX(Import.PLE,$K18,FI$16)),IF(INDEX(Import.PLE,$K18,FI$16)<=mediçao,DI18,0),0) -> 0 | FJ18: =IF(ISNUMBER(INDEX(Import.PLE,$K18,FJ$16)),IF(INDEX(Import.PLE,$K18,FJ$16)<=mediçao,DJ18,0),0) -> 0
B19: 2 | C19: Nível | D19: 1.1. | E19: SERVIÇOS INICIAIS | I19: 2893.25 | K19: =IF(L19="","",VALUE(LEFT(L19,(FIND("-",L19,1))-1))) ->  | N19: 0 | BM19: 0 | BN19: 0 | BO19: 0 | BP19: 0 | BQ19: 0 | BR19: 0 | BS19: 0 | BT19: 0 | BU19: 0 | BV19: 0 | BW19: 0 | BX19: 0 | BY19: 0 | BZ19: 0 | CA19: 0 | CB19: 0 | CC19: 0 | CD19: 0 | CE19: 0 | CF19: 0 | CG19: 0 | CH19: 0 | CI19: 0 | CJ19: 0 | CK19: 0 | CL19: 0 | CM19: 0 | CN19: 0 | CO19: 0 | CP19: 0 | CQ19: 0 | CR19: 0 | CS19: 0 | CT19: 0 | CU19: 0 | CV19: 0 | CW19: 0 | CX19: 0 | CY19: 0 | CZ19: 0 | DA19: 0 | DB19: 0 | DC19: 0 | DD19: 0 | DE19: 0 | DF19: 0 | DG19: 0 | DH19: 0 | DI19: 0 | DJ19: 0 | DK19: 1 | DL19: 0 | DM19: 0 | DN19: 0 | DO19: 0 | DP19: 0 | DQ19: 0 | DR19: 0 | DS19: 0 | DT19: 0 | DU19: 0 | DV19: 0 | DW19: 0 | DX19: 0 | DY19: 0 | DZ19: 0 | EA19: 0 | EB19: 0 | EC19: 0 | ED19: 0 | EE19: 0 | EF19: 0 | EG19: 0 | EH19: 0 | EI19: 0 | EJ19: 0 | EK19: 0 | EL19: 0 | EM19: 0 | EN19: 0 | EO19: 0 | EP19: 0 | EQ19: 0 | ER19: 0 | ES19: 0 | ET19: 0 | EU19: 0 | EV19: 0 | EW19: 0 | EX19: 0 | EY19: 0 | EZ19: 0 | FA19: 0 | FB19: 0 | FC19: 0 | FD19: 0 | FE19: 0 | FF19: 0 | FG19: 0 | FH19: 0 | FI19: 0 | FJ19: 0
B20: 3 | C20: Serviço | D20: 1.1.1. | E20: PLACA DE OBRA EM CHAPA DE ACO GALVANIZADO PADRÃO AMMOC | F20: M2 | G20: 2.5 | H20: 316.4 | I20: 791 | K20: 1 | L20: 1-SERVIÇOS INICIAIS | N20: 2.5 | BM20: 791 | BN20: 0 | BO20: 0 | BP20: 0 | BQ20: 0 | BR20: 0 | BS20: 0 | BT20: 0 | BU20: 0 | BV20: 0 | BW20: 0 | BX20: 0 | BY20: 0 | BZ20: 0 | CA20: 0 | CB20: 0 | CC20: 0 | CD20: 0 | CE20: 0 | CF20: 0 | CG20: 0 | CH20: 0 | CI20: 0 | CJ20: 0 | CK20: 0 | CL20: 0 | CM20: 0 | CN20: 0 | CO20: 0 | CP20: 0 | CQ20: 0 | CR20: 0 | CS20: 0 | CT20: 0 | CU20: 0 | CV20: 0 | CW20: 0 | CX20: 0 | CY20: 0 | CZ20: 0 | DA20: 0 | DB20: 0 | DC20: 0 | DD20: 0 | DE20: 0 | DF20: 0 | DG20: 0 | DH20: 0 | DI20: 0 | DJ20: 0 | DK20: 1 | DL20: 0 | DM20: 0 | DN20: 0 | DO20: 0 | DP20: 0 | DQ20: 0 | DR20: 0 | DS20: 0 | DT20: 0 | DU20: 0 | DV20: 0 | DW20: 0 | DX20: 0 | DY20: 0 | DZ20: 0 | EA20: 0 | EB20: 0 | EC20: 0 | ED20: 0 | EE20: 0 | EF20: 0 | EG20: 0 | EH20: 0 | EI20: 0 | EJ20: 0 | EK20: 0 | EL20: 0 | EM20: 0 | EN20: 0 | EO20: 0 | EP20: 0 | EQ20: 0 | ER20: 0 | ES20: 0 | ET20: 0 | EU20: 0 | EV20: 0 | EW20: 0 | EX20: 0 | EY20: 0 | EZ20: 0 | FA20: 0 | FB20: 0 | FC20: 0 | FD20: 0 | FE20: 0 | FF20: 0 | FG20: 0 | FH20: 0 | FI20: 0 | FJ20: 0
B21: 4 | C21: Serviço | D21: 1.1.2. | E21: PLACA DE OBRA EM CHAPA DE ACO GALVANIZADO PADRÃO CAIXA | F21: M2 | G21: 2.5 | H21: 316.4 | I21: 791 | K21: 1 | L21: 1-SERVIÇOS INICIAIS | N21: 2.5 | BM21: 791 | BN21: 0 | BO21: 0 | BP21: 0 | BQ21: 0 | BR21: 0 | BS21: 0 | BT21: 0 | BU21: 0 | BV21: 0 | BW21: 0 | BX21: 0 | BY21: 0 | BZ21: 0 | CA21: 0 | CB21: 0 | CC21: 0 | CD21: 0 | CE21: 0 | CF21: 0 | CG21: 0 | CH21: 0 | CI21: 0 | CJ21: 0 | CK21: 0 | CL21: 0 | CM21: 0 | CN21: 0 | CO21: 0 | CP21: 0 | CQ21: 0 | CR21: 0 | CS21: 0 | CT21: 0 | CU21: 0 | CV21: 0 | CW21: 0 | CX21: 0 | CY21: 0 | CZ21: 0 | DA21: 0 | DB21: 0 | DC21: 0 | DD21: 0 | DE21: 0 | DF21: 0 | DG21: 0 | DH21: 0 | DI21: 0 | DJ21: 0 | DK21: 1 | DL21: 0 | DM21: 0 | DN21: 0 | DO21: 0 | DP21: 0 | DQ21: 0 | DR21: 0 | DS21: 0 | DT21: 0 | DU21: 0 | DV21: 0 | DW21: 0 | DX21: 0 | DY21: 0 | DZ21: 0 | EA21: 0 | EB21: 0 | EC21: 0 | ED21: 0 | EE21: 0 | EF21: 0 | EG21: 0 | EH21: 0 | EI21: 0 | EJ21: 0 | EK21: 0 | EL21: 0 | EM21: 0 | EN21: 0 | EO21: 0 | EP21: 0 | EQ21: 0 | ER21: 0 | ES21: 0 | ET21: 0 | EU21: 0 | EV21: 0 | EW21: 0 | EX21: 0 | EY21: 0 | EZ21: 0 | FA21: 0 | FB21: 0 | FC21: 0 | FD21: 0 | FE21: 0 | FF21: 0 | FG21: 0 | FH21: 0 | FI21: 0 | FJ21: 0
B22: 5 | C22: Serviço | D22: 1.1.3. | E22: LOCACAO CONVENCIONAL DE OBRA | F22: M2 | G22: 1032.48 | H22: 1.270000387 | I22: 1311.25 | K22: 1 | L22: 1-SERVIÇOS INICIAIS | N22: 1032.48 | BM22: 1311.25 | BN22: 0 | BO22: 0 | BP22: 0 | BQ22: 0 | BR22: 0 | BS22: 0 | BT22: 0 | BU22: 0 | BV22: 0 | BW22: 0 | BX22: 0 | BY22: 0 | BZ22: 0 | CA22: 0 | CB22: 0 | CC22: 0 | CD22: 0 | CE22: 0 | CF22: 0 | CG22: 0 | CH22: 0 | CI22: 0 | CJ22: 0 | CK22: 0 | CL22: 0 | CM22: 0 | CN22: 0 | CO22: 0 | CP22: 0 | CQ22: 0 | CR22: 0 | CS22: 0 | CT22: 0 | CU22: 0 | CV22: 0 | CW22: 0 | CX22: 0 | CY22: 0 | CZ22: 0 | DA22: 0 | DB22: 0 | DC22: 0 | DD22: 0 | DE22: 0 | DF22: 0 | DG22: 0 | DH22: 0 | DI22: 0 | DJ22: 0 | DK22: 1 | DL22: 0 | DM22: 0 | DN22: 0 | DO22: 0 | DP22: 0 | DQ22: 0 | DR22: 0 | DS22: 0 | DT22: 0 | DU22: 0 | DV22: 0 | DW22: 0 | DX22: 0 | DY22: 0 | DZ22: 0 | EA22: 0 | EB22: 0 | EC22: 0 | ED22: 0 | EE22: 0 | EF22: 0 | EG22: 0 | EH22: 0 | EI22: 0 | EJ22: 0 | EK22: 0 | EL22: 0 | EM22: 0 | EN22: 0 | EO22: 0 | EP22: 0 | EQ22: 0 | ER22: 0 | ES22: 0 | ET22: 0 | EU22: 0 | EV22: 0 | EW22: 0 | EX22: 0 | EY22: 0 | EZ22: 0 | FA22: 0 | FB22: 0 | FC22: 0 | FD22: 0 | FE22: 0 | FF22: 0 | FG22: 0 | FH22: 0 | FI22: 0 | FJ22: 0
B23: 6 | C23: Nível | D23: 1.2. | E23: ESCAVAÇÃO E REATERRO | I23: 1501.94 | K23: 1 | L23: 1-SERVIÇOS INICIAIS | N23: 0 | BM23: 0 | BN23: 0 | BO23: 0 | BP23: 0 | BQ23: 0 | BR23: 0 | BS23: 0 | BT23: 0 | BU23: 0 | BV23: 0 | BW23: 0 | BX23: 0 | BY23: 0 | BZ23: 0 | CA23: 0 | CB23: 0 | CC23: 0 | CD23: 0 | CE23: 0 | CF23: 0 | CG23: 0 | CH23: 0 | CI23: 0 | CJ23: 0 | CK23: 0 | CL23: 0 | CM23: 0 | CN23: 0 | CO23: 0 | CP23: 0 | CQ23: 0 | CR23: 0 | CS23: 0 | CT23: 0 | CU23: 0 | CV23: 0 | CW23: 0 | CX23: 0 | CY23: 0 | CZ23: 0 | DA23: 0 | DB23: 0 | DC23: 0 | DD23: 0 | DE23: 0 | DF23: 0 | DG23: 0 | DH23: 0 | DI23: 0 | DJ23: 0 | DK23: 1 | DL23: 0 | DM23: 0 | DN23: 0 | DO23: 0 | DP23: 0 | DQ23: 0 | DR23: 0 | DS23: 0 | DT23: 0 | DU23: 0 | DV23: 0 | DW23: 0 | DX23: 0 | DY23: 0 | DZ23: 0 | EA23: 0 | EB23: 0 | EC23: 0 | ED23: 0 | EE23: 0 | EF23: 0 | EG23: 0 | EH23: 0 | EI23: 0 | EJ23: 0 | EK23: 0 | EL23: 0 | EM23: 0 | EN23: 0 | EO23: 0 | EP23: 0 | EQ23: 0 | ER23: 0 | ES23: 0 | ET23: 0 | EU23: 0 | EV23: 0 | EW23: 0 | EX23: 0 | EY23: 0 | EZ23: 0 | FA23: 0 | FB23: 0 | FC23: 0 | FD23: 0 | FE23: 0 | FF23: 0 | FG23: 0 | FH23: 0 | FI23: 0 | FJ23: 0
B24: 7 | C24: Serviço | D24: 1.2.1. | E24: ESCAVACAO MECANICA CAMPO ABERTO | F24: M3 | G24: 92.64 | H24: 2.530008636 | I24: 234.38 | K24: 2 | L24: 2-SAPATAS E CALICES | N24: 92.64 | BM24: 234.38 | BN24: 0 | BO24: 0 | BP24: 0 | BQ24: 0 | BR24: 0 | BS24: 0 | BT24: 0 | BU24: 0 | BV24: 0 | BW24: 0 | BX24: 0 | BY24: 0 | BZ24: 0 | CA24: 0 | CB24: 0 | CC24: 0 | CD24: 0 | CE24: 0 | CF24: 0 | CG24: 0 | CH24: 0 | CI24: 0 | CJ24: 0 | CK24: 0 | CL24: 0 | CM24: 0 | CN24: 0 | CO24: 0 | CP24: 0 | CQ24: 0 | CR24: 0 | CS24: 0 | CT24: 0 | CU24: 0 | CV24: 0 | CW24: 0 | CX24: 0 | CY24: 0 | CZ24: 0 | DA24: 0 | DB24: 0 | DC24: 0 | DD24: 0 | DE24: 0 | DF24: 0 | DG24: 0 | DH24: 0 | DI24: 0 | DJ24: 0 | DK24: 1 | DL24: 0 | DM24: 0 | DN24: 0 | DO24: 0 | DP24: 0 | DQ24: 0 | DR24: 0 | DS24: 0 | DT24: 0 | DU24: 0 | DV24: 0 | DW24: 0 | DX24: 0 | DY24: 0 | DZ24: 0 | EA24: 0 | EB24: 0 | EC24: 0 | ED24: 0 | EE24: 0 | EF24: 0 | EG24: 0 | EH24: 0 | EI24: 0 | EJ24: 0 | EK24: 0 | EL24: 0 | EM24: 0 | EN24: 0 | EO24: 0 | EP24: 0 | EQ24: 0 | ER24: 0 | ES24: 0 | ET24: 0 | EU24: 0 | EV24: 0 | EW24: 0 | EX24: 0 | EY24: 0 | EZ24: 0 | FA24: 0 | FB24: 0 | FC24: 0 | FD24: 0 | FE24: 0 | FF24: 0 | FG24: 0 | FH24: 0 | FI24: 0 | FJ24: 0
B25: 8 | C25: Serviço | D25: 1.2.2. | E25: REATERRO MANUAL DE VALAS COM COMPACTAÇÃO MECANIZADA | F25: M3 | G25: 45.53 | H25: 27.84010542 | I25: 1267.56 | K25: 2 | L25: 2-SAPATAS E CALICES | N25: 45.53 | BM25: 1267.56 | BN25: 0 | BO25: 0 | BP25: 0 | BQ25: 0 | BR25: 0 | BS25: 0 | BT25: 0 | BU25: 0 | BV25: 0 | BW25: 0 | BX25: 0 | BY25: 0 | BZ25: 0 | CA25: 0 | CB25: 0 | CC25: 0 | CD25: 0 | CE25: 0 | CF25: 0 | CG25: 0 | CH25: 0 | CI25: 0 | CJ25: 0 | CK25: 0 | CL25: 0 | CM25: 0 | CN25: 0 | CO25: 0 | CP25: 0 | CQ25: 0 | CR25: 0 | CS25: 0 | CT25: 0 | CU25: 0 | CV25: 0 | CW25: 0 | CX25: 0 | CY25: 0 | CZ25: 0 | DA25: 0 | DB25: 0 | DC25: 0 | DD25: 0 | DE25: 0 | DF25: 0 | DG25: 0 | DH25: 0 | DI25: 0 | DJ25: 0 | DK25: 1 | DL25: 0 | DM25: 0 | DN25: 0 | DO25: 0 | DP25: 0 | DQ25: 0 | DR25: 0 | DS25: 0 | DT25: 0 | DU25: 0 | DV25: 0 | DW25: 0 | DX25: 0 | DY25: 0 | DZ25: 0 | EA25: 0 | EB25: 0 | EC25: 0 | ED25: 0 | EE25: 0 | EF25: 0 | EG25: 0 | EH25: 0 | EI25: 0 | EJ25: 0 | EK25: 0 | EL25: 0 | EM25: 0 | EN25: 0 | EO25: 0 | EP25: 0 | EQ25: 0 | ER25: 0 | ES25: 0 | ET25: 0 | EU25: 0 | EV25: 0 | EW25: 0 | EX25: 0 | EY25: 0 | EZ25: 0 | FA25: 0 | FB25: 0 | FC25: 0 | FD25: 0 | FE25: 0 | FF25: 0 | FG25: 0 | FH25: 0 | FI25: 0 | FJ25: 0
B26: 9 | C26: Nível | D26: 1.3. | E26: ESTRUTURA DE CONCRETO ARMADO | I26: 167268.34 | K26: 2 | L26: 2-ESTRUTURA EM CONCRETO ARMADO | N26: 0 | BM26: 0 | BN26: 0 | BO26: 0 | BP26: 0 | BQ26: 0 | BR26: 0 | BS26: 0 | BT26: 0 | BU26: 0 | BV26: 0 | BW26: 0 | BX26: 0 | BY26: 0 | BZ26: 0 | CA26: 0 | CB26: 0 | CC26: 0 | CD26: 0 | CE26: 0 | CF26: 0 | CG26: 0 | CH26: 0 | CI26: 0 | CJ26: 0 | CK26: 0 | CL26: 0 | CM26: 0 | CN26: 0 | CO26: 0 | CP26: 0 | CQ26: 0 | CR26: 0 | CS26: 0 | CT26: 0 | CU26: 0 | CV26: 0 | CW26: 0 | CX26: 0 | CY26: 0 | CZ26: 0 | DA26: 0 | DB26: 0 | DC26: 0 | DD26: 0 | DE26: 0 | DF26: 0 | DG26: 0 | DH26: 0 | DI26: 0 | DJ26: 0 | DK26: 1 | DL26: 0 | DM26: 0 | DN26: 0 | DO26: 0 | DP26: 0 | DQ26: 0 | DR26: 0 | DS26: 0 | DT26: 0 | DU26: 0 | DV26: 0 | DW26: 0 | DX26: 0 | DY26: 0 | DZ26: 0 | EA26: 0 | EB26: 0 | EC26: 0 | ED26: 0 | EE26: 0 | EF26: 0 | EG26: 0 | EH26: 0 | EI26: 0 | EJ26: 0 | EK26: 0 | EL26: 0 | EM26: 0 | EN26: 0 | EO26: 0 | EP26: 0 | EQ26: 0 | ER26: 0 | ES26: 0 | ET26: 0 | EU26: 0 | EV26: 0 | EW26: 0 | EX26: 0 | EY26: 0 | EZ26: 0 | FA26: 0 | FB26: 0 | FC26: 0 | FD26: 0 | FE26: 0 | FF26: 0 | FG26: 0 | FH26: 0 | FI26: 0 | FJ26: 0
B27: 10 | C27: Serviço | D27: 1.3.1. | E27: PEDRA BRITADA N. 2 (19 A 38 MM) PARA LASTRO DE FUNDO | F27: M3 | G27: 3.7 | H27: 79.1 | I27: 292.67 | K27: 2 | L27: 2-SAPATAS E CALICES | N27: 3.7 | BM27: 292.67 | BN27: 0 | BO27: 0 | BP27: 0 | BQ27: 0 | BR27: 0 | BS27: 0 | BT27: 0 | BU27: 0 | BV27: 0 | BW27: 0 | BX27: 0 | BY27: 0 | BZ27: 0 | CA27: 0 | CB27: 0 | CC27: 0 | CD27: 0 | CE27: 0 | CF27: 0 | CG27: 0 | CH27: 0 | CI27: 0 | CJ27: 0 | CK27: 0 | CL27: 0 | CM27: 0 | CN27: 0 | CO27: 0 | CP27: 0 | CQ27: 0 | CR27: 0 | CS27: 0 | CT27: 0 | CU27: 0 | CV27: 0 | CW27: 0 | CX27: 0 | CY27: 0 | CZ27: 0 | DA27: 0 | DB27: 0 | DC27: 0 | DD27: 0 | DE27: 0 | DF27: 0 | DG27: 0 | DH27: 0 | DI27: 0 | DJ27: 0 | DK27: 1 | DL27: 0 | DM27: 0 | DN27: 0 | DO27: 0 | DP27: 0 | DQ27: 0 | DR27: 0 | DS27: 0 | DT27: 0 | DU27: 0 | DV27: 0 | DW27: 0 | DX27: 0 | DY27: 0 | DZ27: 0 | EA27: 0 | EB27: 0 | EC27: 0 | ED27: 0 | EE27: 0 | EF27: 0 | EG27: 0 | EH27: 0 | EI27: 0 | EJ27: 0 | EK27: 0 | EL27: 0 | EM27: 0 | EN27: 0 | EO27: 0 | EP27: 0 | EQ27: 0 | ER27: 0 | ES27: 0 | ET27: 0 | EU27: 0 | EV27: 0 | EW27: 0 | EX27: 0 | EY27: 0 | EZ27: 0 | FA27: 0 | FB27: 0 | FC27: 0 | FD27: 0 | FE27: 0 | FF27: 0 | FG27: 0 | FH27: 0 | FI27: 0 | FJ27: 0
B28: 11 | C28: Serviço | D28: 1.3.2. | E28: SAPATAS E CÁLICES EM CONCRETO ARMADO | F28: M3 | G28: 47.11 | H28: 1392.160051 | I28: 65584.66 | K28: 2 | L28: 2-SAPATAS E CALICES | N28: 47.11 | BM28: 65584.66 | BN28: 0 | BO28: 0 | BP28: 0 | BQ28: 0 | BR28: 0 | BS28: 0 | BT28: 0 | BU28: 0 | BV28: 0 | BW28: 0 | BX28: 0 | BY28: 0 | BZ28: 0 | CA28: 0 | CB28: 0 | CC28: 0 | CD28: 0 | CE28: 0 | CF28: 0 | CG28: 0 | CH28: 0 | CI28: 0 | CJ28: 0 | CK28: 0 | CL28: 0 | CM28: 0 | CN28: 0 | CO28: 0 | CP28: 0 | CQ28: 0 | CR28: 0 | CS28: 0 | CT28: 0 | CU28: 0 | CV28: 0 | CW28: 0 | CX28: 0 | CY28: 0 | CZ28: 0 | DA28: 0 | DB28: 0 | DC28: 0 | DD28: 0 | DE28: 0 | DF28: 0 | DG28: 0 | DH28: 0 | DI28: 0 | DJ28: 0 | DK28: 1 | DL28: 0 | DM28: 0 | DN28: 0 | DO28: 0 | DP28: 0 | DQ28: 0 | DR28: 0 | DS28: 0 | DT28: 0 | DU28: 0 | DV28: 0 | DW28: 0 | DX28: 0 | DY28: 0 | DZ28: 0 | EA28: 0 | EB28: 0 | EC28: 0 | ED28: 0 | EE28: 0 | EF28: 0 | EG28: 0 | EH28: 0 | EI28: 0 | EJ28: 0 | EK28: 0 | EL28: 0 | EM28: 0 | EN28: 0 | EO28: 0 | EP28: 0 | EQ28: 0 | ER28: 0 | ES28: 0 | ET28: 0 | EU28: 0 | EV28: 0 | EW28: 0 | EX28: 0 | EY28: 0 | EZ28: 0 | FA28: 0 | FB28: 0 | FC28: 0 | FD28: 0 | FE28: 0 | FF28: 0 | FG28: 0 | FH28: 0 | FI28: 0 | FJ28: 0
B29: 12 | C29: Serviço | D29: 1.3.3. | E29: PILARES EM CONCRETO PRÉ-MOLDADO | F29: M3 | G29: 37.3 | H29: 1392.160054 | I29: 51927.57 | K29: 3 | L29: 3-PILARES | N29: 37.3 | BM29: 51927.57 | BN29: 0 | BO29: 0 | BP29: 0 | BQ29: 0 | BR29: 0 | BS29: 0 | BT29: 0 | BU29: 0 | BV29: 0 | BW29: 0 | BX29: 0 | BY29: 0 | BZ29: 0 | CA29: 0 | CB29: 0 | CC29: 0 | CD29: 0 | CE29: 0 | CF29: 0 | CG29: 0 | CH29: 0 | CI29: 0 | CJ29: 0 | CK29: 0 | CL29: 0 | CM29: 0 | CN29: 0 | CO29: 0 | CP29: 0 | CQ29: 0 | CR29: 0 | CS29: 0 | CT29: 0 | CU29: 0 | CV29: 0 | CW29: 0 | CX29: 0 | CY29: 0 | CZ29: 0 | DA29: 0 | DB29: 0 | DC29: 0 | DD29: 0 | DE29: 0 | DF29: 0 | DG29: 0 | DH29: 0 | DI29: 0 | DJ29: 0 | DK29: 1 | DL29: 0 | DM29: 0 | DN29: 0 | DO29: 0 | DP29: 0 | DQ29: 0 | DR29: 0 | DS29: 0 | DT29: 0 | DU29: 0 | DV29: 0 | DW29: 0 | DX29: 0 | DY29: 0 | DZ29: 0 | EA29: 0 | EB29: 0 | EC29: 0 | ED29: 0 | EE29: 0 | EF29: 0 | EG29: 0 | EH29: 0 | EI29: 0 | EJ29: 0 | EK29: 0 | EL29: 0 | EM29: 0 | EN29: 0 | EO29: 0 | EP29: 0 | EQ29: 0 | ER29: 0 | ES29: 0 | ET29: 0 | EU29: 0 | EV29: 0 | EW29: 0 | EX29: 0 | EY29: 0 | EZ29: 0 | FA29: 0 | FB29: 0 | FC29: 0 | FD29: 0 | FE29: 0 | FF29: 0 | FG29: 0 | FH29: 0 | FI29: 0 | FJ29: 0
B30: 13 | C30: Serviço | D30: 1.3.4. | E30: VIGAS PRÉ-MOLDADAS | F30: M3 | G30: 35.53 | H30: 1392.159865 | I30: 49463.44 | K30: 4 | L30: 4-VIGAS | N30: 17.765 | O30: 17.765 | BM30: 24731.72 | BN30: 24731.72 | BO30: 0 | BP30: 0 | BQ30: 0 | BR30: 0 | BS30: 0 | BT30: 0 | BU30: 0 | BV30: 0 | BW30: 0 | BX30: 0 | BY30: 0 | BZ30: 0 | CA30: 0 | CB30: 0 | CC30: 0 | CD30: 0 | CE30: 0 | CF30: 0 | CG30: 0 | CH30: 0 | CI30: 0 | CJ30: 0 | CK30: 0 | CL30: 0 | CM30: 0 | CN30: 0 | CO30: 0 | CP30: 0 | CQ30: 0 | CR30: 0 | CS30: 0 | CT30: 0 | CU30: 0 | CV30: 0 | CW30: 0 | CX30: 0 | CY30: 0 | CZ30: 0 | DA30: 0 | DB30: 0 | DC30: 0 | DD30: 0 | DE30: 0 | DF30: 0 | DG30: 0 | DH30: 0 | DI30: 0 | DJ30: 0 | DK30: 1 | DL30: 0 | DM30: 0 | DN30: 0 | DO30: 0 | DP30: 0 | DQ30: 0 | DR30: 0 | DS30: 0 | DT30: 0 | DU30: 0 | DV30: 0 | DW30: 0 | DX30: 0 | DY30: 0 | DZ30: 0 | EA30: 0 | EB30: 0 | EC30: 0 | ED30: 0 | EE30: 0 | EF30: 0 | EG30: 0 | EH30: 0 | EI30: 0 | EJ30: 0 | EK30: 0 | EL30: 0 | EM30: 0 | EN30: 0 | EO30: 0 | EP30: 0 | EQ30: 0 | ER30: 0 | ES30: 0 | ET30: 0 | EU30: 0 | EV30: 0 | EW30: 0 | EX30: 0 | EY30: 0 | EZ30: 0 | FA30: 0 | FB30: 0 | FC30: 0 | FD30: 0 | FE30: 0 | FF30: 0 | FG30: 0 | FH30: 0 | FI30: 0 | FJ30: 0
B31: 14 | C31: Nível | D31: 1.4. | E31: COBERTURA | I31: 183663.04 | K31: 4 | L31: 4-FECHAMENTOS | N31: 0 | BM31: 0 | BN31: 0 | BO31: 0 | BP31: 0 | BQ31: 0 | BR31: 0 | BS31: 0 | BT31: 0 | BU31: 0 | BV31: 0 | BW31: 0 | BX31: 0 | BY31: 0 | BZ31: 0 | CA31: 0 | CB31: 0 | CC31: 0 | CD31: 0 | CE31: 0 | CF31: 0 | CG31: 0 | CH31: 0 | CI31: 0 | CJ31: 0 | CK31: 0 | CL31: 0 | CM31: 0 | CN31: 0 | CO31: 0 | CP31: 0 | CQ31: 0 | CR31: 0 | CS31: 0 | CT31: 0 | CU31: 0 | CV31: 0 | CW31: 0 | CX31: 0 | CY31: 0 | CZ31: 0 | DA31: 0 | DB31: 0 | DC31: 0 | DD31: 0 | DE31: 0 | DF31: 0 | DG31: 0 | DH31: 0 | DI31: 0 | DJ31: 0 | DK31: 1 | DL31: 0 | DM31: 0 | DN31: 0 | DO31: 0 | DP31: 0 | DQ31: 0 | DR31: 0 | DS31: 0 | DT31: 0 | DU31: 0 | DV31: 0 | DW31: 0 | DX31: 0 | DY31: 0 | DZ31: 0 | EA31: 0 | EB31: 0 | EC31: 0 | ED31: 0 | EE31: 0 | EF31: 0 | EG31: 0 | EH31: 0 | EI31: 0 | EJ31: 0 | EK31: 0 | EL31: 0 | EM31: 0 | EN31: 0 | EO31: 0 | EP31: 0 | EQ31: 0 | ER31: 0 | ES31: 0 | ET31: 0 | EU31: 0 | EV31: 0 | EW31: 0 | EX31: 0 | EY31: 0 | EZ31: 0 | FA31: 0 | FB31: 0 | FC31: 0 | FD31: 0 | FE31: 0 | FF31: 0 | FG31: 0 | FH31: 0 | FI31: 0 | FJ31: 0
B32: 15 | C32: Serviço | D32: 1.4.1. | E32: ESTRUTURA METALICA EM TESOURAS OU TRELICAS, VAO LIVRE DE 25M, FORNECIMENTO E MONTAGEM, INCLUSIVE CONTRAVENTAMENTO | F32: M2 | G32: 1129.73 | H32: 82.26000018 | I32: 92931.59 | K32: 5 | L32: 5-TESOURAS METÁLICAS | O32: 1129.73 | BM32: 0 | BN32: 92931.59 | BO32: 0 | BP32: 0 | BQ32: 0 | BR32: 0 | BS32: 0 | BT32: 0 | BU32: 0 | BV32: 0 | BW32: 0 | BX32: 0 | BY32: 0 | BZ32: 0 | CA32: 0 | CB32: 0 | CC32: 0 | CD32: 0 | CE32: 0 | CF32: 0 | CG32: 0 | CH32: 0 | CI32: 0 | CJ32: 0 | CK32: 0 | CL32: 0 | CM32: 0 | CN32: 0 | CO32: 0 | CP32: 0 | CQ32: 0 | CR32: 0 | CS32: 0 | CT32: 0 | CU32: 0 | CV32: 0 | CW32: 0 | CX32: 0 | CY32: 0 | CZ32: 0 | DA32: 0 | DB32: 0 | DC32: 0 | DD32: 0 | DE32: 0 | DF32: 0 | DG32: 0 | DH32: 0 | DI32: 0 | DJ32: 0 | DK32: 1 | DL32: 0 | DM32: 0 | DN32: 0 | DO32: 0 | DP32: 0 | DQ32: 0 | DR32: 0 | DS32: 0 | DT32: 0 | DU32: 0 | DV32: 0 | DW32: 0 | DX32: 0 | DY32: 0 | DZ32: 0 | EA32: 0 | EB32: 0 | EC32: 0 | ED32: 0 | EE32: 0 | EF32: 0 | EG32: 0 | EH32: 0 | EI32: 0 | EJ32: 0 | EK32: 0 | EL32: 0 | EM32: 0 | EN32: 0 | EO32: 0 | EP32: 0 | EQ32: 0 | ER32: 0 | ES32: 0 | ET32: 0 | EU32: 0 | EV32: 0 | EW32: 0 | EX32: 0 | EY32: 0 | EZ32: 0 | FA32: 0 | FB32: 0 | FC32: 0 | FD32: 0 | FE32: 0 | FF32: 0 | FG32: 0 | FH32: 0 | FI32: 0 | FJ32: 0
B33: 16 | C33: Serviço | D33: 1.4.2. | E33: TRAMA DE AÇO COMPOSTA POR TERÇAS PARA TELHADOS DE ATÉ 2 ÁGUAS PARA TELHA METÁLICA, INCLUSO TRANSPORTE VERTICAL | F33: M2 | G33: 1129.73 | H33: 31.64000248 | I33: 35744.66 | K33: 6 | L33: 6-TERÇAS METÁLICAS | P33: 1129.73 | BM33: 0 | BN33: 0 | BO33: 35744.66 | BP33: 0 | BQ33: 0 | BR33: 0 | BS33: 0 | BT33: 0 | BU33: 0 | BV33: 0 | BW33: 0 | BX33: 0 | BY33: 0 | BZ33: 0 | CA33: 0 | CB33: 0 | CC33: 0 | CD33: 0 | CE33: 0 | CF33: 0 | CG33: 0 | CH33: 0 | CI33: 0 | CJ33: 0 | CK33: 0 | CL33: 0 | CM33: 0 | CN33: 0 | CO33: 0 | CP33: 0 | CQ33: 0 | CR33: 0 | CS33: 0 | CT33: 0 | CU33: 0 | CV33: 0 | CW33: 0 | CX33: 0 | CY33: 0 | CZ33: 0 | DA33: 0 | DB33: 0 | DC33: 0 | DD33: 0 | DE33: 0 | DF33: 0 | DG33: 0 | DH33: 0 | DI33: 0 | DJ33: 0 | DK33: 1 | DL33: 0 | DM33: 0 | DN33: 0 | DO33: 0 | DP33: 0 | DQ33: 0 | DR33: 0 | DS33: 0 | DT33: 0 | DU33: 0 | DV33: 0 | DW33: 0 | DX33: 0 | DY33: 0 | DZ33: 0 | EA33: 0 | EB33: 0 | EC33: 0 | ED33: 0 | EE33: 0 | EF33: 0 | EG33: 0 | EH33: 0 | EI33: 0 | EJ33: 0 | EK33: 0 | EL33: 0 | EM33: 0 | EN33: 0 | EO33: 0 | EP33: 0 | EQ33: 0 | ER33: 0 | ES33: 0 | ET33: 0 | EU33: 0 | EV33: 0 | EW33: 0 | EX33: 0 | EY33: 0 | EZ33: 0 | FA33: 0 | FB33: 0 | FC33: 0 | FD33: 0 | FE33: 0 | FF33: 0 | FG33: 0 | FH33: 0 | FI33: 0 | FJ33: 0
B34: 17 | C34: Serviço | D34: 1.4.3. | E34: TELHAMENTO COM TELHA DE AÇO/ALUMÍNIO E = 0,5 MM, COM ATÉ 2 ÁGUAS, INCLUSO IÇAMENTO | F34: M2 | G34: 1129.73 | H34: 37.97000168 | I34: 42895.85 | K34: 8 | L34: 8-COBERTURA | P34: 1129.73 | BM34: 0 | BN34: 0 | BO34: 42895.85 | BP34: 0 | BQ34: 0 | BR34: 0 | BS34: 0 | BT34: 0 | BU34: 0 | BV34: 0 | BW34: 0 | BX34: 0 | BY34: 0 | BZ34: 0 | CA34: 0 | CB34: 0 | CC34: 0 | CD34: 0 | CE34: 0 | CF34: 0 | CG34: 0 | CH34: 0 | CI34: 0 | CJ34: 0 | CK34: 0 | CL34: 0 | CM34: 0 | CN34: 0 | CO34: 0 | CP34: 0 | CQ34: 0 | CR34: 0 | CS34: 0 | CT34: 0 | CU34: 0 | CV34: 0 | CW34: 0 | CX34: 0 | CY34: 0 | CZ34: 0 | DA34: 0 | DB34: 0 | DC34: 0 | DD34: 0 | DE34: 0 | DF34: 0 | DG34: 0 | DH34: 0 | DI34: 0 | DJ34: 0 | DK34: 1 | DL34: 0 | DM34: 0 | DN34: 0 | DO34: 0 | DP34: 0 | DQ34: 0 | DR34: 0 | DS34: 0 | DT34: 0 | DU34: 0 | DV34: 0 | DW34: 0 | DX34: 0 | DY34: 0 | DZ34: 0 | EA34: 0 | EB34: 0 | EC34: 0 | ED34: 0 | EE34: 0 | EF34: 0 | EG34: 0 | EH34: 0 | EI34: 0 | EJ34: 0 | EK34: 0 | EL34: 0 | EM34: 0 | EN34: 0 | EO34: 0 | EP34: 0 | EQ34: 0 | ER34: 0 | ES34: 0 | ET34: 0 | EU34: 0 | EV34: 0 | EW34: 0 | EX34: 0 | EY34: 0 | EZ34: 0 | FA34: 0 | FB34: 0 | FC34: 0 | FD34: 0 | FE34: 0 | FF34: 0 | FG34: 0 | FH34: 0 | FI34: 0 | FJ34: 0
B35: 18 | C35: Serviço | D35: 1.4.4. | E35: FECHAMENTO DOS OITÕES COM TELHA DE AÇO/ALUMÍNIO E = 0,5 MM | F35: M2 | G35: 210.28 | H35: 37.96999239 | I35: 7984.33 | K35: 8 | L35: 8-COBERTURA | P35: 210.28 | BM35: 0 | BN35: 0 | BO35: 7984.33 | BP35: 0 | BQ35: 0 | BR35: 0 | BS35: 0 | BT35: 0 | BU35: 0 | BV35: 0 | BW35: 0 | BX35: 0 | BY35: 0 | BZ35: 0 | CA35: 0 | CB35: 0 | CC35: 0 | CD35: 0 | CE35: 0 | CF35: 0 | CG35: 0 | CH35: 0 | CI35: 0 | CJ35: 0 | CK35: 0 | CL35: 0 | CM35: 0 | CN35: 0 | CO35: 0 | CP35: 0 | CQ35: 0 | CR35: 0 | CS35: 0 | CT35: 0 | CU35: 0 | CV35: 0 | CW35: 0 | CX35: 0 | CY35: 0 | CZ35: 0 | DA35: 0 | DB35: 0 | DC35: 0 | DD35: 0 | DE35: 0 | DF35: 0 | DG35: 0 | DH35: 0 | DI35: 0 | DJ35: 0 | DK35: 1 | DL35: 0 | DM35: 0 | DN35: 0 | DO35: 0 | DP35: 0 | DQ35: 0 | DR35: 0 | DS35: 0 | DT35: 0 | DU35: 0 | DV35: 0 | DW35: 0 | DX35: 0 | DY35: 0 | DZ35: 0 | EA35: 0 | EB35: 0 | EC35: 0 | ED35: 0 | EE35: 0 | EF35: 0 | EG35: 0 | EH35: 0 | EI35: 0 | EJ35: 0 | EK35: 0 | EL35: 0 | EM35: 0 | EN35: 0 | EO35: 0 | EP35: 0 | EQ35: 0 | ER35: 0 | ES35: 0 | ET35: 0 | EU35: 0 | EV35: 0 | EW35: 0 | EX35: 0 | EY35: 0 | EZ35: 0 | FA35: 0 | FB35: 0 | FC35: 0 | FD35: 0 | FE35: 0 | FF35: 0 | FG35: 0 | FH35: 0 | FI35: 0 | FJ35: 0
B36: 19 | C36: Serviço | D36: 1.4.5. | E36: CALHA EM CHAPA DE AÇO GALVANIZADO NÚMERO 24, DESENVOLVIMENTO DE 33 CM, INCLUSO TRANSPORTE VERTICAL. | F36: M | G36: 92.7 | H36: 44.3 | I36: 4106.61 | K36: 7 | L36: 7-CALHAS | P36: 92.7 | BM36: 0 | BN36: 0 | BO36: 4106.61 | BP36: 0 | BQ36: 0 | BR36: 0 | BS36: 0 | BT36: 0 | BU36: 0 | BV36: 0 | BW36: 0 | BX36: 0 | BY36: 0 | BZ36: 0 | CA36: 0 | CB36: 0 | CC36: 0 | CD36: 0 | CE36: 0 | CF36: 0 | CG36: 0 | CH36: 0 | CI36: 0 | CJ36: 0 | CK36: 0 | CL36: 0 | CM36: 0 | CN36: 0 | CO36: 0 | CP36: 0 | CQ36: 0 | CR36: 0 | CS36: 0 | CT36: 0 | CU36: 0 | CV36: 0 | CW36: 0 | CX36: 0 | CY36: 0 | CZ36: 0 | DA36: 0 | DB36: 0 | DC36: 0 | DD36: 0 | DE36: 0 | DF36: 0 | DG36: 0 | DH36: 0 | DI36: 0 | DJ36: 0 | DK36: 1 | DL36: 0 | DM36: 0 | DN36: 0 | DO36: 0 | DP36: 0 | DQ36: 0 | DR36: 0 | DS36: 0 | DT36: 0 | DU36: 0 | DV36: 0 | DW36: 0 | DX36: 0 | DY36: 0 | DZ36: 0 | EA36: 0 | EB36: 0 | EC36: 0 | ED36: 0 | EE36: 0 | EF36: 0 | EG36: 0 | EH36: 0 | EI36: 0 | EJ36: 0 | EK36: 0 | EL36: 0 | EM36: 0 | EN36: 0 | EO36: 0 | EP36: 0 | EQ36: 0 | ER36: 0 | ES36: 0 | ET36: 0 | EU36: 0 | EV36: 0 | EW36: 0 | EX36: 0 | EY36: 0 | EZ36: 0 | FA36: 0 | FB36: 0 | FC36: 0 | FD36: 0 | FE36: 0 | FF36: 0 | FG36: 0 | FH36: 0 | FI36: 0 | FJ36: 0
B37: 20 | C37: Nível | D37: 1.5. | E37: PAVIMENTAÇÃO | I37: 83084 | K37: 4 | L37: 4-FECHAMENTOS | N37: 0 | BM37: 0 | BN37: 0 | BO37: 0 | BP37: 0 | BQ37: 0 | BR37: 0 | BS37: 0 | BT37: 0 | BU37: 0 | BV37: 0 | BW37: 0 | BX37: 0 | BY37: 0 | BZ37: 0 | CA37: 0 | CB37: 0 | CC37: 0 | CD37: 0 | CE37: 0 | CF37: 0 | CG37: 0 | CH37: 0 | CI37: 0 | CJ37: 0 | CK37: 0 | CL37: 0 | CM37: 0 | CN37: 0 | CO37: 0 | CP37: 0 | CQ37: 0 | CR37: 0 | CS37: 0 | CT37: 0 | CU37: 0 | CV37: 0 | CW37: 0 | CX37: 0 | CY37: 0 | CZ37: 0 | DA37: 0 | DB37: 0 | DC37: 0 | DD37: 0 | DE37: 0 | DF37: 0 | DG37: 0 | DH37: 0 | DI37: 0 | DJ37: 0 | DK37: 1 | DL37: 0 | DM37: 0 | DN37: 0 | DO37: 0 | DP37: 0 | DQ37: 0 | DR37: 0 | DS37: 0 | DT37: 0 | DU37: 0 | DV37: 0 | DW37: 0 | DX37: 0 | DY37: 0 | DZ37: 0 | EA37: 0 | EB37: 0 | EC37: 0 | ED37: 0 | EE37: 0 | EF37: 0 | EG37: 0 | EH37: 0 | EI37: 0 | EJ37: 0 | EK37: 0 | EL37: 0 | EM37: 0 | EN37: 0 | EO37: 0 | EP37: 0 | EQ37: 0 | ER37: 0 | ES37: 0 | ET37: 0 | EU37: 0 | EV37: 0 | EW37: 0 | EX37: 0 | EY37: 0 | EZ37: 0 | FA37: 0 | FB37: 0 | FC37: 0 | FD37: 0 | FE37: 0 | FF37: 0 | FG37: 0 | FH37: 0 | FI37: 0 | FJ37: 0
B38: 21 | C38: Serviço | D38: 1.5.1. | E38: PEDRA BRITADA N. 2 (19 A 38 MM) PARA LASTRO DE FUNDO | F38: M3 | G38: 3.7 | H38: 79.1 | I38: 292.67 | K38: 9 | L38: 9-PISO DE CONCRETO | Q38: 3.7 | BM38: 0 | BN38: 0 | BO38: 0 | BP38: 292.67 | BQ38: 0 | BR38: 0 | BS38: 0 | BT38: 0 | BU38: 0 | BV38: 0 | BW38: 0 | BX38: 0 | BY38: 0 | BZ38: 0 | CA38: 0 | CB38: 0 | CC38: 0 | CD38: 0 | CE38: 0 | CF38: 0 | CG38: 0 | CH38: 0 | CI38: 0 | CJ38: 0 | CK38: 0 | CL38: 0 | CM38: 0 | CN38: 0 | CO38: 0 | CP38: 0 | CQ38: 0 | CR38: 0 | CS38: 0 | CT38: 0 | CU38: 0 | CV38: 0 | CW38: 0 | CX38: 0 | CY38: 0 | CZ38: 0 | DA38: 0 | DB38: 0 | DC38: 0 | DD38: 0 | DE38: 0 | DF38: 0 | DG38: 0 | DH38: 0 | DI38: 0 | DJ38: 0 | DK38: 1 | DL38: 0 | DM38: 0 | DN38: 0 | DO38: 0 | DP38: 0 | DQ38: 0 | DR38: 0 | DS38: 0 | DT38: 0 | DU38: 0 | DV38: 0 | DW38: 0 | DX38: 0 | DY38: 0 | DZ38: 0 | EA38: 0 | EB38: 0 | EC38: 0 | ED38: 0 | EE38: 0 | EF38: 0 | EG38: 0 | EH38: 0 | EI38: 0 | EJ38: 0 | EK38: 0 | EL38: 0 | EM38: 0 | EN38: 0 | EO38: 0 | EP38: 0 | EQ38: 0 | ER38: 0 | ES38: 0 | ET38: 0 | EU38: 0 | EV38: 0 | EW38: 0 | EX38: 0 | EY38: 0 | EZ38: 0 | FA38: 0 | FB38: 0 | FC38: 0 | FD38: 0 | FE38: 0 | FF38: 0 | FG38: 0 | FH38: 0 | FI38: 0 | FJ38: 0
B39: 22 | C39: Serviço | D39: 1.5.2. | E39: PISO EM CONCRETO POLIDO 20MPA PREPARO MECANICO, ESPESSURA 7 CM, COM ARMACAO EM TELA SOLDADA | F39: M2 | G39: 1032.48 | H39: 75.93999884 | I39: 78406.53 | K39: 9 | L39: 9-PISO DE CONCRETO | Q39: 1032.48 | BM39: 0 | BN39: 0 | BO39: 0 | BP39: 78406.53 | BQ39: 0 | BR39: 0 | BS39: 0 | BT39: 0 | BU39: 0 | BV39: 0 | BW39: 0 | BX39: 0 | BY39: 0 | BZ39: 0 | CA39: 0 | CB39: 0 | CC39: 0 | CD39: 0 | CE39: 0 | CF39: 0 | CG39: 0 | CH39: 0 | CI39: 0 | CJ39: 0 | CK39: 0 | CL39: 0 | CM39: 0 | CN39: 0 | CO39: 0 | CP39: 0 | CQ39: 0 | CR39: 0 | CS39: 0 | CT39: 0 | CU39: 0 | CV39: 0 | CW39: 0 | CX39: 0 | CY39: 0 | CZ39: 0 | DA39: 0 | DB39: 0 | DC39: 0 | DD39: 0 | DE39: 0 | DF39: 0 | DG39: 0 | DH39: 0 | DI39: 0 | DJ39: 0 | DK39: 1 | DL39: 0 | DM39: 0 | DN39: 0 | DO39: 0 | DP39: 0 | DQ39: 0 | DR39: 0 | DS39: 0 | DT39: 0 | DU39: 0 | DV39: 0 | DW39: 0 | DX39: 0 | DY39: 0 | DZ39: 0 | EA39: 0 | EB39: 0 | EC39: 0 | ED39: 0 | EE39: 0 | EF39: 0 | EG39: 0 | EH39: 0 | EI39: 0 | EJ39: 0 | EK39: 0 | EL39: 0 | EM39: 0 | EN39: 0 | EO39: 0 | EP39: 0 | EQ39: 0 | ER39: 0 | ES39: 0 | ET39: 0 | EU39: 0 | EV39: 0 | EW39: 0 | EX39: 0 | EY39: 0 | EZ39: 0 | FA39: 0 | FB39: 0 | FC39: 0 | FD39: 0 | FE39: 0 | FF39: 0 | FG39: 0 | FH39: 0 | FI39: 0 | FJ39: 0
B40: 23 | C40: Serviço | D40: 1.5.3. | E40: JUNTAS DE DILATAÇÃO COM SELANTE ELASTICO MONOCOMPONENTE A BASE DE POLIURETANO 10MM x 20MM | F40: M | G40: 315 | H40: 13.92 | I40: 4384.8 | K40: 9 | L40: 9-PISO DE CONCRETO | Q40: 315 | BM40: 0 | BN40: 0 | BO40: 0 | BP40: 4384.8 | BQ40: 0 | BR40: 0 | BS40: 0 | BT40: 0 | BU40: 0 | BV40: 0 | BW40: 0 | BX40: 0 | BY40: 0 | BZ40: 0 | CA40: 0 | CB40: 0 | CC40: 0 | CD40: 0 | CE40: 0 | CF40: 0 | CG40: 0 | CH40: 0 | CI40: 0 | CJ40: 0 | CK40: 0 | CL40: 0 | CM40: 0 | CN40: 0 | CO40: 0 | CP40: 0 | CQ40: 0 | CR40: 0 | CS40: 0 | CT40: 0 | CU40: 0 | CV40: 0 | CW40: 0 | CX40: 0 | CY40: 0 | CZ40: 0 | DA40: 0 | DB40: 0 | DC40: 0 | DD40: 0 | DE40: 0 | DF40: 0 | DG40: 0 | DH40: 0 | DI40: 0 | DJ40: 0 | DK40: 1 | DL40: 0 | DM40: 0 | DN40: 0 | DO40: 0 | DP40: 0 | DQ40: 0 | DR40: 0 | DS40: 0 | DT40: 0 | DU40: 0 | DV40: 0 | DW40: 0 | DX40: 0 | DY40: 0 | DZ40: 0 | EA40: 0 | EB40: 0 | EC40: 0 | ED40: 0 | EE40: 0 | EF40: 0 | EG40: 0 | EH40: 0 | EI40: 0 | EJ40: 0 | EK40: 0 | EL40: 0 | EM40: 0 | EN40: 0 | EO40: 0 | EP40: 0 | EQ40: 0 | ER40: 0 | ES40: 0 | ET40: 0 | EU40: 0 | EV40: 0 | EW40: 0 | EX40: 0 | EY40: 0 | EZ40: 0 | FA40: 0 | FB40: 0 | FC40: 0 | FD40: 0 | FE40: 0 | FF40: 0 | FG40: 0 | FH40: 0 | FI40: 0 | FJ40: 0
B41: 24 | C41: =IF(D41="","",IF(ISNUMBER(VALUE(D41)),"Meta",IF(AND(F41<>"",I41<>""),"Serviço","Nível"))) -> Nível | D41: 1.6. | E41: PINTURA | G41: =IF(Nível="Serviço",SUMIF($N$15:$BK$15,"<>"&"",N41:BK41),"") ->  | H41: =IF(AND(ISNUMBER(G41),G41<>0),I41/G41,IF(G41=0,0,"")) ->  | I41: 26151.25 | K41: =IF(L41="","",VALUE(LEFT(L41,(FIND("-",L41,1))-1))) -> 10 | L41: 10-PINTURAS | N41: 0 | BM41: =IF(N$15="",0,IF(ISNUMBER(PreçoUnit),PreçoUnit*INDEX(Import.PLQ,$B41,BM$16),0)) -> 0 | BN41: =IF(O$15="",0,IF(ISNUMBER(PreçoUnit),PreçoUnit*INDEX(Import.PLQ,$B41,BN$16),0)) -> 0 | BO41: =IF(P$15="",0,IF(ISNUMBER(PreçoUnit),PreçoUnit*INDEX(Import.PLQ,$B41,BO$16),0)) -> 0 | BP41: =IF(Q$15="",0,IF(ISNUMBER(PreçoUnit),PreçoUnit*INDEX(Import.PLQ,$B41,BP$16),0)) -> 0 | BQ41: =IF(R$15="",0,IF(ISNUMBER(PreçoUnit),PreçoUnit*INDEX(Import.PLQ,$B41,BQ$16),0)) -> 0 | BR41: =IF(S$15="",0,IF(ISNUMBER(PreçoUnit),PreçoUnit*INDEX(Import.PLQ,$B41,BR$16),0)) -> 0 | BS41: =IF(T$15="",0,IF(ISNUMBER(PreçoUnit),PreçoUnit*INDEX(Import.PLQ,$B41,BS$16),0)) -> 0 | BT41: =IF(U$15="",0,IF(ISNUMBER(PreçoUnit),PreçoUnit*INDEX(Import.PLQ,$B41,BT$16),0)) -> 0 | BU41: =IF(V$15="",0,IF(ISNUMBER(PreçoUnit),PreçoUnit*INDEX(Import.PLQ,$B41,BU$16),0)) -> 0 | BV41: =IF(W$15="",0,IF(ISNUMBER(PreçoUnit),PreçoUnit*INDEX(Import.PLQ,$B41,BV$16),0)) -> 0 | BW41: =IF(X$15="",0,IF(ISNUMBER(PreçoUnit),PreçoUnit*INDEX(Import.PLQ,$B41,BW$16),0)) -> 0 | BX41: =IF(Y$15="",0,IF(ISNUMBER(PreçoUnit),PreçoUnit*INDEX(Import.PLQ,$B41,BX$16),0)) -> 0 | BY41: =IF(Z$15="",0,IF(ISNUMBER(PreçoUnit),PreçoUnit*INDEX(Import.PLQ,$B41,BY$16),0)) -> 0 | BZ41: =IF(AA$15="",0,IF(ISNUMBER(PreçoUnit),PreçoUnit*INDEX(Import.PLQ,$B41,BZ$16),0)) -> 0 | CA41: =IF(AB$15="",0,IF(ISNUMBER(PreçoUnit),PreçoUnit*INDEX(Import.PLQ,$B41,CA$16),0)) -> 0 | CB41: =IF(AC$15="",0,IF(ISNUMBER(PreçoUnit),PreçoUnit*INDEX(Import.PLQ,$B41,CB$16),0)) -> 0 | CC41: =IF(AD$15="",0,IF(ISNUMBER(PreçoUnit),PreçoUnit*INDEX(Import.PLQ,$B41,CC$16),0)) -> 0 | CD41: =IF(AE$15="",0,IF(ISNUMBER(PreçoUnit),PreçoUnit*INDEX(Import.PLQ,$B41,CD$16),0)) -> 0 | CE41: =IF(AF$15="",0,IF(ISNUMBER(PreçoUnit),PreçoUnit*INDEX(Import.PLQ,$B41,CE$16),0)) -> 0 | CF41: =IF(AG$15="",0,IF(ISNUMBER(PreçoUnit),PreçoUnit*INDEX(Import.PLQ,$B41,CF$16),0)) -> 0 | CG41: =IF(AH$15="",0,IF(ISNUMBER(PreçoUnit),PreçoUnit*INDEX(Import.PLQ,$B41,CG$16),0)) -> 0 | CH41: =IF(AI$15="",0,IF(ISNUMBER(PreçoUnit),PreçoUnit*INDEX(Import.PLQ,$B41,CH$16),0)) -> 0 | CI41: =IF(AJ$15="",0,IF(ISNUMBER(PreçoUnit),PreçoUnit*INDEX(Import.PLQ,$B41,CI$16),0)) -> 0 | CJ41: =IF(AK$15="",0,IF(ISNUMBER(PreçoUnit),PreçoUnit*INDEX(Import.PLQ,$B41,CJ$16),0)) -> 0 | CK41: =IF(AL$15="",0,IF(ISNUMBER(PreçoUnit),PreçoUnit*INDEX(Import.PLQ,$B41,CK$16),0)) -> 0 | CL41: =IF(AM$15="",0,IF(ISNUMBER(PreçoUnit),PreçoUnit*INDEX(Import.PLQ,$B41,CL$16),0)) -> 0 | CM41: =IF(AN$15="",0,IF(ISNUMBER(PreçoUnit),PreçoUnit*INDEX(Import.PLQ,$B41,CM$16),0)) -> 0 | CN41: =IF(AO$15="",0,IF(ISNUMBER(PreçoUnit),PreçoUnit*INDEX(Import.PLQ,$B41,CN$16),0)) -> 0 | CO41: =IF(AP$15="",0,IF(ISNUMBER(PreçoUnit),PreçoUnit*INDEX(Import.PLQ,$B41,CO$16),0)) -> 0 | CP41: =IF(AQ$15="",0,IF(ISNUMBER(PreçoUnit),PreçoUnit*INDEX(Import.PLQ,$B41,CP$16),0)) -> 0 | CQ41: =IF(AR$15="",0,IF(ISNUMBER(PreçoUnit),PreçoUnit*INDEX(Import.PLQ,$B41,CQ$16),0)) -> 0 | CR41: =IF(AS$15="",0,IF(ISNUMBER(PreçoUnit),PreçoUnit*INDEX(Import.PLQ,$B41,CR$16),0)) -> 0 | CS41: =IF(AT$15="",0,IF(ISNUMBER(PreçoUnit),PreçoUnit*INDEX(Import.PLQ,$B41,CS$16),0)) -> 0 | CT41: =IF(AU$15="",0,IF(ISNUMBER(PreçoUnit),PreçoUnit*INDEX(Import.PLQ,$B41,CT$16),0)) -> 0 | CU41: =IF(AV$15="",0,IF(ISNUMBER(PreçoUnit),PreçoUnit*INDEX(Import.PLQ,$B41,CU$16),0)) -> 0 | CV41: =IF(AW$15="",0,IF(ISNUMBER(PreçoUnit),PreçoUnit*INDEX(Import.PLQ,$B41,CV$16),0)) -> 0 | CW41: =IF(AX$15="",0,IF(ISNUMBER(PreçoUnit),PreçoUnit*INDEX(Import.PLQ,$B41,CW$16),0)) -> 0 | CX41: =IF(AY$15="",0,IF(ISNUMBER(PreçoUnit),PreçoUnit*INDEX(Import.PLQ,$B41,CX$16),0)) -> 0 | CY41: =IF(AZ$15="",0,IF(ISNUMBER(PreçoUnit),PreçoUnit*INDEX(Import.PLQ,$B41,CY$16),0)) -> 0 | CZ41: =IF(BA$15="",0,IF(ISNUMBER(PreçoUnit),PreçoUnit*INDEX(Import.PLQ,$B41,CZ$16),0)) -> 0 | DA41: =IF(BB$15="",0,IF(ISNUMBER(PreçoUnit),PreçoUnit*INDEX(Import.PLQ,$B41,DA$16),0)) -> 0 | DB41: =IF(BC$15="",0,IF(ISNUMBER(PreçoUnit),PreçoUnit*INDEX(Import.PLQ,$B41,DB$16),0)) -> 0 | DC41: =IF(BD$15="",0,IF(ISNUMBER(PreçoUnit),PreçoUnit*INDEX(Import.PLQ,$B41,DC$16),0)) -> 0 | DD41: =IF(BE$15="",0,IF(ISNUMBER(PreçoUnit),PreçoUnit*INDEX(Import.PLQ,$B41,DD$16),0)) -> 0 | DE41: =IF(BF$15="",0,IF(ISNUMBER(PreçoUnit),PreçoUnit*INDEX(Import.PLQ,$B41,DE$16),0)) -> 0 | DF41: =IF(BG$15="",0,IF(ISNUMBER(PreçoUnit),PreçoUnit*INDEX(Import.PLQ,$B41,DF$16),0)) -> 0 | DG41: =IF(BH$15="",0,IF(ISNUMBER(PreçoUnit),PreçoUnit*INDEX(Import.PLQ,$B41,DG$16),0)) -> 0 | DH41: =IF(BI$15="",0,IF(ISNUMBER(PreçoUnit),PreçoUnit*INDEX(Import.PLQ,$B41,DH$16),0)) -> 0 | DI41: =IF(BJ$15="",0,IF(ISNUMBER(PreçoUnit),PreçoUnit*INDEX(Import.PLQ,$B41,DI$16),0)) -> 0 | DJ41: =IF(BK$15="",0,IF(ISNUMBER(PreçoUnit),PreçoUnit*INDEX(Import.PLQ,$B41,DJ$16),0)) -> 0 | DK41: =IF(D41="",0,IF(ISNUMBER(VALUE(D41)),VALUE(D41),LEFT(D41,FIND(".",D41)-1))) -> 1 | DL41: =SUM(DM41:FJ41) -> 0 | DM41: =IF(ISNUMBER(INDEX(Import.PLE,$K41,DM$16)),IF(INDEX(Import.PLE,$K41,DM$16)<=mediçao,BM41,0),0) -> 0 | DN41: =IF(ISNUMBER(INDEX(Import.PLE,$K41,DN$16)),IF(INDEX(Import.PLE,$K41,DN$16)<=mediçao,BN41,0),0) -> 0 | DO41: =IF(ISNUMBER(INDEX(Import.PLE,$K41,DO$16)),IF(INDEX(Import.PLE,$K41,DO$16)<=mediçao,BO41,0),0) -> 0 | DP41: =IF(ISNUMBER(INDEX(Import.PLE,$K41,DP$16)),IF(INDEX(Import.PLE,$K41,DP$16)<=mediçao,BP41,0),0) -> 0 | DQ41: =IF(ISNUMBER(INDEX(Import.PLE,$K41,DQ$16)),IF(INDEX(Import.PLE,$K41,DQ$16)<=mediçao,BQ41,0),0) -> 0 | DR41: =IF(ISNUMBER(INDEX(Import.PLE,$K41,DR$16)),IF(INDEX(Import.PLE,$K41,DR$16)<=mediçao,BR41,0),0) -> 0 | DS41: =IF(ISNUMBER(INDEX(Import.PLE,$K41,DS$16)),IF(INDEX(Import.PLE,$K41,DS$16)<=mediçao,BS41,0),0) -> 0 | DT41: =IF(ISNUMBER(INDEX(Import.PLE,$K41,DT$16)),IF(INDEX(Import.PLE,$K41,DT$16)<=mediçao,BT41,0),0) -> 0 | DU41: =IF(ISNUMBER(INDEX(Import.PLE,$K41,DU$16)),IF(INDEX(Import.PLE,$K41,DU$16)<=mediçao,BU41,0),0) -> 0 | DV41: =IF(ISNUMBER(INDEX(Import.PLE,$K41,DV$16)),IF(INDEX(Import.PLE,$K41,DV$16)<=mediçao,BV41,0),0) -> 0 | DW41: =IF(ISNUMBER(INDEX(Import.PLE,$K41,DW$16)),IF(INDEX(Import.PLE,$K41,DW$16)<=mediçao,BW41,0),0) -> 0 | DX41: =IF(ISNUMBER(INDEX(Import.PLE,$K41,DX$16)),IF(INDEX(Import.PLE,$K41,DX$16)<=mediçao,BX41,0),0) -> 0 | DY41: =IF(ISNUMBER(INDEX(Import.PLE,$K41,DY$16)),IF(INDEX(Import.PLE,$K41,DY$16)<=mediçao,BY41,0),0) -> 0 | DZ41: =IF(ISNUMBER(INDEX(Import.PLE,$K41,DZ$16)),IF(INDEX(Import.PLE,$K41,DZ$16)<=mediçao,BZ41,0),0) -> 0 | EA41: =IF(ISNUMBER(INDEX(Import.PLE,$K41,EA$16)),IF(INDEX(Import.PLE,$K41,EA$16)<=mediçao,CA41,0),0) -> 0 | EB41: =IF(ISNUMBER(INDEX(Import.PLE,$K41,EB$16)),IF(INDEX(Import.PLE,$K41,EB$16)<=mediçao,CB41,0),0) -> 0 | EC41: =IF(ISNUMBER(INDEX(Import.PLE,$K41,EC$16)),IF(INDEX(Import.PLE,$K41,EC$16)<=mediçao,CC41,0),0) -> 0 | ED41: =IF(ISNUMBER(INDEX(Import.PLE,$K41,ED$16)),IF(INDEX(Import.PLE,$K41,ED$16)<=mediçao,CD41,0),0) -> 0 | EE41: =IF(ISNUMBER(INDEX(Import.PLE,$K41,EE$16)),IF(INDEX(Import.PLE,$K41,EE$16)<=mediçao,CE41,0),0) -> 0 | EF41: =IF(ISNUMBER(INDEX(Import.PLE,$K41,EF$16)),IF(INDEX(Import.PLE,$K41,EF$16)<=mediçao,CF41,0),0) -> 0 | EG41: =IF(ISNUMBER(INDEX(Import.PLE,$K41,EG$16)),IF(INDEX(Import.PLE,$K41,EG$16)<=mediçao,CG41,0),0) -> 0 | EH41: =IF(ISNUMBER(INDEX(Import.PLE,$K41,EH$16)),IF(INDEX(Import.PLE,$K41,EH$16)<=mediçao,CH41,0),0) -> 0 | EI41: =IF(ISNUMBER(INDEX(Import.PLE,$K41,EI$16)),IF(INDEX(Import.PLE,$K41,EI$16)<=mediçao,CI41,0),0) -> 0 | EJ41: =IF(ISNUMBER(INDEX(Import.PLE,$K41,EJ$16)),IF(INDEX(Import.PLE,$K41,EJ$16)<=mediçao,CJ41,0),0) -> 0 | EK41: =IF(ISNUMBER(INDEX(Import.PLE,$K41,EK$16)),IF(INDEX(Import.PLE,$K41,EK$16)<=mediçao,CK41,0),0) -> 0 | EL41: =IF(ISNUMBER(INDEX(Import.PLE,$K41,EL$16)),IF(INDEX(Import.PLE,$K41,EL$16)<=mediçao,CL41,0),0) -> 0 | EM41: =IF(ISNUMBER(INDEX(Import.PLE,$K41,EM$16)),IF(INDEX(Import.PLE,$K41,EM$16)<=mediçao,CM41,0),0) -> 0 | EN41: =IF(ISNUMBER(INDEX(Import.PLE,$K41,EN$16)),IF(INDEX(Import.PLE,$K41,EN$16)<=mediçao,CN41,0),0) -> 0 | EO41: =IF(ISNUMBER(INDEX(Import.PLE,$K41,EO$16)),IF(INDEX(Import.PLE,$K41,EO$16)<=mediçao,CO41,0),0) -> 0 | EP41: =IF(ISNUMBER(INDEX(Import.PLE,$K41,EP$16)),IF(INDEX(Import.PLE,$K41,EP$16)<=mediçao,CP41,0),0) -> 0 | EQ41: =IF(ISNUMBER(INDEX(Import.PLE,$K41,EQ$16)),IF(INDEX(Import.PLE,$K41,EQ$16)<=mediçao,CQ41,0),0) -> 0 | ER41: =IF(ISNUMBER(INDEX(Import.PLE,$K41,ER$16)),IF(INDEX(Import.PLE,$K41,ER$16)<=mediçao,CR41,0),0) -> 0 | ES41: =IF(ISNUMBER(INDEX(Import.PLE,$K41,ES$16)),IF(INDEX(Import.PLE,$K41,ES$16)<=mediçao,CS41,0),0) -> 0 | ET41: =IF(ISNUMBER(INDEX(Import.PLE,$K41,ET$16)),IF(INDEX(Import.PLE,$K41,ET$16)<=mediçao,CT41,0),0) -> 0 | EU41: =IF(ISNUMBER(INDEX(Import.PLE,$K41,EU$16)),IF(INDEX(Import.PLE,$K41,EU$16)<=mediçao,CU41,0),0) -> 0 | EV41: =IF(ISNUMBER(INDEX(Import.PLE,$K41,EV$16)),IF(INDEX(Import.PLE,$K41,EV$16)<=mediçao,CV41,0),0) -> 0 | EW41: =IF(ISNUMBER(INDEX(Import.PLE,$K41,EW$16)),IF(INDEX(Import.PLE,$K41,EW$16)<=mediçao,CW41,0),0) -> 0 | EX41: =IF(ISNUMBER(INDEX(Import.PLE,$K41,EX$16)),IF(INDEX(Import.PLE,$K41,EX$16)<=mediçao,CX41,0),0) -> 0 | EY41: =IF(ISNUMBER(INDEX(Import.PLE,$K41,EY$16)),IF(INDEX(Import.PLE,$K41,EY$16)<=mediçao,CY41,0),0) -> 0 | EZ41: =IF(ISNUMBER(INDEX(Import.PLE,$K41,EZ$16)),IF(INDEX(Import.PLE,$K41,EZ$16)<=mediçao,CZ41,0),0) -> 0 | FA41: =IF(ISNUMBER(INDEX(Import.PLE,$K41,FA$16)),IF(INDEX(Import.PLE,$K41,FA$16)<=mediçao,DA41,0),0) -> 0 | FB41: =IF(ISNUMBER(INDEX(Import.PLE,$K41,FB$16)),IF(INDEX(Import.PLE,$K41,FB$16)<=mediçao,DB41,0),0) -> 0 | FC41: =IF(ISNUMBER(INDEX(Import.PLE,$K41,FC$16)),IF(INDEX(Import.PLE,$K41,FC$16)<=mediçao,DC41,0),0) -> 0 | FD41: =IF(ISNUMBER(INDEX(Import.PLE,$K41,FD$16)),IF(INDEX(Import.PLE,$K41,FD$16)<=mediçao,DD41,0),0) -> 0 | FE41: =IF(ISNUMBER(INDEX(Import.PLE,$K41,FE$16)),IF(INDEX(Import.PLE,$K41,FE$16)<=mediçao,DE41,0),0) -> 0 | FF41: =IF(ISNUMBER(INDEX(Import.PLE,$K41,FF$16)),IF(INDEX(Import.PLE,$K41,FF$16)<=mediçao,DF41,0),0) -> 0 | FG41: =IF(ISNUMBER(INDEX(Import.PLE,$K41,FG$16)),IF(INDEX(Import.PLE,$K41,FG$16)<=mediçao,DG41,0),0) -> 0 | FH41: =IF(ISNUMBER(INDEX(Import.PLE,$K41,FH$16)),IF(INDEX(Import.PLE,$K41,FH$16)<=mediçao,DH41,0),0) -> 0 | FI41: =IF(ISNUMBER(INDEX(Import.PLE,$K41,FI$16)),IF(INDEX(Import.PLE,$K41,FI$16)<=mediçao,DI41,0),0) -> 0 | FJ41: =IF(ISNUMBER(INDEX(Import.PLE,$K41,FJ$16)),IF(INDEX(Import.PLE,$K41,FJ$16)<=mediçao,DJ41,0),0) -> 0
B42: 25 | C42: Serviço | D42: 1.6.1. | E42: PINTURA ACRILICA EMBORRACHADA EM PISO CIMENTADO, TRES DEMAOS | F42: M2 | G42: 968 | H42: 20.25 | I42: 19602 | K42: 10 | L42: 10-PINTURAS | Q42: 968 | BM42: 0 | BN42: 0 | BO42: 0 | BP42: 19602 | BQ42: 0 | BR42: 0 | BS42: 0 | BT42: 0 | BU42: 0 | BV42: 0 | BW42: 0 | BX42: 0 | BY42: 0 | BZ42: 0 | CA42: 0 | CB42: 0 | CC42: 0 | CD42: 0 | CE42: 0 | CF42: 0 | CG42: 0 | CH42: 0 | CI42: 0 | CJ42: 0 | CK42: 0 | CL42: 0 | CM42: 0 | CN42: 0 | CO42: 0 | CP42: 0 | CQ42: 0 | CR42: 0 | CS42: 0 | CT42: 0 | CU42: 0 | CV42: 0 | CW42: 0 | CX42: 0 | CY42: 0 | CZ42: 0 | DA42: 0 | DB42: 0 | DC42: 0 | DD42: 0 | DE42: 0 | DF42: 0 | DG42: 0 | DH42: 0 | DI42: 0 | DJ42: 0 | DK42: 1 | DL42: 0 | DM42: 0 | DN42: 0 | DO42: 0 | DP42: 0 | DQ42: 0 | DR42: 0 | DS42: 0 | DT42: 0 | DU42: 0 | DV42: 0 | DW42: 0 | DX42: 0 | DY42: 0 | DZ42: 0 | EA42: 0 | EB42: 0 | EC42: 0 | ED42: 0 | EE42: 0 | EF42: 0 | EG42: 0 | EH42: 0 | EI42: 0 | EJ42: 0 | EK42: 0 | EL42: 0 | EM42: 0 | EN42: 0 | EO42: 0 | EP42: 0 | EQ42: 0 | ER42: 0 | ES42: 0 | ET42: 0 | EU42: 0 | EV42: 0 | EW42: 0 | EX42: 0 | EY42: 0 | EZ42: 0 | FA42: 0 | FB42: 0 | FC42: 0 | FD42: 0 | FE42: 0 | FF42: 0 | FG42: 0 | FH42: 0 | FI42: 0 | FJ42: 0
B43: 26 | C43: Serviço | D43: 1.6.2. | E43: PINTURA ACRILICA DE FAIXAS DE DEMARCACÃO EM QUADRA POLIESPORTIVA, 5 CM DE LARGURA | F43: M | G43: 575 | H43: 11.39 | I43: 6549.25 | K43: 10 | L43: 10-PINTURAS | Q43: 575 | BM43: 0 | BN43: 0 | BO43: 0 | BP43: 6549.25 | BQ43: 0 | BR43: 0 | BS43: 0 | BT43: 0 | BU43: 0 | BV43: 0 | BW43: 0 | BX43: 0 | BY43: 0 | BZ43: 0 | CA43: 0 | CB43: 0 | CC43: 0 | CD43: 0 | CE43: 0 | CF43: 0 | CG43: 0 | CH43: 0 | CI43: 0 | CJ43: 0 | CK43: 0 | CL43: 0 | CM43: 0 | CN43: 0 | CO43: 0 | CP43: 0 | CQ43: 0 | CR43: 0 | CS43: 0 | CT43: 0 | CU43: 0 | CV43: 0 | CW43: 0 | CX43: 0 | CY43: 0 | CZ43: 0 | DA43: 0 | DB43: 0 | DC43: 0 | DD43: 0 | DE43: 0 | DF43: 0 | DG43: 0 | DH43: 0 | DI43: 0 | DJ43: 0 | DK43: 1 | DL43: 0 | DM43: 0 | DN43: 0 | DO43: 0 | DP43: 0 | DQ43: 0 | DR43: 0 | DS43: 0 | DT43: 0 | DU43: 0 | DV43: 0 | DW43: 0 | DX43: 0 | DY43: 0 | DZ43: 0 | EA43: 0 | EB43: 0 | EC43: 0 | ED43: 0 | EE43: 0 | EF43: 0 | EG43: 0 | EH43: 0 | EI43: 0 | EJ43: 0 | EK43: 0 | EL43: 0 | EM43: 0 | EN43: 0 | EO43: 0 | EP43: 0 | EQ43: 0 | ER43: 0 | ES43: 0 | ET43: 0 | EU43: 0 | EV43: 0 | EW43: 0 | EX43: 0 | EY43: 0 | EZ43: 0 | FA43: 0 | FB43: 0 | FC43: 0 | FD43: 0 | FE43: 0 | FF43: 0 | FG43: 0 | FH43: 0 | FI43: 0 | FJ43: 0
B44: 27 | C44: Nível | D44: 1.7. | E44: INSTALAÇÕES PLUVIAIS | I44: 9538.29 | K44: 11 | L44: 11-TUBOS | N44: 0 | BM44: 0 | BN44: 0 | BO44: 0 | BP44: 0 | BQ44: 0 | BR44: 0 | BS44: 0 | BT44: 0 | BU44: 0 | BV44: 0 | BW44: 0 | BX44: 0 | BY44: 0 | BZ44: 0 | CA44: 0 | CB44: 0 | CC44: 0 | CD44: 0 | CE44: 0 | CF44: 0 | CG44: 0 | CH44: 0 | CI44: 0 | CJ44: 0 | CK44: 0 | CL44: 0 | CM44: 0 | CN44: 0 | CO44: 0 | CP44: 0 | CQ44: 0 | CR44: 0 | CS44: 0 | CT44: 0 | CU44: 0 | CV44: 0 | CW44: 0 | CX44: 0 | CY44: 0 | CZ44: 0 | DA44: 0 | DB44: 0 | DC44: 0 | DD44: 0 | DE44: 0 | DF44: 0 | DG44: 0 | DH44: 0 | DI44: 0 | DJ44: 0 | DK44: 1 | DL44: 0 | DM44: 0 | DN44: 0 | DO44: 0 | DP44: 0 | DQ44: 0 | DR44: 0 | DS44: 0 | DT44: 0 | DU44: 0 | DV44: 0 | DW44: 0 | DX44: 0 | DY44: 0 | DZ44: 0 | EA44: 0 | EB44: 0 | EC44: 0 | ED44: 0 | EE44: 0 | EF44: 0 | EG44: 0 | EH44: 0 | EI44: 0 | EJ44: 0 | EK44: 0 | EL44: 0 | EM44: 0 | EN44: 0 | EO44: 0 | EP44: 0 | EQ44: 0 | ER44: 0 | ES44: 0 | ET44: 0 | EU44: 0 | EV44: 0 | EW44: 0 | EX44: 0 | EY44: 0 | EZ44: 0 | FA44: 0 | FB44: 0 | FC44: 0 | FD44: 0 | FE44: 0 | FF44: 0 | FG44: 0 | FH44: 0 | FI44: 0 | FJ44: 0
B45: 28 | C45: Serviço | D45: 1.7.1. | E45: TUBOS DE PVC, SÉRIE R, ÁGUA PLUVIAL, DN 100 MM, INCLUSIVE CONEXÕES, CORTES E FIXAÇÕES | F45: M | G45: 170 | H45: 46.35 | I45: 7879.5 | K45: 11 | L45: 11-TUBOS | P45: 170 | BM45: 0 | BN45: 0 | BO45: 7879.5 | BP45: 0 | BQ45: 0 | BR45: 0 | BS45: 0 | BT45: 0 | BU45: 0 | BV45: 0 | BW45: 0 | BX45: 0 | BY45: 0 | BZ45: 0 | CA45: 0 | CB45: 0 | CC45: 0 | CD45: 0 | CE45: 0 | CF45: 0 | CG45: 0 | CH45: 0 | CI45: 0 | CJ45: 0 | CK45: 0 | CL45: 0 | CM45: 0 | CN45: 0 | CO45: 0 | CP45: 0 | CQ45: 0 | CR45: 0 | CS45: 0 | CT45: 0 | CU45: 0 | CV45: 0 | CW45: 0 | CX45: 0 | CY45: 0 | CZ45: 0 | DA45: 0 | DB45: 0 | DC45: 0 | DD45: 0 | DE45: 0 | DF45: 0 | DG45: 0 | DH45: 0 | DI45: 0 | DJ45: 0 | DK45: 1 | DL45: 0 | DM45: 0 | DN45: 0 | DO45: 0 | DP45: 0 | DQ45: 0 | DR45: 0 | DS45: 0 | DT45: 0 | DU45: 0 | DV45: 0 | DW45: 0 | DX45: 0 | DY45: 0 | DZ45: 0 | EA45: 0 | EB45: 0 | EC45: 0 | ED45: 0 | EE45: 0 | EF45: 0 | EG45: 0 | EH45: 0 | EI45: 0 | EJ45: 0 | EK45: 0 | EL45: 0 | EM45: 0 | EN45: 0 | EO45: 0 | EP45: 0 | EQ45: 0 | ER45: 0 | ES45: 0 | ET45: 0 | EU45: 0 | EV45: 0 | EW45: 0 | EX45: 0 | EY45: 0 | EZ45: 0 | FA45: 0 | FB45: 0 | FC45: 0 | FD45: 0 | FE45: 0 | FF45: 0 | FG45: 0 | FH45: 0 | FI45: 0 | FJ45: 0
B46: 29 | C46: Serviço | D46: 1.7.2. | E46: CAIXA DE PASSAGEM 30X30X40 COM TAMPA E DRENO BRITA | F46: UN | G46: 9 | H46: 184.31 | I46: 1658.79 | K46: 11 | L46: 11-TUBOS | P46: 9 | BM46: 0 | BN46: 0 | BO46: 1658.79 | BP46: 0 | BQ46: 0 | BR46: 0 | BS46: 0 | BT46: 0 | BU46: 0 | BV46: 0 | BW46: 0 | BX46: 0 | BY46: 0 | BZ46: 0 | CA46: 0 | CB46: 0 | CC46: 0 | CD46: 0 | CE46: 0 | CF46: 0 | CG46: 0 | CH46: 0 | CI46: 0 | CJ46: 0 | CK46: 0 | CL46: 0 | CM46: 0 | CN46: 0 | CO46: 0 | CP46: 0 | CQ46: 0 | CR46: 0 | CS46: 0 | CT46: 0 | CU46: 0 | CV46: 0 | CW46: 0 | CX46: 0 | CY46: 0 | CZ46: 0 | DA46: 0 | DB46: 0 | DC46: 0 | DD46: 0 | DE46: 0 | DF46: 0 | DG46: 0 | DH46: 0 | DI46: 0 | DJ46: 0 | DK46: 1 | DL46: 0 | DM46: 0 | DN46: 0 | DO46: 0 | DP46: 0 | DQ46: 0 | DR46: 0 | DS46: 0 | DT46: 0 | DU46: 0 | DV46: 0 | DW46: 0 | DX46: 0 | DY46: 0 | DZ46: 0 | EA46: 0 | EB46: 0 | EC46: 0 | ED46: 0 | EE46: 0 | EF46: 0 | EG46: 0 | EH46: 0 | EI46: 0 | EJ46: 0 | EK46: 0 | EL46: 0 | EM46: 0 | EN46: 0 | EO46: 0 | EP46: 0 | EQ46: 0 | ER46: 0 | ES46: 0 | ET46: 0 | EU46: 0 | EV46: 0 | EW46: 0 | EX46: 0 | EY46: 0 | EZ46: 0 | FA46: 0 | FB46: 0 | FC46: 0 | FD46: 0 | FE46: 0 | FF46: 0 | FG46: 0 | FH46: 0 | FI46: 0 | FJ46: 0
B47: 30 | C47: Nível | D47: 1.8. | E47: ENTORNO | I47: 3437.51 | K47: 12 | L47: 12-CALÇADAS | N47: 0 | BM47: 0 | BN47: 0 | BO47: 0 | BP47: 0 | BQ47: 0 | BR47: 0 | BS47: 0 | BT47: 0 | BU47: 0 | BV47: 0 | BW47: 0 | BX47: 0 | BY47: 0 | BZ47: 0 | CA47: 0 | CB47: 0 | CC47: 0 | CD47: 0 | CE47: 0 | CF47: 0 | CG47: 0 | CH47: 0 | CI47: 0 | CJ47: 0 | CK47: 0 | CL47: 0 | CM47: 0 | CN47: 0 | CO47: 0 | CP47: 0 | CQ47: 0 | CR47: 0 | CS47: 0 | CT47: 0 | CU47: 0 | CV47: 0 | CW47: 0 | CX47: 0 | CY47: 0 | CZ47: 0 | DA47: 0 | DB47: 0 | DC47: 0 | DD47: 0 | DE47: 0 | DF47: 0 | DG47: 0 | DH47: 0 | DI47: 0 | DJ47: 0 | DK47: 1 | DL47: 0 | DM47: 0 | DN47: 0 | DO47: 0 | DP47: 0 | DQ47: 0 | DR47: 0 | DS47: 0 | DT47: 0 | DU47: 0 | DV47: 0 | DW47: 0 | DX47: 0 | DY47: 0 | DZ47: 0 | EA47: 0 | EB47: 0 | EC47: 0 | ED47: 0 | EE47: 0 | EF47: 0 | EG47: 0 | EH47: 0 | EI47: 0 | EJ47: 0 | EK47: 0 | EL47: 0 | EM47: 0 | EN47: 0 | EO47: 0 | EP47: 0 | EQ47: 0 | ER47: 0 | ES47: 0 | ET47: 0 | EU47: 0 | EV47: 0 | EW47: 0 | EX47: 0 | EY47: 0 | EZ47: 0 | FA47: 0 | FB47: 0 | FC47: 0 | FD47: 0 | FE47: 0 | FF47: 0 | FG47: 0 | FH47: 0 | FI47: 0 | FJ47: 0
B48: 31 | C48: Serviço | D48: 1.8.1. | E48: PEDRA BRITADA N. 2 (19 A 38 MM) PARA LASTRO DE FUNDO | F48: M3 | G48: 1.72 | H48: 79.09883721 | I48: 136.05 | K48: 12 | L48: 12-CALÇADAS | N48: 1.72 | BM48: 136.05 | BN48: 0 | BO48: 0 | BP48: 0 | BQ48: 0 | BR48: 0 | BS48: 0 | BT48: 0 | BU48: 0 | BV48: 0 | BW48: 0 | BX48: 0 | BY48: 0 | BZ48: 0 | CA48: 0 | CB48: 0 | CC48: 0 | CD48: 0 | CE48: 0 | CF48: 0 | CG48: 0 | CH48: 0 | CI48: 0 | CJ48: 0 | CK48: 0 | CL48: 0 | CM48: 0 | CN48: 0 | CO48: 0 | CP48: 0 | CQ48: 0 | CR48: 0 | CS48: 0 | CT48: 0 | CU48: 0 | CV48: 0 | CW48: 0 | CX48: 0 | CY48: 0 | CZ48: 0 | DA48: 0 | DB48: 0 | DC48: 0 | DD48: 0 | DE48: 0 | DF48: 0 | DG48: 0 | DH48: 0 | DI48: 0 | DJ48: 0 | DK48: 1 | DL48: 0 | DM48: 0 | DN48: 0 | DO48: 0 | DP48: 0 | DQ48: 0 | DR48: 0 | DS48: 0 | DT48: 0 | DU48: 0 | DV48: 0 | DW48: 0 | DX48: 0 | DY48: 0 | DZ48: 0 | EA48: 0 | EB48: 0 | EC48: 0 | ED48: 0 | EE48: 0 | EF48: 0 | EG48: 0 | EH48: 0 | EI48: 0 | EJ48: 0 | EK48: 0 | EL48: 0 | EM48: 0 | EN48: 0 | EO48: 0 | EP48: 0 | EQ48: 0 | ER48: 0 | ES48: 0 | ET48: 0 | EU48: 0 | EV48: 0 | EW48: 0 | EX48: 0 | EY48: 0 | EZ48: 0 | FA48: 0 | FB48: 0 | FC48: 0 | FD48: 0 | FE48: 0 | FF48: 0 | FG48: 0 | FH48: 0 | FI48: 0 | FJ48: 0
B49: 32 | C49: Serviço | D49: 1.8.2. | E49: EXECUÇÃO DE PASSEIO DE CONCRETO COM, ACABAMENTO CONVENCIONAL, ESPESSURA 6 CM, ARMADO | F49: M2 | G49: 34.45 | H49: 67.15007257 | I49: 2313.32 | K49: 12 | L49: 12-CALÇADAS | N49: 34.45 | BM49: 2313.32 | BN49: 0 | BO49: 0 | BP49: 0 | BQ49: 0 | BR49: 0 | BS49: 0 | BT49: 0 | BU49: 0 | BV49: 0 | BW49: 0 | BX49: 0 | BY49: 0 | BZ49: 0 | CA49: 0 | CB49: 0 | CC49: 0 | CD49: 0 | CE49: 0 | CF49: 0 | CG49: 0 | CH49: 0 | CI49: 0 | CJ49: 0 | CK49: 0 | CL49: 0 | CM49: 0 | CN49: 0 | CO49: 0 | CP49: 0 | CQ49: 0 | CR49: 0 | CS49: 0 | CT49: 0 | CU49: 0 | CV49: 0 | CW49: 0 | CX49: 0 | CY49: 0 | CZ49: 0 | DA49: 0 | DB49: 0 | DC49: 0 | DD49: 0 | DE49: 0 | DF49: 0 | DG49: 0 | DH49: 0 | DI49: 0 | DJ49: 0 | DK49: 1 | DL49: 0 | DM49: 0 | DN49: 0 | DO49: 0 | DP49: 0 | DQ49: 0 | DR49: 0 | DS49: 0 | DT49: 0 | DU49: 0 | DV49: 0 | DW49: 0 | DX49: 0 | DY49: 0 | DZ49: 0 | EA49: 0 | EB49: 0 | EC49: 0 | ED49: 0 | EE49: 0 | EF49: 0 | EG49: 0 | EH49: 0 | EI49: 0 | EJ49: 0 | EK49: 0 | EL49: 0 | EM49: 0 | EN49: 0 | EO49: 0 | EP49: 0 | EQ49: 0 | ER49: 0 | ES49: 0 | ET49: 0 | EU49: 0 | EV49: 0 | EW49: 0 | EX49: 0 | EY49: 0 | EZ49: 0 | FA49: 0 | FB49: 0 | FC49: 0 | FD49: 0 | FE49: 0 | FF49: 0 | FG49: 0 | FH49: 0 | FI49: 0 | FJ49: 0
B50: 33 | C50: Serviço | D50: 1.8.3. | E50: PISO PODOTATIL DE CONCRETO ALERTA/DIRECIONAL *40 X 40 X 2,5*CM, SOBRE LASTRO DE CONCRETO ESPESSURA 3 CM E REJUNTE CIMENTICIO | F50: M2 | G50: 8.24 | H50: 119.9199029 | I50: 988.14 | K50: 12 | L50: 12-CALÇADAS | N50: 8.24 | BM50: 988.14 | BN50: 0 | BO50: 0 | BP50: 0 | BQ50: 0 | BR50: 0 | BS50: 0 | BT50: 0 | BU50: 0 | BV50: 0 | BW50: 0 | BX50: 0 | BY50: 0 | BZ50: 0 | CA50: 0 | CB50: 0 | CC50: 0 | CD50: 0 | CE50: 0 | CF50: 0 | CG50: 0 | CH50: 0 | CI50: 0 | CJ50: 0 | CK50: 0 | CL50: 0 | CM50: 0 | CN50: 0 | CO50: 0 | CP50: 0 | CQ50: 0 | CR50: 0 | CS50: 0 | CT50: 0 | CU50: 0 | CV50: 0 | CW50: 0 | CX50: 0 | CY50: 0 | CZ50: 0 | DA50: 0 | DB50: 0 | DC50: 0 | DD50: 0 | DE50: 0 | DF50: 0 | DG50: 0 | DH50: 0 | DI50: 0 | DJ50: 0 | DK50: 1 | DL50: 0 | DM50: 0 | DN50: 0 | DO50: 0 | DP50: 0 | DQ50: 0 | DR50: 0 | DS50: 0 | DT50: 0 | DU50: 0 | DV50: 0 | DW50: 0 | DX50: 0 | DY50: 0 | DZ50: 0 | EA50: 0 | EB50: 0 | EC50: 0 | ED50: 0 | EE50: 0 | EF50: 0 | EG50: 0 | EH50: 0 | EI50: 0 | EJ50: 0 | EK50: 0 | EL50: 0 | EM50: 0 | EN50: 0 | EO50: 0 | EP50: 0 | EQ50: 0 | ER50: 0 | ES50: 0 | ET50: 0 | EU50: 0 | EV50: 0 | EW50: 0 | EX50: 0 | EY50: 0 | EZ50: 0 | FA50: 0 | FB50: 0 | FC50: 0 | FD50: 0 | FE50: 0 | FF50: 0 | FG50: 0 | FH50: 0 | FI50: 0 | FJ50: 0
B51: 34 | C51: =IF(D51="","",IF(ISNUMBER(VALUE(D51)),"Meta",IF(AND(F51<>"",I51<>""),"Serviço","Nível"))) -> Nível | D51: 1.9. | E51: SERVIÇOS FINAIS | G51: =IF(Nível="Serviço",SUMIF($N$15:$BK$15,"<>"&"",N51:BK51),"") ->  | H51: =IF(AND(ISNUMBER(G51),G51<>0),I51/G51,IF(G51=0,0,"")) ->  | I51: 5747.06 | K51: =IF(L51="","",VALUE(LEFT(L51,(FIND("-",L51,1))-1))) -> 13 | L51: 13-SERVIÇOS FINAIS | N51: 0 | BM51: =IF(N$15="",0,IF(ISNUMBER(PreçoUnit),PreçoUnit*INDEX(Import.PLQ,$B51,BM$16),0)) -> 0 | BN51: =IF(O$15="",0,IF(ISNUMBER(PreçoUnit),PreçoUnit*INDEX(Import.PLQ,$B51,BN$16),0)) -> 0 | BO51: =IF(P$15="",0,IF(ISNUMBER(PreçoUnit),PreçoUnit*INDEX(Import.PLQ,$B51,BO$16),0)) -> 0 | BP51: =IF(Q$15="",0,IF(ISNUMBER(PreçoUnit),PreçoUnit*INDEX(Import.PLQ,$B51,BP$16),0)) -> 0 | BQ51: =IF(R$15="",0,IF(ISNUMBER(PreçoUnit),PreçoUnit*INDEX(Import.PLQ,$B51,BQ$16),0)) -> 0 | BR51: =IF(S$15="",0,IF(ISNUMBER(PreçoUnit),PreçoUnit*INDEX(Import.PLQ,$B51,BR$16),0)) -> 0 | BS51: =IF(T$15="",0,IF(ISNUMBER(PreçoUnit),PreçoUnit*INDEX(Import.PLQ,$B51,BS$16),0)) -> 0 | BT51: =IF(U$15="",0,IF(ISNUMBER(PreçoUnit),PreçoUnit*INDEX(Import.PLQ,$B51,BT$16),0)) -> 0 | BU51: =IF(V$15="",0,IF(ISNUMBER(PreçoUnit),PreçoUnit*INDEX(Import.PLQ,$B51,BU$16),0)) -> 0 | BV51: =IF(W$15="",0,IF(ISNUMBER(PreçoUnit),PreçoUnit*INDEX(Import.PLQ,$B51,BV$16),0)) -> 0 | BW51: =IF(X$15="",0,IF(ISNUMBER(PreçoUnit),PreçoUnit*INDEX(Import.PLQ,$B51,BW$16),0)) -> 0 | BX51: =IF(Y$15="",0,IF(ISNUMBER(PreçoUnit),PreçoUnit*INDEX(Import.PLQ,$B51,BX$16),0)) -> 0 | BY51: =IF(Z$15="",0,IF(ISNUMBER(PreçoUnit),PreçoUnit*INDEX(Import.PLQ,$B51,BY$16),0)) -> 0 | BZ51: =IF(AA$15="",0,IF(ISNUMBER(PreçoUnit),PreçoUnit*INDEX(Import.PLQ,$B51,BZ$16),0)) -> 0 | CA51: =IF(AB$15="",0,IF(ISNUMBER(PreçoUnit),PreçoUnit*INDEX(Import.PLQ,$B51,CA$16),0)) -> 0 | CB51: =IF(AC$15="",0,IF(ISNUMBER(PreçoUnit),PreçoUnit*INDEX(Import.PLQ,$B51,CB$16),0)) -> 0 | CC51: =IF(AD$15="",0,IF(ISNUMBER(PreçoUnit),PreçoUnit*INDEX(Import.PLQ,$B51,CC$16),0)) -> 0 | CD51: =IF(AE$15="",0,IF(ISNUMBER(PreçoUnit),PreçoUnit*INDEX(Import.PLQ,$B51,CD$16),0)) -> 0 | CE51: =IF(AF$15="",0,IF(ISNUMBER(PreçoUnit),PreçoUnit*INDEX(Import.PLQ,$B51,CE$16),0)) -> 0 | CF51: =IF(AG$15="",0,IF(ISNUMBER(PreçoUnit),PreçoUnit*INDEX(Import.PLQ,$B51,CF$16),0)) -> 0 | CG51: =IF(AH$15="",0,IF(ISNUMBER(PreçoUnit),PreçoUnit*INDEX(Import.PLQ,$B51,CG$16),0)) -> 0 | CH51: =IF(AI$15="",0,IF(ISNUMBER(PreçoUnit),PreçoUnit*INDEX(Import.PLQ,$B51,CH$16),0)) -> 0 | CI51: =IF(AJ$15="",0,IF(ISNUMBER(PreçoUnit),PreçoUnit*INDEX(Import.PLQ,$B51,CI$16),0)) -> 0 | CJ51: =IF(AK$15="",0,IF(ISNUMBER(PreçoUnit),PreçoUnit*INDEX(Import.PLQ,$B51,CJ$16),0)) -> 0 | CK51: =IF(AL$15="",0,IF(ISNUMBER(PreçoUnit),PreçoUnit*INDEX(Import.PLQ,$B51,CK$16),0)) -> 0 | CL51: =IF(AM$15="",0,IF(ISNUMBER(PreçoUnit),PreçoUnit*INDEX(Import.PLQ,$B51,CL$16),0)) -> 0 | CM51: =IF(AN$15="",0,IF(ISNUMBER(PreçoUnit),PreçoUnit*INDEX(Import.PLQ,$B51,CM$16),0)) -> 0 | CN51: =IF(AO$15="",0,IF(ISNUMBER(PreçoUnit),PreçoUnit*INDEX(Import.PLQ,$B51,CN$16),0)) -> 0 | CO51: =IF(AP$15="",0,IF(ISNUMBER(PreçoUnit),PreçoUnit*INDEX(Import.PLQ,$B51,CO$16),0)) -> 0 | CP51: =IF(AQ$15="",0,IF(ISNUMBER(PreçoUnit),PreçoUnit*INDEX(Import.PLQ,$B51,CP$16),0)) -> 0 | CQ51: =IF(AR$15="",0,IF(ISNUMBER(PreçoUnit),PreçoUnit*INDEX(Import.PLQ,$B51,CQ$16),0)) -> 0 | CR51: =IF(AS$15="",0,IF(ISNUMBER(PreçoUnit),PreçoUnit*INDEX(Import.PLQ,$B51,CR$16),0)) -> 0 | CS51: =IF(AT$15="",0,IF(ISNUMBER(PreçoUnit),PreçoUnit*INDEX(Import.PLQ,$B51,CS$16),0)) -> 0 | CT51: =IF(AU$15="",0,IF(ISNUMBER(PreçoUnit),PreçoUnit*INDEX(Import.PLQ,$B51,CT$16),0)) -> 0 | CU51: =IF(AV$15="",0,IF(ISNUMBER(PreçoUnit),PreçoUnit*INDEX(Import.PLQ,$B51,CU$16),0)) -> 0 | CV51: =IF(AW$15="",0,IF(ISNUMBER(PreçoUnit),PreçoUnit*INDEX(Import.PLQ,$B51,CV$16),0)) -> 0 | CW51: =IF(AX$15="",0,IF(ISNUMBER(PreçoUnit),PreçoUnit*INDEX(Import.PLQ,$B51,CW$16),0)) -> 0 | CX51: =IF(AY$15="",0,IF(ISNUMBER(PreçoUnit),PreçoUnit*INDEX(Import.PLQ,$B51,CX$16),0)) -> 0 | CY51: =IF(AZ$15="",0,IF(ISNUMBER(PreçoUnit),PreçoUnit*INDEX(Import.PLQ,$B51,CY$16),0)) -> 0 | CZ51: =IF(BA$15="",0,IF(ISNUMBER(PreçoUnit),PreçoUnit*INDEX(Import.PLQ,$B51,CZ$16),0)) -> 0 | DA51: =IF(BB$15="",0,IF(ISNUMBER(PreçoUnit),PreçoUnit*INDEX(Import.PLQ,$B51,DA$16),0)) -> 0 | DB51: =IF(BC$15="",0,IF(ISNUMBER(PreçoUnit),PreçoUnit*INDEX(Import.PLQ,$B51,DB$16),0)) -> 0 | DC51: =IF(BD$15="",0,IF(ISNUMBER(PreçoUnit),PreçoUnit*INDEX(Import.PLQ,$B51,DC$16),0)) -> 0 | DD51: =IF(BE$15="",0,IF(ISNUMBER(PreçoUnit),PreçoUnit*INDEX(Import.PLQ,$B51,DD$16),0)) -> 0 | DE51: =IF(BF$15="",0,IF(ISNUMBER(PreçoUnit),PreçoUnit*INDEX(Import.PLQ,$B51,DE$16),0)) -> 0 | DF51: =IF(BG$15="",0,IF(ISNUMBER(PreçoUnit),PreçoUnit*INDEX(Import.PLQ,$B51,DF$16),0)) -> 0 | DG51: =IF(BH$15="",0,IF(ISNUMBER(PreçoUnit),PreçoUnit*INDEX(Import.PLQ,$B51,DG$16),0)) -> 0 | DH51: =IF(BI$15="",0,IF(ISNUMBER(PreçoUnit),PreçoUnit*INDEX(Import.PLQ,$B51,DH$16),0)) -> 0 | DI51: =IF(BJ$15="",0,IF(ISNUMBER(PreçoUnit),PreçoUnit*INDEX(Import.PLQ,$B51,DI$16),0)) -> 0 | DJ51: =IF(BK$15="",0,IF(ISNUMBER(PreçoUnit),PreçoUnit*INDEX(Import.PLQ,$B51,DJ$16),0)) -> 0 | DK51: =IF(D51="",0,IF(ISNUMBER(VALUE(D51)),VALUE(D51),LEFT(D51,FIND(".",D51)-1))) -> 1 | DL51: =SUM(DM51:FJ51) -> 0 | DM51: =IF(ISNUMBER(INDEX(Import.PLE,$K51,DM$16)),IF(INDEX(Import.PLE,$K51,DM$16)<=mediçao,BM51,0),0) -> 0 | DN51: =IF(ISNUMBER(INDEX(Import.PLE,$K51,DN$16)),IF(INDEX(Import.PLE,$K51,DN$16)<=mediçao,BN51,0),0) -> 0 | DO51: =IF(ISNUMBER(INDEX(Import.PLE,$K51,DO$16)),IF(INDEX(Import.PLE,$K51,DO$16)<=mediçao,BO51,0),0) -> 0 | DP51: =IF(ISNUMBER(INDEX(Import.PLE,$K51,DP$16)),IF(INDEX(Import.PLE,$K51,DP$16)<=mediçao,BP51,0),0) -> 0 | DQ51: =IF(ISNUMBER(INDEX(Import.PLE,$K51,DQ$16)),IF(INDEX(Import.PLE,$K51,DQ$16)<=mediçao,BQ51,0),0) -> 0 | DR51: =IF(ISNUMBER(INDEX(Import.PLE,$K51,DR$16)),IF(INDEX(Import.PLE,$K51,DR$16)<=mediçao,BR51,0),0) -> 0 | DS51: =IF(ISNUMBER(INDEX(Import.PLE,$K51,DS$16)),IF(INDEX(Import.PLE,$K51,DS$16)<=mediçao,BS51,0),0) -> 0 | DT51: =IF(ISNUMBER(INDEX(Import.PLE,$K51,DT$16)),IF(INDEX(Import.PLE,$K51,DT$16)<=mediçao,BT51,0),0) -> 0 | DU51: =IF(ISNUMBER(INDEX(Import.PLE,$K51,DU$16)),IF(INDEX(Import.PLE,$K51,DU$16)<=mediçao,BU51,0),0) -> 0 | DV51: =IF(ISNUMBER(INDEX(Import.PLE,$K51,DV$16)),IF(INDEX(Import.PLE,$K51,DV$16)<=mediçao,BV51,0),0) -> 0 | DW51: =IF(ISNUMBER(INDEX(Import.PLE,$K51,DW$16)),IF(INDEX(Import.PLE,$K51,DW$16)<=mediçao,BW51,0),0) -> 0 | DX51: =IF(ISNUMBER(INDEX(Import.PLE,$K51,DX$16)),IF(INDEX(Import.PLE,$K51,DX$16)<=mediçao,BX51,0),0) -> 0 | DY51: =IF(ISNUMBER(INDEX(Import.PLE,$K51,DY$16)),IF(INDEX(Import.PLE,$K51,DY$16)<=mediçao,BY51,0),0) -> 0 | DZ51: =IF(ISNUMBER(INDEX(Import.PLE,$K51,DZ$16)),IF(INDEX(Import.PLE,$K51,DZ$16)<=mediçao,BZ51,0),0) -> 0 | EA51: =IF(ISNUMBER(INDEX(Import.PLE,$K51,EA$16)),IF(INDEX(Import.PLE,$K51,EA$16)<=mediçao,CA51,0),0) -> 0 | EB51: =IF(ISNUMBER(INDEX(Import.PLE,$K51,EB$16)),IF(INDEX(Import.PLE,$K51,EB$16)<=mediçao,CB51,0),0) -> 0 | EC51: =IF(ISNUMBER(INDEX(Import.PLE,$K51,EC$16)),IF(INDEX(Import.PLE,$K51,EC$16)<=mediçao,CC51,0),0) -> 0 | ED51: =IF(ISNUMBER(INDEX(Import.PLE,$K51,ED$16)),IF(INDEX(Import.PLE,$K51,ED$16)<=mediçao,CD51,0),0) -> 0 | EE51: =IF(ISNUMBER(INDEX(Import.PLE,$K51,EE$16)),IF(INDEX(Import.PLE,$K51,EE$16)<=mediçao,CE51,0),0) -> 0 | EF51: =IF(ISNUMBER(INDEX(Import.PLE,$K51,EF$16)),IF(INDEX(Import.PLE,$K51,EF$16)<=mediçao,CF51,0),0) -> 0 | EG51: =IF(ISNUMBER(INDEX(Import.PLE,$K51,EG$16)),IF(INDEX(Import.PLE,$K51,EG$16)<=mediçao,CG51,0),0) -> 0 | EH51: =IF(ISNUMBER(INDEX(Import.PLE,$K51,EH$16)),IF(INDEX(Import.PLE,$K51,EH$16)<=mediçao,CH51,0),0) -> 0 | EI51: =IF(ISNUMBER(INDEX(Import.PLE,$K51,EI$16)),IF(INDEX(Import.PLE,$K51,EI$16)<=mediçao,CI51,0),0) -> 0 | EJ51: =IF(ISNUMBER(INDEX(Import.PLE,$K51,EJ$16)),IF(INDEX(Import.PLE,$K51,EJ$16)<=mediçao,CJ51,0),0) -> 0 | EK51: =IF(ISNUMBER(INDEX(Import.PLE,$K51,EK$16)),IF(INDEX(Import.PLE,$K51,EK$16)<=mediçao,CK51,0),0) -> 0 | EL51: =IF(ISNUMBER(INDEX(Import.PLE,$K51,EL$16)),IF(INDEX(Import.PLE,$K51,EL$16)<=mediçao,CL51,0),0) -> 0 | EM51: =IF(ISNUMBER(INDEX(Import.PLE,$K51,EM$16)),IF(INDEX(Import.PLE,$K51,EM$16)<=mediçao,CM51,0),0) -> 0 | EN51: =IF(ISNUMBER(INDEX(Import.PLE,$K51,EN$16)),IF(INDEX(Import.PLE,$K51,EN$16)<=mediçao,CN51,0),0) -> 0 | EO51: =IF(ISNUMBER(INDEX(Import.PLE,$K51,EO$16)),IF(INDEX(Import.PLE,$K51,EO$16)<=mediçao,CO51,0),0) -> 0 | EP51: =IF(ISNUMBER(INDEX(Import.PLE,$K51,EP$16)),IF(INDEX(Import.PLE,$K51,EP$16)<=mediçao,CP51,0),0) -> 0 | EQ51: =IF(ISNUMBER(INDEX(Import.PLE,$K51,EQ$16)),IF(INDEX(Import.PLE,$K51,EQ$16)<=mediçao,CQ51,0),0) -> 0 | ER51: =IF(ISNUMBER(INDEX(Import.PLE,$K51,ER$16)),IF(INDEX(Import.PLE,$K51,ER$16)<=mediçao,CR51,0),0) -> 0 | ES51: =IF(ISNUMBER(INDEX(Import.PLE,$K51,ES$16)),IF(INDEX(Import.PLE,$K51,ES$16)<=mediçao,CS51,0),0) -> 0 | ET51: =IF(ISNUMBER(INDEX(Import.PLE,$K51,ET$16)),IF(INDEX(Import.PLE,$K51,ET$16)<=mediçao,CT51,0),0) -> 0 | EU51: =IF(ISNUMBER(INDEX(Import.PLE,$K51,EU$16)),IF(INDEX(Import.PLE,$K51,EU$16)<=mediçao,CU51,0),0) -> 0 | EV51: =IF(ISNUMBER(INDEX(Import.PLE,$K51,EV$16)),IF(INDEX(Import.PLE,$K51,EV$16)<=mediçao,CV51,0),0) -> 0 | EW51: =IF(ISNUMBER(INDEX(Import.PLE,$K51,EW$16)),IF(INDEX(Import.PLE,$K51,EW$16)<=mediçao,CW51,0),0) -> 0 | EX51: =IF(ISNUMBER(INDEX(Import.PLE,$K51,EX$16)),IF(INDEX(Import.PLE,$K51,EX$16)<=mediçao,CX51,0),0) -> 0 | EY51: =IF(ISNUMBER(INDEX(Import.PLE,$K51,EY$16)),IF(INDEX(Import.PLE,$K51,EY$16)<=mediçao,CY51,0),0) -> 0 | EZ51: =IF(ISNUMBER(INDEX(Import.PLE,$K51,EZ$16)),IF(INDEX(Import.PLE,$K51,EZ$16)<=mediçao,CZ51,0),0) -> 0 | FA51: =IF(ISNUMBER(INDEX(Import.PLE,$K51,FA$16)),IF(INDEX(Import.PLE,$K51,FA$16)<=mediçao,DA51,0),0) -> 0 | FB51: =IF(ISNUMBER(INDEX(Import.PLE,$K51,FB$16)),IF(INDEX(Import.PLE,$K51,FB$16)<=mediçao,DB51,0),0) -> 0 | FC51: =IF(ISNUMBER(INDEX(Import.PLE,$K51,FC$16)),IF(INDEX(Import.PLE,$K51,FC$16)<=mediçao,DC51,0),0) -> 0 | FD51: =IF(ISNUMBER(INDEX(Import.PLE,$K51,FD$16)),IF(INDEX(Import.PLE,$K51,FD$16)<=mediçao,DD51,0),0) -> 0 | FE51: =IF(ISNUMBER(INDEX(Import.PLE,$K51,FE$16)),IF(INDEX(Import.PLE,$K51,FE$16)<=mediçao,DE51,0),0) -> 0 | FF51: =IF(ISNUMBER(INDEX(Import.PLE,$K51,FF$16)),IF(INDEX(Import.PLE,$K51,FF$16)<=mediçao,DF51,0),0) -> 0 | FG51: =IF(ISNUMBER(INDEX(Import.PLE,$K51,FG$16)),IF(INDEX(Import.PLE,$K51,FG$16)<=mediçao,DG51,0),0) -> 0 | FH51: =IF(ISNUMBER(INDEX(Import.PLE,$K51,FH$16)),IF(INDEX(Import.PLE,$K51,FH$16)<=mediçao,DH51,0),0) -> 0 | FI51: =IF(ISNUMBER(INDEX(Import.PLE,$K51,FI$16)),IF(INDEX(Import.PLE,$K51,FI$16)<=mediçao,DI51,0),0) -> 0 | FJ51: =IF(ISNUMBER(INDEX(Import.PLE,$K51,FJ$16)),IF(INDEX(Import.PLE,$K51,FJ$16)<=mediçao,DJ51,0),0) -> 0
B52: 35 | C52: Serviço | D52: 1.9.1. | E52: LIMPEZA FINAL DA OBRA | F52: M2 | G52: 1032.48 | H52: 1.270000387 | I52: 1311.25 | K52: 13 | L52: 13-SERVIÇOS FINAIS | N52: 1032.48 | BM52: 1311.25 | BN52: 0 | BO52: 0 | BP52: 0 | BQ52: 0 | BR52: 0 | BS52: 0 | BT52: 0 | BU52: 0 | BV52: 0 | BW52: 0 | BX52: 0 | BY52: 0 | BZ52: 0 | CA52: 0 | CB52: 0 | CC52: 0 | CD52: 0 | CE52: 0 | CF52: 0 | CG52: 0 | CH52: 0 | CI52: 0 | CJ52: 0 | CK52: 0 | CL52: 0 | CM52: 0 | CN52: 0 | CO52: 0 | CP52: 0 | CQ52: 0 | CR52: 0 | CS52: 0 | CT52: 0 | CU52: 0 | CV52: 0 | CW52: 0 | CX52: 0 | CY52: 0 | CZ52: 0 | DA52: 0 | DB52: 0 | DC52: 0 | DD52: 0 | DE52: 0 | DF52: 0 | DG52: 0 | DH52: 0 | DI52: 0 | DJ52: 0 | DK52: 1 | DL52: 0 | DM52: 0 | DN52: 0 | DO52: 0 | DP52: 0 | DQ52: 0 | DR52: 0 | DS52: 0 | DT52: 0 | DU52: 0 | DV52: 0 | DW52: 0 | DX52: 0 | DY52: 0 | DZ52: 0 | EA52: 0 | EB52: 0 | EC52: 0 | ED52: 0 | EE52: 0 | EF52: 0 | EG52: 0 | EH52: 0 | EI52: 0 | EJ52: 0 | EK52: 0 | EL52: 0 | EM52: 0 | EN52: 0 | EO52: 0 | EP52: 0 | EQ52: 0 | ER52: 0 | ES52: 0 | ET52: 0 | EU52: 0 | EV52: 0 | EW52: 0 | EX52: 0 | EY52: 0 | EZ52: 0 | FA52: 0 | FB52: 0 | FC52: 0 | FD52: 0 | FE52: 0 | FF52: 0 | FG52: 0 | FH52: 0 | FI52: 0 | FJ52: 0
B53: 36 | C53: Serviço | D53: 1.9.2. | E53: TRAVE DE FUTSAL 3,00 X 2,00 MODELO DESMONTÁVEL | F53: UN | G53: 2 | H53: 1389.63 | I53: 2779.26 | K53: 13 | L53: 13-SERVIÇOS FINAIS | Q53: 2 | BM53: 0 | BN53: 0 | BO53: 0 | BP53: 2779.26 | BQ53: 0 | BR53: 0 | BS53: 0 | BT53: 0 | BU53: 0 | BV53: 0 | BW53: 0 | BX53: 0 | BY53: 0 | BZ53: 0 | CA53: 0 | CB53: 0 | CC53: 0 | CD53: 0 | CE53: 0 | CF53: 0 | CG53: 0 | CH53: 0 | CI53: 0 | CJ53: 0 | CK53: 0 | CL53: 0 | CM53: 0 | CN53: 0 | CO53: 0 | CP53: 0 | CQ53: 0 | CR53: 0 | CS53: 0 | CT53: 0 | CU53: 0 | CV53: 0 | CW53: 0 | CX53: 0 | CY53: 0 | CZ53: 0 | DA53: 0 | DB53: 0 | DC53: 0 | DD53: 0 | DE53: 0 | DF53: 0 | DG53: 0 | DH53: 0 | DI53: 0 | DJ53: 0 | DK53: 1 | DL53: 0 | DM53: 0 | DN53: 0 | DO53: 0 | DP53: 0 | DQ53: 0 | DR53: 0 | DS53: 0 | DT53: 0 | DU53: 0 | DV53: 0 | DW53: 0 | DX53: 0 | DY53: 0 | DZ53: 0 | EA53: 0 | EB53: 0 | EC53: 0 | ED53: 0 | EE53: 0 | EF53: 0 | EG53: 0 | EH53: 0 | EI53: 0 | EJ53: 0 | EK53: 0 | EL53: 0 | EM53: 0 | EN53: 0 | EO53: 0 | EP53: 0 | EQ53: 0 | ER53: 0 | ES53: 0 | ET53: 0 | EU53: 0 | EV53: 0 | EW53: 0 | EX53: 0 | EY53: 0 | EZ53: 0 | FA53: 0 | FB53: 0 | FC53: 0 | FD53: 0 | FE53: 0 | FF53: 0 | FG53: 0 | FH53: 0 | FI53: 0 | FJ53: 0
B54: 37 | C54: Serviço | D54: 1.9.3. | E54: PAR DE MASTROS EM AÇO CARBONO, DIAMETRO 3", COM CREMALHEIRA, ROLDANAS E BUCHAS DE FIXAÇÃO, COM PINTURA EPOXI E ALTURA DE 2,80 M, OFICIAL PARA VOLEY | F54: UN | G54: 1 | H54: 696.08 | I54: 696.08 | K54: 13 | L54: 13-SERVIÇOS FINAIS | Q54: 1 | BM54: 0 | BN54: 0 | BO54: 0 | BP54: 696.08 | BQ54: 0 | BR54: 0 | BS54: 0 | BT54: 0 | BU54: 0 | BV54: 0 | BW54: 0 | BX54: 0 | BY54: 0 | BZ54: 0 | CA54: 0 | CB54: 0 | CC54: 0 | CD54: 0 | CE54: 0 | CF54: 0 | CG54: 0 | CH54: 0 | CI54: 0 | CJ54: 0 | CK54: 0 | CL54: 0 | CM54: 0 | CN54: 0 | CO54: 0 | CP54: 0 | CQ54: 0 | CR54: 0 | CS54: 0 | CT54: 0 | CU54: 0 | CV54: 0 | CW54: 0 | CX54: 0 | CY54: 0 | CZ54: 0 | DA54: 0 | DB54: 0 | DC54: 0 | DD54: 0 | DE54: 0 | DF54: 0 | DG54: 0 | DH54: 0 | DI54: 0 | DJ54: 0 | DK54: 1 | DL54: 0 | DM54: 0 | DN54: 0 | DO54: 0 | DP54: 0 | DQ54: 0 | DR54: 0 | DS54: 0 | DT54: 0 | DU54: 0 | DV54: 0 | DW54: 0 | DX54: 0 | DY54: 0 | DZ54: 0 | EA54: 0 | EB54: 0 | EC54: 0 | ED54: 0 | EE54: 0 | EF54: 0 | EG54: 0 | EH54: 0 | EI54: 0 | EJ54: 0 | EK54: 0 | EL54: 0 | EM54: 0 | EN54: 0 | EO54: 0 | EP54: 0 | EQ54: 0 | ER54: 0 | ES54: 0 | ET54: 0 | EU54: 0 | EV54: 0 | EW54: 0 | EX54: 0 | EY54: 0 | EZ54: 0 | FA54: 0 | FB54: 0 | FC54: 0 | FD54: 0 | FE54: 0 | FF54: 0 | FG54: 0 | FH54: 0 | FI54: 0 | FJ54: 0
B55: 38 | C55: Serviço | D55: 1.9.4. | E55: REDE DE VÔLEI PROFISSIONAIL COM FAIXAS EM PVC | F55: UN | G55: 1 | H55: 555.47 | I55: 555.47 | K55: 13 | L55: 13-SERVIÇOS FINAIS | Q55: 1 | BM55: 0 | BN55: 0 | BO55: 0 | BP55: 555.47 | BQ55: 0 | BR55: 0 | BS55: 0 | BT55: 0 | BU55: 0 | BV55: 0 | BW55: 0 | BX55: 0 | BY55: 0 | BZ55: 0 | CA55: 0 | CB55: 0 | CC55: 0 | CD55: 0 | CE55: 0 | CF55: 0 | CG55: 0 | CH55: 0 | CI55: 0 | CJ55: 0 | CK55: 0 | CL55: 0 | CM55: 0 | CN55: 0 | CO55: 0 | CP55: 0 | CQ55: 0 | CR55: 0 | CS55: 0 | CT55: 0 | CU55: 0 | CV55: 0 | CW55: 0 | CX55: 0 | CY55: 0 | CZ55: 0 | DA55: 0 | DB55: 0 | DC55: 0 | DD55: 0 | DE55: 0 | DF55: 0 | DG55: 0 | DH55: 0 | DI55: 0 | DJ55: 0 | DK55: 1 | DL55: 0 | DM55: 0 | DN55: 0 | DO55: 0 | DP55: 0 | DQ55: 0 | DR55: 0 | DS55: 0 | DT55: 0 | DU55: 0 | DV55: 0 | DW55: 0 | DX55: 0 | DY55: 0 | DZ55: 0 | EA55: 0 | EB55: 0 | EC55: 0 | ED55: 0 | EE55: 0 | EF55: 0 | EG55: 0 | EH55: 0 | EI55: 0 | EJ55: 0 | EK55: 0 | EL55: 0 | EM55: 0 | EN55: 0 | EO55: 0 | EP55: 0 | EQ55: 0 | ER55: 0 | ES55: 0 | ET55: 0 | EU55: 0 | EV55: 0 | EW55: 0 | EX55: 0 | EY55: 0 | EZ55: 0 | FA55: 0 | FB55: 0 | FC55: 0 | FD55: 0 | FE55: 0 | FF55: 0 | FG55: 0 | FH55: 0 | FI55: 0 | FJ55: 0
B56: 39 | C56: Serviço | D56: 1.9.5. | E56: BUCHA DE ESPERA EM PISO DE CONCRETO PARA FIXAÇÃO DE MASTROS E TRAVES, COM TUBO DE FERRO GALVANIZADO E TAMPÃO | F56: UN | G56: 4 | H56: 101.25 | I56: 405 | K56: 13 | L56: 13-SERVIÇOS FINAIS | Q56: 4 | BM56: 0 | BN56: 0 | BO56: 0 | BP56: 405 | BQ56: 0 | BR56: 0 | BS56: 0 | BT56: 0 | BU56: 0 | BV56: 0 | BW56: 0 | BX56: 0 | BY56: 0 | BZ56: 0 | CA56: 0 | CB56: 0 | CC56: 0 | CD56: 0 | CE56: 0 | CF56: 0 | CG56: 0 | CH56: 0 | CI56: 0 | CJ56: 0 | CK56: 0 | CL56: 0 | CM56: 0 | CN56: 0 | CO56: 0 | CP56: 0 | CQ56: 0 | CR56: 0 | CS56: 0 | CT56: 0 | CU56: 0 | CV56: 0 | CW56: 0 | CX56: 0 | CY56: 0 | CZ56: 0 | DA56: 0 | DB56: 0 | DC56: 0 | DD56: 0 | DE56: 0 | DF56: 0 | DG56: 0 | DH56: 0 | DI56: 0 | DJ56: 0 | DK56: 1 | DL56: 0 | DM56: 0 | DN56: 0 | DO56: 0 | DP56: 0 | DQ56: 0 | DR56: 0 | DS56: 0 | DT56: 0 | DU56: 0 | DV56: 0 | DW56: 0 | DX56: 0 | DY56: 0 | DZ56: 0 | EA56: 0 | EB56: 0 | EC56: 0 | ED56: 0 | EE56: 0 | EF56: 0 | EG56: 0 | EH56: 0 | EI56: 0 | EJ56: 0 | EK56: 0 | EL56: 0 | EM56: 0 | EN56: 0 | EO56: 0 | EP56: 0 | EQ56: 0 | ER56: 0 | ES56: 0 | ET56: 0 | EU56: 0 | EV56: 0 | EW56: 0 | EX56: 0 | EY56: 0 | EZ56: 0 | FA56: 0 | FB56: 0 | FC56: 0 | FD56: 0 | FE56: 0 | FF56: 0 | FG56: 0 | FH56: 0 | FI56: 0 | FJ56: 0
B57: 40 | C57: Evento | D57: Evento | E57: =INDEX(Eventos,K57,2) -> SERVIÇOS INICIAIS | F57: R$ | H57: =IF(AND(ISNUMBER(G57),G57<>0),I57/G57,IF(G57=0,0,"")) ->  | I57: =SUM(N57:BK57) -> 2893.25 | K57: =INDEX(Eventos,ROW(Nível)-ROW(LForçamento),1) -> 1 | L57: =IF(AND(NumEvento<>"",Nível="Serviço"),INDEX(Eventos,NumEvento,2),"") ->  | N57: =IF(N$15="",0,SUMIF(Import.numEventos,$K57,OFFSET(PreçoServiçoPorFrente,0,N$16-1,,1))) -> 2893.25 | O57: 0 | P57: 0 | Q57: 0 | R57: 0 | S57: 0 | T57: 0 | U57: 0 | V57: 0 | W57: 0 | X57: =IF(X$15="",0,SUMIF(Import.numEventos,$K57,OFFSET(PreçoServiçoPorFrente,0,X$16-1,,1))) -> 0 | Y57: 0 | Z57: 0 | AA57: 0 | AB57: 0 | AC57: 0 | AD57: 0 | AE57: 0 | AF57: 0 | AG57: 0 | AH57: =IF(AH$15="",0,SUMIF(Import.numEventos,$K57,OFFSET(PreçoServiçoPorFrente,0,AH$16-1,,1))) -> 0 | AI57: 0 | AJ57: 0 | AK57: 0 | AL57: 0 | AM57: 0 | AN57: 0 | AO57: 0 | AP57: 0 | AQ57: 0 | AR57: =IF(AR$15="",0,SUMIF(Import.numEventos,$K57,OFFSET(PreçoServiçoPorFrente,0,AR$16-1,,1))) -> 0 | AS57: 0 | AT57: 0 | AU57: 0 | AV57: 0 | AW57: 0 | AX57: 0 | AY57: 0 | AZ57: 0 | BA57: 0 | BB57: =IF(BB$15="",0,SUMIF(Import.numEventos,$K57,OFFSET(PreçoServiçoPorFrente,0,BB$16-1,,1))) -> 0 | BC57: 0 | BD57: 0 | BE57: 0 | BF57: 0 | BG57: 0 | BH57: 0 | BI57: 0 | BJ57: 0 | BK57: 0
B58: 41 | C58: Evento | D58: Evento | E58: SAPATAS E CALICES | F58: R$ | H58: =IF(AND(ISNUMBER(G58),G58<>0),I58/G58,IF(G58=0,0,"")) ->  | I58: =SUM(N58:BK58) -> 67379.27 | K58: 2 | N58: 67379.27 | O58: 0 | P58: 0 | Q58: 0 | R58: 0 | S58: 0 | T58: 0 | U58: 0 | V58: 0 | W58: 0 | X58: 0 | Y58: 0 | Z58: 0 | AA58: 0 | AB58: 0 | AC58: 0 | AD58: 0 | AE58: 0 | AF58: 0 | AG58: 0 | AH58: 0 | AI58: 0 | AJ58: 0 | AK58: 0 | AL58: 0 | AM58: 0 | AN58: 0 | AO58: 0 | AP58: 0 | AQ58: 0 | AR58: 0 | AS58: 0 | AT58: 0 | AU58: 0 | AV58: 0 | AW58: 0 | AX58: 0 | AY58: 0 | AZ58: 0 | BA58: 0 | BB58: 0 | BC58: 0 | BD58: 0 | BE58: 0 | BF58: 0 | BG58: 0 | BH58: 0 | BI58: 0 | BJ58: 0 | BK58: 0
B59: 42 | C59: Evento | D59: Evento | E59: PILARES | F59: R$ | H59: =IF(AND(ISNUMBER(G59),G59<>0),I59/G59,IF(G59=0,0,"")) ->  | I59: =SUM(N59:BK59) -> 51927.57 | K59: 3 | N59: 51927.57 | O59: 0 | P59: 0 | Q59: 0 | R59: 0 | S59: 0 | T59: 0 | U59: 0 | V59: 0 | W59: 0 | X59: 0 | Y59: 0 | Z59: 0 | AA59: 0 | AB59: 0 | AC59: 0 | AD59: 0 | AE59: 0 | AF59: 0 | AG59: 0 | AH59: 0 | AI59: 0 | AJ59: 0 | AK59: 0 | AL59: 0 | AM59: 0 | AN59: 0 | AO59: 0 | AP59: 0 | AQ59: 0 | AR59: 0 | AS59: 0 | AT59: 0 | AU59: 0 | AV59: 0 | AW59: 0 | AX59: 0 | AY59: 0 | AZ59: 0 | BA59: 0 | BB59: 0 | BC59: 0 | BD59: 0 | BE59: 0 | BF59: 0 | BG59: 0 | BH59: 0 | BI59: 0 | BJ59: 0 | BK59: 0
B60: 43 | C60: Evento | D60: Evento | E60: VIGAS | F60: R$ | H60: =IF(AND(ISNUMBER(G60),G60<>0),I60/G60,IF(G60=0,0,"")) ->  | I60: =SUM(N60:BK60) -> 49463.44 | K60: 4 | N60: 24731.72 | O60: 24731.72 | P60: 0 | Q60: 0 | R60: 0 | S60: 0 | T60: 0 | U60: 0 | V60: 0 | W60: 0 | X60: 0 | Y60: 0 | Z60: 0 | AA60: 0 | AB60: 0 | AC60: 0 | AD60: 0 | AE60: 0 | AF60: 0 | AG60: 0 | AH60: 0 | AI60: 0 | AJ60: 0 | AK60: 0 | AL60: 0 | AM60: 0 | AN60: 0 | AO60: 0 | AP60: 0 | AQ60: 0 | AR60: 0 | AS60: 0 | AT60: 0 | AU60: 0 | AV60: 0 | AW60: 0 | AX60: 0 | AY60: 0 | AZ60: 0 | BA60: 0 | BB60: 0 | BC60: 0 | BD60: 0 | BE60: 0 | BF60: 0 | BG60: 0 | BH60: 0 | BI60: 0 | BJ60: 0 | BK60: 0
B61: 44 | C61: Evento | D61: Evento | E61: TESOURAS METÁLICAS | F61: R$ | G61: =IF(Nível="Serviço",SUMIF($N$15:$BK$15,"<>"&"",N61:BK61),"") ->  | H61: =IF(AND(ISNUMBER(G61),G61<>0),I61/G61,IF(G61=0,0,"")) ->  | I61: =SUM(N61:BK61) -> 92931.59 | K61: 5 | N61: 0 | O61: 92931.59 | P61: 0 | Q61: 0 | R61: 0 | S61: 0 | T61: 0 | U61: 0 | V61: 0 | W61: 0 | X61: 0 | Y61: 0 | Z61: 0 | AA61: 0 | AB61: 0 | AC61: 0 | AD61: 0 | AE61: 0 | AF61: 0 | AG61: 0 | AH61: 0 | AI61: 0 | AJ61: 0 | AK61: 0 | AL61: 0 | AM61: 0 | AN61: 0 | AO61: 0 | AP61: 0 | AQ61: 0 | AR61: 0 | AS61: 0 | AT61: 0 | AU61: 0 | AV61: 0 | AW61: 0 | AX61: 0 | AY61: 0 | AZ61: 0 | BA61: 0 | BB61: 0 | BC61: 0 | BD61: 0 | BE61: 0 | BF61: 0 | BG61: 0 | BH61: 0 | BI61: 0 | BJ61: 0 | BK61: 0
B62: 45 | C62: Evento | D62: Evento | E62: TERÇAS METÁLICAS | F62: R$ | I62: 35744.66 | K62: 6 | N62: 0 | O62: 0 | P62: 35744.66 | Q62: 0 | R62: 0 | S62: 0 | T62: 0 | U62: 0 | V62: 0 | W62: 0 | X62: 0 | Y62: 0 | Z62: 0 | AA62: 0 | AB62: 0 | AC62: 0 | AD62: 0 | AE62: 0 | AF62: 0 | AG62: 0 | AH62: 0 | AI62: 0 | AJ62: 0 | AK62: 0 | AL62: 0 | AM62: 0 | AN62: 0 | AO62: 0 | AP62: 0 | AQ62: 0 | AR62: 0 | AS62: 0 | AT62: 0 | AU62: 0 | AV62: 0 | AW62: 0 | AX62: 0 | AY62: 0 | AZ62: 0 | BA62: 0 | BB62: 0 | BC62: 0 | BD62: 0 | BE62: 0 | BF62: 0 | BG62: 0 | BH62: 0 | BI62: 0 | BJ62: 0 | BK62: 0
B63: 46 | C63: Evento | D63: Evento | E63: =INDEX(Eventos,K63,2) -> CALHAS | F63: R$ | G63: =IF(Nível="Serviço",SUMIF($N$15:$BK$15,"<>"&"",N63:BK63),"") ->  | H63: =IF(AND(ISNUMBER(G63),G63<>0),I63/G63,IF(G63=0,0,"")) ->  | I63: =SUM(N63:BK63) -> 4106.61 | K63: 7 | N63: 0 | O63: 0 | P63: 4106.61 | Q63: 0 | R63: 0 | S63: 0 | T63: 0 | U63: 0 | V63: 0 | W63: 0 | X63: 0 | Y63: 0 | Z63: 0 | AA63: 0 | AB63: 0 | AC63: 0 | AD63: 0 | AE63: 0 | AF63: 0 | AG63: 0 | AH63: 0 | AI63: 0 | AJ63: 0 | AK63: 0 | AL63: 0 | AM63: 0 | AN63: 0 | AO63: 0 | AP63: 0 | AQ63: 0 | AR63: 0 | AS63: 0 | AT63: 0 | AU63: 0 | AV63: 0 | AW63: 0 | AX63: 0 | AY63: 0 | AZ63: 0 | BA63: 0 | BB63: 0 | BC63: 0 | BD63: 0 | BE63: 0 | BF63: 0 | BG63: 0 | BH63: 0 | BI63: 0 | BJ63: 0 | BK63: 0
B64: 47 | C64: Evento | D64: Evento | E64: COBERTURA | F64: R$ | I64: 50880.18 | K64: 8 | N64: 0 | O64: 0 | P64: 50880.18 | Q64: 0 | R64: 0 | S64: 0 | T64: 0 | U64: 0 | V64: 0 | W64: 0 | X64: 0 | Y64: 0 | Z64: 0 | AA64: 0 | AB64: 0 | AC64: 0 | AD64: 0 | AE64: 0 | AF64: 0 | AG64: 0 | AH64: 0 | AI64: 0 | AJ64: 0 | AK64: 0 | AL64: 0 | AM64: 0 | AN64: 0 | AO64: 0 | AP64: 0 | AQ64: 0 | AR64: 0 | AS64: 0 | AT64: 0 | AU64: 0 | AV64: 0 | AW64: 0 | AX64: 0 | AY64: 0 | AZ64: 0 | BA64: 0 | BB64: 0 | BC64: 0 | BD64: 0 | BE64: 0 | BF64: 0 | BG64: 0 | BH64: 0 | BI64: 0 | BJ64: 0 | BK64: 0
B65: 48 | C65: Evento | D65: Evento | E65: PISO DE CONCRETO | F65: R$ | I65: 83084 | K65: 9 | N65: 0 | O65: 0 | P65: 0 | Q65: 83084 | R65: 0 | S65: 0 | T65: 0 | U65: 0 | V65: 0 | W65: 0 | X65: 0 | Y65: 0 | Z65: 0 | AA65: 0 | AB65: 0 | AC65: 0 | AD65: 0 | AE65: 0 | AF65: 0 | AG65: 0 | AH65: 0 | AI65: 0 | AJ65: 0 | AK65: 0 | AL65: 0 | AM65: 0 | AN65: 0 | AO65: 0 | AP65: 0 | AQ65: 0 | AR65: 0 | AS65: 0 | AT65: 0 | AU65: 0 | AV65: 0 | AW65: 0 | AX65: 0 | AY65: 0 | AZ65: 0 | BA65: 0 | BB65: 0 | BC65: 0 | BD65: 0 | BE65: 0 | BF65: 0 | BG65: 0 | BH65: 0 | BI65: 0 | BJ65: 0 | BK65: 0
B66: 49 | C66: Evento | D66: Evento | E66: =INDEX(Eventos,K66,2) -> PINTURAS | F66: R$ | G66: =IF(Nível="Serviço",SUMIF($N$15:$BK$15,"<>"&"",N66:BK66),"") ->  | H66: =IF(AND(ISNUMBER(G66),G66<>0),I66/G66,IF(G66=0,0,"")) ->  | I66: =SUM(N66:BK66) -> 26151.25 | K66: 10 | N66: 0 | O66: 0 | P66: 0 | Q66: 26151.25 | R66: 0 | S66: 0 | T66: 0 | U66: 0 | V66: 0 | W66: 0 | X66: 0 | Y66: 0 | Z66: 0 | AA66: 0 | AB66: 0 | AC66: 0 | AD66: 0 | AE66: 0 | AF66: 0 | AG66: 0 | AH66: 0 | AI66: 0 | AJ66: 0 | AK66: 0 | AL66: 0 | AM66: 0 | AN66: 0 | AO66: 0 | AP66: 0 | AQ66: 0 | AR66: 0 | AS66: 0 | AT66: 0 | AU66: 0 | AV66: 0 | AW66: 0 | AX66: 0 | AY66: 0 | AZ66: 0 | BA66: 0 | BB66: 0 | BC66: 0 | BD66: 0 | BE66: 0 | BF66: 0 | BG66: 0 | BH66: 0 | BI66: 0 | BJ66: 0 | BK66: 0
B67: 50 | C67: Evento | D67: Evento | E67: =INDEX(Eventos,K67,2) -> TUBOS | F67: R$ | G67: =IF(Nível="Serviço",SUMIF($N$15:$BK$15,"<>"&"",N67:BK67),"") ->  | H67: =IF(AND(ISNUMBER(G67),G67<>0),I67/G67,IF(G67=0,0,"")) ->  | I67: =SUM(N67:BK67) -> 9538.29 | K67: 11 | N67: 0 | O67: 0 | P67: 9538.29 | Q67: 0 | R67: 0 | S67: 0 | T67: 0 | U67: 0 | V67: 0 | W67: 0 | X67: 0 | Y67: 0 | Z67: 0 | AA67: 0 | AB67: 0 | AC67: 0 | AD67: 0 | AE67: 0 | AF67: 0 | AG67: 0 | AH67: 0 | AI67: 0 | AJ67: 0 | AK67: 0 | AL67: 0 | AM67: 0 | AN67: 0 | AO67: 0 | AP67: 0 | AQ67: 0 | AR67: 0 | AS67: 0 | AT67: 0 | AU67: 0 | AV67: 0 | AW67: 0 | AX67: 0 | AY67: 0 | AZ67: 0 | BA67: 0 | BB67: 0 | BC67: 0 | BD67: 0 | BE67: 0 | BF67: 0 | BG67: 0 | BH67: 0 | BI67: 0 | BJ67: 0 | BK67: 0
B68: 51 | C68: Evento | D68: Evento | E68: CALÇADAS | F68: R$ | I68: 3437.51 | K68: 12 | N68: 3437.51 | O68: 0 | P68: 0 | Q68: 0 | R68: 0 | S68: 0 | T68: 0 | U68: 0 | V68: 0 | W68: 0 | X68: 0 | Y68: 0 | Z68: 0 | AA68: 0 | AB68: 0 | AC68: 0 | AD68: 0 | AE68: 0 | AF68: 0 | AG68: 0 | AH68: 0 | AI68: 0 | AJ68: 0 | AK68: 0 | AL68: 0 | AM68: 0 | AN68: 0 | AO68: 0 | AP68: 0 | AQ68: 0 | AR68: 0 | AS68: 0 | AT68: 0 | AU68: 0 | AV68: 0 | AW68: 0 | AX68: 0 | AY68: 0 | AZ68: 0 | BA68: 0 | BB68: 0 | BC68: 0 | BD68: 0 | BE68: 0 | BF68: 0 | BG68: 0 | BH68: 0 | BI68: 0 | BJ68: 0 | BK68: 0
B69: 52 | C69: Evento | D69: Evento | E69: SERVIÇOS FINAIS | F69: R$ | I69: 5747.06 | K69: 13 | N69: 1311.25 | O69: 0 | P69: 0 | Q69: 4435.81 | R69: 0 | S69: 0 | T69: 0 | U69: 0 | V69: 0 | W69: 0 | X69: 0 | Y69: 0 | Z69: 0 | AA69: 0 | AB69: 0 | AC69: 0 | AD69: 0 | AE69: 0 | AF69: 0 | AG69: 0 | AH69: 0 | AI69: 0 | AJ69: 0 | AK69: 0 | AL69: 0 | AM69: 0 | AN69: 0 | AO69: 0 | AP69: 0 | AQ69: 0 | AR69: 0 | AS69: 0 | AT69: 0 | AU69: 0 | AV69: 0 | AW69: 0 | AX69: 0 | AY69: 0 | AZ69: 0 | BA69: 0 | BB69: 0 | BC69: 0 | BD69: 0 | BE69: 0 | BF69: 0 | BG69: 0 | BH69: 0 | BI69: 0 | BJ69: 0 | BK69: 0
C71: =Import.Município&", "&TEXT(hoje,"dd")&" de "&TEXT(hoje,"mmmm")&" de "&TEXT(hoje,"aaaa") -> CATANDUVAS/SC, 22 de fevereiro de 2019
C72: Local e Data | O72: Responsável Técnico: | P72: =respPLE -> MAX MOOSHAMMER | U72: Responsável Técnico: | V72: =respPLE -> MAX MOOSHAMMER | AA72: Responsável Técnico: | AB72: =respPLE -> MAX MOOSHAMMER | AG72: Responsável Técnico: | AH72: =respPLE -> MAX MOOSHAMMER | AM72: Responsável Técnico: | AN72: =respPLE -> MAX MOOSHAMMER | AS72: Responsável Técnico: | AT72: =respPLE -> MAX MOOSHAMMER | AY72: Responsável Técnico: | AZ72: =respPLE -> MAX MOOSHAMMER | BE72: Responsável Técnico: | BF72: =respPLE -> MAX MOOSHAMMER
O73: CREA / CAU: | P73: =creaPLE -> 139.164-0 | U73: CREA / CAU: | V73: =creaPLE -> 139.164-0 | AA73: CREA / CAU: | AB73: =creaPLE -> 139.164-0 | AG73: CREA / CAU: | AH73: =creaPLE -> 139.164-0 | AM73: CREA / CAU: | AN73: =creaPLE -> 139.164-0 | AS73: CREA / CAU: | AT73: =creaPLE -> 139.164-0 | AY73: CREA / CAU: | AZ73: =creaPLE -> 139.164-0 | BE73: CREA / CAU: | BF73: =creaPLE -> 139.164-0

Sheet Detalhamento
A1: =mais_um ->  | B1: =OFFSET(LIorçamento,$A1-1,B$16,1,1) ->  | E1: =OFFSET(LIorçamento,$A1-1,E$16,1,1) ->  | F1: =CHOOSE($B$8,IF(OR(Nível="Serviço",Nível="Evento"),E1*10^4+IF(Nível<>"Evento",A1,0),0),IF(Nível<>"Evento",A1,0)) ->  | G1: =OFFSET(LIorçamento,$A1-1,G$16,1,1) ->  | H1: =OFFSET(LIorçamento,$A1-1,H$16,1,1) ->  | I1: =IF(OR(Nível="Serviço",Nível="evento"),OFFSET(LIorçamento,$A1-1,I$16,1,1),"") ->  | J1: =IF(OR(Nível="Serviço",Nível="evento"),SUM(L1:BI1),"") ->  | L1: =IF(L$13="",0,CHOOSE(Detalhamento.OpçãoServiços,OFFSET(Import.PLQ,$A1-1,L$15-1,1,1),IF(ISNUMBER(INDEX(Import.PLE,Detalhamento!$E1,Detalhamento!L$15)),IF(INDEX(Import.PLE,Detalhamento!$E1,Detalhamento!L$15)<=mediçao,OFFSET(Import.PLQ,$A1-1,L$15-1,1,1),0),0),IF(ISNUMBER(INDEX(Import.PLE,Detalhamento!$E1,Detalhamento!L$15)),IF(INDEX(Import.PLE,Detalhamento!$E1,Detalhamento!L$15)<=mediçao,0,OFFSET(Import.PLQ,$A1-1,L$15-1,1,1)),OFFSET(Import.PLQ,$A1-1,L$15-1,1,1)))) ->  | M1: =IF(M$13="",0,CHOOSE(Detalhamento.OpçãoServiços,OFFSET(Import.PLQ,$A1-1,M$15-1,1,1),IF(ISNUMBER(INDEX(Import.PLE,Detalhamento!$E1,Detalhamento!M$15)),IF(INDEX(Import.PLE,Detalhamento!$E1,Detalhamento!M$15)<=mediçao,OFFSET(Import.PLQ,$A1-1,M$15-1,1,1),0),0),IF(ISNUMBER(INDEX(Import.PLE,Detalhamento!$E1,Detalhamento!M$15)),IF(INDEX(Import.PLE,Detalhamento!$E1,Detalhamento!M$15)<=mediçao,0,OFFSET(Import.PLQ,$A1-1,M$15-1,1,1)),OFFSET(Import.PLQ,$A1-1,M$15-1,1,1)))) ->  | N1: =IF(N$13="",0,CHOOSE(Detalhamento.OpçãoServiços,OFFSET(Import.PLQ,$A1-1,N$15-1,1,1),IF(ISNUMBER(INDEX(Import.PLE,Detalhamento!$E1,Detalhamento!N$15)),IF(INDEX(Import.PLE,Detalhamento!$E1,Detalhamento!N$15)<=mediçao,OFFSET(Import.PLQ,$A1-1,N$15-1,1,1),0),0),IF(ISNUMBER(INDEX(Import.PLE,Detalhamento!$E1,Detalhamento!N$15)),IF(INDEX(Import.PLE,Detalhamento!$E1,Detalhamento!N$15)<=mediçao,0,OFFSET(Import.PLQ,$A1-1,N$15-1,1,1)),OFFSET(Import.PLQ,$A1-1,N$15-1,1,1)))) ->  | O1: =IF(O$13="",0,CHOOSE(Detalhamento.OpçãoServiços,OFFSET(Import.PLQ,$A1-1,O$15-1,1,1),IF(ISNUMBER(INDEX(Import.PLE,Detalhamento!$E1,Detalhamento!O$15)),IF(INDEX(Import.PLE,Detalhamento!$E1,Detalhamento!O$15)<=mediçao,OFFSET(Import.PLQ,$A1-1,O$15-1,1,1),0),0),IF(ISNUMBER(INDEX(Import.PLE,Detalhamento!$E1,Detalhamento!O$15)),IF(INDEX(Import.PLE,Detalhamento!$E1,Detalhamento!O$15)<=mediçao,0,OFFSET(Import.PLQ,$A1-1,O$15-1,1,1)),OFFSET(Import.PLQ,$A1-1,O$15-1,1,1)))) ->  | P1: =IF(P$13="",0,CHOOSE(Detalhamento.OpçãoServiços,OFFSET(Import.PLQ,$A1-1,P$15-1,1,1),IF(ISNUMBER(INDEX(Import.PLE,Detalhamento!$E1,Detalhamento!P$15)),IF(INDEX(Import.PLE,Detalhamento!$E1,Detalhamento!P$15)<=mediçao,OFFSET(Import.PLQ,$A1-1,P$15-1,1,1),0),0),IF(ISNUMBER(INDEX(Import.PLE,Detalhamento!$E1,Detalhamento!P$15)),IF(INDEX(Import.PLE,Detalhamento!$E1,Detalhamento!P$15)<=mediçao,0,OFFSET(Import.PLQ,$A1-1,P$15-1,1,1)),OFFSET(Import.PLQ,$A1-1,P$15-1,1,1)))) -> 0 | Q1: =IF(Q$13="",0,CHOOSE(Detalhamento.OpçãoServiços,OFFSET(Import.PLQ,$A1-1,Q$15-1,1,1),IF(ISNUMBER(INDEX(Import.PLE,Detalhamento!$E1,Detalhamento!Q$15)),IF(INDEX(Import.PLE,Detalhamento!$E1,Detalhamento!Q$15)<=mediçao,OFFSET(Import.PLQ,$A1-1,Q$15-1,1,1),0),0),IF(ISNUMBER(INDEX(Import.PLE,Detalhamento!$E1,Detalhamento!Q$15)),IF(INDEX(Import.PLE,Detalhamento!$E1,Detalhamento!Q$15)<=mediçao,0,OFFSET(Import.PLQ,$A1-1,Q$15-1,1,1)),OFFSET(Import.PLQ,$A1-1,Q$15-1,1,1)))) -> 0 | R1: =IF(R$13="",0,CHOOSE(Detalhamento.OpçãoServiços,OFFSET(Import.PLQ,$A1-1,R$15-1,1,1),IF(ISNUMBER(INDEX(Import.PLE,Detalhamento!$E1,Detalhamento!R$15)),IF(INDEX(Import.PLE,Detalhamento!$E1,Detalhamento!R$15)<=mediçao,OFFSET(Import.PLQ,$A1-1,R$15-1,1,1),0),0),IF(ISNUMBER(INDEX(Import.PLE,Detalhamento!$E1,Detalhamento!R$15)),IF(INDEX(Import.PLE,Detalhamento!$E1,Detalhamento!R$15)<=mediçao,0,OFFSET(Import.PLQ,$A1-1,R$15-1,1,1)),OFFSET(Import.PLQ,$A1-1,R$15-1,1,1)))) -> 0 | S1: =IF(S$13="",0,CHOOSE(Detalhamento.OpçãoServiços,OFFSET(Import.PLQ,$A1-1,S$15-1,1,1),IF(ISNUMBER(INDEX(Import.PLE,Detalhamento!$E1,Detalhamento!S$15)),IF(INDEX(Import.PLE,Detalhamento!$E1,Detalhamento!S$15)<=mediçao,OFFSET(Import.PLQ,$A1-1,S$15-1,1,1),0),0),IF(ISNUMBER(INDEX(Import.PLE,Detalhamento!$E1,Detalhamento!S$15)),IF(INDEX(Import.PLE,Detalhamento!$E1,Detalhamento!S$15)<=mediçao,0,OFFSET(Import.PLQ,$A1-1,S$15-1,1,1)),OFFSET(Import.PLQ,$A1-1,S$15-1,1,1)))) -> 0 | T1: =IF(T$13="",0,CHOOSE(Detalhamento.OpçãoServiços,OFFSET(Import.PLQ,$A1-1,T$15-1,1,1),IF(ISNUMBER(INDEX(Import.PLE,Detalhamento!$E1,Detalhamento!T$15)),IF(INDEX(Import.PLE,Detalhamento!$E1,Detalhamento!T$15)<=mediçao,OFFSET(Import.PLQ,$A1-1,T$15-1,1,1),0),0),IF(ISNUMBER(INDEX(Import.PLE,Detalhamento!$E1,Detalhamento!T$15)),IF(INDEX(Import.PLE,Detalhamento!$E1,Detalhamento!T$15)<=mediçao,0,OFFSET(Import.PLQ,$A1-1,T$15-1,1,1)),OFFSET(Import.PLQ,$A1-1,T$15-1,1,1)))) -> 0 | U1: =IF(U$13="",0,CHOOSE(Detalhamento.OpçãoServiços,OFFSET(Import.PLQ,$A1-1,U$15-1,1,1),IF(ISNUMBER(INDEX(Import.PLE,Detalhamento!$E1,Detalhamento!U$15)),IF(INDEX(Import.PLE,Detalhamento!$E1,Detalhamento!U$15)<=mediçao,OFFSET(Import.PLQ,$A1-1,U$15-1,1,1),0),0),IF(ISNUMBER(INDEX(Import.PLE,Detalhamento!$E1,Detalhamento!U$15)),IF(INDEX(Import.PLE,Detalhamento!$E1,Detalhamento!U$15)<=mediçao,0,OFFSET(Import.PLQ,$A1-1,U$15-1,1,1)),OFFSET(Import.PLQ,$A1-1,U$15-1,1,1)))) -> 0 | V1: =IF(V$13="",0,CHOOSE(Detalhamento.OpçãoServiços,OFFSET(Import.PLQ,$A1-1,V$15-1,1,1),IF(ISNUMBER(INDEX(Import.PLE,Detalhamento!$E1,Detalhamento!V$15)),IF(INDEX(Import.PLE,Detalhamento!$E1,Detalhamento!V$15)<=mediçao,OFFSET(Import.PLQ,$A1-1,V$15-1,1,1),0),0),IF(ISNUMBER(INDEX(Import.PLE,Detalhamento!$E1,Detalhamento!V$15)),IF(INDEX(Import.PLE,Detalhamento!$E1,Detalhamento!V$15)<=mediçao,0,OFFSET(Import.PLQ,$A1-1,V$15-1,1,1)),OFFSET(Import.PLQ,$A1-1,V$15-1,1,1)))) -> 0 | W1: =IF(W$13="",0,CHOOSE(Detalhamento.OpçãoServiços,OFFSET(Import.PLQ,$A1-1,W$15-1,1,1),IF(ISNUMBER(INDEX(Import.PLE,Detalhamento!$E1,Detalhamento!W$15)),IF(INDEX(Import.PLE,Detalhamento!$E1,Detalhamento!W$15)<=mediçao,OFFSET(Import.PLQ,$A1-1,W$15-1,1,1),0),0),IF(ISNUMBER(INDEX(Import.PLE,Detalhamento!$E1,Detalhamento!W$15)),IF(INDEX(Import.PLE,Detalhamento!$E1,Detalhamento!W$15)<=mediçao,0,OFFSET(Import.PLQ,$A1-1,W$15-1,1,1)),OFFSET(Import.PLQ,$A1-1,W$15-1,1,1)))) -> 0 | X1: =IF(X$13="",0,CHOOSE(Detalhamento.OpçãoServiços,OFFSET(Import.PLQ,$A1-1,X$15-1,1,1),IF(ISNUMBER(INDEX(Import.PLE,Detalhamento!$E1,Detalhamento!X$15)),IF(INDEX(Import.PLE,Detalhamento!$E1,Detalhamento!X$15)<=mediçao,OFFSET(Import.PLQ,$A1-1,X$15-1,1,1),0),0),IF(ISNUMBER(INDEX(Import.PLE,Detalhamento!$E1,Detalhamento!X$15)),IF(INDEX(Import.PLE,Detalhamento!$E1,Detalhamento!X$15)<=mediçao,0,OFFSET(Import.PLQ,$A1-1,X$15-1,1,1)),OFFSET(Import.PLQ,$A1-1,X$15-1,1,1)))) -> 0 | Y1: =IF(Y$13="",0,CHOOSE(Detalhamento.OpçãoServiços,OFFSET(Import.PLQ,$A1-1,Y$15-1,1,1),IF(ISNUMBER(INDEX(Import.PLE,Detalhamento!$E1,Detalhamento!Y$15)),IF(INDEX(Import.PLE,Detalhamento!$E1,Detalhamento!Y$15)<=mediçao,OFFSET(Import.PLQ,$A1-1,Y$15-1,1,1),0),0),IF(ISNUMBER(INDEX(Import.PLE,Detalhamento!$E1,Detalhamento!Y$15)),IF(INDEX(Import.PLE,Detalhamento!$E1,Detalhamento!Y$15)<=mediçao,0,OFFSET(Import.PLQ,$A1-1,Y$15-1,1,1)),OFFSET(Import.PLQ,$A1-1,Y$15-1,1,1)))) -> 0 | Z1: =IF(Z$13="",0,CHOOSE(Detalhamento.OpçãoServiços,OFFSET(Import.PLQ,$A1-1,Z$15-1,1,1),IF(ISNUMBER(INDEX(Import.PLE,Detalhamento!$E1,Detalhamento!Z$15)),IF(INDEX(Import.PLE,Detalhamento!$E1,Detalhamento!Z$15)<=mediçao,OFFSET(Import.PLQ,$A1-1,Z$15-1,1,1),0),0),IF(ISNUMBER(INDEX(Import.PLE,Detalhamento!$E1,Detalhamento!Z$15)),IF(INDEX(Import.PLE,Detalhamento!$E1,Detalhamento!Z$15)<=mediçao,0,OFFSET(Import.PLQ,$A1-1,Z$15-1,1,1)),OFFSET(Import.PLQ,$A1-1,Z$15-1,1,1)))) -> 0 | AA1: =IF(AA$13="",0,CHOOSE(Detalhamento.OpçãoServiços,OFFSET(Import.PLQ,$A1-1,AA$15-1,1,1),IF(ISNUMBER(INDEX(Import.PLE,Detalhamento!$E1,Detalhamento!AA$15)),IF(INDEX(Import.PLE,Detalhamento!$E1,Detalhamento!AA$15)<=mediçao,OFFSET(Import.PLQ,$A1-1,AA$15-1,1,1),0),0),IF(ISNUMBER(INDEX(Import.PLE,Detalhamento!$E1,Detalhamento!AA$15)),IF(INDEX(Import.PLE,Detalhamento!$E1,Detalhamento!AA$15)<=mediçao,0,OFFSET(Import.PLQ,$A1-1,AA$15-1,1,1)),OFFSET(Import.PLQ,$A1-1,AA$15-1,1,1)))) -> 0 | AB1: =IF(AB$13="",0,CHOOSE(Detalhamento.OpçãoServiços,OFFSET(Import.PLQ,$A1-1,AB$15-1,1,1),IF(ISNUMBER(INDEX(Import.PLE,Detalhamento!$E1,Detalhamento!AB$15)),IF(INDEX(Import.PLE,Detalhamento!$E1,Detalhamento!AB$15)<=mediçao,OFFSET(Import.PLQ,$A1-1,AB$15-1,1,1),0),0),IF(ISNUMBER(INDEX(Import.PLE,Detalhamento!$E1,Detalhamento!AB$15)),IF(INDEX(Import.PLE,Detalhamento!$E1,Detalhamento!AB$15)<=mediçao,0,OFFSET(Import.PLQ,$A1-1,AB$15-1,1,1)),OFFSET(Import.PLQ,$A1-1,AB$15-1,1,1)))) -> 0 | AC1: =IF(AC$13="",0,CHOOSE(Detalhamento.OpçãoServiços,OFFSET(Import.PLQ,$A1-1,AC$15-1,1,1),IF(ISNUMBER(INDEX(Import.PLE,Detalhamento!$E1,Detalhamento!AC$15)),IF(INDEX(Import.PLE,Detalhamento!$E1,Detalhamento!AC$15)<=mediçao,OFFSET(Import.PLQ,$A1-1,AC$15-1,1,1),0),0),IF(ISNUMBER(INDEX(Import.PLE,Detalhamento!$E1,Detalhamento!AC$15)),IF(INDEX(Import.PLE,Detalhamento!$E1,Detalhamento!AC$15)<=mediçao,0,OFFSET(Import.PLQ,$A1-1,AC$15-1,1,1)),OFFSET(Import.PLQ,$A1-1,AC$15-1,1,1)))) -> 0 | AD1: =IF(AD$13="",0,CHOOSE(Detalhamento.OpçãoServiços,OFFSET(Import.PLQ,$A1-1,AD$15-1,1,1),IF(ISNUMBER(INDEX(Import.PLE,Detalhamento!$E1,Detalhamento!AD$15)),IF(INDEX(Import.PLE,Detalhamento!$E1,Detalhamento!AD$15)<=mediçao,OFFSET(Import.PLQ,$A1-1,AD$15-1,1,1),0),0),IF(ISNUMBER(INDEX(Import.PLE,Detalhamento!$E1,Detalhamento!AD$15)),IF(INDEX(Import.PLE,Detalhamento!$E1,Detalhamento!AD$15)<=mediçao,0,OFFSET(Import.PLQ,$A1-1,AD$15-1,1,1)),OFFSET(Import.PLQ,$A1-1,AD$15-1,1,1)))) -> 0 | AE1: =IF(AE$13="",0,CHOOSE(Detalhamento.OpçãoServiços,OFFSET(Import.PLQ,$A1-1,AE$15-1,1,1),IF(ISNUMBER(INDEX(Import.PLE,Detalhamento!$E1,Detalhamento!AE$15)),IF(INDEX(Import.PLE,Detalhamento!$E1,Detalhamento!AE$15)<=mediçao,OFFSET(Import.PLQ,$A1-1,AE$15-1,1,1),0),0),IF(ISNUMBER(INDEX(Import.PLE,Detalhamento!$E1,Detalhamento!AE$15)),IF(INDEX(Import.PLE,Detalhamento!$E1,Detalhamento!AE$15)<=mediçao,0,OFFSET(Import.PLQ,$A1-1,AE$15-1,1,1)),OFFSET(Import.PLQ,$A1-1,AE$15-1,1,1)))) -> 0 | AF1: =IF(AF$13="",0,CHOOSE(Detalhamento.OpçãoServiços,OFFSET(Import.PLQ,$A1-1,AF$15-1,1,1),IF(ISNUMBER(INDEX(Import.PLE,Detalhamento!$E1,Detalhamento!AF$15)),IF(INDEX(Import.PLE,Detalhamento!$E1,Detalhamento!AF$15)<=mediçao,OFFSET(Import.PLQ,$A1-1,AF$15-1,1,1),0),0),IF(ISNUMBER(INDEX(Import.PLE,Detalhamento!$E1,Detalhamento!AF$15)),IF(INDEX(Import.PLE,Detalhamento!$E1,Detalhamento!AF$15)<=mediçao,0,OFFSET(Import.PLQ,$A1-1,AF$15-1,1,1)),OFFSET(Import.PLQ,$A1-1,AF$15-1,1,1)))) -> 0 | AG1: =IF(AG$13="",0,CHOOSE(Detalhamento.OpçãoServiços,OFFSET(Import.PLQ,$A1-1,AG$15-1,1,1),IF(ISNUMBER(INDEX(Import.PLE,Detalhamento!$E1,Detalhamento!AG$15)),IF(INDEX(Import.PLE,Detalhamento!$E1,Detalhamento!AG$15)<=mediçao,OFFSET(Import.PLQ,$A1-1,AG$15-1,1,1),0),0),IF(ISNUMBER(INDEX(Import.PLE,Detalhamento!$E1,Detalhamento!AG$15)),IF(INDEX(Import.PLE,Detalhamento!$E1,Detalhamento!AG$15)<=mediçao,0,OFFSET(Import.PLQ,$A1-1,AG$15-1,1,1)),OFFSET(Import.PLQ,$A1-1,AG$15-1,1,1)))) -> 0 | AH1: =IF(AH$13="",0,CHOOSE(Detalhamento.OpçãoServiços,OFFSET(Import.PLQ,$A1-1,AH$15-1,1,1),IF(ISNUMBER(INDEX(Import.PLE,Detalhamento!$E1,Detalhamento!AH$15)),IF(INDEX(Import.PLE,Detalhamento!$E1,Detalhamento!AH$15)<=mediçao,OFFSET(Import.PLQ,$A1-1,AH$15-1,1,1),0),0),IF(ISNUMBER(INDEX(Import.PLE,Detalhamento!$E1,Detalhamento!AH$15)),IF(INDEX(Import.PLE,Detalhamento!$E1,Detalhamento!AH$15)<=mediçao,0,OFFSET(Import.PLQ,$A1-1,AH$15-1,1,1)),OFFSET(Import.PLQ,$A1-1,AH$15-1,1,1)))) -> 0 | AI1: =IF(AI$13="",0,CHOOSE(Detalhamento.OpçãoServiços,OFFSET(Import.PLQ,$A1-1,AI$15-1,1,1),IF(ISNUMBER(INDEX(Import.PLE,Detalhamento!$E1,Detalhamento!AI$15)),IF(INDEX(Import.PLE,Detalhamento!$E1,Detalhamento!AI$15)<=mediçao,OFFSET(Import.PLQ,$A1-1,AI$15-1,1,1),0),0),IF(ISNUMBER(INDEX(Import.PLE,Detalhamento!$E1,Detalhamento!AI$15)),IF(INDEX(Import.PLE,Detalhamento!$E1,Detalhamento!AI$15)<=mediçao,0,OFFSET(Import.PLQ,$A1-1,AI$15-1,1,1)),OFFSET(Import.PLQ,$A1-1,AI$15-1,1,1)))) -> 0 | AJ1: =IF(AJ$13="",0,CHOOSE(Detalhamento.OpçãoServiços,OFFSET(Import.PLQ,$A1-1,AJ$15-1,1,1),IF(ISNUMBER(INDEX(Import.PLE,Detalhamento!$E1,Detalhamento!AJ$15)),IF(INDEX(Import.PLE,Detalhamento!$E1,Detalhamento!AJ$15)<=mediçao,OFFSET(Import.PLQ,$A1-1,AJ$15-1,1,1),0),0),IF(ISNUMBER(INDEX(Import.PLE,Detalhamento!$E1,Detalhamento!AJ$15)),IF(INDEX(Import.PLE,Detalhamento!$E1,Detalhamento!AJ$15)<=mediçao,0,OFFSET(Import.PLQ,$A1-1,AJ$15-1,1,1)),OFFSET(Import.PLQ,$A1-1,AJ$15-1,1,1)))) -> 0 | AK1: =IF(AK$13="",0,CHOOSE(Detalhamento.OpçãoServiços,OFFSET(Import.PLQ,$A1-1,AK$15-1,1,1),IF(ISNUMBER(INDEX(Import.PLE,Detalhamento!$E1,Detalhamento!AK$15)),IF(INDEX(Import.PLE,Detalhamento!$E1,Detalhamento!AK$15)<=mediçao,OFFSET(Import.PLQ,$A1-1,AK$15-1,1,1),0),0),IF(ISNUMBER(INDEX(Import.PLE,Detalhamento!$E1,Detalhamento!AK$15)),IF(INDEX(Import.PLE,Detalhamento!$E1,Detalhamento!AK$15)<=mediçao,0,OFFSET(Import.PLQ,$A1-1,AK$15-1,1,1)),OFFSET(Import.PLQ,$A1-1,AK$15-1,1,1)))) -> 0 | AL1: =IF(AL$13="",0,CHOOSE(Detalhamento.OpçãoServiços,OFFSET(Import.PLQ,$A1-1,AL$15-1,1,1),IF(ISNUMBER(INDEX(Import.PLE,Detalhamento!$E1,Detalhamento!AL$15)),IF(INDEX(Import.PLE,Detalhamento!$E1,Detalhamento!AL$15)<=mediçao,OFFSET(Import.PLQ,$A1-1,AL$15-1,1,1),0),0),IF(ISNUMBER(INDEX(Import.PLE,Detalhamento!$E1,Detalhamento!AL$15)),IF(INDEX(Import.PLE,Detalhamento!$E1,Detalhamento!AL$15)<=mediçao,0,OFFSET(Import.PLQ,$A1-1,AL$15-1,1,1)),OFFSET(Import.PLQ,$A1-1,AL$15-1,1,1)))) -> 0 | AM1: =IF(AM$13="",0,CHOOSE(Detalhamento.OpçãoServiços,OFFSET(Import.PLQ,$A1-1,AM$15-1,1,1),IF(ISNUMBER(INDEX(Import.PLE,Detalhamento!$E1,Detalhamento!AM$15)),IF(INDEX(Import.PLE,Detalhamento!$E1,Detalhamento!AM$15)<=mediçao,OFFSET(Import.PLQ,$A1-1,AM$15-1,1,1),0),0),IF(ISNUMBER(INDEX(Import.PLE,Detalhamento!$E1,Detalhamento!AM$15)),IF(INDEX(Import.PLE,Detalhamento!$E1,Detalhamento!AM$15)<=mediçao,0,OFFSET(Import.PLQ,$A1-1,AM$15-1,1,1)),OFFSET(Import.PLQ,$A1-1,AM$15-1,1,1)))) -> 0 | AN1: =IF(AN$13="",0,CHOOSE(Detalhamento.OpçãoServiços,OFFSET(Import.PLQ,$A1-1,AN$15-1,1,1),IF(ISNUMBER(INDEX(Import.PLE,Detalhamento!$E1,Detalhamento!AN$15)),IF(INDEX(Import.PLE,Detalhamento!$E1,Detalhamento!AN$15)<=mediçao,OFFSET(Import.PLQ,$A1-1,AN$15-1,1,1),0),0),IF(ISNUMBER(INDEX(Import.PLE,Detalhamento!$E1,Detalhamento!AN$15)),IF(INDEX(Import.PLE,Detalhamento!$E1,Detalhamento!AN$15)<=mediçao,0,OFFSET(Import.PLQ,$A1-1,AN$15-1,1,1)),OFFSET(Import.PLQ,$A1-1,AN$15-1,1,1)))) -> 0 | AO1: =IF(AO$13="",0,CHOOSE(Detalhamento.OpçãoServiços,OFFSET(Import.PLQ,$A1-1,AO$15-1,1,1),IF(ISNUMBER(INDEX(Import.PLE,Detalhamento!$E1,Detalhamento!AO$15)),IF(INDEX(Import.PLE,Detalhamento!$E1,Detalhamento!AO$15)<=mediçao,OFFSET(Import.PLQ,$A1-1,AO$15-1,1,1),0),0),IF(ISNUMBER(INDEX(Import.PLE,Detalhamento!$E1,Detalhamento!AO$15)),IF(INDEX(Import.PLE,Detalhamento!$E1,Detalhamento!AO$15)<=mediçao,0,OFFSET(Import.PLQ,$A1-1,AO$15-1,1,1)),OFFSET(Import.PLQ,$A1-1,AO$15-1,1,1)))) -> 0 | AP1: =IF(AP$13="",0,CHOOSE(Detalhamento.OpçãoServiços,OFFSET(Import.PLQ,$A1-1,AP$15-1,1,1),IF(ISNUMBER(INDEX(Import.PLE,Detalhamento!$E1,Detalhamento!AP$15)),IF(INDEX(Import.PLE,Detalhamento!$E1,Detalhamento!AP$15)<=mediçao,OFFSET(Import.PLQ,$A1-1,AP$15-1,1,1),0),0),IF(ISNUMBER(INDEX(Import.PLE,Detalhamento!$E1,Detalhamento!AP$15)),IF(INDEX(Import.PLE,Detalhamento!$E1,Detalhamento!AP$15)<=mediçao,0,OFFSET(Import.PLQ,$A1-1,AP$15-1,1,1)),OFFSET(Import.PLQ,$A1-1,AP$15-1,1,1)))) -> 0 | AQ1: =IF(AQ$13="",0,CHOOSE(Detalhamento.OpçãoServiços,OFFSET(Import.PLQ,$A1-1,AQ$15-1,1,1),IF(ISNUMBER(INDEX(Import.PLE,Detalhamento!$E1,Detalhamento!AQ$15)),IF(INDEX(Import.PLE,Detalhamento!$E1,Detalhamento!AQ$15)<=mediçao,OFFSET(Import.PLQ,$A1-1,AQ$15-1,1,1),0),0),IF(ISNUMBER(INDEX(Import.PLE,Detalhamento!$E1,Detalhamento!AQ$15)),IF(INDEX(Import.PLE,Detalhamento!$E1,Detalhamento!AQ$15)<=mediçao,0,OFFSET(Import.PLQ,$A1-1,AQ$15-1,1,1)),OFFSET(Import.PLQ,$A1-1,AQ$15-1,1,1)))) -> 0 | AR1: =IF(AR$13="",0,CHOOSE(Detalhamento.OpçãoServiços,OFFSET(Import.PLQ,$A1-1,AR$15-1,1,1),IF(ISNUMBER(INDEX(Import.PLE,Detalhamento!$E1,Detalhamento!AR$15)),IF(INDEX(Import.PLE,Detalhamento!$E1,Detalhamento!AR$15)<=mediçao,OFFSET(Import.PLQ,$A1-1,AR$15-1,1,1),0),0),IF(ISNUMBER(INDEX(Import.PLE,Detalhamento!$E1,Detalhamento!AR$15)),IF(INDEX(Import.PLE,Detalhamento!$E1,Detalhamento!AR$15)<=mediçao,0,OFFSET(Import.PLQ,$A1-1,AR$15-1,1,1)),OFFSET(Import.PLQ,$A1-1,AR$15-1,1,1)))) -> 0 | AS1: =IF(AS$13="",0,CHOOSE(Detalhamento.OpçãoServiços,OFFSET(Import.PLQ,$A1-1,AS$15-1,1,1),IF(ISNUMBER(INDEX(Import.PLE,Detalhamento!$E1,Detalhamento!AS$15)),IF(INDEX(Import.PLE,Detalhamento!$E1,Detalhamento!AS$15)<=mediçao,OFFSET(Import.PLQ,$A1-1,AS$15-1,1,1),0),0),IF(ISNUMBER(INDEX(Import.PLE,Detalhamento!$E1,Detalhamento!AS$15)),IF(INDEX(Import.PLE,Detalhamento!$E1,Detalhamento!AS$15)<=mediçao,0,OFFSET(Import.PLQ,$A1-1,AS$15-1,1,1)),OFFSET(Import.PLQ,$A1-1,AS$15-1,1,1)))) -> 0 | AT1: =IF(AT$13="",0,CHOOSE(Detalhamento.OpçãoServiços,OFFSET(Import.PLQ,$A1-1,AT$15-1,1,1),IF(ISNUMBER(INDEX(Import.PLE,Detalhamento!$E1,Detalhamento!AT$15)),IF(INDEX(Import.PLE,Detalhamento!$E1,Detalhamento!AT$15)<=mediçao,OFFSET(Import.PLQ,$A1-1,AT$15-1,1,1),0),0),IF(ISNUMBER(INDEX(Import.PLE,Detalhamento!$E1,Detalhamento!AT$15)),IF(INDEX(Import.PLE,Detalhamento!$E1,Detalhamento!AT$15)<=mediçao,0,OFFSET(Import.PLQ,$A1-1,AT$15-1,1,1)),OFFSET(Import.PLQ,$A1-1,AT$15-1,1,1)))) -> 0 | AU1: =IF(AU$13="",0,CHOOSE(Detalhamento.OpçãoServiços,OFFSET(Import.PLQ,$A1-1,AU$15-1,1,1),IF(ISNUMBER(INDEX(Import.PLE,Detalhamento!$E1,Detalhamento!AU$15)),IF(INDEX(Import.PLE,Detalhamento!$E1,Detalhamento!AU$15)<=mediçao,OFFSET(Import.PLQ,$A1-1,AU$15-1,1,1),0),0),IF(ISNUMBER(INDEX(Import.PLE,Detalhamento!$E1,Detalhamento!AU$15)),IF(INDEX(Import.PLE,Detalhamento!$E1,Detalhamento!AU$15)<=mediçao,0,OFFSET(Import.PLQ,$A1-1,AU$15-1,1,1)),OFFSET(Import.PLQ,$A1-1,AU$15-1,1,1)))) -> 0 | AV1: =IF(AV$13="",0,CHOOSE(Detalhamento.OpçãoServiços,OFFSET(Import.PLQ,$A1-1,AV$15-1,1,1),IF(ISNUMBER(INDEX(Import.PLE,Detalhamento!$E1,Detalhamento!AV$15)),IF(INDEX(Import.PLE,Detalhamento!$E1,Detalhamento!AV$15)<=mediçao,OFFSET(Import.PLQ,$A1-1,AV$15-1,1,1),0),0),IF(ISNUMBER(INDEX(Import.PLE,Detalhamento!$E1,Detalhamento!AV$15)),IF(INDEX(Import.PLE,Detalhamento!$E1,Detalhamento!AV$15)<=mediçao,0,OFFSET(Import.PLQ,$A1-1,AV$15-1,1,1)),OFFSET(Import.PLQ,$A1-1,AV$15-1,1,1)))) -> 0 | AW1: =IF(AW$13="",0,CHOOSE(Detalhamento.OpçãoServiços,OFFSET(Import.PLQ,$A1-1,AW$15-1,1,1),IF(ISNUMBER(INDEX(Import.PLE,Detalhamento!$E1,Detalhamento!AW$15)),IF(INDEX(Import.PLE,Detalhamento!$E1,Detalhamento!AW$15)<=mediçao,OFFSET(Import.PLQ,$A1-1,AW$15-1,1,1),0),0),IF(ISNUMBER(INDEX(Import.PLE,Detalhamento!$E1,Detalhamento!AW$15)),IF(INDEX(Import.PLE,Detalhamento!$E1,Detalhamento!AW$15)<=mediçao,0,OFFSET(Import.PLQ,$A1-1,AW$15-1,1,1)),OFFSET(Import.PLQ,$A1-1,AW$15-1,1,1)))) -> 0 | AX1: =IF(AX$13="",0,CHOOSE(Detalhamento.OpçãoServiços,OFFSET(Import.PLQ,$A1-1,AX$15-1,1,1),IF(ISNUMBER(INDEX(Import.PLE,Detalhamento!$E1,Detalhamento!AX$15)),IF(INDEX(Import.PLE,Detalhamento!$E1,Detalhamento!AX$15)<=mediçao,OFFSET(Import.PLQ,$A1-1,AX$15-1,1,1),0),0),IF(ISNUMBER(INDEX(Import.PLE,Detalhamento!$E1,Detalhamento!AX$15)),IF(INDEX(Import.PLE,Detalhamento!$E1,Detalhamento!AX$15)<=mediçao,0,OFFSET(Import.PLQ,$A1-1,AX$15-1,1,1)),OFFSET(Import.PLQ,$A1-1,AX$15-1,1,1)))) -> 0 | AY1: =IF(AY$13="",0,CHOOSE(Detalhamento.OpçãoServiços,OFFSET(Import.PLQ,$A1-1,AY$15-1,1,1),IF(ISNUMBER(INDEX(Import.PLE,Detalhamento!$E1,Detalhamento!AY$15)),IF(INDEX(Import.PLE,Detalhamento!$E1,Detalhamento!AY$15)<=mediçao,OFFSET(Import.PLQ,$A1-1,AY$15-1,1,1),0),0),IF(ISNUMBER(INDEX(Import.PLE,Detalhamento!$E1,Detalhamento!AY$15)),IF(INDEX(Import.PLE,Detalhamento!$E1,Detalhamento!AY$15)<=mediçao,0,OFFSET(Import.PLQ,$A1-1,AY$15-1,1,1)),OFFSET(Import.PLQ,$A1-1,AY$15-1,1,1)))) -> 0 | AZ1: =IF(AZ$13="",0,CHOOSE(Detalhamento.OpçãoServiços,OFFSET(Import.PLQ,$A1-1,AZ$15-1,1,1),IF(ISNUMBER(INDEX(Import.PLE,Detalhamento!$E1,Detalhamento!AZ$15)),IF(INDEX(Import.PLE,Detalhamento!$E1,Detalhamento!AZ$15)<=mediçao,OFFSET(Import.PLQ,$A1-1,AZ$15-1,1,1),0),0),IF(ISNUMBER(INDEX(Import.PLE,Detalhamento!$E1,Detalhamento!AZ$15)),IF(INDEX(Import.PLE,Detalhamento!$E1,Detalhamento!AZ$15)<=mediçao,0,OFFSET(Import.PLQ,$A1-1,AZ$15-1,1,1)),OFFSET(Import.PLQ,$A1-1,AZ$15-1,1,1)))) -> 0 | BA1: =IF(BA$13="",0,CHOOSE(Detalhamento.OpçãoServiços,OFFSET(Import.PLQ,$A1-1,BA$15-1,1,1),IF(ISNUMBER(INDEX(Import.PLE,Detalhamento!$E1,Detalhamento!BA$15)),IF(INDEX(Import.PLE,Detalhamento!$E1,Detalhamento!BA$15)<=mediçao,OFFSET(Import.PLQ,$A1-1,BA$15-1,1,1),0),0),IF(ISNUMBER(INDEX(Import.PLE,Detalhamento!$E1,Detalhamento!BA$15)),IF(INDEX(Import.PLE,Detalhamento!$E1,Detalhamento!BA$15)<=mediçao,0,OFFSET(Import.PLQ,$A1-1,BA$15-1,1,1)),OFFSET(Import.PLQ,$A1-1,BA$15-1,1,1)))) -> 0 | BB1: =IF(BB$13="",0,CHOOSE(Detalhamento.OpçãoServiços,OFFSET(Import.PLQ,$A1-1,BB$15-1,1,1),IF(ISNUMBER(INDEX(Import.PLE,Detalhamento!$E1,Detalhamento!BB$15)),IF(INDEX(Import.PLE,Detalhamento!$E1,Detalhamento!BB$15)<=mediçao,OFFSET(Import.PLQ,$A1-1,BB$15-1,1,1),0),0),IF(ISNUMBER(INDEX(Import.PLE,Detalhamento!$E1,Detalhamento!BB$15)),IF(INDEX(Import.PLE,Detalhamento!$E1,Detalhamento!BB$15)<=mediçao,0,OFFSET(Import.PLQ,$A1-1,BB$15-1,1,1)),OFFSET(Import.PLQ,$A1-1,BB$15-1,1,1)))) -> 0 | BC1: =IF(BC$13="",0,CHOOSE(Detalhamento.OpçãoServiços,OFFSET(Import.PLQ,$A1-1,BC$15-1,1,1),IF(ISNUMBER(INDEX(Import.PLE,Detalhamento!$E1,Detalhamento!BC$15)),IF(INDEX(Import.PLE,Detalhamento!$E1,Detalhamento!BC$15)<=mediçao,OFFSET(Import.PLQ,$A1-1,BC$15-1,1,1),0),0),IF(ISNUMBER(INDEX(Import.PLE,Detalhamento!$E1,Detalhamento!BC$15)),IF(INDEX(Import.PLE,Detalhamento!$E1,Detalhamento!BC$15)<=mediçao,0,OFFSET(Import.PLQ,$A1-1,BC$15-1,1,1)),OFFSET(Import.PLQ,$A1-1,BC$15-1,1,1)))) -> 0 | BD1: =IF(BD$13="",0,CHOOSE(Detalhamento.OpçãoServiços,OFFSET(Import.PLQ,$A1-1,BD$15-1,1,1),IF(ISNUMBER(INDEX(Import.PLE,Detalhamento!$E1,Detalhamento!BD$15)),IF(INDEX(Import.PLE,Detalhamento!$E1,Detalhamento!BD$15)<=mediçao,OFFSET(Import.PLQ,$A1-1,BD$15-1,1,1),0),0),IF(ISNUMBER(INDEX(Import.PLE,Detalhamento!$E1,Detalhamento!BD$15)),IF(INDEX(Import.PLE,Detalhamento!$E1,Detalhamento!BD$15)<=mediçao,0,OFFSET(Import.PLQ,$A1-1,BD$15-1,1,1)),OFFSET(Import.PLQ,$A1-1,BD$15-1,1,1)))) -> 0 | BE1: =IF(BE$13="",0,CHOOSE(Detalhamento.OpçãoServiços,OFFSET(Import.PLQ,$A1-1,BE$15-1,1,1),IF(ISNUMBER(INDEX(Import.PLE,Detalhamento!$E1,Detalhamento!BE$15)),IF(INDEX(Import.PLE,Detalhamento!$E1,Detalhamento!BE$15)<=mediçao,OFFSET(Import.PLQ,$A1-1,BE$15-1,1,1),0),0),IF(ISNUMBER(INDEX(Import.PLE,Detalhamento!$E1,Detalhamento!BE$15)),IF(INDEX(Import.PLE,Detalhamento!$E1,Detalhamento!BE$15)<=mediçao,0,OFFSET(Import.PLQ,$A1-1,BE$15-1,1,1)),OFFSET(Import.PLQ,$A1-1,BE$15-1,1,1)))) -> 0 | BF1: =IF(BF$13="",0,CHOOSE(Detalhamento.OpçãoServiços,OFFSET(Import.PLQ,$A1-1,BF$15-1,1,1),IF(ISNUMBER(INDEX(Import.PLE,Detalhamento!$E1,Detalhamento!BF$15)),IF(INDEX(Import.PLE,Detalhamento!$E1,Detalhamento!BF$15)<=mediçao,OFFSET(Import.PLQ,$A1-1,BF$15-1,1,1),0),0),IF(ISNUMBER(INDEX(Import.PLE,Detalhamento!$E1,Detalhamento!BF$15)),IF(INDEX(Import.PLE,Detalhamento!$E1,Detalhamento!BF$15)<=mediçao,0,OFFSET(Import.PLQ,$A1-1,BF$15-1,1,1)),OFFSET(Import.PLQ,$A1-1,BF$15-1,1,1)))) -> 0 | BG1: =IF(BG$13="",0,CHOOSE(Detalhamento.OpçãoServiços,OFFSET(Import.PLQ,$A1-1,BG$15-1,1,1),IF(ISNUMBER(INDEX(Import.PLE,Detalhamento!$E1,Detalhamento!BG$15)),IF(INDEX(Import.PLE,Detalhamento!$E1,Detalhamento!BG$15)<=mediçao,OFFSET(Import.PLQ,$A1-1,BG$15-1,1,1),0),0),IF(ISNUMBER(INDEX(Import.PLE,Detalhamento!$E1,Detalhamento!BG$15)),IF(INDEX(Import.PLE,Detalhamento!$E1,Detalhamento!BG$15)<=mediçao,0,OFFSET(Import.PLQ,$A1-1,BG$15-1,1,1)),OFFSET(Import.PLQ,$A1-1,BG$15-1,1,1)))) -> 0 | BH1: =IF(BH$13="",0,CHOOSE(Detalhamento.OpçãoServiços,OFFSET(Import.PLQ,$A1-1,BH$15-1,1,1),IF(ISNUMBER(INDEX(Import.PLE,Detalhamento!$E1,Detalhamento!BH$15)),IF(INDEX(Import.PLE,Detalhamento!$E1,Detalhamento!BH$15)<=mediçao,OFFSET(Import.PLQ,$A1-1,BH$15-1,1,1),0),0),IF(ISNUMBER(INDEX(Import.PLE,Detalhamento!$E1,Detalhamento!BH$15)),IF(INDEX(Import.PLE,Detalhamento!$E1,Detalhamento!BH$15)<=mediçao,0,OFFSET(Import.PLQ,$A1-1,BH$15-1,1,1)),OFFSET(Import.PLQ,$A1-1,BH$15-1,1,1)))) -> 0 | BI1: =IF(BI$13="",0,CHOOSE(Detalhamento.OpçãoServiços,OFFSET(Import.PLQ,$A1-1,BI$15-1,1,1),IF(ISNUMBER(INDEX(Import.PLE,Detalhamento!$E1,Detalhamento!BI$15)),IF(INDEX(Import.PLE,Detalhamento!$E1,Detalhamento!BI$15)<=mediçao,OFFSET(Import.PLQ,$A1-1,BI$15-1,1,1),0),0),IF(ISNUMBER(INDEX(Import.PLE,Detalhamento!$E1,Detalhamento!BI$15)),IF(INDEX(Import.PLE,Detalhamento!$E1,Detalhamento!BI$15)<=mediçao,0,OFFSET(Import.PLQ,$A1-1,BI$15-1,1,1)),OFFSET(Import.PLQ,$A1-1,BI$15-1,1,1)))) -> 0
H2: PLE - Planilha de Levantamento de Eventos Detalhamento de Eventos | Q2: Grau de Sigilo #PUBLICO | W2: Grau de Sigilo #PUBLICO | AC2: Grau de Sigilo #PUBLICO | AI2: Grau de Sigilo #PUBLICO | AO2: Grau de Sigilo #PUBLICO | AU2: Grau de Sigilo #PUBLICO | BA2: Grau de Sigilo #PUBLICO | BG2: Grau de Sigilo #PUBLICO
B6: Eventos
B7: Orçamento
B8: 1
B9: Todos
B10: Executados
B11: A Executar
B12: 1
J13: Frente de Obra: | L13: =IF(Eventograma_e_Quantitativos!N15<>"",Eventograma_e_Quantitativos!N15,"") -> ESTRUTURA TÉRREA | M13: =IF(Eventograma_e_Quantitativos!O15<>"",Eventograma_e_Quantitativos!O15,"") -> ESTRUTURA SUPERIOR | N13: =IF(Eventograma_e_Quantitativos!P15<>"",Eventograma_e_Quantitativos!P15,"") -> COBERTURA | O13: =IF(Eventograma_e_Quantitativos!Q15<>"",Eventograma_e_Quantitativos!Q15,"") -> QUADRA | P13: =IF(Eventograma_e_Quantitativos!R15<>"",Eventograma_e_Quantitativos!R15,"") ->  | Q13: =IF(Eventograma_e_Quantitativos!S15<>"",Eventograma_e_Quantitativos!S15,"") ->  | R13: =IF(Eventograma_e_Quantitativos!T15<>"",Eventograma_e_Quantitativos!T15,"") ->  | S13: =IF(Eventograma_e_Quantitativos!U15<>"",Eventograma_e_Quantitativos!U15,"") ->  | T13: =IF(Eventograma_e_Quantitativos!V15<>"",Eventograma_e_Quantitativos!V15,"") ->  | U13: =IF(Eventograma_e_Quantitativos!W15<>"",Eventograma_e_Quantitativos!W15,"") ->  | V13: =IF(Eventograma_e_Quantitativos!X15<>"",Eventograma_e_Quantitativos!X15,"") ->  | W13: =IF(Eventograma_e_Quantitativos!Y15<>"",Eventograma_e_Quantitativos!Y15,"") ->  | X13: =IF(Eventograma_e_Quantitativos!Z15<>"",Eventograma_e_Quantitativos!Z15,"") ->  | Y13: =IF(Eventograma_e_Quantitativos!AA15<>"",Eventograma_e_Quantitativos!AA15,"") ->  | Z13: =IF(Eventograma_e_Quantitativos!AB15<>"",Eventograma_e_Quantitativos!AB15,"") ->  | AA13: =IF(Eventograma_e_Quantitativos!AC15<>"",Eventograma_e_Quantitativos!AC15,"") ->  | AB13: =IF(Eventograma_e_Quantitativos!AD15<>"",Eventograma_e_Quantitativos!AD15,"") ->  | AC13: =IF(Eventograma_e_Quantitativos!AE15<>"",Eventograma_e_Quantitativos!AE15,"") ->  | AD13: =IF(Eventograma_e_Quantitativos!AF15<>"",Eventograma_e_Quantitativos!AF15,"") ->  | AE13: =IF(Eventograma_e_Quantitativos!AG15<>"",Eventograma_e_Quantitativos!AG15,"") ->  | AF13: =IF(Eventograma_e_Quantitativos!AH15<>"",Eventograma_e_Quantitativos!AH15,"") ->  | AG13: =IF(Eventograma_e_Quantitativos!AI15<>"",Eventograma_e_Quantitativos!AI15,"") ->  | AH13: =IF(Eventograma_e_Quantitativos!AJ15<>"",Eventograma_e_Quantitativos!AJ15,"") ->  | AI13: =IF(Eventograma_e_Quantitativos!AK15<>"",Eventograma_e_Quantitativos!AK15,"") ->  | AJ13: =IF(Eventograma_e_Quantitativos!AL15<>"",Eventograma_e_Quantitativos!AL15,"") ->  | AK13: =IF(Eventograma_e_Quantitativos!AM15<>"",Eventograma_e_Quantitativos!AM15,"") ->  | AL13: =IF(Eventograma_e_Quantitativos!AN15<>"",Eventograma_e_Quantitativos!AN15,"") ->  | AM13: =IF(Eventograma_e_Quantitativos!AO15<>"",Eventograma_e_Quantitativos!AO15,"") ->  | AN13: =IF(Eventograma_e_Quantitativos!AP15<>"",Eventograma_e_Quantitativos!AP15,"") ->  | AO13: =IF(Eventograma_e_Quantitativos!AQ15<>"",Eventograma_e_Quantitativos!AQ15,"") ->  | AP13: =IF(Eventograma_e_Quantitativos!AR15<>"",Eventograma_e_Quantitativos!AR15,"") ->  | AQ13: =IF(Eventograma_e_Quantitativos!AS15<>"",Eventograma_e_Quantitativos!AS15,"") ->  | AR13: =IF(Eventograma_e_Quantitativos!AT15<>"",Eventograma_e_Quantitativos!AT15,"") ->  | AS13: =IF(Eventograma_e_Quantitativos!AU15<>"",Eventograma_e_Quantitativos!AU15,"") ->  | AT13: =IF(Eventograma_e_Quantitativos!AV15<>"",Eventograma_e_Quantitativos!AV15,"") ->  | AU13: =IF(Eventograma_e_Quantitativos!AW15<>"",Eventograma_e_Quantitativos!AW15,"") ->  | AV13: =IF(Eventograma_e_Quantitativos!AX15<>"",Eventograma_e_Quantitativos!AX15,"") ->  | AW13: =IF(Eventograma_e_Quantitativos!AY15<>"",Eventograma_e_Quantitativos!AY15,"") ->  | AX13: =IF(Eventograma_e_Quantitativos!AZ15<>"",Eventograma_e_Quantitativos!AZ15,"") ->  | AY13: =IF(Eventograma_e_Quantitativos!BA15<>"",Eventograma_e_Quantitativos!BA15,"") ->  | AZ13: =IF(Eventograma_e_Quantitativos!BB15<>"",Eventograma_e_Quantitativos!BB15,"") ->  | BA13: =IF(Eventograma_e_Quantitativos!BC15<>"",Eventograma_e_Quantitativos!BC15,"") ->  | BB13: =IF(Eventograma_e_Quantitativos!BD15<>"",Eventograma_e_Quantitativos!BD15,"") ->  | BC13: =IF(Eventograma_e_Quantitativos!BE15<>"",Eventograma_e_Quantitativos!BE15,"") ->  | BD13: =IF(Eventograma_e_Quantitativos!BF15<>"",Eventograma_e_Quantitativos!BF15,"") ->  | BE13: =IF(Eventograma_e_Quantitativos!BG15<>"",Eventograma_e_Quantitativos!BG15,"") ->  | BF13: =IF(Eventograma_e_Quantitativos!BH15<>"",Eventograma_e_Quantitativos!BH15,"") ->  | BG13: =IF(Eventograma_e_Quantitativos!BI15<>"",Eventograma_e_Quantitativos!BI15,"") ->  | BH13: =IF(Eventograma_e_Quantitativos!BJ15<>"",Eventograma_e_Quantitativos!BJ15,"") ->  | BI13: =IF(Eventograma_e_Quantitativos!BK15<>"",Eventograma_e_Quantitativos!BK15,"") -> 
E14: ="Valor "&CHOOSE(Detalhamento.OpçãoServiços,"de Investimento","Executado","A Executar")&": R$ "&TEXT(SUMIF(OFFSET(Detalhamento,0,6),"Evento",OFFSET(Detalhamento,0,9)),"#.#0,00") -> Valor de Investimento: R$ 483.284,68 | J14: Total por Frente (R$): | L14: =CHOOSE(Detalhamento.OpçãoServiços,SUM(OFFSET(PreçoServiçoPorFrente,0,L15-1,,1)),SUM(OFFSET(PreçoServiçosPorFrente.Executados,0,L15-1,,1)),SUM(OFFSET(PreçoServiçoPorFrente,0,L15-1,,1))-SUM(OFFSET(PreçoServiçosPorFrente.Executados,0,L15-1,,1))) -> 151680.57 | M14: 117663.31 | N14: 100269.74 | O14: 113671.06 | P14: 0 | Q14: 0 | R14: 0 | S14: 0 | T14: 0 | U14: 0 | V14: 0 | W14: 0 | X14: 0 | Y14: 0 | Z14: 0 | AA14: 0 | AB14: 0 | AC14: 0 | AD14: 0 | AE14: 0 | AF14: 0 | AG14: 0 | AH14: 0 | AI14: 0 | AJ14: 0 | AK14: 0 | AL14: 0 | AM14: 0 | AN14: 0 | AO14: 0 | AP14: 0 | AQ14: 0 | AR14: =CHOOSE(Detalhamento.OpçãoServiços,SUM(OFFSET(PreçoServiçoPorFrente,0,AR15-1,,1)),SUM(OFFSET(PreçoServiçosPorFrente.Executados,0,AR15-1,,1)),SUM(OFFSET(PreçoServiçoPorFrente,0,AR15-1,,1))-SUM(OFFSET(PreçoServiçosPorFrente.Executados,0,AR15-1,,1))) -> 0 | AS14: 0 | AT14: 0 | AU14: 0 | AV14: 0 | AW14: 0 | AX14: 0 | AY14: 0 | AZ14: 0 | BA14: 0 | BB14: 0 | BC14: 0 | BD14: 0 | BE14: 0 | BF14: 0 | BG14: 0 | BH14: 0 | BI14: 0
E15: Evento | F15: Linha Orç | G15: Item Orç | H15: Título dos Eventos / Descrição Serviço | I15: Unid. | J15: Qtde. | L15: 1 | M15: 2 | N15: 3 | O15: 4 | P15: 5 | Q15: 6 | R15: 7 | S15: 8 | T15: 9 | U15: 10 | V15: 11 | W15: 12 | X15: 13 | Y15: 14 | Z15: 15 | AA15: 16 | AB15: 17 | AC15: 18 | AD15: 19 | AE15: 20 | AF15: 21 | AG15: 22 | AH15: 23 | AI15: 24 | AJ15: 25 | AK15: 26 | AL15: 27 | AM15: 28 | AN15: 29 | AO15: 30 | AP15: 31 | AQ15: 32 | AR15: 33 | AS15: 34 | AT15: 35 | AU15: 36 | AV15: 37 | AW15: 38 | AX15: 39 | AY15: 40 | AZ15: 41 | BA15: 42 | BB15: 43 | BC15: 44 | BD15: 45 | BE15: 46 | BF15: 47 | BG15: 48 | BH15: 49 | BI15: 50
B16: 2 | E16: 10 | G16: 3 | H16: 4 | I16: 5 | J16: 8
A17: 1 | B17: =OFFSET(LIorçamento,$A17-1,B$16,1,1) -> Nível | E17: =OFFSET(LIorçamento,$A17-1,E$16,1,1) ->  | F17: =CHOOSE($B$8,IF(OR(Nível="Serviço",Nível="Evento"),E17*10^4+IF(Nível<>"Evento",A17,0),0),IF(Nível<>"Evento",A17,0)) -> 0 | G17: =OFFSET(LIorçamento,$A17-1,G$16,1,1) -> 1. | H17: COBERTURA E REVITALIZAÇÃO QUADRA BAIRRO REGINA | I17: =IF(OR(Nível="Serviço",Nível="evento"),OFFSET(LIorçamento,$A17-1,I$16,1,1),"") ->  | J17: =IF(OR(Nível="Serviço",Nível="evento"),SUM(L17:BI17),"") ->  | L17: =IF(L$13="",0,CHOOSE(Detalhamento.OpçãoServiços,OFFSET(Import.PLQ,$A17-1,L$15-1,1,1),IF(ISNUMBER(INDEX(Import.PLE,Detalhamento!$E17,Detalhamento!L$15)),IF(INDEX(Import.PLE,Detalhamento!$E17,Detalhamento!L$15)<=mediçao,OFFSET(Import.PLQ,$A17-1,L$15-1,1,1),0),0),IF(ISNUMBER(INDEX(Import.PLE,Detalhamento!$E17,Detalhamento!L$15)),IF(INDEX(Import.PLE,Detalhamento!$E17,Detalhamento!L$15)<=mediçao,0,OFFSET(Import.PLQ,$A17-1,L$15-1,1,1)),OFFSET(Import.PLQ,$A17-1,L$15-1,1,1)))) -> 0 | M17: =IF(M$13="",0,CHOOSE(Detalhamento.OpçãoServiços,OFFSET(Import.PLQ,$A17-1,M$15-1,1,1),IF(ISNUMBER(INDEX(Import.PLE,Detalhamento!$E17,Detalhamento!M$15)),IF(INDEX(Import.PLE,Detalhamento!$E17,Detalhamento!M$15)<=mediçao,OFFSET(Import.PLQ,$A17-1,M$15-1,1,1),0),0),IF(ISNUMBER(INDEX(Import.PLE,Detalhamento!$E17,Detalhamento!M$15)),IF(INDEX(Import.PLE,Detalhamento!$E17,Detalhamento!M$15)<=mediçao,0,OFFSET(Import.PLQ,$A17-1,M$15-1,1,1)),OFFSET(Import.PLQ,$A17-1,M$15-1,1,1)))) -> 0 | N17: =IF(N$13="",0,CHOOSE(Detalhamento.OpçãoServiços,OFFSET(Import.PLQ,$A17-1,N$15-1,1,1),IF(ISNUMBER(INDEX(Import.PLE,Detalhamento!$E17,Detalhamento!N$15)),IF(INDEX(Import.PLE,Detalhamento!$E17,Detalhamento!N$15)<=mediçao,OFFSET(Import.PLQ,$A17-1,N$15-1,1,1),0),0),IF(ISNUMBER(INDEX(Import.PLE,Detalhamento!$E17,Detalhamento!N$15)),IF(INDEX(Import.PLE,Detalhamento!$E17,Detalhamento!N$15)<=mediçao,0,OFFSET(Import.PLQ,$A17-1,N$15-1,1,1)),OFFSET(Import.PLQ,$A17-1,N$15-1,1,1)))) -> 0 | O17: =IF(O$13="",0,CHOOSE(Detalhamento.OpçãoServiços,OFFSET(Import.PLQ,$A17-1,O$15-1,1,1),IF(ISNUMBER(INDEX(Import.PLE,Detalhamento!$E17,Detalhamento!O$15)),IF(INDEX(Import.PLE,Detalhamento!$E17,Detalhamento!O$15)<=mediçao,OFFSET(Import.PLQ,$A17-1,O$15-1,1,1),0),0),IF(ISNUMBER(INDEX(Import.PLE,Detalhamento!$E17,Detalhamento!O$15)),IF(INDEX(Import.PLE,Detalhamento!$E17,Detalhamento!O$15)<=mediçao,0,OFFSET(Import.PLQ,$A17-1,O$15-1,1,1)),OFFSET(Import.PLQ,$A17-1,O$15-1,1,1)))) -> 0 | P17: =IF(P$13="",0,CHOOSE(Detalhamento.OpçãoServiços,OFFSET(Import.PLQ,$A17-1,P$15-1,1,1),IF(ISNUMBER(INDEX(Import.PLE,Detalhamento!$E17,Detalhamento!P$15)),IF(INDEX(Import.PLE,Detalhamento!$E17,Detalhamento!P$15)<=mediçao,OFFSET(Import.PLQ,$A17-1,P$15-1,1,1),0),0),IF(ISNUMBER(INDEX(Import.PLE,Detalhamento!$E17,Detalhamento!P$15)),IF(INDEX(Import.PLE,Detalhamento!$E17,Detalhamento!P$15)<=mediçao,0,OFFSET(Import.PLQ,$A17-1,P$15-1,1,1)),OFFSET(Import.PLQ,$A17-1,P$15-1,1,1)))) -> 0 | Q17: =IF(Q$13="",0,CHOOSE(Detalhamento.OpçãoServiços,OFFSET(Import.PLQ,$A17-1,Q$15-1,1,1),IF(ISNUMBER(INDEX(Import.PLE,Detalhamento!$E17,Detalhamento!Q$15)),IF(INDEX(Import.PLE,Detalhamento!$E17,Detalhamento!Q$15)<=mediçao,OFFSET(Import.PLQ,$A17-1,Q$15-1,1,1),0),0),IF(ISNUMBER(INDEX(Import.PLE,Detalhamento!$E17,Detalhamento!Q$15)),IF(INDEX(Import.PLE,Detalhamento!$E17,Detalhamento!Q$15)<=mediçao,0,OFFSET(Import.PLQ,$A17-1,Q$15-1,1,1)),OFFSET(Import.PLQ,$A17-1,Q$15-1,1,1)))) -> 0 | R17: =IF(R$13="",0,CHOOSE(Detalhamento.OpçãoServiços,OFFSET(Import.PLQ,$A17-1,R$15-1,1,1),IF(ISNUMBER(INDEX(Import.PLE,Detalhamento!$E17,Detalhamento!R$15)),IF(INDEX(Import.PLE,Detalhamento!$E17,Detalhamento!R$15)<=mediçao,OFFSET(Import.PLQ,$A17-1,R$15-1,1,1),0),0),IF(ISNUMBER(INDEX(Import.PLE,Detalhamento!$E17,Detalhamento!R$15)),IF(INDEX(Import.PLE,Detalhamento!$E17,Detalhamento!R$15)<=mediçao,0,OFFSET(Import.PLQ,$A17-1,R$15-1,1,1)),OFFSET(Import.PLQ,$A17-1,R$15-1,1,1)))) -> 0 | S17: =IF(S$13="",0,CHOOSE(Detalhamento.OpçãoServiços,OFFSET(Import.PLQ,$A17-1,S$15-1,1,1),IF(ISNUMBER(INDEX(Import.PLE,Detalhamento!$E17,Detalhamento!S$15)),IF(INDEX(Import.PLE,Detalhamento!$E17,Detalhamento!S$15)<=mediçao,OFFSET(Import.PLQ,$A17-1,S$15-1,1,1),0),0),IF(ISNUMBER(INDEX(Import.PLE,Detalhamento!$E17,Detalhamento!S$15)),IF(INDEX(Import.PLE,Detalhamento!$E17,Detalhamento!S$15)<=mediçao,0,OFFSET(Import.PLQ,$A17-1,S$15-1,1,1)),OFFSET(Import.PLQ,$A17-1,S$15-1,1,1)))) -> 0 | T17: =IF(T$13="",0,CHOOSE(Detalhamento.OpçãoServiços,OFFSET(Import.PLQ,$A17-1,T$15-1,1,1),IF(ISNUMBER(INDEX(Import.PLE,Detalhamento!$E17,Detalhamento!T$15)),IF(INDEX(Import.PLE,Detalhamento!$E17,Detalhamento!T$15)<=mediçao,OFFSET(Import.PLQ,$A17-1,T$15-1,1,1),0),0),IF(ISNUMBER(INDEX(Import.PLE,Detalhamento!$E17,Detalhamento!T$15)),IF(INDEX(Import.PLE,Detalhamento!$E17,Detalhamento!T$15)<=mediçao,0,OFFSET(Import.PLQ,$A17-1,T$15-1,1,1)),OFFSET(Import.PLQ,$A17-1,T$15-1,1,1)))) -> 0 | U17: =IF(U$13="",0,CHOOSE(Detalhamento.OpçãoServiços,OFFSET(Import.PLQ,$A17-1,U$15-1,1,1),IF(ISNUMBER(INDEX(Import.PLE,Detalhamento!$E17,Detalhamento!U$15)),IF(INDEX(Import.PLE,Detalhamento!$E17,Detalhamento!U$15)<=mediçao,OFFSET(Import.PLQ,$A17-1,U$15-1,1,1),0),0),IF(ISNUMBER(INDEX(Import.PLE,Detalhamento!$E17,Detalhamento!U$15)),IF(INDEX(Import.PLE,Detalhamento!$E17,Detalhamento!U$15)<=mediçao,0,OFFSET(Import.PLQ,$A17-1,U$15-1,1,1)),OFFSET(Import.PLQ,$A17-1,U$15-1,1,1)))) -> 0 | V17: =IF(V$13="",0,CHOOSE(Detalhamento.OpçãoServiços,OFFSET(Import.PLQ,$A17-1,V$15-1,1,1),IF(ISNUMBER(INDEX(Import.PLE,Detalhamento!$E17,Detalhamento!V$15)),IF(INDEX(Import.PLE,Detalhamento!$E17,Detalhamento!V$15)<=mediçao,OFFSET(Import.PLQ,$A17-1,V$15-1,1,1),0),0),IF(ISNUMBER(INDEX(Import.PLE,Detalhamento!$E17,Detalhamento!V$15)),IF(INDEX(Import.PLE,Detalhamento!$E17,Detalhamento!V$15)<=mediçao,0,OFFSET(Import.PLQ,$A17-1,V$15-1,1,1)),OFFSET(Import.PLQ,$A17-1,V$15-1,1,1)))) -> 0 | W17: =IF(W$13="",0,CHOOSE(Detalhamento.OpçãoServiços,OFFSET(Import.PLQ,$A17-1,W$15-1,1,1),IF(ISNUMBER(INDEX(Import.PLE,Detalhamento!$E17,Detalhamento!W$15)),IF(INDEX(Import.PLE,Detalhamento!$E17,Detalhamento!W$15)<=mediçao,OFFSET(Import.PLQ,$A17-1,W$15-1,1,1),0),0),IF(ISNUMBER(INDEX(Import.PLE,Detalhamento!$E17,Detalhamento!W$15)),IF(INDEX(Import.PLE,Detalhamento!$E17,Detalhamento!W$15)<=mediçao,0,OFFSET(Import.PLQ,$A17-1,W$15-1,1,1)),OFFSET(Import.PLQ,$A17-1,W$15-1,1,1)))) -> 0 | X17: =IF(X$13="",0,CHOOSE(Detalhamento.OpçãoServiços,OFFSET(Import.PLQ,$A17-1,X$15-1,1,1),IF(ISNUMBER(INDEX(Import.PLE,Detalhamento!$E17,Detalhamento!X$15)),IF(INDEX(Import.PLE,Detalhamento!$E17,Detalhamento!X$15)<=mediçao,OFFSET(Import.PLQ,$A17-1,X$15-1,1,1),0),0),IF(ISNUMBER(INDEX(Import.PLE,Detalhamento!$E17,Detalhamento!X$15)),IF(INDEX(Import.PLE,Detalhamento!$E17,Detalhamento!X$15)<=mediçao,0,OFFSET(Import.PLQ,$A17-1,X$15-1,1,1)),OFFSET(Import.PLQ,$A17-1,X$15-1,1,1)))) -> 0 | Y17: =IF(Y$13="",0,CHOOSE(Detalhamento.OpçãoServiços,OFFSET(Import.PLQ,$A17-1,Y$15-1,1,1),IF(ISNUMBER(INDEX(Import.PLE,Detalhamento!$E17,Detalhamento!Y$15)),IF(INDEX(Import.PLE,Detalhamento!$E17,Detalhamento!Y$15)<=mediçao,OFFSET(Import.PLQ,$A17-1,Y$15-1,1,1),0),0),IF(ISNUMBER(INDEX(Import.PLE,Detalhamento!$E17,Detalhamento!Y$15)),IF(INDEX(Import.PLE,Detalhamento!$E17,Detalhamento!Y$15)<=mediçao,0,OFFSET(Import.PLQ,$A17-1,Y$15-1,1,1)),OFFSET(Import.PLQ,$A17-1,Y$15-1,1,1)))) -> 0 | Z17: =IF(Z$13="",0,CHOOSE(Detalhamento.OpçãoServiços,OFFSET(Import.PLQ,$A17-1,Z$15-1,1,1),IF(ISNUMBER(INDEX(Import.PLE,Detalhamento!$E17,Detalhamento!Z$15)),IF(INDEX(Import.PLE,Detalhamento!$E17,Detalhamento!Z$15)<=mediçao,OFFSET(Import.PLQ,$A17-1,Z$15-1,1,1),0),0),IF(ISNUMBER(INDEX(Import.PLE,Detalhamento!$E17,Detalhamento!Z$15)),IF(INDEX(Import.PLE,Detalhamento!$E17,Detalhamento!Z$15)<=mediçao,0,OFFSET(Import.PLQ,$A17-1,Z$15-1,1,1)),OFFSET(Import.PLQ,$A17-1,Z$15-1,1,1)))) -> 0 | AA17: =IF(AA$13="",0,CHOOSE(Detalhamento.OpçãoServiços,OFFSET(Import.PLQ,$A17-1,AA$15-1,1,1),IF(ISNUMBER(INDEX(Import.PLE,Detalhamento!$E17,Detalhamento!AA$15)),IF(INDEX(Import.PLE,Detalhamento!$E17,Detalhamento!AA$15)<=mediçao,OFFSET(Import.PLQ,$A17-1,AA$15-1,1,1),0),0),IF(ISNUMBER(INDEX(Import.PLE,Detalhamento!$E17,Detalhamento!AA$15)),IF(INDEX(Import.PLE,Detalhamento!$E17,Detalhamento!AA$15)<=mediçao,0,OFFSET(Import.PLQ,$A17-1,AA$15-1,1,1)),OFFSET(Import.PLQ,$A17-1,AA$15-1,1,1)))) -> 0 | AB17: =IF(AB$13="",0,CHOOSE(Detalhamento.OpçãoServiços,OFFSET(Import.PLQ,$A17-1,AB$15-1,1,1),IF(ISNUMBER(INDEX(Import.PLE,Detalhamento!$E17,Detalhamento!AB$15)),IF(INDEX(Import.PLE,Detalhamento!$E17,Detalhamento!AB$15)<=mediçao,OFFSET(Import.PLQ,$A17-1,AB$15-1,1,1),0),0),IF(ISNUMBER(INDEX(Import.PLE,Detalhamento!$E17,Detalhamento!AB$15)),IF(INDEX(Import.PLE,Detalhamento!$E17,Detalhamento!AB$15)<=mediçao,0,OFFSET(Import.PLQ,$A17-1,AB$15-1,1,1)),OFFSET(Import.PLQ,$A17-1,AB$15-1,1,1)))) -> 0 | AC17: =IF(AC$13="",0,CHOOSE(Detalhamento.OpçãoServiços,OFFSET(Import.PLQ,$A17-1,AC$15-1,1,1),IF(ISNUMBER(INDEX(Import.PLE,Detalhamento!$E17,Detalhamento!AC$15)),IF(INDEX(Import.PLE,Detalhamento!$E17,Detalhamento!AC$15)<=mediçao,OFFSET(Import.PLQ,$A17-1,AC$15-1,1,1),0),0),IF(ISNUMBER(INDEX(Import.PLE,Detalhamento!$E17,Detalhamento!AC$15)),IF(INDEX(Import.PLE,Detalhamento!$E17,Detalhamento!AC$15)<=mediçao,0,OFFSET(Import.PLQ,$A17-1,AC$15-1,1,1)),OFFSET(Import.PLQ,$A17-1,AC$15-1,1,1)))) -> 0 | AD17: =IF(AD$13="",0,CHOOSE(Detalhamento.OpçãoServiços,OFFSET(Import.PLQ,$A17-1,AD$15-1,1,1),IF(ISNUMBER(INDEX(Import.PLE,Detalhamento!$E17,Detalhamento!AD$15)),IF(INDEX(Import.PLE,Detalhamento!$E17,Detalhamento!AD$15)<=mediçao,OFFSET(Import.PLQ,$A17-1,AD$15-1,1,1),0),0),IF(ISNUMBER(INDEX(Import.PLE,Detalhamento!$E17,Detalhamento!AD$15)),IF(INDEX(Import.PLE,Detalhamento!$E17,Detalhamento!AD$15)<=mediçao,0,OFFSET(Import.PLQ,$A17-1,AD$15-1,1,1)),OFFSET(Import.PLQ,$A17-1,AD$15-1,1,1)))) -> 0 | AE17: =IF(AE$13="",0,CHOOSE(Detalhamento.OpçãoServiços,OFFSET(Import.PLQ,$A17-1,AE$15-1,1,1),IF(ISNUMBER(INDEX(Import.PLE,Detalhamento!$E17,Detalhamento!AE$15)),IF(INDEX(Import.PLE,Detalhamento!$E17,Detalhamento!AE$15)<=mediçao,OFFSET(Import.PLQ,$A17-1,AE$15-1,1,1),0),0),IF(ISNUMBER(INDEX(Import.PLE,Detalhamento!$E17,Detalhamento!AE$15)),IF(INDEX(Import.PLE,Detalhamento!$E17,Detalhamento!AE$15)<=mediçao,0,OFFSET(Import.PLQ,$A17-1,AE$15-1,1,1)),OFFSET(Import.PLQ,$A17-1,AE$15-1,1,1)))) -> 0 | AF17: =IF(AF$13="",0,CHOOSE(Detalhamento.OpçãoServiços,OFFSET(Import.PLQ,$A17-1,AF$15-1,1,1),IF(ISNUMBER(INDEX(Import.PLE,Detalhamento!$E17,Detalhamento!AF$15)),IF(INDEX(Import.PLE,Detalhamento!$E17,Detalhamento!AF$15)<=mediçao,OFFSET(Import.PLQ,$A17-1,AF$15-1,1,1),0),0),IF(ISNUMBER(INDEX(Import.PLE,Detalhamento!$E17,Detalhamento!AF$15)),IF(INDEX(Import.PLE,Detalhamento!$E17,Detalhamento!AF$15)<=mediçao,0,OFFSET(Import.PLQ,$A17-1,AF$15-1,1,1)),OFFSET(Import.PLQ,$A17-1,AF$15-1,1,1)))) -> 0 | AG17: =IF(AG$13="",0,CHOOSE(Detalhamento.OpçãoServiços,OFFSET(Import.PLQ,$A17-1,AG$15-1,1,1),IF(ISNUMBER(INDEX(Import.PLE,Detalhamento!$E17,Detalhamento!AG$15)),IF(INDEX(Import.PLE,Detalhamento!$E17,Detalhamento!AG$15)<=mediçao,OFFSET(Import.PLQ,$A17-1,AG$15-1,1,1),0),0),IF(ISNUMBER(INDEX(Import.PLE,Detalhamento!$E17,Detalhamento!AG$15)),IF(INDEX(Import.PLE,Detalhamento!$E17,Detalhamento!AG$15)<=mediçao,0,OFFSET(Import.PLQ,$A17-1,AG$15-1,1,1)),OFFSET(Import.PLQ,$A17-1,AG$15-1,1,1)))) -> 0 | AH17: =IF(AH$13="",0,CHOOSE(Detalhamento.OpçãoServiços,OFFSET(Import.PLQ,$A17-1,AH$15-1,1,1),IF(ISNUMBER(INDEX(Import.PLE,Detalhamento!$E17,Detalhamento!AH$15)),IF(INDEX(Import.PLE,Detalhamento!$E17,Detalhamento!AH$15)<=mediçao,OFFSET(Import.PLQ,$A17-1,AH$15-1,1,1),0),0),IF(ISNUMBER(INDEX(Import.PLE,Detalhamento!$E17,Detalhamento!AH$15)),IF(INDEX(Import.PLE,Detalhamento!$E17,Detalhamento!AH$15)<=mediçao,0,OFFSET(Import.PLQ,$A17-1,AH$15-1,1,1)),OFFSET(Import.PLQ,$A17-1,AH$15-1,1,1)))) -> 0 | AI17: =IF(AI$13="",0,CHOOSE(Detalhamento.OpçãoServiços,OFFSET(Import.PLQ,$A17-1,AI$15-1,1,1),IF(ISNUMBER(INDEX(Import.PLE,Detalhamento!$E17,Detalhamento!AI$15)),IF(INDEX(Import.PLE,Detalhamento!$E17,Detalhamento!AI$15)<=mediçao,OFFSET(Import.PLQ,$A17-1,AI$15-1,1,1),0),0),IF(ISNUMBER(INDEX(Import.PLE,Detalhamento!$E17,Detalhamento!AI$15)),IF(INDEX(Import.PLE,Detalhamento!$E17,Detalhamento!AI$15)<=mediçao,0,OFFSET(Import.PLQ,$A17-1,AI$15-1,1,1)),OFFSET(Import.PLQ,$A17-1,AI$15-1,1,1)))) -> 0 | AJ17: =IF(AJ$13="",0,CHOOSE(Detalhamento.OpçãoServiços,OFFSET(Import.PLQ,$A17-1,AJ$15-1,1,1),IF(ISNUMBER(INDEX(Import.PLE,Detalhamento!$E17,Detalhamento!AJ$15)),IF(INDEX(Import.PLE,Detalhamento!$E17,Detalhamento!AJ$15)<=mediçao,OFFSET(Import.PLQ,$A17-1,AJ$15-1,1,1),0),0),IF(ISNUMBER(INDEX(Import.PLE,Detalhamento!$E17,Detalhamento!AJ$15)),IF(INDEX(Import.PLE,Detalhamento!$E17,Detalhamento!AJ$15)<=mediçao,0,OFFSET(Import.PLQ,$A17-1,AJ$15-1,1,1)),OFFSET(Import.PLQ,$A17-1,AJ$15-1,1,1)))) -> 0 | AK17: =IF(AK$13="",0,CHOOSE(Detalhamento.OpçãoServiços,OFFSET(Import.PLQ,$A17-1,AK$15-1,1,1),IF(ISNUMBER(INDEX(Import.PLE,Detalhamento!$E17,Detalhamento!AK$15)),IF(INDEX(Import.PLE,Detalhamento!$E17,Detalhamento!AK$15)<=mediçao,OFFSET(Import.PLQ,$A17-1,AK$15-1,1,1),0),0),IF(ISNUMBER(INDEX(Import.PLE,Detalhamento!$E17,Detalhamento!AK$15)),IF(INDEX(Import.PLE,Detalhamento!$E17,Detalhamento!AK$15)<=mediçao,0,OFFSET(Import.PLQ,$A17-1,AK$15-1,1,1)),OFFSET(Import.PLQ,$A17-1,AK$15-1,1,1)))) -> 0 | AL17: =IF(AL$13="",0,CHOOSE(Detalhamento.OpçãoServiços,OFFSET(Import.PLQ,$A17-1,AL$15-1,1,1),IF(ISNUMBER(INDEX(Import.PLE,Detalhamento!$E17,Detalhamento!AL$15)),IF(INDEX(Import.PLE,Detalhamento!$E17,Detalhamento!AL$15)<=mediçao,OFFSET(Import.PLQ,$A17-1,AL$15-1,1,1),0),0),IF(ISNUMBER(INDEX(Import.PLE,Detalhamento!$E17,Detalhamento!AL$15)),IF(INDEX(Import.PLE,Detalhamento!$E17,Detalhamento!AL$15)<=mediçao,0,OFFSET(Import.PLQ,$A17-1,AL$15-1,1,1)),OFFSET(Import.PLQ,$A17-1,AL$15-1,1,1)))) -> 0 | AM17: =IF(AM$13="",0,CHOOSE(Detalhamento.OpçãoServiços,OFFSET(Import.PLQ,$A17-1,AM$15-1,1,1),IF(ISNUMBER(INDEX(Import.PLE,Detalhamento!$E17,Detalhamento!AM$15)),IF(INDEX(Import.PLE,Detalhamento!$E17,Detalhamento!AM$15)<=mediçao,OFFSET(Import.PLQ,$A17-1,AM$15-1,1,1),0),0),IF(ISNUMBER(INDEX(Import.PLE,Detalhamento!$E17,Detalhamento!AM$15)),IF(INDEX(Import.PLE,Detalhamento!$E17,Detalhamento!AM$15)<=mediçao,0,OFFSET(Import.PLQ,$A17-1,AM$15-1,1,1)),OFFSET(Import.PLQ,$A17-1,AM$15-1,1,1)))) -> 0 | AN17: =IF(AN$13="",0,CHOOSE(Detalhamento.OpçãoServiços,OFFSET(Import.PLQ,$A17-1,AN$15-1,1,1),IF(ISNUMBER(INDEX(Import.PLE,Detalhamento!$E17,Detalhamento!AN$15)),IF(INDEX(Import.PLE,Detalhamento!$E17,Detalhamento!AN$15)<=mediçao,OFFSET(Import.PLQ,$A17-1,AN$15-1,1,1),0),0),IF(ISNUMBER(INDEX(Import.PLE,Detalhamento!$E17,Detalhamento!AN$15)),IF(INDEX(Import.PLE,Detalhamento!$E17,Detalhamento!AN$15)<=mediçao,0,OFFSET(Import.PLQ,$A17-1,AN$15-1,1,1)),OFFSET(Import.PLQ,$A17-1,AN$15-1,1,1)))) -> 0 | AO17: =IF(AO$13="",0,CHOOSE(Detalhamento.OpçãoServiços,OFFSET(Import.PLQ,$A17-1,AO$15-1,1,1),IF(ISNUMBER(INDEX(Import.PLE,Detalhamento!$E17,Detalhamento!AO$15)),IF(INDEX(Import.PLE,Detalhamento!$E17,Detalhamento!AO$15)<=mediçao,OFFSET(Import.PLQ,$A17-1,AO$15-1,1,1),0),0),IF(ISNUMBER(INDEX(Import.PLE,Detalhamento!$E17,Detalhamento!AO$15)),IF(INDEX(Import.PLE,Detalhamento!$E17,Detalhamento!AO$15)<=mediçao,0,OFFSET(Import.PLQ,$A17-1,AO$15-1,1,1)),OFFSET(Import.PLQ,$A17-1,AO$15-1,1,1)))) -> 0 | AP17: =IF(AP$13="",0,CHOOSE(Detalhamento.OpçãoServiços,OFFSET(Import.PLQ,$A17-1,AP$15-1,1,1),IF(ISNUMBER(INDEX(Import.PLE,Detalhamento!$E17,Detalhamento!AP$15)),IF(INDEX(Import.PLE,Detalhamento!$E17,Detalhamento!AP$15)<=mediçao,OFFSET(Import.PLQ,$A17-1,AP$15-1,1,1),0),0),IF(ISNUMBER(INDEX(Import.PLE,Detalhamento!$E17,Detalhamento!AP$15)),IF(INDEX(Import.PLE,Detalhamento!$E17,Detalhamento!AP$15)<=mediçao,0,OFFSET(Import.PLQ,$A17-1,AP$15-1,1,1)),OFFSET(Import.PLQ,$A17-1,AP$15-1,1,1)))) -> 0 | AQ17: =IF(AQ$13="",0,CHOOSE(Detalhamento.OpçãoServiços,OFFSET(Import.PLQ,$A17-1,AQ$15-1,1,1),IF(ISNUMBER(INDEX(Import.PLE,Detalhamento!$E17,Detalhamento!AQ$15)),IF(INDEX(Import.PLE,Detalhamento!$E17,Detalhamento!AQ$15)<=mediçao,OFFSET(Import.PLQ,$A17-1,AQ$15-1,1,1),0),0),IF(ISNUMBER(INDEX(Import.PLE,Detalhamento!$E17,Detalhamento!AQ$15)),IF(INDEX(Import.PLE,Detalhamento!$E17,Detalhamento!AQ$15)<=mediçao,0,OFFSET(Import.PLQ,$A17-1,AQ$15-1,1,1)),OFFSET(Import.PLQ,$A17-1,AQ$15-1,1,1)))) -> 0 | AR17: =IF(AR$13="",0,CHOOSE(Detalhamento.OpçãoServiços,OFFSET(Import.PLQ,$A17-1,AR$15-1,1,1),IF(ISNUMBER(INDEX(Import.PLE,Detalhamento!$E17,Detalhamento!AR$15)),IF(INDEX(Import.PLE,Detalhamento!$E17,Detalhamento!AR$15)<=mediçao,OFFSET(Import.PLQ,$A17-1,AR$15-1,1,1),0),0),IF(ISNUMBER(INDEX(Import.PLE,Detalhamento!$E17,Detalhamento!AR$15)),IF(INDEX(Import.PLE,Detalhamento!$E17,Detalhamento!AR$15)<=mediçao,0,OFFSET(Import.PLQ,$A17-1,AR$15-1,1,1)),OFFSET(Import.PLQ,$A17-1,AR$15-1,1,1)))) -> 0 | AS17: =IF(AS$13="",0,CHOOSE(Detalhamento.OpçãoServiços,OFFSET(Import.PLQ,$A17-1,AS$15-1,1,1),IF(ISNUMBER(INDEX(Import.PLE,Detalhamento!$E17,Detalhamento!AS$15)),IF(INDEX(Import.PLE,Detalhamento!$E17,Detalhamento!AS$15)<=mediçao,OFFSET(Import.PLQ,$A17-1,AS$15-1,1,1),0),0),IF(ISNUMBER(INDEX(Import.PLE,Detalhamento!$E17,Detalhamento!AS$15)),IF(INDEX(Import.PLE,Detalhamento!$E17,Detalhamento!AS$15)<=mediçao,0,OFFSET(Import.PLQ,$A17-1,AS$15-1,1,1)),OFFSET(Import.PLQ,$A17-1,AS$15-1,1,1)))) -> 0 | AT17: =IF(AT$13="",0,CHOOSE(Detalhamento.OpçãoServiços,OFFSET(Import.PLQ,$A17-1,AT$15-1,1,1),IF(ISNUMBER(INDEX(Import.PLE,Detalhamento!$E17,Detalhamento!AT$15)),IF(INDEX(Import.PLE,Detalhamento!$E17,Detalhamento!AT$15)<=mediçao,OFFSET(Import.PLQ,$A17-1,AT$15-1,1,1),0),0),IF(ISNUMBER(INDEX(Import.PLE,Detalhamento!$E17,Detalhamento!AT$15)),IF(INDEX(Import.PLE,Detalhamento!$E17,Detalhamento!AT$15)<=mediçao,0,OFFSET(Import.PLQ,$A17-1,AT$15-1,1,1)),OFFSET(Import.PLQ,$A17-1,AT$15-1,1,1)))) -> 0 | AU17: =IF(AU$13="",0,CHOOSE(Detalhamento.OpçãoServiços,OFFSET(Import.PLQ,$A17-1,AU$15-1,1,1),IF(ISNUMBER(INDEX(Import.PLE,Detalhamento!$E17,Detalhamento!AU$15)),IF(INDEX(Import.PLE,Detalhamento!$E17,Detalhamento!AU$15)<=mediçao,OFFSET(Import.PLQ,$A17-1,AU$15-1,1,1),0),0),IF(ISNUMBER(INDEX(Import.PLE,Detalhamento!$E17,Detalhamento!AU$15)),IF(INDEX(Import.PLE,Detalhamento!$E17,Detalhamento!AU$15)<=mediçao,0,OFFSET(Import.PLQ,$A17-1,AU$15-1,1,1)),OFFSET(Import.PLQ,$A17-1,AU$15-1,1,1)))) -> 0 | AV17: =IF(AV$13="",0,CHOOSE(Detalhamento.OpçãoServiços,OFFSET(Import.PLQ,$A17-1,AV$15-1,1,1),IF(ISNUMBER(INDEX(Import.PLE,Detalhamento!$E17,Detalhamento!AV$15)),IF(INDEX(Import.PLE,Detalhamento!$E17,Detalhamento!AV$15)<=mediçao,OFFSET(Import.PLQ,$A17-1,AV$15-1,1,1),0),0),IF(ISNUMBER(INDEX(Import.PLE,Detalhamento!$E17,Detalhamento!AV$15)),IF(INDEX(Import.PLE,Detalhamento!$E17,Detalhamento!AV$15)<=mediçao,0,OFFSET(Import.PLQ,$A17-1,AV$15-1,1,1)),OFFSET(Import.PLQ,$A17-1,AV$15-1,1,1)))) -> 0 | AW17: =IF(AW$13="",0,CHOOSE(Detalhamento.OpçãoServiços,OFFSET(Import.PLQ,$A17-1,AW$15-1,1,1),IF(ISNUMBER(INDEX(Import.PLE,Detalhamento!$E17,Detalhamento!AW$15)),IF(INDEX(Import.PLE,Detalhamento!$E17,Detalhamento!AW$15)<=mediçao,OFFSET(Import.PLQ,$A17-1,AW$15-1,1,1),0),0),IF(ISNUMBER(INDEX(Import.PLE,Detalhamento!$E17,Detalhamento!AW$15)),IF(INDEX(Import.PLE,Detalhamento!$E17,Detalhamento!AW$15)<=mediçao,0,OFFSET(Import.PLQ,$A17-1,AW$15-1,1,1)),OFFSET(Import.PLQ,$A17-1,AW$15-1,1,1)))) -> 0 | AX17: =IF(AX$13="",0,CHOOSE(Detalhamento.OpçãoServiços,OFFSET(Import.PLQ,$A17-1,AX$15-1,1,1),IF(ISNUMBER(INDEX(Import.PLE,Detalhamento!$E17,Detalhamento!AX$15)),IF(INDEX(Import.PLE,Detalhamento!$E17,Detalhamento!AX$15)<=mediçao,OFFSET(Import.PLQ,$A17-1,AX$15-1,1,1),0),0),IF(ISNUMBER(INDEX(Import.PLE,Detalhamento!$E17,Detalhamento!AX$15)),IF(INDEX(Import.PLE,Detalhamento!$E17,Detalhamento!AX$15)<=mediçao,0,OFFSET(Import.PLQ,$A17-1,AX$15-1,1,1)),OFFSET(Import.PLQ,$A17-1,AX$15-1,1,1)))) -> 0 | AY17: =IF(AY$13="",0,CHOOSE(Detalhamento.OpçãoServiços,OFFSET(Import.PLQ,$A17-1,AY$15-1,1,1),IF(ISNUMBER(INDEX(Import.PLE,Detalhamento!$E17,Detalhamento!AY$15)),IF(INDEX(Import.PLE,Detalhamento!$E17,Detalhamento!AY$15)<=mediçao,OFFSET(Import.PLQ,$A17-1,AY$15-1,1,1),0),0),IF(ISNUMBER(INDEX(Import.PLE,Detalhamento!$E17,Detalhamento!AY$15)),IF(INDEX(Import.PLE,Detalhamento!$E17,Detalhamento!AY$15)<=mediçao,0,OFFSET(Import.PLQ,$A17-1,AY$15-1,1,1)),OFFSET(Import.PLQ,$A17-1,AY$15-1,1,1)))) -> 0 | AZ17: =IF(AZ$13="",0,CHOOSE(Detalhamento.OpçãoServiços,OFFSET(Import.PLQ,$A17-1,AZ$15-1,1,1),IF(ISNUMBER(INDEX(Import.PLE,Detalhamento!$E17,Detalhamento!AZ$15)),IF(INDEX(Import.PLE,Detalhamento!$E17,Detalhamento!AZ$15)<=mediçao,OFFSET(Import.PLQ,$A17-1,AZ$15-1,1,1),0),0),IF(ISNUMBER(INDEX(Import.PLE,Detalhamento!$E17,Detalhamento!AZ$15)),IF(INDEX(Import.PLE,Detalhamento!$E17,Detalhamento!AZ$15)<=mediçao,0,OFFSET(Import.PLQ,$A17-1,AZ$15-1,1,1)),OFFSET(Import.PLQ,$A17-1,AZ$15-1,1,1)))) -> 0 | BA17: =IF(BA$13="",0,CHOOSE(Detalhamento.OpçãoServiços,OFFSET(Import.PLQ,$A17-1,BA$15-1,1,1),IF(ISNUMBER(INDEX(Import.PLE,Detalhamento!$E17,Detalhamento!BA$15)),IF(INDEX(Import.PLE,Detalhamento!$E17,Detalhamento!BA$15)<=mediçao,OFFSET(Import.PLQ,$A17-1,BA$15-1,1,1),0),0),IF(ISNUMBER(INDEX(Import.PLE,Detalhamento!$E17,Detalhamento!BA$15)),IF(INDEX(Import.PLE,Detalhamento!$E17,Detalhamento!BA$15)<=mediçao,0,OFFSET(Import.PLQ,$A17-1,BA$15-1,1,1)),OFFSET(Import.PLQ,$A17-1,BA$15-1,1,1)))) -> 0 | BB17: =IF(BB$13="",0,CHOOSE(Detalhamento.OpçãoServiços,OFFSET(Import.PLQ,$A17-1,BB$15-1,1,1),IF(ISNUMBER(INDEX(Import.PLE,Detalhamento!$E17,Detalhamento!BB$15)),IF(INDEX(Import.PLE,Detalhamento!$E17,Detalhamento!BB$15)<=mediçao,OFFSET(Import.PLQ,$A17-1,BB$15-1,1,1),0),0),IF(ISNUMBER(INDEX(Import.PLE,Detalhamento!$E17,Detalhamento!BB$15)),IF(INDEX(Import.PLE,Detalhamento!$E17,Detalhamento!BB$15)<=mediçao,0,OFFSET(Import.PLQ,$A17-1,BB$15-1,1,1)),OFFSET(Import.PLQ,$A17-1,BB$15-1,1,1)))) -> 0 | BC17: =IF(BC$13="",0,CHOOSE(Detalhamento.OpçãoServiços,OFFSET(Import.PLQ,$A17-1,BC$15-1,1,1),IF(ISNUMBER(INDEX(Import.PLE,Detalhamento!$E17,Detalhamento!BC$15)),IF(INDEX(Import.PLE,Detalhamento!$E17,Detalhamento!BC$15)<=mediçao,OFFSET(Import.PLQ,$A17-1,BC$15-1,1,1),0),0),IF(ISNUMBER(INDEX(Import.PLE,Detalhamento!$E17,Detalhamento!BC$15)),IF(INDEX(Import.PLE,Detalhamento!$E17,Detalhamento!BC$15)<=mediçao,0,OFFSET(Import.PLQ,$A17-1,BC$15-1,1,1)),OFFSET(Import.PLQ,$A17-1,BC$15-1,1,1)))) -> 0 | BD17: =IF(BD$13="",0,CHOOSE(Detalhamento.OpçãoServiços,OFFSET(Import.PLQ,$A17-1,BD$15-1,1,1),IF(ISNUMBER(INDEX(Import.PLE,Detalhamento!$E17,Detalhamento!BD$15)),IF(INDEX(Import.PLE,Detalhamento!$E17,Detalhamento!BD$15)<=mediçao,OFFSET(Import.PLQ,$A17-1,BD$15-1,1,1),0),0),IF(ISNUMBER(INDEX(Import.PLE,Detalhamento!$E17,Detalhamento!BD$15)),IF(INDEX(Import.PLE,Detalhamento!$E17,Detalhamento!BD$15)<=mediçao,0,OFFSET(Import.PLQ,$A17-1,BD$15-1,1,1)),OFFSET(Import.PLQ,$A17-1,BD$15-1,1,1)))) -> 0 | BE17: =IF(BE$13="",0,CHOOSE(Detalhamento.OpçãoServiços,OFFSET(Import.PLQ,$A17-1,BE$15-1,1,1),IF(ISNUMBER(INDEX(Import.PLE,Detalhamento!$E17,Detalhamento!BE$15)),IF(INDEX(Import.PLE,Detalhamento!$E17,Detalhamento!BE$15)<=mediçao,OFFSET(Import.PLQ,$A17-1,BE$15-1,1,1),0),0),IF(ISNUMBER(INDEX(Import.PLE,Detalhamento!$E17,Detalhamento!BE$15)),IF(INDEX(Import.PLE,Detalhamento!$E17,Detalhamento!BE$15)<=mediçao,0,OFFSET(Import.PLQ,$A17-1,BE$15-1,1,1)),OFFSET(Import.PLQ,$A17-1,BE$15-1,1,1)))) -> 0 | BF17: =IF(BF$13="",0,CHOOSE(Detalhamento.OpçãoServiços,OFFSET(Import.PLQ,$A17-1,BF$15-1,1,1),IF(ISNUMBER(INDEX(Import.PLE,Detalhamento!$E17,Detalhamento!BF$15)),IF(INDEX(Import.PLE,Detalhamento!$E17,Detalhamento!BF$15)<=mediçao,OFFSET(Import.PLQ,$A17-1,BF$15-1,1,1),0),0),IF(ISNUMBER(INDEX(Import.PLE,Detalhamento!$E17,Detalhamento!BF$15)),IF(INDEX(Import.PLE,Detalhamento!$E17,Detalhamento!BF$15)<=mediçao,0,OFFSET(Import.PLQ,$A17-1,BF$15-1,1,1)),OFFSET(Import.PLQ,$A17-1,BF$15-1,1,1)))) -> 0 | BG17: =IF(BG$13="",0,CHOOSE(Detalhamento.OpçãoServiços,OFFSET(Import.PLQ,$A17-1,BG$15-1,1,1),IF(ISNUMBER(INDEX(Import.PLE,Detalhamento!$E17,Detalhamento!BG$15)),IF(INDEX(Import.PLE,Detalhamento!$E17,Detalhamento!BG$15)<=mediçao,OFFSET(Import.PLQ,$A17-1,BG$15-1,1,1),0),0),IF(ISNUMBER(INDEX(Import.PLE,Detalhamento!$E17,Detalhamento!BG$15)),IF(INDEX(Import.PLE,Detalhamento!$E17,Detalhamento!BG$15)<=mediçao,0,OFFSET(Import.PLQ,$A17-1,BG$15-1,1,1)),OFFSET(Import.PLQ,$A17-1,BG$15-1,1,1)))) -> 0 | BH17: =IF(BH$13="",0,CHOOSE(Detalhamento.OpçãoServiços,OFFSET(Import.PLQ,$A17-1,BH$15-1,1,1),IF(ISNUMBER(INDEX(Import.PLE,Detalhamento!$E17,Detalhamento!BH$15)),IF(INDEX(Import.PLE,Detalhamento!$E17,Detalhamento!BH$15)<=mediçao,OFFSET(Import.PLQ,$A17-1,BH$15-1,1,1),0),0),IF(ISNUMBER(INDEX(Import.PLE,Detalhamento!$E17,Detalhamento!BH$15)),IF(INDEX(Import.PLE,Detalhamento!$E17,Detalhamento!BH$15)<=mediçao,0,OFFSET(Import.PLQ,$A17-1,BH$15-1,1,1)),OFFSET(Import.PLQ,$A17-1,BH$15-1,1,1)))) -> 0 | BI17: =IF(BI$13="",0,CHOOSE(Detalhamento.OpçãoServiços,OFFSET(Import.PLQ,$A17-1,BI$15-1,1,1),IF(ISNUMBER(INDEX(Import.PLE,Detalhamento!$E17,Detalhamento!BI$15)),IF(INDEX(Import.PLE,Detalhamento!$E17,Detalhamento!BI$15)<=mediçao,OFFSET(Import.PLQ,$A17-1,BI$15-1,1,1),0),0),IF(ISNUMBER(INDEX(Import.PLE,Detalhamento!$E17,Detalhamento!BI$15)),IF(INDEX(Import.PLE,Detalhamento!$E17,Detalhamento!BI$15)<=mediçao,0,OFFSET(Import.PLQ,$A17-1,BI$15-1,1,1)),OFFSET(Import.PLQ,$A17-1,BI$15-1,1,1)))) -> 0
A18: 2 | B18: Nível | F18: 0 | G18: 1.1. | H18: SERVIÇOS INICIAIS | L18: =IF(L$13="",0,CHOOSE(Detalhamento.OpçãoServiços,OFFSET(Import.PLQ,$A18-1,L$15-1,1,1),IF(ISNUMBER(INDEX(Import.PLE,Detalhamento!$E18,Detalhamento!L$15)),IF(INDEX(Import.PLE,Detalhamento!$E18,Detalhamento!L$15)<=mediçao,OFFSET(Import.PLQ,$A18-1,L$15-1,1,1),0),0),IF(ISNUMBER(INDEX(Import.PLE,Detalhamento!$E18,Detalhamento!L$15)),IF(INDEX(Import.PLE,Detalhamento!$E18,Detalhamento!L$15)<=mediçao,0,OFFSET(Import.PLQ,$A18-1,L$15-1,1,1)),OFFSET(Import.PLQ,$A18-1,L$15-1,1,1)))) -> 0 | M18: =IF(M$13="",0,CHOOSE(Detalhamento.OpçãoServiços,OFFSET(Import.PLQ,$A18-1,M$15-1,1,1),IF(ISNUMBER(INDEX(Import.PLE,Detalhamento!$E18,Detalhamento!M$15)),IF(INDEX(Import.PLE,Detalhamento!$E18,Detalhamento!M$15)<=mediçao,OFFSET(Import.PLQ,$A18-1,M$15-1,1,1),0),0),IF(ISNUMBER(INDEX(Import.PLE,Detalhamento!$E18,Detalhamento!M$15)),IF(INDEX(Import.PLE,Detalhamento!$E18,Detalhamento!M$15)<=mediçao,0,OFFSET(Import.PLQ,$A18-1,M$15-1,1,1)),OFFSET(Import.PLQ,$A18-1,M$15-1,1,1)))) -> 0 | N18: =IF(N$13="",0,CHOOSE(Detalhamento.OpçãoServiços,OFFSET(Import.PLQ,$A18-1,N$15-1,1,1),IF(ISNUMBER(INDEX(Import.PLE,Detalhamento!$E18,Detalhamento!N$15)),IF(INDEX(Import.PLE,Detalhamento!$E18,Detalhamento!N$15)<=mediçao,OFFSET(Import.PLQ,$A18-1,N$15-1,1,1),0),0),IF(ISNUMBER(INDEX(Import.PLE,Detalhamento!$E18,Detalhamento!N$15)),IF(INDEX(Import.PLE,Detalhamento!$E18,Detalhamento!N$15)<=mediçao,0,OFFSET(Import.PLQ,$A18-1,N$15-1,1,1)),OFFSET(Import.PLQ,$A18-1,N$15-1,1,1)))) -> 0 | O18: =IF(O$13="",0,CHOOSE(Detalhamento.OpçãoServiços,OFFSET(Import.PLQ,$A18-1,O$15-1,1,1),IF(ISNUMBER(INDEX(Import.PLE,Detalhamento!$E18,Detalhamento!O$15)),IF(INDEX(Import.PLE,Detalhamento!$E18,Detalhamento!O$15)<=mediçao,OFFSET(Import.PLQ,$A18-1,O$15-1,1,1),0),0),IF(ISNUMBER(INDEX(Import.PLE,Detalhamento!$E18,Detalhamento!O$15)),IF(INDEX(Import.PLE,Detalhamento!$E18,Detalhamento!O$15)<=mediçao,0,OFFSET(Import.PLQ,$A18-1,O$15-1,1,1)),OFFSET(Import.PLQ,$A18-1,O$15-1,1,1)))) -> 0 | P18: =IF(P$13="",0,CHOOSE(Detalhamento.OpçãoServiços,OFFSET(Import.PLQ,$A18-1,P$15-1,1,1),IF(ISNUMBER(INDEX(Import.PLE,Detalhamento!$E18,Detalhamento!P$15)),IF(INDEX(Import.PLE,Detalhamento!$E18,Detalhamento!P$15)<=mediçao,OFFSET(Import.PLQ,$A18-1,P$15-1,1,1),0),0),IF(ISNUMBER(INDEX(Import.PLE,Detalhamento!$E18,Detalhamento!P$15)),IF(INDEX(Import.PLE,Detalhamento!$E18,Detalhamento!P$15)<=mediçao,0,OFFSET(Import.PLQ,$A18-1,P$15-1,1,1)),OFFSET(Import.PLQ,$A18-1,P$15-1,1,1)))) -> 0 | Q18: =IF(Q$13="",0,CHOOSE(Detalhamento.OpçãoServiços,OFFSET(Import.PLQ,$A18-1,Q$15-1,1,1),IF(ISNUMBER(INDEX(Import.PLE,Detalhamento!$E18,Detalhamento!Q$15)),IF(INDEX(Import.PLE,Detalhamento!$E18,Detalhamento!Q$15)<=mediçao,OFFSET(Import.PLQ,$A18-1,Q$15-1,1,1),0),0),IF(ISNUMBER(INDEX(Import.PLE,Detalhamento!$E18,Detalhamento!Q$15)),IF(INDEX(Import.PLE,Detalhamento!$E18,Detalhamento!Q$15)<=mediçao,0,OFFSET(Import.PLQ,$A18-1,Q$15-1,1,1)),OFFSET(Import.PLQ,$A18-1,Q$15-1,1,1)))) -> 0 | R18: =IF(R$13="",0,CHOOSE(Detalhamento.OpçãoServiços,OFFSET(Import.PLQ,$A18-1,R$15-1,1,1),IF(ISNUMBER(INDEX(Import.PLE,Detalhamento!$E18,Detalhamento!R$15)),IF(INDEX(Import.PLE,Detalhamento!$E18,Detalhamento!R$15)<=mediçao,OFFSET(Import.PLQ,$A18-1,R$15-1,1,1),0),0),IF(ISNUMBER(INDEX(Import.PLE,Detalhamento!$E18,Detalhamento!R$15)),IF(INDEX(Import.PLE,Detalhamento!$E18,Detalhamento!R$15)<=mediçao,0,OFFSET(Import.PLQ,$A18-1,R$15-1,1,1)),OFFSET(Import.PLQ,$A18-1,R$15-1,1,1)))) -> 0 | S18: =IF(S$13="",0,CHOOSE(Detalhamento.OpçãoServiços,OFFSET(Import.PLQ,$A18-1,S$15-1,1,1),IF(ISNUMBER(INDEX(Import.PLE,Detalhamento!$E18,Detalhamento!S$15)),IF(INDEX(Import.PLE,Detalhamento!$E18,Detalhamento!S$15)<=mediçao,OFFSET(Import.PLQ,$A18-1,S$15-1,1,1),0),0),IF(ISNUMBER(INDEX(Import.PLE,Detalhamento!$E18,Detalhamento!S$15)),IF(INDEX(Import.PLE,Detalhamento!$E18,Detalhamento!S$15)<=mediçao,0,OFFSET(Import.PLQ,$A18-1,S$15-1,1,1)),OFFSET(Import.PLQ,$A18-1,S$15-1,1,1)))) -> 0 | T18: =IF(T$13="",0,CHOOSE(Detalhamento.OpçãoServiços,OFFSET(Import.PLQ,$A18-1,T$15-1,1,1),IF(ISNUMBER(INDEX(Import.PLE,Detalhamento!$E18,Detalhamento!T$15)),IF(INDEX(Import.PLE,Detalhamento!$E18,Detalhamento!T$15)<=mediçao,OFFSET(Import.PLQ,$A18-1,T$15-1,1,1),0),0),IF(ISNUMBER(INDEX(Import.PLE,Detalhamento!$E18,Detalhamento!T$15)),IF(INDEX(Import.PLE,Detalhamento!$E18,Detalhamento!T$15)<=mediçao,0,OFFSET(Import.PLQ,$A18-1,T$15-1,1,1)),OFFSET(Import.PLQ,$A18-1,T$15-1,1,1)))) -> 0 | U18: =IF(U$13="",0,CHOOSE(Detalhamento.OpçãoServiços,OFFSET(Import.PLQ,$A18-1,U$15-1,1,1),IF(ISNUMBER(INDEX(Import.PLE,Detalhamento!$E18,Detalhamento!U$15)),IF(INDEX(Import.PLE,Detalhamento!$E18,Detalhamento!U$15)<=mediçao,OFFSET(Import.PLQ,$A18-1,U$15-1,1,1),0),0),IF(ISNUMBER(INDEX(Import.PLE,Detalhamento!$E18,Detalhamento!U$15)),IF(INDEX(Import.PLE,Detalhamento!$E18,Detalhamento!U$15)<=mediçao,0,OFFSET(Import.PLQ,$A18-1,U$15-1,1,1)),OFFSET(Import.PLQ,$A18-1,U$15-1,1,1)))) -> 0 | V18: =IF(V$13="",0,CHOOSE(Detalhamento.OpçãoServiços,OFFSET(Import.PLQ,$A18-1,V$15-1,1,1),IF(ISNUMBER(INDEX(Import.PLE,Detalhamento!$E18,Detalhamento!V$15)),IF(INDEX(Import.PLE,Detalhamento!$E18,Detalhamento!V$15)<=mediçao,OFFSET(Import.PLQ,$A18-1,V$15-1,1,1),0),0),IF(ISNUMBER(INDEX(Import.PLE,Detalhamento!$E18,Detalhamento!V$15)),IF(INDEX(Import.PLE,Detalhamento!$E18,Detalhamento!V$15)<=mediçao,0,OFFSET(Import.PLQ,$A18-1,V$15-1,1,1)),OFFSET(Import.PLQ,$A18-1,V$15-1,1,1)))) -> 0 | W18: =IF(W$13="",0,CHOOSE(Detalhamento.OpçãoServiços,OFFSET(Import.PLQ,$A18-1,W$15-1,1,1),IF(ISNUMBER(INDEX(Import.PLE,Detalhamento!$E18,Detalhamento!W$15)),IF(INDEX(Import.PLE,Detalhamento!$E18,Detalhamento!W$15)<=mediçao,OFFSET(Import.PLQ,$A18-1,W$15-1,1,1),0),0),IF(ISNUMBER(INDEX(Import.PLE,Detalhamento!$E18,Detalhamento!W$15)),IF(INDEX(Import.PLE,Detalhamento!$E18,Detalhamento!W$15)<=mediçao,0,OFFSET(Import.PLQ,$A18-1,W$15-1,1,1)),OFFSET(Import.PLQ,$A18-1,W$15-1,1,1)))) -> 0 | X18: =IF(X$13="",0,CHOOSE(Detalhamento.OpçãoServiços,OFFSET(Import.PLQ,$A18-1,X$15-1,1,1),IF(ISNUMBER(INDEX(Import.PLE,Detalhamento!$E18,Detalhamento!X$15)),IF(INDEX(Import.PLE,Detalhamento!$E18,Detalhamento!X$15)<=mediçao,OFFSET(Import.PLQ,$A18-1,X$15-1,1,1),0),0),IF(ISNUMBER(INDEX(Import.PLE,Detalhamento!$E18,Detalhamento!X$15)),IF(INDEX(Import.PLE,Detalhamento!$E18,Detalhamento!X$15)<=mediçao,0,OFFSET(Import.PLQ,$A18-1,X$15-1,1,1)),OFFSET(Import.PLQ,$A18-1,X$15-1,1,1)))) -> 0 | Y18: =IF(Y$13="",0,CHOOSE(Detalhamento.OpçãoServiços,OFFSET(Import.PLQ,$A18-1,Y$15-1,1,1),IF(ISNUMBER(INDEX(Import.PLE,Detalhamento!$E18,Detalhamento!Y$15)),IF(INDEX(Import.PLE,Detalhamento!$E18,Detalhamento!Y$15)<=mediçao,OFFSET(Import.PLQ,$A18-1,Y$15-1,1,1),0),0),IF(ISNUMBER(INDEX(Import.PLE,Detalhamento!$E18,Detalhamento!Y$15)),IF(INDEX(Import.PLE,Detalhamento!$E18,Detalhamento!Y$15)<=mediçao,0,OFFSET(Import.PLQ,$A18-1,Y$15-1,1,1)),OFFSET(Import.PLQ,$A18-1,Y$15-1,1,1)))) -> 0 | Z18: =IF(Z$13="",0,CHOOSE(Detalhamento.OpçãoServiços,OFFSET(Import.PLQ,$A18-1,Z$15-1,1,1),IF(ISNUMBER(INDEX(Import.PLE,Detalhamento!$E18,Detalhamento!Z$15)),IF(INDEX(Import.PLE,Detalhamento!$E18,Detalhamento!Z$15)<=mediçao,OFFSET(Import.PLQ,$A18-1,Z$15-1,1,1),0),0),IF(ISNUMBER(INDEX(Import.PLE,Detalhamento!$E18,Detalhamento!Z$15)),IF(INDEX(Import.PLE,Detalhamento!$E18,Detalhamento!Z$15)<=mediçao,0,OFFSET(Import.PLQ,$A18-1,Z$15-1,1,1)),OFFSET(Import.PLQ,$A18-1,Z$15-1,1,1)))) -> 0 | AA18: =IF(AA$13="",0,CHOOSE(Detalhamento.OpçãoServiços,OFFSET(Import.PLQ,$A18-1,AA$15-1,1,1),IF(ISNUMBER(INDEX(Import.PLE,Detalhamento!$E18,Detalhamento!AA$15)),IF(INDEX(Import.PLE,Detalhamento!$E18,Detalhamento!AA$15)<=mediçao,OFFSET(Import.PLQ,$A18-1,AA$15-1,1,1),0),0),IF(ISNUMBER(INDEX(Import.PLE,Detalhamento!$E18,Detalhamento!AA$15)),IF(INDEX(Import.PLE,Detalhamento!$E18,Detalhamento!AA$15)<=mediçao,0,OFFSET(Import.PLQ,$A18-1,AA$15-1,1,1)),OFFSET(Import.PLQ,$A18-1,AA$15-1,1,1)))) -> 0 | AB18: =IF(AB$13="",0,CHOOSE(Detalhamento.OpçãoServiços,OFFSET(Import.PLQ,$A18-1,AB$15-1,1,1),IF(ISNUMBER(INDEX(Import.PLE,Detalhamento!$E18,Detalhamento!AB$15)),IF(INDEX(Import.PLE,Detalhamento!$E18,Detalhamento!AB$15)<=mediçao,OFFSET(Import.PLQ,$A18-1,AB$15-1,1,1),0),0),IF(ISNUMBER(INDEX(Import.PLE,Detalhamento!$E18,Detalhamento!AB$15)),IF(INDEX(Import.PLE,Detalhamento!$E18,Detalhamento!AB$15)<=mediçao,0,OFFSET(Import.PLQ,$A18-1,AB$15-1,1,1)),OFFSET(Import.PLQ,$A18-1,AB$15-1,1,1)))) -> 0 | AC18: =IF(AC$13="",0,CHOOSE(Detalhamento.OpçãoServiços,OFFSET(Import.PLQ,$A18-1,AC$15-1,1,1),IF(ISNUMBER(INDEX(Import.PLE,Detalhamento!$E18,Detalhamento!AC$15)),IF(INDEX(Import.PLE,Detalhamento!$E18,Detalhamento!AC$15)<=mediçao,OFFSET(Import.PLQ,$A18-1,AC$15-1,1,1),0),0),IF(ISNUMBER(INDEX(Import.PLE,Detalhamento!$E18,Detalhamento!AC$15)),IF(INDEX(Import.PLE,Detalhamento!$E18,Detalhamento!AC$15)<=mediçao,0,OFFSET(Import.PLQ,$A18-1,AC$15-1,1,1)),OFFSET(Import.PLQ,$A18-1,AC$15-1,1,1)))) -> 0 | AD18: =IF(AD$13="",0,CHOOSE(Detalhamento.OpçãoServiços,OFFSET(Import.PLQ,$A18-1,AD$15-1,1,1),IF(ISNUMBER(INDEX(Import.PLE,Detalhamento!$E18,Detalhamento!AD$15)),IF(INDEX(Import.PLE,Detalhamento!$E18,Detalhamento!AD$15)<=mediçao,OFFSET(Import.PLQ,$A18-1,AD$15-1,1,1),0),0),IF(ISNUMBER(INDEX(Import.PLE,Detalhamento!$E18,Detalhamento!AD$15)),IF(INDEX(Import.PLE,Detalhamento!$E18,Detalhamento!AD$15)<=mediçao,0,OFFSET(Import.PLQ,$A18-1,AD$15-1,1,1)),OFFSET(Import.PLQ,$A18-1,AD$15-1,1,1)))) -> 0 | AE18: =IF(AE$13="",0,CHOOSE(Detalhamento.OpçãoServiços,OFFSET(Import.PLQ,$A18-1,AE$15-1,1,1),IF(ISNUMBER(INDEX(Import.PLE,Detalhamento!$E18,Detalhamento!AE$15)),IF(INDEX(Import.PLE,Detalhamento!$E18,Detalhamento!AE$15)<=mediçao,OFFSET(Import.PLQ,$A18-1,AE$15-1,1,1),0),0),IF(ISNUMBER(INDEX(Import.PLE,Detalhamento!$E18,Detalhamento!AE$15)),IF(INDEX(Import.PLE,Detalhamento!$E18,Detalhamento!AE$15)<=mediçao,0,OFFSET(Import.PLQ,$A18-1,AE$15-1,1,1)),OFFSET(Import.PLQ,$A18-1,AE$15-1,1,1)))) -> 0 | AF18: =IF(AF$13="",0,CHOOSE(Detalhamento.OpçãoServiços,OFFSET(Import.PLQ,$A18-1,AF$15-1,1,1),IF(ISNUMBER(INDEX(Import.PLE,Detalhamento!$E18,Detalhamento!AF$15)),IF(INDEX(Import.PLE,Detalhamento!$E18,Detalhamento!AF$15)<=mediçao,OFFSET(Import.PLQ,$A18-1,AF$15-1,1,1),0),0),IF(ISNUMBER(INDEX(Import.PLE,Detalhamento!$E18,Detalhamento!AF$15)),IF(INDEX(Import.PLE,Detalhamento!$E18,Detalhamento!AF$15)<=mediçao,0,OFFSET(Import.PLQ,$A18-1,AF$15-1,1,1)),OFFSET(Import.PLQ,$A18-1,AF$15-1,1,1)))) -> 0 | AG18: =IF(AG$13="",0,CHOOSE(Detalhamento.OpçãoServiços,OFFSET(Import.PLQ,$A18-1,AG$15-1,1,1),IF(ISNUMBER(INDEX(Import.PLE,Detalhamento!$E18,Detalhamento!AG$15)),IF(INDEX(Import.PLE,Detalhamento!$E18,Detalhamento!AG$15)<=mediçao,OFFSET(Import.PLQ,$A18-1,AG$15-1,1,1),0),0),IF(ISNUMBER(INDEX(Import.PLE,Detalhamento!$E18,Detalhamento!AG$15)),IF(INDEX(Import.PLE,Detalhamento!$E18,Detalhamento!AG$15)<=mediçao,0,OFFSET(Import.PLQ,$A18-1,AG$15-1,1,1)),OFFSET(Import.PLQ,$A18-1,AG$15-1,1,1)))) -> 0 | AH18: =IF(AH$13="",0,CHOOSE(Detalhamento.OpçãoServiços,OFFSET(Import.PLQ,$A18-1,AH$15-1,1,1),IF(ISNUMBER(INDEX(Import.PLE,Detalhamento!$E18,Detalhamento!AH$15)),IF(INDEX(Import.PLE,Detalhamento!$E18,Detalhamento!AH$15)<=mediçao,OFFSET(Import.PLQ,$A18-1,AH$15-1,1,1),0),0),IF(ISNUMBER(INDEX(Import.PLE,Detalhamento!$E18,Detalhamento!AH$15)),IF(INDEX(Import.PLE,Detalhamento!$E18,Detalhamento!AH$15)<=mediçao,0,OFFSET(Import.PLQ,$A18-1,AH$15-1,1,1)),OFFSET(Import.PLQ,$A18-1,AH$15-1,1,1)))) -> 0 | AI18: =IF(AI$13="",0,CHOOSE(Detalhamento.OpçãoServiços,OFFSET(Import.PLQ,$A18-1,AI$15-1,1,1),IF(ISNUMBER(INDEX(Import.PLE,Detalhamento!$E18,Detalhamento!AI$15)),IF(INDEX(Import.PLE,Detalhamento!$E18,Detalhamento!AI$15)<=mediçao,OFFSET(Import.PLQ,$A18-1,AI$15-1,1,1),0),0),IF(ISNUMBER(INDEX(Import.PLE,Detalhamento!$E18,Detalhamento!AI$15)),IF(INDEX(Import.PLE,Detalhamento!$E18,Detalhamento!AI$15)<=mediçao,0,OFFSET(Import.PLQ,$A18-1,AI$15-1,1,1)),OFFSET(Import.PLQ,$A18-1,AI$15-1,1,1)))) -> 0 | AJ18: =IF(AJ$13="",0,CHOOSE(Detalhamento.OpçãoServiços,OFFSET(Import.PLQ,$A18-1,AJ$15-1,1,1),IF(ISNUMBER(INDEX(Import.PLE,Detalhamento!$E18,Detalhamento!AJ$15)),IF(INDEX(Import.PLE,Detalhamento!$E18,Detalhamento!AJ$15)<=mediçao,OFFSET(Import.PLQ,$A18-1,AJ$15-1,1,1),0),0),IF(ISNUMBER(INDEX(Import.PLE,Detalhamento!$E18,Detalhamento!AJ$15)),IF(INDEX(Import.PLE,Detalhamento!$E18,Detalhamento!AJ$15)<=mediçao,0,OFFSET(Import.PLQ,$A18-1,AJ$15-1,1,1)),OFFSET(Import.PLQ,$A18-1,AJ$15-1,1,1)))) -> 0 | AK18: =IF(AK$13="",0,CHOOSE(Detalhamento.OpçãoServiços,OFFSET(Import.PLQ,$A18-1,AK$15-1,1,1),IF(ISNUMBER(INDEX(Import.PLE,Detalhamento!$E18,Detalhamento!AK$15)),IF(INDEX(Import.PLE,Detalhamento!$E18,Detalhamento!AK$15)<=mediçao,OFFSET(Import.PLQ,$A18-1,AK$15-1,1,1),0),0),IF(ISNUMBER(INDEX(Import.PLE,Detalhamento!$E18,Detalhamento!AK$15)),IF(INDEX(Import.PLE,Detalhamento!$E18,Detalhamento!AK$15)<=mediçao,0,OFFSET(Import.PLQ,$A18-1,AK$15-1,1,1)),OFFSET(Import.PLQ,$A18-1,AK$15-1,1,1)))) -> 0 | AL18: =IF(AL$13="",0,CHOOSE(Detalhamento.OpçãoServiços,OFFSET(Import.PLQ,$A18-1,AL$15-1,1,1),IF(ISNUMBER(INDEX(Import.PLE,Detalhamento!$E18,Detalhamento!AL$15)),IF(INDEX(Import.PLE,Detalhamento!$E18,Detalhamento!AL$15)<=mediçao,OFFSET(Import.PLQ,$A18-1,AL$15-1,1,1),0),0),IF(ISNUMBER(INDEX(Import.PLE,Detalhamento!$E18,Detalhamento!AL$15)),IF(INDEX(Import.PLE,Detalhamento!$E18,Detalhamento!AL$15)<=mediçao,0,OFFSET(Import.PLQ,$A18-1,AL$15-1,1,1)),OFFSET(Import.PLQ,$A18-1,AL$15-1,1,1)))) -> 0 | AM18: =IF(AM$13="",0,CHOOSE(Detalhamento.OpçãoServiços,OFFSET(Import.PLQ,$A18-1,AM$15-1,1,1),IF(ISNUMBER(INDEX(Import.PLE,Detalhamento!$E18,Detalhamento!AM$15)),IF(INDEX(Import.PLE,Detalhamento!$E18,Detalhamento!AM$15)<=mediçao,OFFSET(Import.PLQ,$A18-1,AM$15-1,1,1),0),0),IF(ISNUMBER(INDEX(Import.PLE,Detalhamento!$E18,Detalhamento!AM$15)),IF(INDEX(Import.PLE,Detalhamento!$E18,Detalhamento!AM$15)<=mediçao,0,OFFSET(Import.PLQ,$A18-1,AM$15-1,1,1)),OFFSET(Import.PLQ,$A18-1,AM$15-1,1,1)))) -> 0 | AN18: =IF(AN$13="",0,CHOOSE(Detalhamento.OpçãoServiços,OFFSET(Import.PLQ,$A18-1,AN$15-1,1,1),IF(ISNUMBER(INDEX(Import.PLE,Detalhamento!$E18,Detalhamento!AN$15)),IF(INDEX(Import.PLE,Detalhamento!$E18,Detalhamento!AN$15)<=mediçao,OFFSET(Import.PLQ,$A18-1,AN$15-1,1,1),0),0),IF(ISNUMBER(INDEX(Import.PLE,Detalhamento!$E18,Detalhamento!AN$15)),IF(INDEX(Import.PLE,Detalhamento!$E18,Detalhamento!AN$15)<=mediçao,0,OFFSET(Import.PLQ,$A18-1,AN$15-1,1,1)),OFFSET(Import.PLQ,$A18-1,AN$15-1,1,1)))) -> 0 | AO18: =IF(AO$13="",0,CHOOSE(Detalhamento.OpçãoServiços,OFFSET(Import.PLQ,$A18-1,AO$15-1,1,1),IF(ISNUMBER(INDEX(Import.PLE,Detalhamento!$E18,Detalhamento!AO$15)),IF(INDEX(Import.PLE,Detalhamento!$E18,Detalhamento!AO$15)<=mediçao,OFFSET(Import.PLQ,$A18-1,AO$15-1,1,1),0),0),IF(ISNUMBER(INDEX(Import.PLE,Detalhamento!$E18,Detalhamento!AO$15)),IF(INDEX(Import.PLE,Detalhamento!$E18,Detalhamento!AO$15)<=mediçao,0,OFFSET(Import.PLQ,$A18-1,AO$15-1,1,1)),OFFSET(Import.PLQ,$A18-1,AO$15-1,1,1)))) -> 0 | AP18: =IF(AP$13="",0,CHOOSE(Detalhamento.OpçãoServiços,OFFSET(Import.PLQ,$A18-1,AP$15-1,1,1),IF(ISNUMBER(INDEX(Import.PLE,Detalhamento!$E18,Detalhamento!AP$15)),IF(INDEX(Import.PLE,Detalhamento!$E18,Detalhamento!AP$15)<=mediçao,OFFSET(Import.PLQ,$A18-1,AP$15-1,1,1),0),0),IF(ISNUMBER(INDEX(Import.PLE,Detalhamento!$E18,Detalhamento!AP$15)),IF(INDEX(Import.PLE,Detalhamento!$E18,Detalhamento!AP$15)<=mediçao,0,OFFSET(Import.PLQ,$A18-1,AP$15-1,1,1)),OFFSET(Import.PLQ,$A18-1,AP$15-1,1,1)))) -> 0 | AQ18: =IF(AQ$13="",0,CHOOSE(Detalhamento.OpçãoServiços,OFFSET(Import.PLQ,$A18-1,AQ$15-1,1,1),IF(ISNUMBER(INDEX(Import.PLE,Detalhamento!$E18,Detalhamento!AQ$15)),IF(INDEX(Import.PLE,Detalhamento!$E18,Detalhamento!AQ$15)<=mediçao,OFFSET(Import.PLQ,$A18-1,AQ$15-1,1,1),0),0),IF(ISNUMBER(INDEX(Import.PLE,Detalhamento!$E18,Detalhamento!AQ$15)),IF(INDEX(Import.PLE,Detalhamento!$E18,Detalhamento!AQ$15)<=mediçao,0,OFFSET(Import.PLQ,$A18-1,AQ$15-1,1,1)),OFFSET(Import.PLQ,$A18-1,AQ$15-1,1,1)))) -> 0 | AR18: =IF(AR$13="",0,CHOOSE(Detalhamento.OpçãoServiços,OFFSET(Import.PLQ,$A18-1,AR$15-1,1,1),IF(ISNUMBER(INDEX(Import.PLE,Detalhamento!$E18,Detalhamento!AR$15)),IF(INDEX(Import.PLE,Detalhamento!$E18,Detalhamento!AR$15)<=mediçao,OFFSET(Import.PLQ,$A18-1,AR$15-1,1,1),0),0),IF(ISNUMBER(INDEX(Import.PLE,Detalhamento!$E18,Detalhamento!AR$15)),IF(INDEX(Import.PLE,Detalhamento!$E18,Detalhamento!AR$15)<=mediçao,0,OFFSET(Import.PLQ,$A18-1,AR$15-1,1,1)),OFFSET(Import.PLQ,$A18-1,AR$15-1,1,1)))) -> 0 | AS18: =IF(AS$13="",0,CHOOSE(Detalhamento.OpçãoServiços,OFFSET(Import.PLQ,$A18-1,AS$15-1,1,1),IF(ISNUMBER(INDEX(Import.PLE,Detalhamento!$E18,Detalhamento!AS$15)),IF(INDEX(Import.PLE,Detalhamento!$E18,Detalhamento!AS$15)<=mediçao,OFFSET(Import.PLQ,$A18-1,AS$15-1,1,1),0),0),IF(ISNUMBER(INDEX(Import.PLE,Detalhamento!$E18,Detalhamento!AS$15)),IF(INDEX(Import.PLE,Detalhamento!$E18,Detalhamento!AS$15)<=mediçao,0,OFFSET(Import.PLQ,$A18-1,AS$15-1,1,1)),OFFSET(Import.PLQ,$A18-1,AS$15-1,1,1)))) -> 0 | AT18: =IF(AT$13="",0,CHOOSE(Detalhamento.OpçãoServiços,OFFSET(Import.PLQ,$A18-1,AT$15-1,1,1),IF(ISNUMBER(INDEX(Import.PLE,Detalhamento!$E18,Detalhamento!AT$15)),IF(INDEX(Import.PLE,Detalhamento!$E18,Detalhamento!AT$15)<=mediçao,OFFSET(Import.PLQ,$A18-1,AT$15-1,1,1),0),0),IF(ISNUMBER(INDEX(Import.PLE,Detalhamento!$E18,Detalhamento!AT$15)),IF(INDEX(Import.PLE,Detalhamento!$E18,Detalhamento!AT$15)<=mediçao,0,OFFSET(Import.PLQ,$A18-1,AT$15-1,1,1)),OFFSET(Import.PLQ,$A18-1,AT$15-1,1,1)))) -> 0 | AU18: =IF(AU$13="",0,CHOOSE(Detalhamento.OpçãoServiços,OFFSET(Import.PLQ,$A18-1,AU$15-1,1,1),IF(ISNUMBER(INDEX(Import.PLE,Detalhamento!$E18,Detalhamento!AU$15)),IF(INDEX(Import.PLE,Detalhamento!$E18,Detalhamento!AU$15)<=mediçao,OFFSET(Import.PLQ,$A18-1,AU$15-1,1,1),0),0),IF(ISNUMBER(INDEX(Import.PLE,Detalhamento!$E18,Detalhamento!AU$15)),IF(INDEX(Import.PLE,Detalhamento!$E18,Detalhamento!AU$15)<=mediçao,0,OFFSET(Import.PLQ,$A18-1,AU$15-1,1,1)),OFFSET(Import.PLQ,$A18-1,AU$15-1,1,1)))) -> 0 | AV18: =IF(AV$13="",0,CHOOSE(Detalhamento.OpçãoServiços,OFFSET(Import.PLQ,$A18-1,AV$15-1,1,1),IF(ISNUMBER(INDEX(Import.PLE,Detalhamento!$E18,Detalhamento!AV$15)),IF(INDEX(Import.PLE,Detalhamento!$E18,Detalhamento!AV$15)<=mediçao,OFFSET(Import.PLQ,$A18-1,AV$15-1,1,1),0),0),IF(ISNUMBER(INDEX(Import.PLE,Detalhamento!$E18,Detalhamento!AV$15)),IF(INDEX(Import.PLE,Detalhamento!$E18,Detalhamento!AV$15)<=mediçao,0,OFFSET(Import.PLQ,$A18-1,AV$15-1,1,1)),OFFSET(Import.PLQ,$A18-1,AV$15-1,1,1)))) -> 0 | AW18: =IF(AW$13="",0,CHOOSE(Detalhamento.OpçãoServiços,OFFSET(Import.PLQ,$A18-1,AW$15-1,1,1),IF(ISNUMBER(INDEX(Import.PLE,Detalhamento!$E18,Detalhamento!AW$15)),IF(INDEX(Import.PLE,Detalhamento!$E18,Detalhamento!AW$15)<=mediçao,OFFSET(Import.PLQ,$A18-1,AW$15-1,1,1),0),0),IF(ISNUMBER(INDEX(Import.PLE,Detalhamento!$E18,Detalhamento!AW$15)),IF(INDEX(Import.PLE,Detalhamento!$E18,Detalhamento!AW$15)<=mediçao,0,OFFSET(Import.PLQ,$A18-1,AW$15-1,1,1)),OFFSET(Import.PLQ,$A18-1,AW$15-1,1,1)))) -> 0 | AX18: =IF(AX$13="",0,CHOOSE(Detalhamento.OpçãoServiços,OFFSET(Import.PLQ,$A18-1,AX$15-1,1,1),IF(ISNUMBER(INDEX(Import.PLE,Detalhamento!$E18,Detalhamento!AX$15)),IF(INDEX(Import.PLE,Detalhamento!$E18,Detalhamento!AX$15)<=mediçao,OFFSET(Import.PLQ,$A18-1,AX$15-1,1,1),0),0),IF(ISNUMBER(INDEX(Import.PLE,Detalhamento!$E18,Detalhamento!AX$15)),IF(INDEX(Import.PLE,Detalhamento!$E18,Detalhamento!AX$15)<=mediçao,0,OFFSET(Import.PLQ,$A18-1,AX$15-1,1,1)),OFFSET(Import.PLQ,$A18-1,AX$15-1,1,1)))) -> 0 | AY18: =IF(AY$13="",0,CHOOSE(Detalhamento.OpçãoServiços,OFFSET(Import.PLQ,$A18-1,AY$15-1,1,1),IF(ISNUMBER(INDEX(Import.PLE,Detalhamento!$E18,Detalhamento!AY$15)),IF(INDEX(Import.PLE,Detalhamento!$E18,Detalhamento!AY$15)<=mediçao,OFFSET(Import.PLQ,$A18-1,AY$15-1,1,1),0),0),IF(ISNUMBER(INDEX(Import.PLE,Detalhamento!$E18,Detalhamento!AY$15)),IF(INDEX(Import.PLE,Detalhamento!$E18,Detalhamento!AY$15)<=mediçao,0,OFFSET(Import.PLQ,$A18-1,AY$15-1,1,1)),OFFSET(Import.PLQ,$A18-1,AY$15-1,1,1)))) -> 0 | AZ18: =IF(AZ$13="",0,CHOOSE(Detalhamento.OpçãoServiços,OFFSET(Import.PLQ,$A18-1,AZ$15-1,1,1),IF(ISNUMBER(INDEX(Import.PLE,Detalhamento!$E18,Detalhamento!AZ$15)),IF(INDEX(Import.PLE,Detalhamento!$E18,Detalhamento!AZ$15)<=mediçao,OFFSET(Import.PLQ,$A18-1,AZ$15-1,1,1),0),0),IF(ISNUMBER(INDEX(Import.PLE,Detalhamento!$E18,Detalhamento!AZ$15)),IF(INDEX(Import.PLE,Detalhamento!$E18,Detalhamento!AZ$15)<=mediçao,0,OFFSET(Import.PLQ,$A18-1,AZ$15-1,1,1)),OFFSET(Import.PLQ,$A18-1,AZ$15-1,1,1)))) -> 0 | BA18: =IF(BA$13="",0,CHOOSE(Detalhamento.OpçãoServiços,OFFSET(Import.PLQ,$A18-1,BA$15-1,1,1),IF(ISNUMBER(INDEX(Import.PLE,Detalhamento!$E18,Detalhamento!BA$15)),IF(INDEX(Import.PLE,Detalhamento!$E18,Detalhamento!BA$15)<=mediçao,OFFSET(Import.PLQ,$A18-1,BA$15-1,1,1),0),0),IF(ISNUMBER(INDEX(Import.PLE,Detalhamento!$E18,Detalhamento!BA$15)),IF(INDEX(Import.PLE,Detalhamento!$E18,Detalhamento!BA$15)<=mediçao,0,OFFSET(Import.PLQ,$A18-1,BA$15-1,1,1)),OFFSET(Import.PLQ,$A18-1,BA$15-1,1,1)))) -> 0 | BB18: =IF(BB$13="",0,CHOOSE(Detalhamento.OpçãoServiços,OFFSET(Import.PLQ,$A18-1,BB$15-1,1,1),IF(ISNUMBER(INDEX(Import.PLE,Detalhamento!$E18,Detalhamento!BB$15)),IF(INDEX(Import.PLE,Detalhamento!$E18,Detalhamento!BB$15)<=mediçao,OFFSET(Import.PLQ,$A18-1,BB$15-1,1,1),0),0),IF(ISNUMBER(INDEX(Import.PLE,Detalhamento!$E18,Detalhamento!BB$15)),IF(INDEX(Import.PLE,Detalhamento!$E18,Detalhamento!BB$15)<=mediçao,0,OFFSET(Import.PLQ,$A18-1,BB$15-1,1,1)),OFFSET(Import.PLQ,$A18-1,BB$15-1,1,1)))) -> 0 | BC18: =IF(BC$13="",0,CHOOSE(Detalhamento.OpçãoServiços,OFFSET(Import.PLQ,$A18-1,BC$15-1,1,1),IF(ISNUMBER(INDEX(Import.PLE,Detalhamento!$E18,Detalhamento!BC$15)),IF(INDEX(Import.PLE,Detalhamento!$E18,Detalhamento!BC$15)<=mediçao,OFFSET(Import.PLQ,$A18-1,BC$15-1,1,1),0),0),IF(ISNUMBER(INDEX(Import.PLE,Detalhamento!$E18,Detalhamento!BC$15)),IF(INDEX(Import.PLE,Detalhamento!$E18,Detalhamento!BC$15)<=mediçao,0,OFFSET(Import.PLQ,$A18-1,BC$15-1,1,1)),OFFSET(Import.PLQ,$A18-1,BC$15-1,1,1)))) -> 0 | BD18: =IF(BD$13="",0,CHOOSE(Detalhamento.OpçãoServiços,OFFSET(Import.PLQ,$A18-1,BD$15-1,1,1),IF(ISNUMBER(INDEX(Import.PLE,Detalhamento!$E18,Detalhamento!BD$15)),IF(INDEX(Import.PLE,Detalhamento!$E18,Detalhamento!BD$15)<=mediçao,OFFSET(Import.PLQ,$A18-1,BD$15-1,1,1),0),0),IF(ISNUMBER(INDEX(Import.PLE,Detalhamento!$E18,Detalhamento!BD$15)),IF(INDEX(Import.PLE,Detalhamento!$E18,Detalhamento!BD$15)<=mediçao,0,OFFSET(Import.PLQ,$A18-1,BD$15-1,1,1)),OFFSET(Import.PLQ,$A18-1,BD$15-1,1,1)))) -> 0 | BE18: =IF(BE$13="",0,CHOOSE(Detalhamento.OpçãoServiços,OFFSET(Import.PLQ,$A18-1,BE$15-1,1,1),IF(ISNUMBER(INDEX(Import.PLE,Detalhamento!$E18,Detalhamento!BE$15)),IF(INDEX(Import.PLE,Detalhamento!$E18,Detalhamento!BE$15)<=mediçao,OFFSET(Import.PLQ,$A18-1,BE$15-1,1,1),0),0),IF(ISNUMBER(INDEX(Import.PLE,Detalhamento!$E18,Detalhamento!BE$15)),IF(INDEX(Import.PLE,Detalhamento!$E18,Detalhamento!BE$15)<=mediçao,0,OFFSET(Import.PLQ,$A18-1,BE$15-1,1,1)),OFFSET(Import.PLQ,$A18-1,BE$15-1,1,1)))) -> 0 | BF18: =IF(BF$13="",0,CHOOSE(Detalhamento.OpçãoServiços,OFFSET(Import.PLQ,$A18-1,BF$15-1,1,1),IF(ISNUMBER(INDEX(Import.PLE,Detalhamento!$E18,Detalhamento!BF$15)),IF(INDEX(Import.PLE,Detalhamento!$E18,Detalhamento!BF$15)<=mediçao,OFFSET(Import.PLQ,$A18-1,BF$15-1,1,1),0),0),IF(ISNUMBER(INDEX(Import.PLE,Detalhamento!$E18,Detalhamento!BF$15)),IF(INDEX(Import.PLE,Detalhamento!$E18,Detalhamento!BF$15)<=mediçao,0,OFFSET(Import.PLQ,$A18-1,BF$15-1,1,1)),OFFSET(Import.PLQ,$A18-1,BF$15-1,1,1)))) -> 0 | BG18: =IF(BG$13="",0,CHOOSE(Detalhamento.OpçãoServiços,OFFSET(Import.PLQ,$A18-1,BG$15-1,1,1),IF(ISNUMBER(INDEX(Import.PLE,Detalhamento!$E18,Detalhamento!BG$15)),IF(INDEX(Import.PLE,Detalhamento!$E18,Detalhamento!BG$15)<=mediçao,OFFSET(Import.PLQ,$A18-1,BG$15-1,1,1),0),0),IF(ISNUMBER(INDEX(Import.PLE,Detalhamento!$E18,Detalhamento!BG$15)),IF(INDEX(Import.PLE,Detalhamento!$E18,Detalhamento!BG$15)<=mediçao,0,OFFSET(Import.PLQ,$A18-1,BG$15-1,1,1)),OFFSET(Import.PLQ,$A18-1,BG$15-1,1,1)))) -> 0 | BH18: =IF(BH$13="",0,CHOOSE(Detalhamento.OpçãoServiços,OFFSET(Import.PLQ,$A18-1,BH$15-1,1,1),IF(ISNUMBER(INDEX(Import.PLE,Detalhamento!$E18,Detalhamento!BH$15)),IF(INDEX(Import.PLE,Detalhamento!$E18,Detalhamento!BH$15)<=mediçao,OFFSET(Import.PLQ,$A18-1,BH$15-1,1,1),0),0),IF(ISNUMBER(INDEX(Import.PLE,Detalhamento!$E18,Detalhamento!BH$15)),IF(INDEX(Import.PLE,Detalhamento!$E18,Detalhamento!BH$15)<=mediçao,0,OFFSET(Import.PLQ,$A18-1,BH$15-1,1,1)),OFFSET(Import.PLQ,$A18-1,BH$15-1,1,1)))) -> 0 | BI18: =IF(BI$13="",0,CHOOSE(Detalhamento.OpçãoServiços,OFFSET(Import.PLQ,$A18-1,BI$15-1,1,1),IF(ISNUMBER(INDEX(Import.PLE,Detalhamento!$E18,Detalhamento!BI$15)),IF(INDEX(Import.PLE,Detalhamento!$E18,Detalhamento!BI$15)<=mediçao,OFFSET(Import.PLQ,$A18-1,BI$15-1,1,1),0),0),IF(ISNUMBER(INDEX(Import.PLE,Detalhamento!$E18,Detalhamento!BI$15)),IF(INDEX(Import.PLE,Detalhamento!$E18,Detalhamento!BI$15)<=mediçao,0,OFFSET(Import.PLQ,$A18-1,BI$15-1,1,1)),OFFSET(Import.PLQ,$A18-1,BI$15-1,1,1)))) -> 0
A19: 40 | B19: =OFFSET(LIorçamento,$A19-1,B$16,1,1) -> Evento | E19: =OFFSET(LIorçamento,$A19-1,E$16,1,1) -> 1 | F19: =CHOOSE($B$8,IF(OR(Nível="Serviço",Nível="Evento"),E19*10^4+IF(Nível<>"Evento",A19,0),0),IF(Nível<>"Evento",A19,0)) -> 10000 | G19: =OFFSET(LIorçamento,$A19-1,G$16,1,1) -> Evento | H19: SERVIÇOS INICIAIS | I19: =IF(OR(Nível="Serviço",Nível="evento"),OFFSET(LIorçamento,$A19-1,I$16,1,1),"") -> R$ | J19: =IF(OR(Nível="Serviço",Nível="evento"),SUM(L19:BI19),"") -> 2893.25 | L19: =IF(L$13="",0,CHOOSE(Detalhamento.OpçãoServiços,OFFSET(Import.PLQ,$A19-1,L$15-1,1,1),IF(ISNUMBER(INDEX(Import.PLE,Detalhamento!$E19,Detalhamento!L$15)),IF(INDEX(Import.PLE,Detalhamento!$E19,Detalhamento!L$15)<=mediçao,OFFSET(Import.PLQ,$A19-1,L$15-1,1,1),0),0),IF(ISNUMBER(INDEX(Import.PLE,Detalhamento!$E19,Detalhamento!L$15)),IF(INDEX(Import.PLE,Detalhamento!$E19,Detalhamento!L$15)<=mediçao,0,OFFSET(Import.PLQ,$A19-1,L$15-1,1,1)),OFFSET(Import.PLQ,$A19-1,L$15-1,1,1)))) -> 2893.25 | M19: =IF(M$13="",0,CHOOSE(Detalhamento.OpçãoServiços,OFFSET(Import.PLQ,$A19-1,M$15-1,1,1),IF(ISNUMBER(INDEX(Import.PLE,Detalhamento!$E19,Detalhamento!M$15)),IF(INDEX(Import.PLE,Detalhamento!$E19,Detalhamento!M$15)<=mediçao,OFFSET(Import.PLQ,$A19-1,M$15-1,1,1),0),0),IF(ISNUMBER(INDEX(Import.PLE,Detalhamento!$E19,Detalhamento!M$15)),IF(INDEX(Import.PLE,Detalhamento!$E19,Detalhamento!M$15)<=mediçao,0,OFFSET(Import.PLQ,$A19-1,M$15-1,1,1)),OFFSET(Import.PLQ,$A19-1,M$15-1,1,1)))) -> 0 | N19: =IF(N$13="",0,CHOOSE(Detalhamento.OpçãoServiços,OFFSET(Import.PLQ,$A19-1,N$15-1,1,1),IF(ISNUMBER(INDEX(Import.PLE,Detalhamento!$E19,Detalhamento!N$15)),IF(INDEX(Import.PLE,Detalhamento!$E19,Detalhamento!N$15)<=mediçao,OFFSET(Import.PLQ,$A19-1,N$15-1,1,1),0),0),IF(ISNUMBER(INDEX(Import.PLE,Detalhamento!$E19,Detalhamento!N$15)),IF(INDEX(Import.PLE,Detalhamento!$E19,Detalhamento!N$15)<=mediçao,0,OFFSET(Import.PLQ,$A19-1,N$15-1,1,1)),OFFSET(Import.PLQ,$A19-1,N$15-1,1,1)))) -> 0 | O19: =IF(O$13="",0,CHOOSE(Detalhamento.OpçãoServiços,OFFSET(Import.PLQ,$A19-1,O$15-1,1,1),IF(ISNUMBER(INDEX(Import.PLE,Detalhamento!$E19,Detalhamento!O$15)),IF(INDEX(Import.PLE,Detalhamento!$E19,Detalhamento!O$15)<=mediçao,OFFSET(Import.PLQ,$A19-1,O$15-1,1,1),0),0),IF(ISNUMBER(INDEX(Import.PLE,Detalhamento!$E19,Detalhamento!O$15)),IF(INDEX(Import.PLE,Detalhamento!$E19,Detalhamento!O$15)<=mediçao,0,OFFSET(Import.PLQ,$A19-1,O$15-1,1,1)),OFFSET(Import.PLQ,$A19-1,O$15-1,1,1)))) -> 0 | P19: =IF(P$13="",0,CHOOSE(Detalhamento.OpçãoServiços,OFFSET(Import.PLQ,$A19-1,P$15-1,1,1),IF(ISNUMBER(INDEX(Import.PLE,Detalhamento!$E19,Detalhamento!P$15)),IF(INDEX(Import.PLE,Detalhamento!$E19,Detalhamento!P$15)<=mediçao,OFFSET(Import.PLQ,$A19-1,P$15-1,1,1),0),0),IF(ISNUMBER(INDEX(Import.PLE,Detalhamento!$E19,Detalhamento!P$15)),IF(INDEX(Import.PLE,Detalhamento!$E19,Detalhamento!P$15)<=mediçao,0,OFFSET(Import.PLQ,$A19-1,P$15-1,1,1)),OFFSET(Import.PLQ,$A19-1,P$15-1,1,1)))) -> 0 | Q19: =IF(Q$13="",0,CHOOSE(Detalhamento.OpçãoServiços,OFFSET(Import.PLQ,$A19-1,Q$15-1,1,1),IF(ISNUMBER(INDEX(Import.PLE,Detalhamento!$E19,Detalhamento!Q$15)),IF(INDEX(Import.PLE,Detalhamento!$E19,Detalhamento!Q$15)<=mediçao,OFFSET(Import.PLQ,$A19-1,Q$15-1,1,1),0),0),IF(ISNUMBER(INDEX(Import.PLE,Detalhamento!$E19,Detalhamento!Q$15)),IF(INDEX(Import.PLE,Detalhamento!$E19,Detalhamento!Q$15)<=mediçao,0,OFFSET(Import.PLQ,$A19-1,Q$15-1,1,1)),OFFSET(Import.PLQ,$A19-1,Q$15-1,1,1)))) -> 0 | R19: =IF(R$13="",0,CHOOSE(Detalhamento.OpçãoServiços,OFFSET(Import.PLQ,$A19-1,R$15-1,1,1),IF(ISNUMBER(INDEX(Import.PLE,Detalhamento!$E19,Detalhamento!R$15)),IF(INDEX(Import.PLE,Detalhamento!$E19,Detalhamento!R$15)<=mediçao,OFFSET(Import.PLQ,$A19-1,R$15-1,1,1),0),0),IF(ISNUMBER(INDEX(Import.PLE,Detalhamento!$E19,Detalhamento!R$15)),IF(INDEX(Import.PLE,Detalhamento!$E19,Detalhamento!R$15)<=mediçao,0,OFFSET(Import.PLQ,$A19-1,R$15-1,1,1)),OFFSET(Import.PLQ,$A19-1,R$15-1,1,1)))) -> 0 | S19: =IF(S$13="",0,CHOOSE(Detalhamento.OpçãoServiços,OFFSET(Import.PLQ,$A19-1,S$15-1,1,1),IF(ISNUMBER(INDEX(Import.PLE,Detalhamento!$E19,Detalhamento!S$15)),IF(INDEX(Import.PLE,Detalhamento!$E19,Detalhamento!S$15)<=mediçao,OFFSET(Import.PLQ,$A19-1,S$15-1,1,1),0),0),IF(ISNUMBER(INDEX(Import.PLE,Detalhamento!$E19,Detalhamento!S$15)),IF(INDEX(Import.PLE,Detalhamento!$E19,Detalhamento!S$15)<=mediçao,0,OFFSET(Import.PLQ,$A19-1,S$15-1,1,1)),OFFSET(Import.PLQ,$A19-1,S$15-1,1,1)))) -> 0 | T19: =IF(T$13="",0,CHOOSE(Detalhamento.OpçãoServiços,OFFSET(Import.PLQ,$A19-1,T$15-1,1,1),IF(ISNUMBER(INDEX(Import.PLE,Detalhamento!$E19,Detalhamento!T$15)),IF(INDEX(Import.PLE,Detalhamento!$E19,Detalhamento!T$15)<=mediçao,OFFSET(Import.PLQ,$A19-1,T$15-1,1,1),0),0),IF(ISNUMBER(INDEX(Import.PLE,Detalhamento!$E19,Detalhamento!T$15)),IF(INDEX(Import.PLE,Detalhamento!$E19,Detalhamento!T$15)<=mediçao,0,OFFSET(Import.PLQ,$A19-1,T$15-1,1,1)),OFFSET(Import.PLQ,$A19-1,T$15-1,1,1)))) -> 0 | U19: =IF(U$13="",0,CHOOSE(Detalhamento.OpçãoServiços,OFFSET(Import.PLQ,$A19-1,U$15-1,1,1),IF(ISNUMBER(INDEX(Import.PLE,Detalhamento!$E19,Detalhamento!U$15)),IF(INDEX(Import.PLE,Detalhamento!$E19,Detalhamento!U$15)<=mediçao,OFFSET(Import.PLQ,$A19-1,U$15-1,1,1),0),0),IF(ISNUMBER(INDEX(Import.PLE,Detalhamento!$E19,Detalhamento!U$15)),IF(INDEX(Import.PLE,Detalhamento!$E19,Detalhamento!U$15)<=mediçao,0,OFFSET(Import.PLQ,$A19-1,U$15-1,1,1)),OFFSET(Import.PLQ,$A19-1,U$15-1,1,1)))) -> 0 | V19: =IF(V$13="",0,CHOOSE(Detalhamento.OpçãoServiços,OFFSET(Import.PLQ,$A19-1,V$15-1,1,1),IF(ISNUMBER(INDEX(Import.PLE,Detalhamento!$E19,Detalhamento!V$15)),IF(INDEX(Import.PLE,Detalhamento!$E19,Detalhamento!V$15)<=mediçao,OFFSET(Import.PLQ,$A19-1,V$15-1,1,1),0),0),IF(ISNUMBER(INDEX(Import.PLE,Detalhamento!$E19,Detalhamento!V$15)),IF(INDEX(Import.PLE,Detalhamento!$E19,Detalhamento!V$15)<=mediçao,0,OFFSET(Import.PLQ,$A19-1,V$15-1,1,1)),OFFSET(Import.PLQ,$A19-1,V$15-1,1,1)))) -> 0 | W19: =IF(W$13="",0,CHOOSE(Detalhamento.OpçãoServiços,OFFSET(Import.PLQ,$A19-1,W$15-1,1,1),IF(ISNUMBER(INDEX(Import.PLE,Detalhamento!$E19,Detalhamento!W$15)),IF(INDEX(Import.PLE,Detalhamento!$E19,Detalhamento!W$15)<=mediçao,OFFSET(Import.PLQ,$A19-1,W$15-1,1,1),0),0),IF(ISNUMBER(INDEX(Import.PLE,Detalhamento!$E19,Detalhamento!W$15)),IF(INDEX(Import.PLE,Detalhamento!$E19,Detalhamento!W$15)<=mediçao,0,OFFSET(Import.PLQ,$A19-1,W$15-1,1,1)),OFFSET(Import.PLQ,$A19-1,W$15-1,1,1)))) -> 0 | X19: =IF(X$13="",0,CHOOSE(Detalhamento.OpçãoServiços,OFFSET(Import.PLQ,$A19-1,X$15-1,1,1),IF(ISNUMBER(INDEX(Import.PLE,Detalhamento!$E19,Detalhamento!X$15)),IF(INDEX(Import.PLE,Detalhamento!$E19,Detalhamento!X$15)<=mediçao,OFFSET(Import.PLQ,$A19-1,X$15-1,1,1),0),0),IF(ISNUMBER(INDEX(Import.PLE,Detalhamento!$E19,Detalhamento!X$15)),IF(INDEX(Import.PLE,Detalhamento!$E19,Detalhamento!X$15)<=mediçao,0,OFFSET(Import.PLQ,$A19-1,X$15-1,1,1)),OFFSET(Import.PLQ,$A19-1,X$15-1,1,1)))) -> 0 | Y19: =IF(Y$13="",0,CHOOSE(Detalhamento.OpçãoServiços,OFFSET(Import.PLQ,$A19-1,Y$15-1,1,1),IF(ISNUMBER(INDEX(Import.PLE,Detalhamento!$E19,Detalhamento!Y$15)),IF(INDEX(Import.PLE,Detalhamento!$E19,Detalhamento!Y$15)<=mediçao,OFFSET(Import.PLQ,$A19-1,Y$15-1,1,1),0),0),IF(ISNUMBER(INDEX(Import.PLE,Detalhamento!$E19,Detalhamento!Y$15)),IF(INDEX(Import.PLE,Detalhamento!$E19,Detalhamento!Y$15)<=mediçao,0,OFFSET(Import.PLQ,$A19-1,Y$15-1,1,1)),OFFSET(Import.PLQ,$A19-1,Y$15-1,1,1)))) -> 0 | Z19: =IF(Z$13="",0,CHOOSE(Detalhamento.OpçãoServiços,OFFSET(Import.PLQ,$A19-1,Z$15-1,1,1),IF(ISNUMBER(INDEX(Import.PLE,Detalhamento!$E19,Detalhamento!Z$15)),IF(INDEX(Import.PLE,Detalhamento!$E19,Detalhamento!Z$15)<=mediçao,OFFSET(Import.PLQ,$A19-1,Z$15-1,1,1),0),0),IF(ISNUMBER(INDEX(Import.PLE,Detalhamento!$E19,Detalhamento!Z$15)),IF(INDEX(Import.PLE,Detalhamento!$E19,Detalhamento!Z$15)<=mediçao,0,OFFSET(Import.PLQ,$A19-1,Z$15-1,1,1)),OFFSET(Import.PLQ,$A19-1,Z$15-1,1,1)))) -> 0 | AA19: =IF(AA$13="",0,CHOOSE(Detalhamento.OpçãoServiços,OFFSET(Import.PLQ,$A19-1,AA$15-1,1,1),IF(ISNUMBER(INDEX(Import.PLE,Detalhamento!$E19,Detalhamento!AA$15)),IF(INDEX(Import.PLE,Detalhamento!$E19,Detalhamento!AA$15)<=mediçao,OFFSET(Import.PLQ,$A19-1,AA$15-1,1,1),0),0),IF(ISNUMBER(INDEX(Import.PLE,Detalhamento!$E19,Detalhamento!AA$15)),IF(INDEX(Import.PLE,Detalhamento!$E19,Detalhamento!AA$15)<=mediçao,0,OFFSET(Import.PLQ,$A19-1,AA$15-1,1,1)),OFFSET(Import.PLQ,$A19-1,AA$15-1,1,1)))) -> 0 | AB19: =IF(AB$13="",0,CHOOSE(Detalhamento.OpçãoServiços,OFFSET(Import.PLQ,$A19-1,AB$15-1,1,1),IF(ISNUMBER(INDEX(Import.PLE,Detalhamento!$E19,Detalhamento!AB$15)),IF(INDEX(Import.PLE,Detalhamento!$E19,Detalhamento!AB$15)<=mediçao,OFFSET(Import.PLQ,$A19-1,AB$15-1,1,1),0),0),IF(ISNUMBER(INDEX(Import.PLE,Detalhamento!$E19,Detalhamento!AB$15)),IF(INDEX(Import.PLE,Detalhamento!$E19,Detalhamento!AB$15)<=mediçao,0,OFFSET(Import.PLQ,$A19-1,AB$15-1,1,1)),OFFSET(Import.PLQ,$A19-1,AB$15-1,1,1)))) -> 0 | AC19: =IF(AC$13="",0,CHOOSE(Detalhamento.OpçãoServiços,OFFSET(Import.PLQ,$A19-1,AC$15-1,1,1),IF(ISNUMBER(INDEX(Import.PLE,Detalhamento!$E19,Detalhamento!AC$15)),IF(INDEX(Import.PLE,Detalhamento!$E19,Detalhamento!AC$15)<=mediçao,OFFSET(Import.PLQ,$A19-1,AC$15-1,1,1),0),0),IF(ISNUMBER(INDEX(Import.PLE,Detalhamento!$E19,Detalhamento!AC$15)),IF(INDEX(Import.PLE,Detalhamento!$E19,Detalhamento!AC$15)<=mediçao,0,OFFSET(Import.PLQ,$A19-1,AC$15-1,1,1)),OFFSET(Import.PLQ,$A19-1,AC$15-1,1,1)))) -> 0 | AD19: =IF(AD$13="",0,CHOOSE(Detalhamento.OpçãoServiços,OFFSET(Import.PLQ,$A19-1,AD$15-1,1,1),IF(ISNUMBER(INDEX(Import.PLE,Detalhamento!$E19,Detalhamento!AD$15)),IF(INDEX(Import.PLE,Detalhamento!$E19,Detalhamento!AD$15)<=mediçao,OFFSET(Import.PLQ,$A19-1,AD$15-1,1,1),0),0),IF(ISNUMBER(INDEX(Import.PLE,Detalhamento!$E19,Detalhamento!AD$15)),IF(INDEX(Import.PLE,Detalhamento!$E19,Detalhamento!AD$15)<=mediçao,0,OFFSET(Import.PLQ,$A19-1,AD$15-1,1,1)),OFFSET(Import.PLQ,$A19-1,AD$15-1,1,1)))) -> 0 | AE19: =IF(AE$13="",0,CHOOSE(Detalhamento.OpçãoServiços,OFFSET(Import.PLQ,$A19-1,AE$15-1,1,1),IF(ISNUMBER(INDEX(Import.PLE,Detalhamento!$E19,Detalhamento!AE$15)),IF(INDEX(Import.PLE,Detalhamento!$E19,Detalhamento!AE$15)<=mediçao,OFFSET(Import.PLQ,$A19-1,AE$15-1,1,1),0),0),IF(ISNUMBER(INDEX(Import.PLE,Detalhamento!$E19,Detalhamento!AE$15)),IF(INDEX(Import.PLE,Detalhamento!$E19,Detalhamento!AE$15)<=mediçao,0,OFFSET(Import.PLQ,$A19-1,AE$15-1,1,1)),OFFSET(Import.PLQ,$A19-1,AE$15-1,1,1)))) -> 0 | AF19: =IF(AF$13="",0,CHOOSE(Detalhamento.OpçãoServiços,OFFSET(Import.PLQ,$A19-1,AF$15-1,1,1),IF(ISNUMBER(INDEX(Import.PLE,Detalhamento!$E19,Detalhamento!AF$15)),IF(INDEX(Import.PLE,Detalhamento!$E19,Detalhamento!AF$15)<=mediçao,OFFSET(Import.PLQ,$A19-1,AF$15-1,1,1),0),0),IF(ISNUMBER(INDEX(Import.PLE,Detalhamento!$E19,Detalhamento!AF$15)),IF(INDEX(Import.PLE,Detalhamento!$E19,Detalhamento!AF$15)<=mediçao,0,OFFSET(Import.PLQ,$A19-1,AF$15-1,1,1)),OFFSET(Import.PLQ,$A19-1,AF$15-1,1,1)))) -> 0 | AG19: =IF(AG$13="",0,CHOOSE(Detalhamento.OpçãoServiços,OFFSET(Import.PLQ,$A19-1,AG$15-1,1,1),IF(ISNUMBER(INDEX(Import.PLE,Detalhamento!$E19,Detalhamento!AG$15)),IF(INDEX(Import.PLE,Detalhamento!$E19,Detalhamento!AG$15)<=mediçao,OFFSET(Import.PLQ,$A19-1,AG$15-1,1,1),0),0),IF(ISNUMBER(INDEX(Import.PLE,Detalhamento!$E19,Detalhamento!AG$15)),IF(INDEX(Import.PLE,Detalhamento!$E19,Detalhamento!AG$15)<=mediçao,0,OFFSET(Import.PLQ,$A19-1,AG$15-1,1,1)),OFFSET(Import.PLQ,$A19-1,AG$15-1,1,1)))) -> 0 | AH19: =IF(AH$13="",0,CHOOSE(Detalhamento.OpçãoServiços,OFFSET(Import.PLQ,$A19-1,AH$15-1,1,1),IF(ISNUMBER(INDEX(Import.PLE,Detalhamento!$E19,Detalhamento!AH$15)),IF(INDEX(Import.PLE,Detalhamento!$E19,Detalhamento!AH$15)<=mediçao,OFFSET(Import.PLQ,$A19-1,AH$15-1,1,1),0),0),IF(ISNUMBER(INDEX(Import.PLE,Detalhamento!$E19,Detalhamento!AH$15)),IF(INDEX(Import.PLE,Detalhamento!$E19,Detalhamento!AH$15)<=mediçao,0,OFFSET(Import.PLQ,$A19-1,AH$15-1,1,1)),OFFSET(Import.PLQ,$A19-1,AH$15-1,1,1)))) -> 0 | AI19: =IF(AI$13="",0,CHOOSE(Detalhamento.OpçãoServiços,OFFSET(Import.PLQ,$A19-1,AI$15-1,1,1),IF(ISNUMBER(INDEX(Import.PLE,Detalhamento!$E19,Detalhamento!AI$15)),IF(INDEX(Import.PLE,Detalhamento!$E19,Detalhamento!AI$15)<=mediçao,OFFSET(Import.PLQ,$A19-1,AI$15-1,1,1),0),0),IF(ISNUMBER(INDEX(Import.PLE,Detalhamento!$E19,Detalhamento!AI$15)),IF(INDEX(Import.PLE,Detalhamento!$E19,Detalhamento!AI$15)<=mediçao,0,OFFSET(Import.PLQ,$A19-1,AI$15-1,1,1)),OFFSET(Import.PLQ,$A19-1,AI$15-1,1,1)))) -> 0 | AJ19: =IF(AJ$13="",0,CHOOSE(Detalhamento.OpçãoServiços,OFFSET(Import.PLQ,$A19-1,AJ$15-1,1,1),IF(ISNUMBER(INDEX(Import.PLE,Detalhamento!$E19,Detalhamento!AJ$15)),IF(INDEX(Import.PLE,Detalhamento!$E19,Detalhamento!AJ$15)<=mediçao,OFFSET(Import.PLQ,$A19-1,AJ$15-1,1,1),0),0),IF(ISNUMBER(INDEX(Import.PLE,Detalhamento!$E19,Detalhamento!AJ$15)),IF(INDEX(Import.PLE,Detalhamento!$E19,Detalhamento!AJ$15)<=mediçao,0,OFFSET(Import.PLQ,$A19-1,AJ$15-1,1,1)),OFFSET(Import.PLQ,$A19-1,AJ$15-1,1,1)))) -> 0 | AK19: =IF(AK$13="",0,CHOOSE(Detalhamento.OpçãoServiços,OFFSET(Import.PLQ,$A19-1,AK$15-1,1,1),IF(ISNUMBER(INDEX(Import.PLE,Detalhamento!$E19,Detalhamento!AK$15)),IF(INDEX(Import.PLE,Detalhamento!$E19,Detalhamento!AK$15)<=mediçao,OFFSET(Import.PLQ,$A19-1,AK$15-1,1,1),0),0),IF(ISNUMBER(INDEX(Import.PLE,Detalhamento!$E19,Detalhamento!AK$15)),IF(INDEX(Import.PLE,Detalhamento!$E19,Detalhamento!AK$15)<=mediçao,0,OFFSET(Import.PLQ,$A19-1,AK$15-1,1,1)),OFFSET(Import.PLQ,$A19-1,AK$15-1,1,1)))) -> 0 | AL19: =IF(AL$13="",0,CHOOSE(Detalhamento.OpçãoServiços,OFFSET(Import.PLQ,$A19-1,AL$15-1,1,1),IF(ISNUMBER(INDEX(Import.PLE,Detalhamento!$E19,Detalhamento!AL$15)),IF(INDEX(Import.PLE,Detalhamento!$E19,Detalhamento!AL$15)<=mediçao,OFFSET(Import.PLQ,$A19-1,AL$15-1,1,1),0),0),IF(ISNUMBER(INDEX(Import.PLE,Detalhamento!$E19,Detalhamento!AL$15)),IF(INDEX(Import.PLE,Detalhamento!$E19,Detalhamento!AL$15)<=mediçao,0,OFFSET(Import.PLQ,$A19-1,AL$15-1,1,1)),OFFSET(Import.PLQ,$A19-1,AL$15-1,1,1)))) -> 0 | AM19: =IF(AM$13="",0,CHOOSE(Detalhamento.OpçãoServiços,OFFSET(Import.PLQ,$A19-1,AM$15-1,1,1),IF(ISNUMBER(INDEX(Import.PLE,Detalhamento!$E19,Detalhamento!AM$15)),IF(INDEX(Import.PLE,Detalhamento!$E19,Detalhamento!AM$15)<=mediçao,OFFSET(Import.PLQ,$A19-1,AM$15-1,1,1),0),0),IF(ISNUMBER(INDEX(Import.PLE,Detalhamento!$E19,Detalhamento!AM$15)),IF(INDEX(Import.PLE,Detalhamento!$E19,Detalhamento!AM$15)<=mediçao,0,OFFSET(Import.PLQ,$A19-1,AM$15-1,1,1)),OFFSET(Import.PLQ,$A19-1,AM$15-1,1,1)))) -> 0 | AN19: =IF(AN$13="",0,CHOOSE(Detalhamento.OpçãoServiços,OFFSET(Import.PLQ,$A19-1,AN$15-1,1,1),IF(ISNUMBER(INDEX(Import.PLE,Detalhamento!$E19,Detalhamento!AN$15)),IF(INDEX(Import.PLE,Detalhamento!$E19,Detalhamento!AN$15)<=mediçao,OFFSET(Import.PLQ,$A19-1,AN$15-1,1,1),0),0),IF(ISNUMBER(INDEX(Import.PLE,Detalhamento!$E19,Detalhamento!AN$15)),IF(INDEX(Import.PLE,Detalhamento!$E19,Detalhamento!AN$15)<=mediçao,0,OFFSET(Import.PLQ,$A19-1,AN$15-1,1,1)),OFFSET(Import.PLQ,$A19-1,AN$15-1,1,1)))) -> 0 | AO19: =IF(AO$13="",0,CHOOSE(Detalhamento.OpçãoServiços,OFFSET(Import.PLQ,$A19-1,AO$15-1,1,1),IF(ISNUMBER(INDEX(Import.PLE,Detalhamento!$E19,Detalhamento!AO$15)),IF(INDEX(Import.PLE,Detalhamento!$E19,Detalhamento!AO$15)<=mediçao,OFFSET(Import.PLQ,$A19-1,AO$15-1,1,1),0),0),IF(ISNUMBER(INDEX(Import.PLE,Detalhamento!$E19,Detalhamento!AO$15)),IF(INDEX(Import.PLE,Detalhamento!$E19,Detalhamento!AO$15)<=mediçao,0,OFFSET(Import.PLQ,$A19-1,AO$15-1,1,1)),OFFSET(Import.PLQ,$A19-1,AO$15-1,1,1)))) -> 0 | AP19: =IF(AP$13="",0,CHOOSE(Detalhamento.OpçãoServiços,OFFSET(Import.PLQ,$A19-1,AP$15-1,1,1),IF(ISNUMBER(INDEX(Import.PLE,Detalhamento!$E19,Detalhamento!AP$15)),IF(INDEX(Import.PLE,Detalhamento!$E19,Detalhamento!AP$15)<=mediçao,OFFSET(Import.PLQ,$A19-1,AP$15-1,1,1),0),0),IF(ISNUMBER(INDEX(Import.PLE,Detalhamento!$E19,Detalhamento!AP$15)),IF(INDEX(Import.PLE,Detalhamento!$E19,Detalhamento!AP$15)<=mediçao,0,OFFSET(Import.PLQ,$A19-1,AP$15-1,1,1)),OFFSET(Import.PLQ,$A19-1,AP$15-1,1,1)))) -> 0 | AQ19: =IF(AQ$13="",0,CHOOSE(Detalhamento.OpçãoServiços,OFFSET(Import.PLQ,$A19-1,AQ$15-1,1,1),IF(ISNUMBER(INDEX(Import.PLE,Detalhamento!$E19,Detalhamento!AQ$15)),IF(INDEX(Import.PLE,Detalhamento!$E19,Detalhamento!AQ$15)<=mediçao,OFFSET(Import.PLQ,$A19-1,AQ$15-1,1,1),0),0),IF(ISNUMBER(INDEX(Import.PLE,Detalhamento!$E19,Detalhamento!AQ$15)),IF(INDEX(Import.PLE,Detalhamento!$E19,Detalhamento!AQ$15)<=mediçao,0,OFFSET(Import.PLQ,$A19-1,AQ$15-1,1,1)),OFFSET(Import.PLQ,$A19-1,AQ$15-1,1,1)))) -> 0 | AR19: =IF(AR$13="",0,CHOOSE(Detalhamento.OpçãoServiços,OFFSET(Import.PLQ,$A19-1,AR$15-1,1,1),IF(ISNUMBER(INDEX(Import.PLE,Detalhamento!$E19,Detalhamento!AR$15)),IF(INDEX(Import.PLE,Detalhamento!$E19,Detalhamento!AR$15)<=mediçao,OFFSET(Import.PLQ,$A19-1,AR$15-1,1,1),0),0),IF(ISNUMBER(INDEX(Import.PLE,Detalhamento!$E19,Detalhamento!AR$15)),IF(INDEX(Import.PLE,Detalhamento!$E19,Detalhamento!AR$15)<=mediçao,0,OFFSET(Import.PLQ,$A19-1,AR$15-1,1,1)),OFFSET(Import.PLQ,$A19-1,AR$15-1,1,1)))) -> 0 | AS19: =IF(AS$13="",0,CHOOSE(Detalhamento.OpçãoServiços,OFFSET(Import.PLQ,$A19-1,AS$15-1,1,1),IF(ISNUMBER(INDEX(Import.PLE,Detalhamento!$E19,Detalhamento!AS$15)),IF(INDEX(Import.PLE,Detalhamento!$E19,Detalhamento!AS$15)<=mediçao,OFFSET(Import.PLQ,$A19-1,AS$15-1,1,1),0),0),IF(ISNUMBER(INDEX(Import.PLE,Detalhamento!$E19,Detalhamento!AS$15)),IF(INDEX(Import.PLE,Detalhamento!$E19,Detalhamento!AS$15)<=mediçao,0,OFFSET(Import.PLQ,$A19-1,AS$15-1,1,1)),OFFSET(Import.PLQ,$A19-1,AS$15-1,1,1)))) -> 0 | AT19: =IF(AT$13="",0,CHOOSE(Detalhamento.OpçãoServiços,OFFSET(Import.PLQ,$A19-1,AT$15-1,1,1),IF(ISNUMBER(INDEX(Import.PLE,Detalhamento!$E19,Detalhamento!AT$15)),IF(INDEX(Import.PLE,Detalhamento!$E19,Detalhamento!AT$15)<=mediçao,OFFSET(Import.PLQ,$A19-1,AT$15-1,1,1),0),0),IF(ISNUMBER(INDEX(Import.PLE,Detalhamento!$E19,Detalhamento!AT$15)),IF(INDEX(Import.PLE,Detalhamento!$E19,Detalhamento!AT$15)<=mediçao,0,OFFSET(Import.PLQ,$A19-1,AT$15-1,1,1)),OFFSET(Import.PLQ,$A19-1,AT$15-1,1,1)))) -> 0 | AU19: =IF(AU$13="",0,CHOOSE(Detalhamento.OpçãoServiços,OFFSET(Import.PLQ,$A19-1,AU$15-1,1,1),IF(ISNUMBER(INDEX(Import.PLE,Detalhamento!$E19,Detalhamento!AU$15)),IF(INDEX(Import.PLE,Detalhamento!$E19,Detalhamento!AU$15)<=mediçao,OFFSET(Import.PLQ,$A19-1,AU$15-1,1,1),0),0),IF(ISNUMBER(INDEX(Import.PLE,Detalhamento!$E19,Detalhamento!AU$15)),IF(INDEX(Import.PLE,Detalhamento!$E19,Detalhamento!AU$15)<=mediçao,0,OFFSET(Import.PLQ,$A19-1,AU$15-1,1,1)),OFFSET(Import.PLQ,$A19-1,AU$15-1,1,1)))) -> 0 | AV19: =IF(AV$13="",0,CHOOSE(Detalhamento.OpçãoServiços,OFFSET(Import.PLQ,$A19-1,AV$15-1,1,1),IF(ISNUMBER(INDEX(Import.PLE,Detalhamento!$E19,Detalhamento!AV$15)),IF(INDEX(Import.PLE,Detalhamento!$E19,Detalhamento!AV$15)<=mediçao,OFFSET(Import.PLQ,$A19-1,AV$15-1,1,1),0),0),IF(ISNUMBER(INDEX(Import.PLE,Detalhamento!$E19,Detalhamento!AV$15)),IF(INDEX(Import.PLE,Detalhamento!$E19,Detalhamento!AV$15)<=mediçao,0,OFFSET(Import.PLQ,$A19-1,AV$15-1,1,1)),OFFSET(Import.PLQ,$A19-1,AV$15-1,1,1)))) -> 0 | AW19: =IF(AW$13="",0,CHOOSE(Detalhamento.OpçãoServiços,OFFSET(Import.PLQ,$A19-1,AW$15-1,1,1),IF(ISNUMBER(INDEX(Import.PLE,Detalhamento!$E19,Detalhamento!AW$15)),IF(INDEX(Import.PLE,Detalhamento!$E19,Detalhamento!AW$15)<=mediçao,OFFSET(Import.PLQ,$A19-1,AW$15-1,1,1),0),0),IF(ISNUMBER(INDEX(Import.PLE,Detalhamento!$E19,Detalhamento!AW$15)),IF(INDEX(Import.PLE,Detalhamento!$E19,Detalhamento!AW$15)<=mediçao,0,OFFSET(Import.PLQ,$A19-1,AW$15-1,1,1)),OFFSET(Import.PLQ,$A19-1,AW$15-1,1,1)))) -> 0 | AX19: =IF(AX$13="",0,CHOOSE(Detalhamento.OpçãoServiços,OFFSET(Import.PLQ,$A19-1,AX$15-1,1,1),IF(ISNUMBER(INDEX(Import.PLE,Detalhamento!$E19,Detalhamento!AX$15)),IF(INDEX(Import.PLE,Detalhamento!$E19,Detalhamento!AX$15)<=mediçao,OFFSET(Import.PLQ,$A19-1,AX$15-1,1,1),0),0),IF(ISNUMBER(INDEX(Import.PLE,Detalhamento!$E19,Detalhamento!AX$15)),IF(INDEX(Import.PLE,Detalhamento!$E19,Detalhamento!AX$15)<=mediçao,0,OFFSET(Import.PLQ,$A19-1,AX$15-1,1,1)),OFFSET(Import.PLQ,$A19-1,AX$15-1,1,1)))) -> 0 | AY19: =IF(AY$13="",0,CHOOSE(Detalhamento.OpçãoServiços,OFFSET(Import.PLQ,$A19-1,AY$15-1,1,1),IF(ISNUMBER(INDEX(Import.PLE,Detalhamento!$E19,Detalhamento!AY$15)),IF(INDEX(Import.PLE,Detalhamento!$E19,Detalhamento!AY$15)<=mediçao,OFFSET(Import.PLQ,$A19-1,AY$15-1,1,1),0),0),IF(ISNUMBER(INDEX(Import.PLE,Detalhamento!$E19,Detalhamento!AY$15)),IF(INDEX(Import.PLE,Detalhamento!$E19,Detalhamento!AY$15)<=mediçao,0,OFFSET(Import.PLQ,$A19-1,AY$15-1,1,1)),OFFSET(Import.PLQ,$A19-1,AY$15-1,1,1)))) -> 0 | AZ19: =IF(AZ$13="",0,CHOOSE(Detalhamento.OpçãoServiços,OFFSET(Import.PLQ,$A19-1,AZ$15-1,1,1),IF(ISNUMBER(INDEX(Import.PLE,Detalhamento!$E19,Detalhamento!AZ$15)),IF(INDEX(Import.PLE,Detalhamento!$E19,Detalhamento!AZ$15)<=mediçao,OFFSET(Import.PLQ,$A19-1,AZ$15-1,1,1),0),0),IF(ISNUMBER(INDEX(Import.PLE,Detalhamento!$E19,Detalhamento!AZ$15)),IF(INDEX(Import.PLE,Detalhamento!$E19,Detalhamento!AZ$15)<=mediçao,0,OFFSET(Import.PLQ,$A19-1,AZ$15-1,1,1)),OFFSET(Import.PLQ,$A19-1,AZ$15-1,1,1)))) -> 0 | BA19: =IF(BA$13="",0,CHOOSE(Detalhamento.OpçãoServiços,OFFSET(Import.PLQ,$A19-1,BA$15-1,1,1),IF(ISNUMBER(INDEX(Import.PLE,Detalhamento!$E19,Detalhamento!BA$15)),IF(INDEX(Import.PLE,Detalhamento!$E19,Detalhamento!BA$15)<=mediçao,OFFSET(Import.PLQ,$A19-1,BA$15-1,1,1),0),0),IF(ISNUMBER(INDEX(Import.PLE,Detalhamento!$E19,Detalhamento!BA$15)),IF(INDEX(Import.PLE,Detalhamento!$E19,Detalhamento!BA$15)<=mediçao,0,OFFSET(Import.PLQ,$A19-1,BA$15-1,1,1)),OFFSET(Import.PLQ,$A19-1,BA$15-1,1,1)))) -> 0 | BB19: =IF(BB$13="",0,CHOOSE(Detalhamento.OpçãoServiços,OFFSET(Import.PLQ,$A19-1,BB$15-1,1,1),IF(ISNUMBER(INDEX(Import.PLE,Detalhamento!$E19,Detalhamento!BB$15)),IF(INDEX(Import.PLE,Detalhamento!$E19,Detalhamento!BB$15)<=mediçao,OFFSET(Import.PLQ,$A19-1,BB$15-1,1,1),0),0),IF(ISNUMBER(INDEX(Import.PLE,Detalhamento!$E19,Detalhamento!BB$15)),IF(INDEX(Import.PLE,Detalhamento!$E19,Detalhamento!BB$15)<=mediçao,0,OFFSET(Import.PLQ,$A19-1,BB$15-1,1,1)),OFFSET(Import.PLQ,$A19-1,BB$15-1,1,1)))) -> 0 | BC19: =IF(BC$13="",0,CHOOSE(Detalhamento.OpçãoServiços,OFFSET(Import.PLQ,$A19-1,BC$15-1,1,1),IF(ISNUMBER(INDEX(Import.PLE,Detalhamento!$E19,Detalhamento!BC$15)),IF(INDEX(Import.PLE,Detalhamento!$E19,Detalhamento!BC$15)<=mediçao,OFFSET(Import.PLQ,$A19-1,BC$15-1,1,1),0),0),IF(ISNUMBER(INDEX(Import.PLE,Detalhamento!$E19,Detalhamento!BC$15)),IF(INDEX(Import.PLE,Detalhamento!$E19,Detalhamento!BC$15)<=mediçao,0,OFFSET(Import.PLQ,$A19-1,BC$15-1,1,1)),OFFSET(Import.PLQ,$A19-1,BC$15-1,1,1)))) -> 0 | BD19: =IF(BD$13="",0,CHOOSE(Detalhamento.OpçãoServiços,OFFSET(Import.PLQ,$A19-1,BD$15-1,1,1),IF(ISNUMBER(INDEX(Import.PLE,Detalhamento!$E19,Detalhamento!BD$15)),IF(INDEX(Import.PLE,Detalhamento!$E19,Detalhamento!BD$15)<=mediçao,OFFSET(Import.PLQ,$A19-1,BD$15-1,1,1),0),0),IF(ISNUMBER(INDEX(Import.PLE,Detalhamento!$E19,Detalhamento!BD$15)),IF(INDEX(Import.PLE,Detalhamento!$E19,Detalhamento!BD$15)<=mediçao,0,OFFSET(Import.PLQ,$A19-1,BD$15-1,1,1)),OFFSET(Import.PLQ,$A19-1,BD$15-1,1,1)))) -> 0 | BE19: =IF(BE$13="",0,CHOOSE(Detalhamento.OpçãoServiços,OFFSET(Import.PLQ,$A19-1,BE$15-1,1,1),IF(ISNUMBER(INDEX(Import.PLE,Detalhamento!$E19,Detalhamento!BE$15)),IF(INDEX(Import.PLE,Detalhamento!$E19,Detalhamento!BE$15)<=mediçao,OFFSET(Import.PLQ,$A19-1,BE$15-1,1,1),0),0),IF(ISNUMBER(INDEX(Import.PLE,Detalhamento!$E19,Detalhamento!BE$15)),IF(INDEX(Import.PLE,Detalhamento!$E19,Detalhamento!BE$15)<=mediçao,0,OFFSET(Import.PLQ,$A19-1,BE$15-1,1,1)),OFFSET(Import.PLQ,$A19-1,BE$15-1,1,1)))) -> 0 | BF19: =IF(BF$13="",0,CHOOSE(Detalhamento.OpçãoServiços,OFFSET(Import.PLQ,$A19-1,BF$15-1,1,1),IF(ISNUMBER(INDEX(Import.PLE,Detalhamento!$E19,Detalhamento!BF$15)),IF(INDEX(Import.PLE,Detalhamento!$E19,Detalhamento!BF$15)<=mediçao,OFFSET(Import.PLQ,$A19-1,BF$15-1,1,1),0),0),IF(ISNUMBER(INDEX(Import.PLE,Detalhamento!$E19,Detalhamento!BF$15)),IF(INDEX(Import.PLE,Detalhamento!$E19,Detalhamento!BF$15)<=mediçao,0,OFFSET(Import.PLQ,$A19-1,BF$15-1,1,1)),OFFSET(Import.PLQ,$A19-1,BF$15-1,1,1)))) -> 0 | BG19: =IF(BG$13="",0,CHOOSE(Detalhamento.OpçãoServiços,OFFSET(Import.PLQ,$A19-1,BG$15-1,1,1),IF(ISNUMBER(INDEX(Import.PLE,Detalhamento!$E19,Detalhamento!BG$15)),IF(INDEX(Import.PLE,Detalhamento!$E19,Detalhamento!BG$15)<=mediçao,OFFSET(Import.PLQ,$A19-1,BG$15-1,1,1),0),0),IF(ISNUMBER(INDEX(Import.PLE,Detalhamento!$E19,Detalhamento!BG$15)),IF(INDEX(Import.PLE,Detalhamento!$E19,Detalhamento!BG$15)<=mediçao,0,OFFSET(Import.PLQ,$A19-1,BG$15-1,1,1)),OFFSET(Import.PLQ,$A19-1,BG$15-1,1,1)))) -> 0 | BH19: =IF(BH$13="",0,CHOOSE(Detalhamento.OpçãoServiços,OFFSET(Import.PLQ,$A19-1,BH$15-1,1,1),IF(ISNUMBER(INDEX(Import.PLE,Detalhamento!$E19,Detalhamento!BH$15)),IF(INDEX(Import.PLE,Detalhamento!$E19,Detalhamento!BH$15)<=mediçao,OFFSET(Import.PLQ,$A19-1,BH$15-1,1,1),0),0),IF(ISNUMBER(INDEX(Import.PLE,Detalhamento!$E19,Detalhamento!BH$15)),IF(INDEX(Import.PLE,Detalhamento!$E19,Detalhamento!BH$15)<=mediçao,0,OFFSET(Import.PLQ,$A19-1,BH$15-1,1,1)),OFFSET(Import.PLQ,$A19-1,BH$15-1,1,1)))) -> 0 | BI19: =IF(BI$13="",0,CHOOSE(Detalhamento.OpçãoServiços,OFFSET(Import.PLQ,$A19-1,BI$15-1,1,1),IF(ISNUMBER(INDEX(Import.PLE,Detalhamento!$E19,Detalhamento!BI$15)),IF(INDEX(Import.PLE,Detalhamento!$E19,Detalhamento!BI$15)<=mediçao,OFFSET(Import.PLQ,$A19-1,BI$15-1,1,1),0),0),IF(ISNUMBER(INDEX(Import.PLE,Detalhamento!$E19,Detalhamento!BI$15)),IF(INDEX(Import.PLE,Detalhamento!$E19,Detalhamento!BI$15)<=mediçao,0,OFFSET(Import.PLQ,$A19-1,BI$15-1,1,1)),OFFSET(Import.PLQ,$A19-1,BI$15-1,1,1)))) -> 0
A20: 3 | B20: Serviço | E20: 1 | F20: 10003 | G20: 1.1.1. | H20: PLACA DE OBRA EM CHAPA DE ACO GALVANIZADO PADRÃO AMMOC | I20: M2 | J20: 2.5 | L20: =IF(L$13="",0,CHOOSE(Detalhamento.OpçãoServiços,OFFSET(Import.PLQ,$A20-1,L$15-1,1,1),IF(ISNUMBER(INDEX(Import.PLE,Detalhamento!$E20,Detalhamento!L$15)),IF(INDEX(Import.PLE,Detalhamento!$E20,Detalhamento!L$15)<=mediçao,OFFSET(Import.PLQ,$A20-1,L$15-1,1,1),0),0),IF(ISNUMBER(INDEX(Import.PLE,Detalhamento!$E20,Detalhamento!L$15)),IF(INDEX(Import.PLE,Detalhamento!$E20,Detalhamento!L$15)<=mediçao,0,OFFSET(Import.PLQ,$A20-1,L$15-1,1,1)),OFFSET(Import.PLQ,$A20-1,L$15-1,1,1)))) -> 2.5 | M20: =IF(M$13="",0,CHOOSE(Detalhamento.OpçãoServiços,OFFSET(Import.PLQ,$A20-1,M$15-1,1,1),IF(ISNUMBER(INDEX(Import.PLE,Detalhamento!$E20,Detalhamento!M$15)),IF(INDEX(Import.PLE,Detalhamento!$E20,Detalhamento!M$15)<=mediçao,OFFSET(Import.PLQ,$A20-1,M$15-1,1,1),0),0),IF(ISNUMBER(INDEX(Import.PLE,Detalhamento!$E20,Detalhamento!M$15)),IF(INDEX(Import.PLE,Detalhamento!$E20,Detalhamento!M$15)<=mediçao,0,OFFSET(Import.PLQ,$A20-1,M$15-1,1,1)),OFFSET(Import.PLQ,$A20-1,M$15-1,1,1)))) -> 0 | N20: =IF(N$13="",0,CHOOSE(Detalhamento.OpçãoServiços,OFFSET(Import.PLQ,$A20-1,N$15-1,1,1),IF(ISNUMBER(INDEX(Import.PLE,Detalhamento!$E20,Detalhamento!N$15)),IF(INDEX(Import.PLE,Detalhamento!$E20,Detalhamento!N$15)<=mediçao,OFFSET(Import.PLQ,$A20-1,N$15-1,1,1),0),0),IF(ISNUMBER(INDEX(Import.PLE,Detalhamento!$E20,Detalhamento!N$15)),IF(INDEX(Import.PLE,Detalhamento!$E20,Detalhamento!N$15)<=mediçao,0,OFFSET(Import.PLQ,$A20-1,N$15-1,1,1)),OFFSET(Import.PLQ,$A20-1,N$15-1,1,1)))) -> 0 | O20: =IF(O$13="",0,CHOOSE(Detalhamento.OpçãoServiços,OFFSET(Import.PLQ,$A20-1,O$15-1,1,1),IF(ISNUMBER(INDEX(Import.PLE,Detalhamento!$E20,Detalhamento!O$15)),IF(INDEX(Import.PLE,Detalhamento!$E20,Detalhamento!O$15)<=mediçao,OFFSET(Import.PLQ,$A20-1,O$15-1,1,1),0),0),IF(ISNUMBER(INDEX(Import.PLE,Detalhamento!$E20,Detalhamento!O$15)),IF(INDEX(Import.PLE,Detalhamento!$E20,Detalhamento!O$15)<=mediçao,0,OFFSET(Import.PLQ,$A20-1,O$15-1,1,1)),OFFSET(Import.PLQ,$A20-1,O$15-1,1,1)))) -> 0 | P20: =IF(P$13="",0,CHOOSE(Detalhamento.OpçãoServiços,OFFSET(Import.PLQ,$A20-1,P$15-1,1,1),IF(ISNUMBER(INDEX(Import.PLE,Detalhamento!$E20,Detalhamento!P$15)),IF(INDEX(Import.PLE,Detalhamento!$E20,Detalhamento!P$15)<=mediçao,OFFSET(Import.PLQ,$A20-1,P$15-1,1,1),0),0),IF(ISNUMBER(INDEX(Import.PLE,Detalhamento!$E20,Detalhamento!P$15)),IF(INDEX(Import.PLE,Detalhamento!$E20,Detalhamento!P$15)<=mediçao,0,OFFSET(Import.PLQ,$A20-1,P$15-1,1,1)),OFFSET(Import.PLQ,$A20-1,P$15-1,1,1)))) -> 0 | Q20: =IF(Q$13="",0,CHOOSE(Detalhamento.OpçãoServiços,OFFSET(Import.PLQ,$A20-1,Q$15-1,1,1),IF(ISNUMBER(INDEX(Import.PLE,Detalhamento!$E20,Detalhamento!Q$15)),IF(INDEX(Import.PLE,Detalhamento!$E20,Detalhamento!Q$15)<=mediçao,OFFSET(Import.PLQ,$A20-1,Q$15-1,1,1),0),0),IF(ISNUMBER(INDEX(Import.PLE,Detalhamento!$E20,Detalhamento!Q$15)),IF(INDEX(Import.PLE,Detalhamento!$E20,Detalhamento!Q$15)<=mediçao,0,OFFSET(Import.PLQ,$A20-1,Q$15-1,1,1)),OFFSET(Import.PLQ,$A20-1,Q$15-1,1,1)))) -> 0 | R20: =IF(R$13="",0,CHOOSE(Detalhamento.OpçãoServiços,OFFSET(Import.PLQ,$A20-1,R$15-1,1,1),IF(ISNUMBER(INDEX(Import.PLE,Detalhamento!$E20,Detalhamento!R$15)),IF(INDEX(Import.PLE,Detalhamento!$E20,Detalhamento!R$15)<=mediçao,OFFSET(Import.PLQ,$A20-1,R$15-1,1,1),0),0),IF(ISNUMBER(INDEX(Import.PLE,Detalhamento!$E20,Detalhamento!R$15)),IF(INDEX(Import.PLE,Detalhamento!$E20,Detalhamento!R$15)<=mediçao,0,OFFSET(Import.PLQ,$A20-1,R$15-1,1,1)),OFFSET(Import.PLQ,$A20-1,R$15-1,1,1)))) -> 0 | S20: =IF(S$13="",0,CHOOSE(Detalhamento.OpçãoServiços,OFFSET(Import.PLQ,$A20-1,S$15-1,1,1),IF(ISNUMBER(INDEX(Import.PLE,Detalhamento!$E20,Detalhamento!S$15)),IF(INDEX(Import.PLE,Detalhamento!$E20,Detalhamento!S$15)<=mediçao,OFFSET(Import.PLQ,$A20-1,S$15-1,1,1),0),0),IF(ISNUMBER(INDEX(Import.PLE,Detalhamento!$E20,Detalhamento!S$15)),IF(INDEX(Import.PLE,Detalhamento!$E20,Detalhamento!S$15)<=mediçao,0,OFFSET(Import.PLQ,$A20-1,S$15-1,1,1)),OFFSET(Import.PLQ,$A20-1,S$15-1,1,1)))) -> 0 | T20: =IF(T$13="",0,CHOOSE(Detalhamento.OpçãoServiços,OFFSET(Import.PLQ,$A20-1,T$15-1,1,1),IF(ISNUMBER(INDEX(Import.PLE,Detalhamento!$E20,Detalhamento!T$15)),IF(INDEX(Import.PLE,Detalhamento!$E20,Detalhamento!T$15)<=mediçao,OFFSET(Import.PLQ,$A20-1,T$15-1,1,1),0),0),IF(ISNUMBER(INDEX(Import.PLE,Detalhamento!$E20,Detalhamento!T$15)),IF(INDEX(Import.PLE,Detalhamento!$E20,Detalhamento!T$15)<=mediçao,0,OFFSET(Import.PLQ,$A20-1,T$15-1,1,1)),OFFSET(Import.PLQ,$A20-1,T$15-1,1,1)))) -> 0 | U20: =IF(U$13="",0,CHOOSE(Detalhamento.OpçãoServiços,OFFSET(Import.PLQ,$A20-1,U$15-1,1,1),IF(ISNUMBER(INDEX(Import.PLE,Detalhamento!$E20,Detalhamento!U$15)),IF(INDEX(Import.PLE,Detalhamento!$E20,Detalhamento!U$15)<=mediçao,OFFSET(Import.PLQ,$A20-1,U$15-1,1,1),0),0),IF(ISNUMBER(INDEX(Import.PLE,Detalhamento!$E20,Detalhamento!U$15)),IF(INDEX(Import.PLE,Detalhamento!$E20,Detalhamento!U$15)<=mediçao,0,OFFSET(Import.PLQ,$A20-1,U$15-1,1,1)),OFFSET(Import.PLQ,$A20-1,U$15-1,1,1)))) -> 0 | V20: =IF(V$13="",0,CHOOSE(Detalhamento.OpçãoServiços,OFFSET(Import.PLQ,$A20-1,V$15-1,1,1),IF(ISNUMBER(INDEX(Import.PLE,Detalhamento!$E20,Detalhamento!V$15)),IF(INDEX(Import.PLE,Detalhamento!$E20,Detalhamento!V$15)<=mediçao,OFFSET(Import.PLQ,$A20-1,V$15-1,1,1),0),0),IF(ISNUMBER(INDEX(Import.PLE,Detalhamento!$E20,Detalhamento!V$15)),IF(INDEX(Import.PLE,Detalhamento!$E20,Detalhamento!V$15)<=mediçao,0,OFFSET(Import.PLQ,$A20-1,V$15-1,1,1)),OFFSET(Import.PLQ,$A20-1,V$15-1,1,1)))) -> 0 | W20: =IF(W$13="",0,CHOOSE(Detalhamento.OpçãoServiços,OFFSET(Import.PLQ,$A20-1,W$15-1,1,1),IF(ISNUMBER(INDEX(Import.PLE,Detalhamento!$E20,Detalhamento!W$15)),IF(INDEX(Import.PLE,Detalhamento!$E20,Detalhamento!W$15)<=mediçao,OFFSET(Import.PLQ,$A20-1,W$15-1,1,1),0),0),IF(ISNUMBER(INDEX(Import.PLE,Detalhamento!$E20,Detalhamento!W$15)),IF(INDEX(Import.PLE,Detalhamento!$E20,Detalhamento!W$15)<=mediçao,0,OFFSET(Import.PLQ,$A20-1,W$15-1,1,1)),OFFSET(Import.PLQ,$A20-1,W$15-1,1,1)))) -> 0 | X20: =IF(X$13="",0,CHOOSE(Detalhamento.OpçãoServiços,OFFSET(Import.PLQ,$A20-1,X$15-1,1,1),IF(ISNUMBER(INDEX(Import.PLE,Detalhamento!$E20,Detalhamento!X$15)),IF(INDEX(Import.PLE,Detalhamento!$E20,Detalhamento!X$15)<=mediçao,OFFSET(Import.PLQ,$A20-1,X$15-1,1,1),0),0),IF(ISNUMBER(INDEX(Import.PLE,Detalhamento!$E20,Detalhamento!X$15)),IF(INDEX(Import.PLE,Detalhamento!$E20,Detalhamento!X$15)<=mediçao,0,OFFSET(Import.PLQ,$A20-1,X$15-1,1,1)),OFFSET(Import.PLQ,$A20-1,X$15-1,1,1)))) -> 0 | Y20: =IF(Y$13="",0,CHOOSE(Detalhamento.OpçãoServiços,OFFSET(Import.PLQ,$A20-1,Y$15-1,1,1),IF(ISNUMBER(INDEX(Import.PLE,Detalhamento!$E20,Detalhamento!Y$15)),IF(INDEX(Import.PLE,Detalhamento!$E20,Detalhamento!Y$15)<=mediçao,OFFSET(Import.PLQ,$A20-1,Y$15-1,1,1),0),0),IF(ISNUMBER(INDEX(Import.PLE,Detalhamento!$E20,Detalhamento!Y$15)),IF(INDEX(Import.PLE,Detalhamento!$E20,Detalhamento!Y$15)<=mediçao,0,OFFSET(Import.PLQ,$A20-1,Y$15-1,1,1)),OFFSET(Import.PLQ,$A20-1,Y$15-1,1,1)))) -> 0 | Z20: =IF(Z$13="",0,CHOOSE(Detalhamento.OpçãoServiços,OFFSET(Import.PLQ,$A20-1,Z$15-1,1,1),IF(ISNUMBER(INDEX(Import.PLE,Detalhamento!$E20,Detalhamento!Z$15)),IF(INDEX(Import.PLE,Detalhamento!$E20,Detalhamento!Z$15)<=mediçao,OFFSET(Import.PLQ,$A20-1,Z$15-1,1,1),0),0),IF(ISNUMBER(INDEX(Import.PLE,Detalhamento!$E20,Detalhamento!Z$15)),IF(INDEX(Import.PLE,Detalhamento!$E20,Detalhamento!Z$15)<=mediçao,0,OFFSET(Import.PLQ,$A20-1,Z$15-1,1,1)),OFFSET(Import.PLQ,$A20-1,Z$15-1,1,1)))) -> 0 | AA20: =IF(AA$13="",0,CHOOSE(Detalhamento.OpçãoServiços,OFFSET(Import.PLQ,$A20-1,AA$15-1,1,1),IF(ISNUMBER(INDEX(Import.PLE,Detalhamento!$E20,Detalhamento!AA$15)),IF(INDEX(Import.PLE,Detalhamento!$E20,Detalhamento!AA$15)<=mediçao,OFFSET(Import.PLQ,$A20-1,AA$15-1,1,1),0),0),IF(ISNUMBER(INDEX(Import.PLE,Detalhamento!$E20,Detalhamento!AA$15)),IF(INDEX(Import.PLE,Detalhamento!$E20,Detalhamento!AA$15)<=mediçao,0,OFFSET(Import.PLQ,$A20-1,AA$15-1,1,1)),OFFSET(Import.PLQ,$A20-1,AA$15-1,1,1)))) -> 0 | AB20: =IF(AB$13="",0,CHOOSE(Detalhamento.OpçãoServiços,OFFSET(Import.PLQ,$A20-1,AB$15-1,1,1),IF(ISNUMBER(INDEX(Import.PLE,Detalhamento!$E20,Detalhamento!AB$15)),IF(INDEX(Import.PLE,Detalhamento!$E20,Detalhamento!AB$15)<=mediçao,OFFSET(Import.PLQ,$A20-1,AB$15-1,1,1),0),0),IF(ISNUMBER(INDEX(Import.PLE,Detalhamento!$E20,Detalhamento!AB$15)),IF(INDEX(Import.PLE,Detalhamento!$E20,Detalhamento!AB$15)<=mediçao,0,OFFSET(Import.PLQ,$A20-1,AB$15-1,1,1)),OFFSET(Import.PLQ,$A20-1,AB$15-1,1,1)))) -> 0 | AC20: =IF(AC$13="",0,CHOOSE(Detalhamento.OpçãoServiços,OFFSET(Import.PLQ,$A20-1,AC$15-1,1,1),IF(ISNUMBER(INDEX(Import.PLE,Detalhamento!$E20,Detalhamento!AC$15)),IF(INDEX(Import.PLE,Detalhamento!$E20,Detalhamento!AC$15)<=mediçao,OFFSET(Import.PLQ,$A20-1,AC$15-1,1,1),0),0),IF(ISNUMBER(INDEX(Import.PLE,Detalhamento!$E20,Detalhamento!AC$15)),IF(INDEX(Import.PLE,Detalhamento!$E20,Detalhamento!AC$15)<=mediçao,0,OFFSET(Import.PLQ,$A20-1,AC$15-1,1,1)),OFFSET(Import.PLQ,$A20-1,AC$15-1,1,1)))) -> 0 | AD20: =IF(AD$13="",0,CHOOSE(Detalhamento.OpçãoServiços,OFFSET(Import.PLQ,$A20-1,AD$15-1,1,1),IF(ISNUMBER(INDEX(Import.PLE,Detalhamento!$E20,Detalhamento!AD$15)),IF(INDEX(Import.PLE,Detalhamento!$E20,Detalhamento!AD$15)<=mediçao,OFFSET(Import.PLQ,$A20-1,AD$15-1,1,1),0),0),IF(ISNUMBER(INDEX(Import.PLE,Detalhamento!$E20,Detalhamento!AD$15)),IF(INDEX(Import.PLE,Detalhamento!$E20,Detalhamento!AD$15)<=mediçao,0,OFFSET(Import.PLQ,$A20-1,AD$15-1,1,1)),OFFSET(Import.PLQ,$A20-1,AD$15-1,1,1)))) -> 0 | AE20: =IF(AE$13="",0,CHOOSE(Detalhamento.OpçãoServiços,OFFSET(Import.PLQ,$A20-1,AE$15-1,1,1),IF(ISNUMBER(INDEX(Import.PLE,Detalhamento!$E20,Detalhamento!AE$15)),IF(INDEX(Import.PLE,Detalhamento!$E20,Detalhamento!AE$15)<=mediçao,OFFSET(Import.PLQ,$A20-1,AE$15-1,1,1),0),0),IF(ISNUMBER(INDEX(Import.PLE,Detalhamento!$E20,Detalhamento!AE$15)),IF(INDEX(Import.PLE,Detalhamento!$E20,Detalhamento!AE$15)<=mediçao,0,OFFSET(Import.PLQ,$A20-1,AE$15-1,1,1)),OFFSET(Import.PLQ,$A20-1,AE$15-1,1,1)))) -> 0 | AF20: =IF(AF$13="",0,CHOOSE(Detalhamento.OpçãoServiços,OFFSET(Import.PLQ,$A20-1,AF$15-1,1,1),IF(ISNUMBER(INDEX(Import.PLE,Detalhamento!$E20,Detalhamento!AF$15)),IF(INDEX(Import.PLE,Detalhamento!$E20,Detalhamento!AF$15)<=mediçao,OFFSET(Import.PLQ,$A20-1,AF$15-1,1,1),0),0),IF(ISNUMBER(INDEX(Import.PLE,Detalhamento!$E20,Detalhamento!AF$15)),IF(INDEX(Import.PLE,Detalhamento!$E20,Detalhamento!AF$15)<=mediçao,0,OFFSET(Import.PLQ,$A20-1,AF$15-1,1,1)),OFFSET(Import.PLQ,$A20-1,AF$15-1,1,1)))) -> 0 | AG20: =IF(AG$13="",0,CHOOSE(Detalhamento.OpçãoServiços,OFFSET(Import.PLQ,$A20-1,AG$15-1,1,1),IF(ISNUMBER(INDEX(Import.PLE,Detalhamento!$E20,Detalhamento!AG$15)),IF(INDEX(Import.PLE,Detalhamento!$E20,Detalhamento!AG$15)<=mediçao,OFFSET(Import.PLQ,$A20-1,AG$15-1,1,1),0),0),IF(ISNUMBER(INDEX(Import.PLE,Detalhamento!$E20,Detalhamento!AG$15)),IF(INDEX(Import.PLE,Detalhamento!$E20,Detalhamento!AG$15)<=mediçao,0,OFFSET(Import.PLQ,$A20-1,AG$15-1,1,1)),OFFSET(Import.PLQ,$A20-1,AG$15-1,1,1)))) -> 0 | AH20: =IF(AH$13="",0,CHOOSE(Detalhamento.OpçãoServiços,OFFSET(Import.PLQ,$A20-1,AH$15-1,1,1),IF(ISNUMBER(INDEX(Import.PLE,Detalhamento!$E20,Detalhamento!AH$15)),IF(INDEX(Import.PLE,Detalhamento!$E20,Detalhamento!AH$15)<=mediçao,OFFSET(Import.PLQ,$A20-1,AH$15-1,1,1),0),0),IF(ISNUMBER(INDEX(Import.PLE,Detalhamento!$E20,Detalhamento!AH$15)),IF(INDEX(Import.PLE,Detalhamento!$E20,Detalhamento!AH$15)<=mediçao,0,OFFSET(Import.PLQ,$A20-1,AH$15-1,1,1)),OFFSET(Import.PLQ,$A20-1,AH$15-1,1,1)))) -> 0 | AI20: =IF(AI$13="",0,CHOOSE(Detalhamento.OpçãoServiços,OFFSET(Import.PLQ,$A20-1,AI$15-1,1,1),IF(ISNUMBER(INDEX(Import.PLE,Detalhamento!$E20,Detalhamento!AI$15)),IF(INDEX(Import.PLE,Detalhamento!$E20,Detalhamento!AI$15)<=mediçao,OFFSET(Import.PLQ,$A20-1,AI$15-1,1,1),0),0),IF(ISNUMBER(INDEX(Import.PLE,Detalhamento!$E20,Detalhamento!AI$15)),IF(INDEX(Import.PLE,Detalhamento!$E20,Detalhamento!AI$15)<=mediçao,0,OFFSET(Import.PLQ,$A20-1,AI$15-1,1,1)),OFFSET(Import.PLQ,$A20-1,AI$15-1,1,1)))) -> 0 | AJ20: =IF(AJ$13="",0,CHOOSE(Detalhamento.OpçãoServiços,OFFSET(Import.PLQ,$A20-1,AJ$15-1,1,1),IF(ISNUMBER(INDEX(Import.PLE,Detalhamento!$E20,Detalhamento!AJ$15)),IF(INDEX(Import.PLE,Detalhamento!$E20,Detalhamento!AJ$15)<=mediçao,OFFSET(Import.PLQ,$A20-1,AJ$15-1,1,1),0),0),IF(ISNUMBER(INDEX(Import.PLE,Detalhamento!$E20,Detalhamento!AJ$15)),IF(INDEX(Import.PLE,Detalhamento!$E20,Detalhamento!AJ$15)<=mediçao,0,OFFSET(Import.PLQ,$A20-1,AJ$15-1,1,1)),OFFSET(Import.PLQ,$A20-1,AJ$15-1,1,1)))) -> 0 | AK20: =IF(AK$13="",0,CHOOSE(Detalhamento.OpçãoServiços,OFFSET(Import.PLQ,$A20-1,AK$15-1,1,1),IF(ISNUMBER(INDEX(Import.PLE,Detalhamento!$E20,Detalhamento!AK$15)),IF(INDEX(Import.PLE,Detalhamento!$E20,Detalhamento!AK$15)<=mediçao,OFFSET(Import.PLQ,$A20-1,AK$15-1,1,1),0),0),IF(ISNUMBER(INDEX(Import.PLE,Detalhamento!$E20,Detalhamento!AK$15)),IF(INDEX(Import.PLE,Detalhamento!$E20,Detalhamento!AK$15)<=mediçao,0,OFFSET(Import.PLQ,$A20-1,AK$15-1,1,1)),OFFSET(Import.PLQ,$A20-1,AK$15-1,1,1)))) -> 0 | AL20: =IF(AL$13="",0,CHOOSE(Detalhamento.OpçãoServiços,OFFSET(Import.PLQ,$A20-1,AL$15-1,1,1),IF(ISNUMBER(INDEX(Import.PLE,Detalhamento!$E20,Detalhamento!AL$15)),IF(INDEX(Import.PLE,Detalhamento!$E20,Detalhamento!AL$15)<=mediçao,OFFSET(Import.PLQ,$A20-1,AL$15-1,1,1),0),0),IF(ISNUMBER(INDEX(Import.PLE,Detalhamento!$E20,Detalhamento!AL$15)),IF(INDEX(Import.PLE,Detalhamento!$E20,Detalhamento!AL$15)<=mediçao,0,OFFSET(Import.PLQ,$A20-1,AL$15-1,1,1)),OFFSET(Import.PLQ,$A20-1,AL$15-1,1,1)))) -> 0 | AM20: =IF(AM$13="",0,CHOOSE(Detalhamento.OpçãoServiços,OFFSET(Import.PLQ,$A20-1,AM$15-1,1,1),IF(ISNUMBER(INDEX(Import.PLE,Detalhamento!$E20,Detalhamento!AM$15)),IF(INDEX(Import.PLE,Detalhamento!$E20,Detalhamento!AM$15)<=mediçao,OFFSET(Import.PLQ,$A20-1,AM$15-1,1,1),0),0),IF(ISNUMBER(INDEX(Import.PLE,Detalhamento!$E20,Detalhamento!AM$15)),IF(INDEX(Import.PLE,Detalhamento!$E20,Detalhamento!AM$15)<=mediçao,0,OFFSET(Import.PLQ,$A20-1,AM$15-1,1,1)),OFFSET(Import.PLQ,$A20-1,AM$15-1,1,1)))) -> 0 | AN20: =IF(AN$13="",0,CHOOSE(Detalhamento.OpçãoServiços,OFFSET(Import.PLQ,$A20-1,AN$15-1,1,1),IF(ISNUMBER(INDEX(Import.PLE,Detalhamento!$E20,Detalhamento!AN$15)),IF(INDEX(Import.PLE,Detalhamento!$E20,Detalhamento!AN$15)<=mediçao,OFFSET(Import.PLQ,$A20-1,AN$15-1,1,1),0),0),IF(ISNUMBER(INDEX(Import.PLE,Detalhamento!$E20,Detalhamento!AN$15)),IF(INDEX(Import.PLE,Detalhamento!$E20,Detalhamento!AN$15)<=mediçao,0,OFFSET(Import.PLQ,$A20-1,AN$15-1,1,1)),OFFSET(Import.PLQ,$A20-1,AN$15-1,1,1)))) -> 0 | AO20: =IF(AO$13="",0,CHOOSE(Detalhamento.OpçãoServiços,OFFSET(Import.PLQ,$A20-1,AO$15-1,1,1),IF(ISNUMBER(INDEX(Import.PLE,Detalhamento!$E20,Detalhamento!AO$15)),IF(INDEX(Import.PLE,Detalhamento!$E20,Detalhamento!AO$15)<=mediçao,OFFSET(Import.PLQ,$A20-1,AO$15-1,1,1),0),0),IF(ISNUMBER(INDEX(Import.PLE,Detalhamento!$E20,Detalhamento!AO$15)),IF(INDEX(Import.PLE,Detalhamento!$E20,Detalhamento!AO$15)<=mediçao,0,OFFSET(Import.PLQ,$A20-1,AO$15-1,1,1)),OFFSET(Import.PLQ,$A20-1,AO$15-1,1,1)))) -> 0 | AP20: =IF(AP$13="",0,CHOOSE(Detalhamento.OpçãoServiços,OFFSET(Import.PLQ,$A20-1,AP$15-1,1,1),IF(ISNUMBER(INDEX(Import.PLE,Detalhamento!$E20,Detalhamento!AP$15)),IF(INDEX(Import.PLE,Detalhamento!$E20,Detalhamento!AP$15)<=mediçao,OFFSET(Import.PLQ,$A20-1,AP$15-1,1,1),0),0),IF(ISNUMBER(INDEX(Import.PLE,Detalhamento!$E20,Detalhamento!AP$15)),IF(INDEX(Import.PLE,Detalhamento!$E20,Detalhamento!AP$15)<=mediçao,0,OFFSET(Import.PLQ,$A20-1,AP$15-1,1,1)),OFFSET(Import.PLQ,$A20-1,AP$15-1,1,1)))) -> 0 | AQ20: =IF(AQ$13="",0,CHOOSE(Detalhamento.OpçãoServiços,OFFSET(Import.PLQ,$A20-1,AQ$15-1,1,1),IF(ISNUMBER(INDEX(Import.PLE,Detalhamento!$E20,Detalhamento!AQ$15)),IF(INDEX(Import.PLE,Detalhamento!$E20,Detalhamento!AQ$15)<=mediçao,OFFSET(Import.PLQ,$A20-1,AQ$15-1,1,1),0),0),IF(ISNUMBER(INDEX(Import.PLE,Detalhamento!$E20,Detalhamento!AQ$15)),IF(INDEX(Import.PLE,Detalhamento!$E20,Detalhamento!AQ$15)<=mediçao,0,OFFSET(Import.PLQ,$A20-1,AQ$15-1,1,1)),OFFSET(Import.PLQ,$A20-1,AQ$15-1,1,1)))) -> 0 | AR20: =IF(AR$13="",0,CHOOSE(Detalhamento.OpçãoServiços,OFFSET(Import.PLQ,$A20-1,AR$15-1,1,1),IF(ISNUMBER(INDEX(Import.PLE,Detalhamento!$E20,Detalhamento!AR$15)),IF(INDEX(Import.PLE,Detalhamento!$E20,Detalhamento!AR$15)<=mediçao,OFFSET(Import.PLQ,$A20-1,AR$15-1,1,1),0),0),IF(ISNUMBER(INDEX(Import.PLE,Detalhamento!$E20,Detalhamento!AR$15)),IF(INDEX(Import.PLE,Detalhamento!$E20,Detalhamento!AR$15)<=mediçao,0,OFFSET(Import.PLQ,$A20-1,AR$15-1,1,1)),OFFSET(Import.PLQ,$A20-1,AR$15-1,1,1)))) -> 0 | AS20: =IF(AS$13="",0,CHOOSE(Detalhamento.OpçãoServiços,OFFSET(Import.PLQ,$A20-1,AS$15-1,1,1),IF(ISNUMBER(INDEX(Import.PLE,Detalhamento!$E20,Detalhamento!AS$15)),IF(INDEX(Import.PLE,Detalhamento!$E20,Detalhamento!AS$15)<=mediçao,OFFSET(Import.PLQ,$A20-1,AS$15-1,1,1),0),0),IF(ISNUMBER(INDEX(Import.PLE,Detalhamento!$E20,Detalhamento!AS$15)),IF(INDEX(Import.PLE,Detalhamento!$E20,Detalhamento!AS$15)<=mediçao,0,OFFSET(Import.PLQ,$A20-1,AS$15-1,1,1)),OFFSET(Import.PLQ,$A20-1,AS$15-1,1,1)))) -> 0 | AT20: =IF(AT$13="",0,CHOOSE(Detalhamento.OpçãoServiços,OFFSET(Import.PLQ,$A20-1,AT$15-1,1,1),IF(ISNUMBER(INDEX(Import.PLE,Detalhamento!$E20,Detalhamento!AT$15)),IF(INDEX(Import.PLE,Detalhamento!$E20,Detalhamento!AT$15)<=mediçao,OFFSET(Import.PLQ,$A20-1,AT$15-1,1,1),0),0),IF(ISNUMBER(INDEX(Import.PLE,Detalhamento!$E20,Detalhamento!AT$15)),IF(INDEX(Import.PLE,Detalhamento!$E20,Detalhamento!AT$15)<=mediçao,0,OFFSET(Import.PLQ,$A20-1,AT$15-1,1,1)),OFFSET(Import.PLQ,$A20-1,AT$15-1,1,1)))) -> 0 | AU20: =IF(AU$13="",0,CHOOSE(Detalhamento.OpçãoServiços,OFFSET(Import.PLQ,$A20-1,AU$15-1,1,1),IF(ISNUMBER(INDEX(Import.PLE,Detalhamento!$E20,Detalhamento!AU$15)),IF(INDEX(Import.PLE,Detalhamento!$E20,Detalhamento!AU$15)<=mediçao,OFFSET(Import.PLQ,$A20-1,AU$15-1,1,1),0),0),IF(ISNUMBER(INDEX(Import.PLE,Detalhamento!$E20,Detalhamento!AU$15)),IF(INDEX(Import.PLE,Detalhamento!$E20,Detalhamento!AU$15)<=mediçao,0,OFFSET(Import.PLQ,$A20-1,AU$15-1,1,1)),OFFSET(Import.PLQ,$A20-1,AU$15-1,1,1)))) -> 0 | AV20: =IF(AV$13="",0,CHOOSE(Detalhamento.OpçãoServiços,OFFSET(Import.PLQ,$A20-1,AV$15-1,1,1),IF(ISNUMBER(INDEX(Import.PLE,Detalhamento!$E20,Detalhamento!AV$15)),IF(INDEX(Import.PLE,Detalhamento!$E20,Detalhamento!AV$15)<=mediçao,OFFSET(Import.PLQ,$A20-1,AV$15-1,1,1),0),0),IF(ISNUMBER(INDEX(Import.PLE,Detalhamento!$E20,Detalhamento!AV$15)),IF(INDEX(Import.PLE,Detalhamento!$E20,Detalhamento!AV$15)<=mediçao,0,OFFSET(Import.PLQ,$A20-1,AV$15-1,1,1)),OFFSET(Import.PLQ,$A20-1,AV$15-1,1,1)))) -> 0 | AW20: =IF(AW$13="",0,CHOOSE(Detalhamento.OpçãoServiços,OFFSET(Import.PLQ,$A20-1,AW$15-1,1,1),IF(ISNUMBER(INDEX(Import.PLE,Detalhamento!$E20,Detalhamento!AW$15)),IF(INDEX(Import.PLE,Detalhamento!$E20,Detalhamento!AW$15)<=mediçao,OFFSET(Import.PLQ,$A20-1,AW$15-1,1,1),0),0),IF(ISNUMBER(INDEX(Import.PLE,Detalhamento!$E20,Detalhamento!AW$15)),IF(INDEX(Import.PLE,Detalhamento!$E20,Detalhamento!AW$15)<=mediçao,0,OFFSET(Import.PLQ,$A20-1,AW$15-1,1,1)),OFFSET(Import.PLQ,$A20-1,AW$15-1,1,1)))) -> 0 | AX20: =IF(AX$13="",0,CHOOSE(Detalhamento.OpçãoServiços,OFFSET(Import.PLQ,$A20-1,AX$15-1,1,1),IF(ISNUMBER(INDEX(Import.PLE,Detalhamento!$E20,Detalhamento!AX$15)),IF(INDEX(Import.PLE,Detalhamento!$E20,Detalhamento!AX$15)<=mediçao,OFFSET(Import.PLQ,$A20-1,AX$15-1,1,1),0),0),IF(ISNUMBER(INDEX(Import.PLE,Detalhamento!$E20,Detalhamento!AX$15)),IF(INDEX(Import.PLE,Detalhamento!$E20,Detalhamento!AX$15)<=mediçao,0,OFFSET(Import.PLQ,$A20-1,AX$15-1,1,1)),OFFSET(Import.PLQ,$A20-1,AX$15-1,1,1)))) -> 0 | AY20: =IF(AY$13="",0,CHOOSE(Detalhamento.OpçãoServiços,OFFSET(Import.PLQ,$A20-1,AY$15-1,1,1),IF(ISNUMBER(INDEX(Import.PLE,Detalhamento!$E20,Detalhamento!AY$15)),IF(INDEX(Import.PLE,Detalhamento!$E20,Detalhamento!AY$15)<=mediçao,OFFSET(Import.PLQ,$A20-1,AY$15-1,1,1),0),0),IF(ISNUMBER(INDEX(Import.PLE,Detalhamento!$E20,Detalhamento!AY$15)),IF(INDEX(Import.PLE,Detalhamento!$E20,Detalhamento!AY$15)<=mediçao,0,OFFSET(Import.PLQ,$A20-1,AY$15-1,1,1)),OFFSET(Import.PLQ,$A20-1,AY$15-1,1,1)))) -> 0 | AZ20: =IF(AZ$13="",0,CHOOSE(Detalhamento.OpçãoServiços,OFFSET(Import.PLQ,$A20-1,AZ$15-1,1,1),IF(ISNUMBER(INDEX(Import.PLE,Detalhamento!$E20,Detalhamento!AZ$15)),IF(INDEX(Import.PLE,Detalhamento!$E20,Detalhamento!AZ$15)<=mediçao,OFFSET(Import.PLQ,$A20-1,AZ$15-1,1,1),0),0),IF(ISNUMBER(INDEX(Import.PLE,Detalhamento!$E20,Detalhamento!AZ$15)),IF(INDEX(Import.PLE,Detalhamento!$E20,Detalhamento!AZ$15)<=mediçao,0,OFFSET(Import.PLQ,$A20-1,AZ$15-1,1,1)),OFFSET(Import.PLQ,$A20-1,AZ$15-1,1,1)))) -> 0 | BA20: =IF(BA$13="",0,CHOOSE(Detalhamento.OpçãoServiços,OFFSET(Import.PLQ,$A20-1,BA$15-1,1,1),IF(ISNUMBER(INDEX(Import.PLE,Detalhamento!$E20,Detalhamento!BA$15)),IF(INDEX(Import.PLE,Detalhamento!$E20,Detalhamento!BA$15)<=mediçao,OFFSET(Import.PLQ,$A20-1,BA$15-1,1,1),0),0),IF(ISNUMBER(INDEX(Import.PLE,Detalhamento!$E20,Detalhamento!BA$15)),IF(INDEX(Import.PLE,Detalhamento!$E20,Detalhamento!BA$15)<=mediçao,0,OFFSET(Import.PLQ,$A20-1,BA$15-1,1,1)),OFFSET(Import.PLQ,$A20-1,BA$15-1,1,1)))) -> 0 | BB20: =IF(BB$13="",0,CHOOSE(Detalhamento.OpçãoServiços,OFFSET(Import.PLQ,$A20-1,BB$15-1,1,1),IF(ISNUMBER(INDEX(Import.PLE,Detalhamento!$E20,Detalhamento!BB$15)),IF(INDEX(Import.PLE,Detalhamento!$E20,Detalhamento!BB$15)<=mediçao,OFFSET(Import.PLQ,$A20-1,BB$15-1,1,1),0),0),IF(ISNUMBER(INDEX(Import.PLE,Detalhamento!$E20,Detalhamento!BB$15)),IF(INDEX(Import.PLE,Detalhamento!$E20,Detalhamento!BB$15)<=mediçao,0,OFFSET(Import.PLQ,$A20-1,BB$15-1,1,1)),OFFSET(Import.PLQ,$A20-1,BB$15-1,1,1)))) -> 0 | BC20: =IF(BC$13="",0,CHOOSE(Detalhamento.OpçãoServiços,OFFSET(Import.PLQ,$A20-1,BC$15-1,1,1),IF(ISNUMBER(INDEX(Import.PLE,Detalhamento!$E20,Detalhamento!BC$15)),IF(INDEX(Import.PLE,Detalhamento!$E20,Detalhamento!BC$15)<=mediçao,OFFSET(Import.PLQ,$A20-1,BC$15-1,1,1),0),0),IF(ISNUMBER(INDEX(Import.PLE,Detalhamento!$E20,Detalhamento!BC$15)),IF(INDEX(Import.PLE,Detalhamento!$E20,Detalhamento!BC$15)<=mediçao,0,OFFSET(Import.PLQ,$A20-1,BC$15-1,1,1)),OFFSET(Import.PLQ,$A20-1,BC$15-1,1,1)))) -> 0 | BD20: =IF(BD$13="",0,CHOOSE(Detalhamento.OpçãoServiços,OFFSET(Import.PLQ,$A20-1,BD$15-1,1,1),IF(ISNUMBER(INDEX(Import.PLE,Detalhamento!$E20,Detalhamento!BD$15)),IF(INDEX(Import.PLE,Detalhamento!$E20,Detalhamento!BD$15)<=mediçao,OFFSET(Import.PLQ,$A20-1,BD$15-1,1,1),0),0),IF(ISNUMBER(INDEX(Import.PLE,Detalhamento!$E20,Detalhamento!BD$15)),IF(INDEX(Import.PLE,Detalhamento!$E20,Detalhamento!BD$15)<=mediçao,0,OFFSET(Import.PLQ,$A20-1,BD$15-1,1,1)),OFFSET(Import.PLQ,$A20-1,BD$15-1,1,1)))) -> 0 | BE20: =IF(BE$13="",0,CHOOSE(Detalhamento.OpçãoServiços,OFFSET(Import.PLQ,$A20-1,BE$15-1,1,1),IF(ISNUMBER(INDEX(Import.PLE,Detalhamento!$E20,Detalhamento!BE$15)),IF(INDEX(Import.PLE,Detalhamento!$E20,Detalhamento!BE$15)<=mediçao,OFFSET(Import.PLQ,$A20-1,BE$15-1,1,1),0),0),IF(ISNUMBER(INDEX(Import.PLE,Detalhamento!$E20,Detalhamento!BE$15)),IF(INDEX(Import.PLE,Detalhamento!$E20,Detalhamento!BE$15)<=mediçao,0,OFFSET(Import.PLQ,$A20-1,BE$15-1,1,1)),OFFSET(Import.PLQ,$A20-1,BE$15-1,1,1)))) -> 0 | BF20: =IF(BF$13="",0,CHOOSE(Detalhamento.OpçãoServiços,OFFSET(Import.PLQ,$A20-1,BF$15-1,1,1),IF(ISNUMBER(INDEX(Import.PLE,Detalhamento!$E20,Detalhamento!BF$15)),IF(INDEX(Import.PLE,Detalhamento!$E20,Detalhamento!BF$15)<=mediçao,OFFSET(Import.PLQ,$A20-1,BF$15-1,1,1),0),0),IF(ISNUMBER(INDEX(Import.PLE,Detalhamento!$E20,Detalhamento!BF$15)),IF(INDEX(Import.PLE,Detalhamento!$E20,Detalhamento!BF$15)<=mediçao,0,OFFSET(Import.PLQ,$A20-1,BF$15-1,1,1)),OFFSET(Import.PLQ,$A20-1,BF$15-1,1,1)))) -> 0 | BG20: =IF(BG$13="",0,CHOOSE(Detalhamento.OpçãoServiços,OFFSET(Import.PLQ,$A20-1,BG$15-1,1,1),IF(ISNUMBER(INDEX(Import.PLE,Detalhamento!$E20,Detalhamento!BG$15)),IF(INDEX(Import.PLE,Detalhamento!$E20,Detalhamento!BG$15)<=mediçao,OFFSET(Import.PLQ,$A20-1,BG$15-1,1,1),0),0),IF(ISNUMBER(INDEX(Import.PLE,Detalhamento!$E20,Detalhamento!BG$15)),IF(INDEX(Import.PLE,Detalhamento!$E20,Detalhamento!BG$15)<=mediçao,0,OFFSET(Import.PLQ,$A20-1,BG$15-1,1,1)),OFFSET(Import.PLQ,$A20-1,BG$15-1,1,1)))) -> 0 | BH20: =IF(BH$13="",0,CHOOSE(Detalhamento.OpçãoServiços,OFFSET(Import.PLQ,$A20-1,BH$15-1,1,1),IF(ISNUMBER(INDEX(Import.PLE,Detalhamento!$E20,Detalhamento!BH$15)),IF(INDEX(Import.PLE,Detalhamento!$E20,Detalhamento!BH$15)<=mediçao,OFFSET(Import.PLQ,$A20-1,BH$15-1,1,1),0),0),IF(ISNUMBER(INDEX(Import.PLE,Detalhamento!$E20,Detalhamento!BH$15)),IF(INDEX(Import.PLE,Detalhamento!$E20,Detalhamento!BH$15)<=mediçao,0,OFFSET(Import.PLQ,$A20-1,BH$15-1,1,1)),OFFSET(Import.PLQ,$A20-1,BH$15-1,1,1)))) -> 0 | BI20: =IF(BI$13="",0,CHOOSE(Detalhamento.OpçãoServiços,OFFSET(Import.PLQ,$A20-1,BI$15-1,1,1),IF(ISNUMBER(INDEX(Import.PLE,Detalhamento!$E20,Detalhamento!BI$15)),IF(INDEX(Import.PLE,Detalhamento!$E20,Detalhamento!BI$15)<=mediçao,OFFSET(Import.PLQ,$A20-1,BI$15-1,1,1),0),0),IF(ISNUMBER(INDEX(Import.PLE,Detalhamento!$E20,Detalhamento!BI$15)),IF(INDEX(Import.PLE,Detalhamento!$E20,Detalhamento!BI$15)<=mediçao,0,OFFSET(Import.PLQ,$A20-1,BI$15-1,1,1)),OFFSET(Import.PLQ,$A20-1,BI$15-1,1,1)))) -> 0
A21: 4 | B21: Serviço | E21: 1 | F21: 10004 | G21: 1.1.2. | H21: PLACA DE OBRA EM CHAPA DE ACO GALVANIZADO PADRÃO CAIXA | I21: M2 | J21: 2.5 | L21: =IF(L$13="",0,CHOOSE(Detalhamento.OpçãoServiços,OFFSET(Import.PLQ,$A21-1,L$15-1,1,1),IF(ISNUMBER(INDEX(Import.PLE,Detalhamento!$E21,Detalhamento!L$15)),IF(INDEX(Import.PLE,Detalhamento!$E21,Detalhamento!L$15)<=mediçao,OFFSET(Import.PLQ,$A21-1,L$15-1,1,1),0),0),IF(ISNUMBER(INDEX(Import.PLE,Detalhamento!$E21,Detalhamento!L$15)),IF(INDEX(Import.PLE,Detalhamento!$E21,Detalhamento!L$15)<=mediçao,0,OFFSET(Import.PLQ,$A21-1,L$15-1,1,1)),OFFSET(Import.PLQ,$A21-1,L$15-1,1,1)))) -> 2.5 | M21: =IF(M$13="",0,CHOOSE(Detalhamento.OpçãoServiços,OFFSET(Import.PLQ,$A21-1,M$15-1,1,1),IF(ISNUMBER(INDEX(Import.PLE,Detalhamento!$E21,Detalhamento!M$15)),IF(INDEX(Import.PLE,Detalhamento!$E21,Detalhamento!M$15)<=mediçao,OFFSET(Import.PLQ,$A21-1,M$15-1,1,1),0),0),IF(ISNUMBER(INDEX(Import.PLE,Detalhamento!$E21,Detalhamento!M$15)),IF(INDEX(Import.PLE,Detalhamento!$E21,Detalhamento!M$15)<=mediçao,0,OFFSET(Import.PLQ,$A21-1,M$15-1,1,1)),OFFSET(Import.PLQ,$A21-1,M$15-1,1,1)))) -> 0 | N21: =IF(N$13="",0,CHOOSE(Detalhamento.OpçãoServiços,OFFSET(Import.PLQ,$A21-1,N$15-1,1,1),IF(ISNUMBER(INDEX(Import.PLE,Detalhamento!$E21,Detalhamento!N$15)),IF(INDEX(Import.PLE,Detalhamento!$E21,Detalhamento!N$15)<=mediçao,OFFSET(Import.PLQ,$A21-1,N$15-1,1,1),0),0),IF(ISNUMBER(INDEX(Import.PLE,Detalhamento!$E21,Detalhamento!N$15)),IF(INDEX(Import.PLE,Detalhamento!$E21,Detalhamento!N$15)<=mediçao,0,OFFSET(Import.PLQ,$A21-1,N$15-1,1,1)),OFFSET(Import.PLQ,$A21-1,N$15-1,1,1)))) -> 0 | O21: =IF(O$13="",0,CHOOSE(Detalhamento.OpçãoServiços,OFFSET(Import.PLQ,$A21-1,O$15-1,1,1),IF(ISNUMBER(INDEX(Import.PLE,Detalhamento!$E21,Detalhamento!O$15)),IF(INDEX(Import.PLE,Detalhamento!$E21,Detalhamento!O$15)<=mediçao,OFFSET(Import.PLQ,$A21-1,O$15-1,1,1),0),0),IF(ISNUMBER(INDEX(Import.PLE,Detalhamento!$E21,Detalhamento!O$15)),IF(INDEX(Import.PLE,Detalhamento!$E21,Detalhamento!O$15)<=mediçao,0,OFFSET(Import.PLQ,$A21-1,O$15-1,1,1)),OFFSET(Import.PLQ,$A21-1,O$15-1,1,1)))) -> 0 | P21: =IF(P$13="",0,CHOOSE(Detalhamento.OpçãoServiços,OFFSET(Import.PLQ,$A21-1,P$15-1,1,1),IF(ISNUMBER(INDEX(Import.PLE,Detalhamento!$E21,Detalhamento!P$15)),IF(INDEX(Import.PLE,Detalhamento!$E21,Detalhamento!P$15)<=mediçao,OFFSET(Import.PLQ,$A21-1,P$15-1,1,1),0),0),IF(ISNUMBER(INDEX(Import.PLE,Detalhamento!$E21,Detalhamento!P$15)),IF(INDEX(Import.PLE,Detalhamento!$E21,Detalhamento!P$15)<=mediçao,0,OFFSET(Import.PLQ,$A21-1,P$15-1,1,1)),OFFSET(Import.PLQ,$A21-1,P$15-1,1,1)))) -> 0 | Q21: =IF(Q$13="",0,CHOOSE(Detalhamento.OpçãoServiços,OFFSET(Import.PLQ,$A21-1,Q$15-1,1,1),IF(ISNUMBER(INDEX(Import.PLE,Detalhamento!$E21,Detalhamento!Q$15)),IF(INDEX(Import.PLE,Detalhamento!$E21,Detalhamento!Q$15)<=mediçao,OFFSET(Import.PLQ,$A21-1,Q$15-1,1,1),0),0),IF(ISNUMBER(INDEX(Import.PLE,Detalhamento!$E21,Detalhamento!Q$15)),IF(INDEX(Import.PLE,Detalhamento!$E21,Detalhamento!Q$15)<=mediçao,0,OFFSET(Import.PLQ,$A21-1,Q$15-1,1,1)),OFFSET(Import.PLQ,$A21-1,Q$15-1,1,1)))) -> 0 | R21: =IF(R$13="",0,CHOOSE(Detalhamento.OpçãoServiços,OFFSET(Import.PLQ,$A21-1,R$15-1,1,1),IF(ISNUMBER(INDEX(Import.PLE,Detalhamento!$E21,Detalhamento!R$15)),IF(INDEX(Import.PLE,Detalhamento!$E21,Detalhamento!R$15)<=mediçao,OFFSET(Import.PLQ,$A21-1,R$15-1,1,1),0),0),IF(ISNUMBER(INDEX(Import.PLE,Detalhamento!$E21,Detalhamento!R$15)),IF(INDEX(Import.PLE,Detalhamento!$E21,Detalhamento!R$15)<=mediçao,0,OFFSET(Import.PLQ,$A21-1,R$15-1,1,1)),OFFSET(Import.PLQ,$A21-1,R$15-1,1,1)))) -> 0 | S21: =IF(S$13="",0,CHOOSE(Detalhamento.OpçãoServiços,OFFSET(Import.PLQ,$A21-1,S$15-1,1,1),IF(ISNUMBER(INDEX(Import.PLE,Detalhamento!$E21,Detalhamento!S$15)),IF(INDEX(Import.PLE,Detalhamento!$E21,Detalhamento!S$15)<=mediçao,OFFSET(Import.PLQ,$A21-1,S$15-1,1,1),0),0),IF(ISNUMBER(INDEX(Import.PLE,Detalhamento!$E21,Detalhamento!S$15)),IF(INDEX(Import.PLE,Detalhamento!$E21,Detalhamento!S$15)<=mediçao,0,OFFSET(Import.PLQ,$A21-1,S$15-1,1,1)),OFFSET(Import.PLQ,$A21-1,S$15-1,1,1)))) -> 0 | T21: =IF(T$13="",0,CHOOSE(Detalhamento.OpçãoServiços,OFFSET(Import.PLQ,$A21-1,T$15-1,1,1),IF(ISNUMBER(INDEX(Import.PLE,Detalhamento!$E21,Detalhamento!T$15)),IF(INDEX(Import.PLE,Detalhamento!$E21,Detalhamento!T$15)<=mediçao,OFFSET(Import.PLQ,$A21-1,T$15-1,1,1),0),0),IF(ISNUMBER(INDEX(Import.PLE,Detalhamento!$E21,Detalhamento!T$15)),IF(INDEX(Import.PLE,Detalhamento!$E21,Detalhamento!T$15)<=mediçao,0,OFFSET(Import.PLQ,$A21-1,T$15-1,1,1)),OFFSET(Import.PLQ,$A21-1,T$15-1,1,1)))) -> 0 | U21: =IF(U$13="",0,CHOOSE(Detalhamento.OpçãoServiços,OFFSET(Import.PLQ,$A21-1,U$15-1,1,1),IF(ISNUMBER(INDEX(Import.PLE,Detalhamento!$E21,Detalhamento!U$15)),IF(INDEX(Import.PLE,Detalhamento!$E21,Detalhamento!U$15)<=mediçao,OFFSET(Import.PLQ,$A21-1,U$15-1,1,1),0),0),IF(ISNUMBER(INDEX(Import.PLE,Detalhamento!$E21,Detalhamento!U$15)),IF(INDEX(Import.PLE,Detalhamento!$E21,Detalhamento!U$15)<=mediçao,0,OFFSET(Import.PLQ,$A21-1,U$15-1,1,1)),OFFSET(Import.PLQ,$A21-1,U$15-1,1,1)))) -> 0 | V21: =IF(V$13="",0,CHOOSE(Detalhamento.OpçãoServiços,OFFSET(Import.PLQ,$A21-1,V$15-1,1,1),IF(ISNUMBER(INDEX(Import.PLE,Detalhamento!$E21,Detalhamento!V$15)),IF(INDEX(Import.PLE,Detalhamento!$E21,Detalhamento!V$15)<=mediçao,OFFSET(Import.PLQ,$A21-1,V$15-1,1,1),0),0),IF(ISNUMBER(INDEX(Import.PLE,Detalhamento!$E21,Detalhamento!V$15)),IF(INDEX(Import.PLE,Detalhamento!$E21,Detalhamento!V$15)<=mediçao,0,OFFSET(Import.PLQ,$A21-1,V$15-1,1,1)),OFFSET(Import.PLQ,$A21-1,V$15-1,1,1)))) -> 0 | W21: =IF(W$13="",0,CHOOSE(Detalhamento.OpçãoServiços,OFFSET(Import.PLQ,$A21-1,W$15-1,1,1),IF(ISNUMBER(INDEX(Import.PLE,Detalhamento!$E21,Detalhamento!W$15)),IF(INDEX(Import.PLE,Detalhamento!$E21,Detalhamento!W$15)<=mediçao,OFFSET(Import.PLQ,$A21-1,W$15-1,1,1),0),0),IF(ISNUMBER(INDEX(Import.PLE,Detalhamento!$E21,Detalhamento!W$15)),IF(INDEX(Import.PLE,Detalhamento!$E21,Detalhamento!W$15)<=mediçao,0,OFFSET(Import.PLQ,$A21-1,W$15-1,1,1)),OFFSET(Import.PLQ,$A21-1,W$15-1,1,1)))) -> 0 | X21: =IF(X$13="",0,CHOOSE(Detalhamento.OpçãoServiços,OFFSET(Import.PLQ,$A21-1,X$15-1,1,1),IF(ISNUMBER(INDEX(Import.PLE,Detalhamento!$E21,Detalhamento!X$15)),IF(INDEX(Import.PLE,Detalhamento!$E21,Detalhamento!X$15)<=mediçao,OFFSET(Import.PLQ,$A21-1,X$15-1,1,1),0),0),IF(ISNUMBER(INDEX(Import.PLE,Detalhamento!$E21,Detalhamento!X$15)),IF(INDEX(Import.PLE,Detalhamento!$E21,Detalhamento!X$15)<=mediçao,0,OFFSET(Import.PLQ,$A21-1,X$15-1,1,1)),OFFSET(Import.PLQ,$A21-1,X$15-1,1,1)))) -> 0 | Y21: =IF(Y$13="",0,CHOOSE(Detalhamento.OpçãoServiços,OFFSET(Import.PLQ,$A21-1,Y$15-1,1,1),IF(ISNUMBER(INDEX(Import.PLE,Detalhamento!$E21,Detalhamento!Y$15)),IF(INDEX(Import.PLE,Detalhamento!$E21,Detalhamento!Y$15)<=mediçao,OFFSET(Import.PLQ,$A21-1,Y$15-1,1,1),0),0),IF(ISNUMBER(INDEX(Import.PLE,Detalhamento!$E21,Detalhamento!Y$15)),IF(INDEX(Import.PLE,Detalhamento!$E21,Detalhamento!Y$15)<=mediçao,0,OFFSET(Import.PLQ,$A21-1,Y$15-1,1,1)),OFFSET(Import.PLQ,$A21-1,Y$15-1,1,1)))) -> 0 | Z21: =IF(Z$13="",0,CHOOSE(Detalhamento.OpçãoServiços,OFFSET(Import.PLQ,$A21-1,Z$15-1,1,1),IF(ISNUMBER(INDEX(Import.PLE,Detalhamento!$E21,Detalhamento!Z$15)),IF(INDEX(Import.PLE,Detalhamento!$E21,Detalhamento!Z$15)<=mediçao,OFFSET(Import.PLQ,$A21-1,Z$15-1,1,1),0),0),IF(ISNUMBER(INDEX(Import.PLE,Detalhamento!$E21,Detalhamento!Z$15)),IF(INDEX(Import.PLE,Detalhamento!$E21,Detalhamento!Z$15)<=mediçao,0,OFFSET(Import.PLQ,$A21-1,Z$15-1,1,1)),OFFSET(Import.PLQ,$A21-1,Z$15-1,1,1)))) -> 0 | AA21: =IF(AA$13="",0,CHOOSE(Detalhamento.OpçãoServiços,OFFSET(Import.PLQ,$A21-1,AA$15-1,1,1),IF(ISNUMBER(INDEX(Import.PLE,Detalhamento!$E21,Detalhamento!AA$15)),IF(INDEX(Import.PLE,Detalhamento!$E21,Detalhamento!AA$15)<=mediçao,OFFSET(Import.PLQ,$A21-1,AA$15-1,1,1),0),0),IF(ISNUMBER(INDEX(Import.PLE,Detalhamento!$E21,Detalhamento!AA$15)),IF(INDEX(Import.PLE,Detalhamento!$E21,Detalhamento!AA$15)<=mediçao,0,OFFSET(Import.PLQ,$A21-1,AA$15-1,1,1)),OFFSET(Import.PLQ,$A21-1,AA$15-1,1,1)))) -> 0 | AB21: =IF(AB$13="",0,CHOOSE(Detalhamento.OpçãoServiços,OFFSET(Import.PLQ,$A21-1,AB$15-1,1,1),IF(ISNUMBER(INDEX(Import.PLE,Detalhamento!$E21,Detalhamento!AB$15)),IF(INDEX(Import.PLE,Detalhamento!$E21,Detalhamento!AB$15)<=mediçao,OFFSET(Import.PLQ,$A21-1,AB$15-1,1,1),0),0),IF(ISNUMBER(INDEX(Import.PLE,Detalhamento!$E21,Detalhamento!AB$15)),IF(INDEX(Import.PLE,Detalhamento!$E21,Detalhamento!AB$15)<=mediçao,0,OFFSET(Import.PLQ,$A21-1,AB$15-1,1,1)),OFFSET(Import.PLQ,$A21-1,AB$15-1,1,1)))) -> 0 | AC21: =IF(AC$13="",0,CHOOSE(Detalhamento.OpçãoServiços,OFFSET(Import.PLQ,$A21-1,AC$15-1,1,1),IF(ISNUMBER(INDEX(Import.PLE,Detalhamento!$E21,Detalhamento!AC$15)),IF(INDEX(Import.PLE,Detalhamento!$E21,Detalhamento!AC$15)<=mediçao,OFFSET(Import.PLQ,$A21-1,AC$15-1,1,1),0),0),IF(ISNUMBER(INDEX(Import.PLE,Detalhamento!$E21,Detalhamento!AC$15)),IF(INDEX(Import.PLE,Detalhamento!$E21,Detalhamento!AC$15)<=mediçao,0,OFFSET(Import.PLQ,$A21-1,AC$15-1,1,1)),OFFSET(Import.PLQ,$A21-1,AC$15-1,1,1)))) -> 0 | AD21: =IF(AD$13="",0,CHOOSE(Detalhamento.OpçãoServiços,OFFSET(Import.PLQ,$A21-1,AD$15-1,1,1),IF(ISNUMBER(INDEX(Import.PLE,Detalhamento!$E21,Detalhamento!AD$15)),IF(INDEX(Import.PLE,Detalhamento!$E21,Detalhamento!AD$15)<=mediçao,OFFSET(Import.PLQ,$A21-1,AD$15-1,1,1),0),0),IF(ISNUMBER(INDEX(Import.PLE,Detalhamento!$E21,Detalhamento!AD$15)),IF(INDEX(Import.PLE,Detalhamento!$E21,Detalhamento!AD$15)<=mediçao,0,OFFSET(Import.PLQ,$A21-1,AD$15-1,1,1)),OFFSET(Import.PLQ,$A21-1,AD$15-1,1,1)))) -> 0 | AE21: =IF(AE$13="",0,CHOOSE(Detalhamento.OpçãoServiços,OFFSET(Import.PLQ,$A21-1,AE$15-1,1,1),IF(ISNUMBER(INDEX(Import.PLE,Detalhamento!$E21,Detalhamento!AE$15)),IF(INDEX(Import.PLE,Detalhamento!$E21,Detalhamento!AE$15)<=mediçao,OFFSET(Import.PLQ,$A21-1,AE$15-1,1,1),0),0),IF(ISNUMBER(INDEX(Import.PLE,Detalhamento!$E21,Detalhamento!AE$15)),IF(INDEX(Import.PLE,Detalhamento!$E21,Detalhamento!AE$15)<=mediçao,0,OFFSET(Import.PLQ,$A21-1,AE$15-1,1,1)),OFFSET(Import.PLQ,$A21-1,AE$15-1,1,1)))) -> 0 | AF21: =IF(AF$13="",0,CHOOSE(Detalhamento.OpçãoServiços,OFFSET(Import.PLQ,$A21-1,AF$15-1,1,1),IF(ISNUMBER(INDEX(Import.PLE,Detalhamento!$E21,Detalhamento!AF$15)),IF(INDEX(Import.PLE,Detalhamento!$E21,Detalhamento!AF$15)<=mediçao,OFFSET(Import.PLQ,$A21-1,AF$15-1,1,1),0),0),IF(ISNUMBER(INDEX(Import.PLE,Detalhamento!$E21,Detalhamento!AF$15)),IF(INDEX(Import.PLE,Detalhamento!$E21,Detalhamento!AF$15)<=mediçao,0,OFFSET(Import.PLQ,$A21-1,AF$15-1,1,1)),OFFSET(Import.PLQ,$A21-1,AF$15-1,1,1)))) -> 0 | AG21: =IF(AG$13="",0,CHOOSE(Detalhamento.OpçãoServiços,OFFSET(Import.PLQ,$A21-1,AG$15-1,1,1),IF(ISNUMBER(INDEX(Import.PLE,Detalhamento!$E21,Detalhamento!AG$15)),IF(INDEX(Import.PLE,Detalhamento!$E21,Detalhamento!AG$15)<=mediçao,OFFSET(Import.PLQ,$A21-1,AG$15-1,1,1),0),0),IF(ISNUMBER(INDEX(Import.PLE,Detalhamento!$E21,Detalhamento!AG$15)),IF(INDEX(Import.PLE,Detalhamento!$E21,Detalhamento!AG$15)<=mediçao,0,OFFSET(Import.PLQ,$A21-1,AG$15-1,1,1)),OFFSET(Import.PLQ,$A21-1,AG$15-1,1,1)))) -> 0 | AH21: =IF(AH$13="",0,CHOOSE(Detalhamento.OpçãoServiços,OFFSET(Import.PLQ,$A21-1,AH$15-1,1,1),IF(ISNUMBER(INDEX(Import.PLE,Detalhamento!$E21,Detalhamento!AH$15)),IF(INDEX(Import.PLE,Detalhamento!$E21,Detalhamento!AH$15)<=mediçao,OFFSET(Import.PLQ,$A21-1,AH$15-1,1,1),0),0),IF(ISNUMBER(INDEX(Import.PLE,Detalhamento!$E21,Detalhamento!AH$15)),IF(INDEX(Import.PLE,Detalhamento!$E21,Detalhamento!AH$15)<=mediçao,0,OFFSET(Import.PLQ,$A21-1,AH$15-1,1,1)),OFFSET(Import.PLQ,$A21-1,AH$15-1,1,1)))) -> 0 | AI21: =IF(AI$13="",0,CHOOSE(Detalhamento.OpçãoServiços,OFFSET(Import.PLQ,$A21-1,AI$15-1,1,1),IF(ISNUMBER(INDEX(Import.PLE,Detalhamento!$E21,Detalhamento!AI$15)),IF(INDEX(Import.PLE,Detalhamento!$E21,Detalhamento!AI$15)<=mediçao,OFFSET(Import.PLQ,$A21-1,AI$15-1,1,1),0),0),IF(ISNUMBER(INDEX(Import.PLE,Detalhamento!$E21,Detalhamento!AI$15)),IF(INDEX(Import.PLE,Detalhamento!$E21,Detalhamento!AI$15)<=mediçao,0,OFFSET(Import.PLQ,$A21-1,AI$15-1,1,1)),OFFSET(Import.PLQ,$A21-1,AI$15-1,1,1)))) -> 0 | AJ21: =IF(AJ$13="",0,CHOOSE(Detalhamento.OpçãoServiços,OFFSET(Import.PLQ,$A21-1,AJ$15-1,1,1),IF(ISNUMBER(INDEX(Import.PLE,Detalhamento!$E21,Detalhamento!AJ$15)),IF(INDEX(Import.PLE,Detalhamento!$E21,Detalhamento!AJ$15)<=mediçao,OFFSET(Import.PLQ,$A21-1,AJ$15-1,1,1),0),0),IF(ISNUMBER(INDEX(Import.PLE,Detalhamento!$E21,Detalhamento!AJ$15)),IF(INDEX(Import.PLE,Detalhamento!$E21,Detalhamento!AJ$15)<=mediçao,0,OFFSET(Import.PLQ,$A21-1,AJ$15-1,1,1)),OFFSET(Import.PLQ,$A21-1,AJ$15-1,1,1)))) -> 0 | AK21: =IF(AK$13="",0,CHOOSE(Detalhamento.OpçãoServiços,OFFSET(Import.PLQ,$A21-1,AK$15-1,1,1),IF(ISNUMBER(INDEX(Import.PLE,Detalhamento!$E21,Detalhamento!AK$15)),IF(INDEX(Import.PLE,Detalhamento!$E21,Detalhamento!AK$15)<=mediçao,OFFSET(Import.PLQ,$A21-1,AK$15-1,1,1),0),0),IF(ISNUMBER(INDEX(Import.PLE,Detalhamento!$E21,Detalhamento!AK$15)),IF(INDEX(Import.PLE,Detalhamento!$E21,Detalhamento!AK$15)<=mediçao,0,OFFSET(Import.PLQ,$A21-1,AK$15-1,1,1)),OFFSET(Import.PLQ,$A21-1,AK$15-1,1,1)))) -> 0 | AL21: =IF(AL$13="",0,CHOOSE(Detalhamento.OpçãoServiços,OFFSET(Import.PLQ,$A21-1,AL$15-1,1,1),IF(ISNUMBER(INDEX(Import.PLE,Detalhamento!$E21,Detalhamento!AL$15)),IF(INDEX(Import.PLE,Detalhamento!$E21,Detalhamento!AL$15)<=mediçao,OFFSET(Import.PLQ,$A21-1,AL$15-1,1,1),0),0),IF(ISNUMBER(INDEX(Import.PLE,Detalhamento!$E21,Detalhamento!AL$15)),IF(INDEX(Import.PLE,Detalhamento!$E21,Detalhamento!AL$15)<=mediçao,0,OFFSET(Import.PLQ,$A21-1,AL$15-1,1,1)),OFFSET(Import.PLQ,$A21-1,AL$15-1,1,1)))) -> 0 | AM21: =IF(AM$13="",0,CHOOSE(Detalhamento.OpçãoServiços,OFFSET(Import.PLQ,$A21-1,AM$15-1,1,1),IF(ISNUMBER(INDEX(Import.PLE,Detalhamento!$E21,Detalhamento!AM$15)),IF(INDEX(Import.PLE,Detalhamento!$E21,Detalhamento!AM$15)<=mediçao,OFFSET(Import.PLQ,$A21-1,AM$15-1,1,1),0),0),IF(ISNUMBER(INDEX(Import.PLE,Detalhamento!$E21,Detalhamento!AM$15)),IF(INDEX(Import.PLE,Detalhamento!$E21,Detalhamento!AM$15)<=mediçao,0,OFFSET(Import.PLQ,$A21-1,AM$15-1,1,1)),OFFSET(Import.PLQ,$A21-1,AM$15-1,1,1)))) -> 0 | AN21: =IF(AN$13="",0,CHOOSE(Detalhamento.OpçãoServiços,OFFSET(Import.PLQ,$A21-1,AN$15-1,1,1),IF(ISNUMBER(INDEX(Import.PLE,Detalhamento!$E21,Detalhamento!AN$15)),IF(INDEX(Import.PLE,Detalhamento!$E21,Detalhamento!AN$15)<=mediçao,OFFSET(Import.PLQ,$A21-1,AN$15-1,1,1),0),0),IF(ISNUMBER(INDEX(Import.PLE,Detalhamento!$E21,Detalhamento!AN$15)),IF(INDEX(Import.PLE,Detalhamento!$E21,Detalhamento!AN$15)<=mediçao,0,OFFSET(Import.PLQ,$A21-1,AN$15-1,1,1)),OFFSET(Import.PLQ,$A21-1,AN$15-1,1,1)))) -> 0 | AO21: =IF(AO$13="",0,CHOOSE(Detalhamento.OpçãoServiços,OFFSET(Import.PLQ,$A21-1,AO$15-1,1,1),IF(ISNUMBER(INDEX(Import.PLE,Detalhamento!$E21,Detalhamento!AO$15)),IF(INDEX(Import.PLE,Detalhamento!$E21,Detalhamento!AO$15)<=mediçao,OFFSET(Import.PLQ,$A21-1,AO$15-1,1,1),0),0),IF(ISNUMBER(INDEX(Import.PLE,Detalhamento!$E21,Detalhamento!AO$15)),IF(INDEX(Import.PLE,Detalhamento!$E21,Detalhamento!AO$15)<=mediçao,0,OFFSET(Import.PLQ,$A21-1,AO$15-1,1,1)),OFFSET(Import.PLQ,$A21-1,AO$15-1,1,1)))) -> 0 | AP21: =IF(AP$13="",0,CHOOSE(Detalhamento.OpçãoServiços,OFFSET(Import.PLQ,$A21-1,AP$15-1,1,1),IF(ISNUMBER(INDEX(Import.PLE,Detalhamento!$E21,Detalhamento!AP$15)),IF(INDEX(Import.PLE,Detalhamento!$E21,Detalhamento!AP$15)<=mediçao,OFFSET(Import.PLQ,$A21-1,AP$15-1,1,1),0),0),IF(ISNUMBER(INDEX(Import.PLE,Detalhamento!$E21,Detalhamento!AP$15)),IF(INDEX(Import.PLE,Detalhamento!$E21,Detalhamento!AP$15)<=mediçao,0,OFFSET(Import.PLQ,$A21-1,AP$15-1,1,1)),OFFSET(Import.PLQ,$A21-1,AP$15-1,1,1)))) -> 0 | AQ21: =IF(AQ$13="",0,CHOOSE(Detalhamento.OpçãoServiços,OFFSET(Import.PLQ,$A21-1,AQ$15-1,1,1),IF(ISNUMBER(INDEX(Import.PLE,Detalhamento!$E21,Detalhamento!AQ$15)),IF(INDEX(Import.PLE,Detalhamento!$E21,Detalhamento!AQ$15)<=mediçao,OFFSET(Import.PLQ,$A21-1,AQ$15-1,1,1),0),0),IF(ISNUMBER(INDEX(Import.PLE,Detalhamento!$E21,Detalhamento!AQ$15)),IF(INDEX(Import.PLE,Detalhamento!$E21,Detalhamento!AQ$15)<=mediçao,0,OFFSET(Import.PLQ,$A21-1,AQ$15-1,1,1)),OFFSET(Import.PLQ,$A21-1,AQ$15-1,1,1)))) -> 0 | AR21: =IF(AR$13="",0,CHOOSE(Detalhamento.OpçãoServiços,OFFSET(Import.PLQ,$A21-1,AR$15-1,1,1),IF(ISNUMBER(INDEX(Import.PLE,Detalhamento!$E21,Detalhamento!AR$15)),IF(INDEX(Import.PLE,Detalhamento!$E21,Detalhamento!AR$15)<=mediçao,OFFSET(Import.PLQ,$A21-1,AR$15-1,1,1),0),0),IF(ISNUMBER(INDEX(Import.PLE,Detalhamento!$E21,Detalhamento!AR$15)),IF(INDEX(Import.PLE,Detalhamento!$E21,Detalhamento!AR$15)<=mediçao,0,OFFSET(Import.PLQ,$A21-1,AR$15-1,1,1)),OFFSET(Import.PLQ,$A21-1,AR$15-1,1,1)))) -> 0 | AS21: =IF(AS$13="",0,CHOOSE(Detalhamento.OpçãoServiços,OFFSET(Import.PLQ,$A21-1,AS$15-1,1,1),IF(ISNUMBER(INDEX(Import.PLE,Detalhamento!$E21,Detalhamento!AS$15)),IF(INDEX(Import.PLE,Detalhamento!$E21,Detalhamento!AS$15)<=mediçao,OFFSET(Import.PLQ,$A21-1,AS$15-1,1,1),0),0),IF(ISNUMBER(INDEX(Import.PLE,Detalhamento!$E21,Detalhamento!AS$15)),IF(INDEX(Import.PLE,Detalhamento!$E21,Detalhamento!AS$15)<=mediçao,0,OFFSET(Import.PLQ,$A21-1,AS$15-1,1,1)),OFFSET(Import.PLQ,$A21-1,AS$15-1,1,1)))) -> 0 | AT21: =IF(AT$13="",0,CHOOSE(Detalhamento.OpçãoServiços,OFFSET(Import.PLQ,$A21-1,AT$15-1,1,1),IF(ISNUMBER(INDEX(Import.PLE,Detalhamento!$E21,Detalhamento!AT$15)),IF(INDEX(Import.PLE,Detalhamento!$E21,Detalhamento!AT$15)<=mediçao,OFFSET(Import.PLQ,$A21-1,AT$15-1,1,1),0),0),IF(ISNUMBER(INDEX(Import.PLE,Detalhamento!$E21,Detalhamento!AT$15)),IF(INDEX(Import.PLE,Detalhamento!$E21,Detalhamento!AT$15)<=mediçao,0,OFFSET(Import.PLQ,$A21-1,AT$15-1,1,1)),OFFSET(Import.PLQ,$A21-1,AT$15-1,1,1)))) -> 0 | AU21: =IF(AU$13="",0,CHOOSE(Detalhamento.OpçãoServiços,OFFSET(Import.PLQ,$A21-1,AU$15-1,1,1),IF(ISNUMBER(INDEX(Import.PLE,Detalhamento!$E21,Detalhamento!AU$15)),IF(INDEX(Import.PLE,Detalhamento!$E21,Detalhamento!AU$15)<=mediçao,OFFSET(Import.PLQ,$A21-1,AU$15-1,1,1),0),0),IF(ISNUMBER(INDEX(Import.PLE,Detalhamento!$E21,Detalhamento!AU$15)),IF(INDEX(Import.PLE,Detalhamento!$E21,Detalhamento!AU$15)<=mediçao,0,OFFSET(Import.PLQ,$A21-1,AU$15-1,1,1)),OFFSET(Import.PLQ,$A21-1,AU$15-1,1,1)))) -> 0 | AV21: =IF(AV$13="",0,CHOOSE(Detalhamento.OpçãoServiços,OFFSET(Import.PLQ,$A21-1,AV$15-1,1,1),IF(ISNUMBER(INDEX(Import.PLE,Detalhamento!$E21,Detalhamento!AV$15)),IF(INDEX(Import.PLE,Detalhamento!$E21,Detalhamento!AV$15)<=mediçao,OFFSET(Import.PLQ,$A21-1,AV$15-1,1,1),0),0),IF(ISNUMBER(INDEX(Import.PLE,Detalhamento!$E21,Detalhamento!AV$15)),IF(INDEX(Import.PLE,Detalhamento!$E21,Detalhamento!AV$15)<=mediçao,0,OFFSET(Import.PLQ,$A21-1,AV$15-1,1,1)),OFFSET(Import.PLQ,$A21-1,AV$15-1,1,1)))) -> 0 | AW21: =IF(AW$13="",0,CHOOSE(Detalhamento.OpçãoServiços,OFFSET(Import.PLQ,$A21-1,AW$15-1,1,1),IF(ISNUMBER(INDEX(Import.PLE,Detalhamento!$E21,Detalhamento!AW$15)),IF(INDEX(Import.PLE,Detalhamento!$E21,Detalhamento!AW$15)<=mediçao,OFFSET(Import.PLQ,$A21-1,AW$15-1,1,1),0),0),IF(ISNUMBER(INDEX(Import.PLE,Detalhamento!$E21,Detalhamento!AW$15)),IF(INDEX(Import.PLE,Detalhamento!$E21,Detalhamento!AW$15)<=mediçao,0,OFFSET(Import.PLQ,$A21-1,AW$15-1,1,1)),OFFSET(Import.PLQ,$A21-1,AW$15-1,1,1)))) -> 0 | AX21: =IF(AX$13="",0,CHOOSE(Detalhamento.OpçãoServiços,OFFSET(Import.PLQ,$A21-1,AX$15-1,1,1),IF(ISNUMBER(INDEX(Import.PLE,Detalhamento!$E21,Detalhamento!AX$15)),IF(INDEX(Import.PLE,Detalhamento!$E21,Detalhamento!AX$15)<=mediçao,OFFSET(Import.PLQ,$A21-1,AX$15-1,1,1),0),0),IF(ISNUMBER(INDEX(Import.PLE,Detalhamento!$E21,Detalhamento!AX$15)),IF(INDEX(Import.PLE,Detalhamento!$E21,Detalhamento!AX$15)<=mediçao,0,OFFSET(Import.PLQ,$A21-1,AX$15-1,1,1)),OFFSET(Import.PLQ,$A21-1,AX$15-1,1,1)))) -> 0 | AY21: =IF(AY$13="",0,CHOOSE(Detalhamento.OpçãoServiços,OFFSET(Import.PLQ,$A21-1,AY$15-1,1,1),IF(ISNUMBER(INDEX(Import.PLE,Detalhamento!$E21,Detalhamento!AY$15)),IF(INDEX(Import.PLE,Detalhamento!$E21,Detalhamento!AY$15)<=mediçao,OFFSET(Import.PLQ,$A21-1,AY$15-1,1,1),0),0),IF(ISNUMBER(INDEX(Import.PLE,Detalhamento!$E21,Detalhamento!AY$15)),IF(INDEX(Import.PLE,Detalhamento!$E21,Detalhamento!AY$15)<=mediçao,0,OFFSET(Import.PLQ,$A21-1,AY$15-1,1,1)),OFFSET(Import.PLQ,$A21-1,AY$15-1,1,1)))) -> 0 | AZ21: =IF(AZ$13="",0,CHOOSE(Detalhamento.OpçãoServiços,OFFSET(Import.PLQ,$A21-1,AZ$15-1,1,1),IF(ISNUMBER(INDEX(Import.PLE,Detalhamento!$E21,Detalhamento!AZ$15)),IF(INDEX(Import.PLE,Detalhamento!$E21,Detalhamento!AZ$15)<=mediçao,OFFSET(Import.PLQ,$A21-1,AZ$15-1,1,1),0),0),IF(ISNUMBER(INDEX(Import.PLE,Detalhamento!$E21,Detalhamento!AZ$15)),IF(INDEX(Import.PLE,Detalhamento!$E21,Detalhamento!AZ$15)<=mediçao,0,OFFSET(Import.PLQ,$A21-1,AZ$15-1,1,1)),OFFSET(Import.PLQ,$A21-1,AZ$15-1,1,1)))) -> 0 | BA21: =IF(BA$13="",0,CHOOSE(Detalhamento.OpçãoServiços,OFFSET(Import.PLQ,$A21-1,BA$15-1,1,1),IF(ISNUMBER(INDEX(Import.PLE,Detalhamento!$E21,Detalhamento!BA$15)),IF(INDEX(Import.PLE,Detalhamento!$E21,Detalhamento!BA$15)<=mediçao,OFFSET(Import.PLQ,$A21-1,BA$15-1,1,1),0),0),IF(ISNUMBER(INDEX(Import.PLE,Detalhamento!$E21,Detalhamento!BA$15)),IF(INDEX(Import.PLE,Detalhamento!$E21,Detalhamento!BA$15)<=mediçao,0,OFFSET(Import.PLQ,$A21-1,BA$15-1,1,1)),OFFSET(Import.PLQ,$A21-1,BA$15-1,1,1)))) -> 0 | BB21: =IF(BB$13="",0,CHOOSE(Detalhamento.OpçãoServiços,OFFSET(Import.PLQ,$A21-1,BB$15-1,1,1),IF(ISNUMBER(INDEX(Import.PLE,Detalhamento!$E21,Detalhamento!BB$15)),IF(INDEX(Import.PLE,Detalhamento!$E21,Detalhamento!BB$15)<=mediçao,OFFSET(Import.PLQ,$A21-1,BB$15-1,1,1),0),0),IF(ISNUMBER(INDEX(Import.PLE,Detalhamento!$E21,Detalhamento!BB$15)),IF(INDEX(Import.PLE,Detalhamento!$E21,Detalhamento!BB$15)<=mediçao,0,OFFSET(Import.PLQ,$A21-1,BB$15-1,1,1)),OFFSET(Import.PLQ,$A21-1,BB$15-1,1,1)))) -> 0 | BC21: =IF(BC$13="",0,CHOOSE(Detalhamento.OpçãoServiços,OFFSET(Import.PLQ,$A21-1,BC$15-1,1,1),IF(ISNUMBER(INDEX(Import.PLE,Detalhamento!$E21,Detalhamento!BC$15)),IF(INDEX(Import.PLE,Detalhamento!$E21,Detalhamento!BC$15)<=mediçao,OFFSET(Import.PLQ,$A21-1,BC$15-1,1,1),0),0),IF(ISNUMBER(INDEX(Import.PLE,Detalhamento!$E21,Detalhamento!BC$15)),IF(INDEX(Import.PLE,Detalhamento!$E21,Detalhamento!BC$15)<=mediçao,0,OFFSET(Import.PLQ,$A21-1,BC$15-1,1,1)),OFFSET(Import.PLQ,$A21-1,BC$15-1,1,1)))) -> 0 | BD21: =IF(BD$13="",0,CHOOSE(Detalhamento.OpçãoServiços,OFFSET(Import.PLQ,$A21-1,BD$15-1,1,1),IF(ISNUMBER(INDEX(Import.PLE,Detalhamento!$E21,Detalhamento!BD$15)),IF(INDEX(Import.PLE,Detalhamento!$E21,Detalhamento!BD$15)<=mediçao,OFFSET(Import.PLQ,$A21-1,BD$15-1,1,1),0),0),IF(ISNUMBER(INDEX(Import.PLE,Detalhamento!$E21,Detalhamento!BD$15)),IF(INDEX(Import.PLE,Detalhamento!$E21,Detalhamento!BD$15)<=mediçao,0,OFFSET(Import.PLQ,$A21-1,BD$15-1,1,1)),OFFSET(Import.PLQ,$A21-1,BD$15-1,1,1)))) -> 0 | BE21: =IF(BE$13="",0,CHOOSE(Detalhamento.OpçãoServiços,OFFSET(Import.PLQ,$A21-1,BE$15-1,1,1),IF(ISNUMBER(INDEX(Import.PLE,Detalhamento!$E21,Detalhamento!BE$15)),IF(INDEX(Import.PLE,Detalhamento!$E21,Detalhamento!BE$15)<=mediçao,OFFSET(Import.PLQ,$A21-1,BE$15-1,1,1),0),0),IF(ISNUMBER(INDEX(Import.PLE,Detalhamento!$E21,Detalhamento!BE$15)),IF(INDEX(Import.PLE,Detalhamento!$E21,Detalhamento!BE$15)<=mediçao,0,OFFSET(Import.PLQ,$A21-1,BE$15-1,1,1)),OFFSET(Import.PLQ,$A21-1,BE$15-1,1,1)))) -> 0 | BF21: =IF(BF$13="",0,CHOOSE(Detalhamento.OpçãoServiços,OFFSET(Import.PLQ,$A21-1,BF$15-1,1,1),IF(ISNUMBER(INDEX(Import.PLE,Detalhamento!$E21,Detalhamento!BF$15)),IF(INDEX(Import.PLE,Detalhamento!$E21,Detalhamento!BF$15)<=mediçao,OFFSET(Import.PLQ,$A21-1,BF$15-1,1,1),0),0),IF(ISNUMBER(INDEX(Import.PLE,Detalhamento!$E21,Detalhamento!BF$15)),IF(INDEX(Import.PLE,Detalhamento!$E21,Detalhamento!BF$15)<=mediçao,0,OFFSET(Import.PLQ,$A21-1,BF$15-1,1,1)),OFFSET(Import.PLQ,$A21-1,BF$15-1,1,1)))) -> 0 | BG21: =IF(BG$13="",0,CHOOSE(Detalhamento.OpçãoServiços,OFFSET(Import.PLQ,$A21-1,BG$15-1,1,1),IF(ISNUMBER(INDEX(Import.PLE,Detalhamento!$E21,Detalhamento!BG$15)),IF(INDEX(Import.PLE,Detalhamento!$E21,Detalhamento!BG$15)<=mediçao,OFFSET(Import.PLQ,$A21-1,BG$15-1,1,1),0),0),IF(ISNUMBER(INDEX(Import.PLE,Detalhamento!$E21,Detalhamento!BG$15)),IF(INDEX(Import.PLE,Detalhamento!$E21,Detalhamento!BG$15)<=mediçao,0,OFFSET(Import.PLQ,$A21-1,BG$15-1,1,1)),OFFSET(Import.PLQ,$A21-1,BG$15-1,1,1)))) -> 0 | BH21: =IF(BH$13="",0,CHOOSE(Detalhamento.OpçãoServiços,OFFSET(Import.PLQ,$A21-1,BH$15-1,1,1),IF(ISNUMBER(INDEX(Import.PLE,Detalhamento!$E21,Detalhamento!BH$15)),IF(INDEX(Import.PLE,Detalhamento!$E21,Detalhamento!BH$15)<=mediçao,OFFSET(Import.PLQ,$A21-1,BH$15-1,1,1),0),0),IF(ISNUMBER(INDEX(Import.PLE,Detalhamento!$E21,Detalhamento!BH$15)),IF(INDEX(Import.PLE,Detalhamento!$E21,Detalhamento!BH$15)<=mediçao,0,OFFSET(Import.PLQ,$A21-1,BH$15-1,1,1)),OFFSET(Import.PLQ,$A21-1,BH$15-1,1,1)))) -> 0 | BI21: =IF(BI$13="",0,CHOOSE(Detalhamento.OpçãoServiços,OFFSET(Import.PLQ,$A21-1,BI$15-1,1,1),IF(ISNUMBER(INDEX(Import.PLE,Detalhamento!$E21,Detalhamento!BI$15)),IF(INDEX(Import.PLE,Detalhamento!$E21,Detalhamento!BI$15)<=mediçao,OFFSET(Import.PLQ,$A21-1,BI$15-1,1,1),0),0),IF(ISNUMBER(INDEX(Import.PLE,Detalhamento!$E21,Detalhamento!BI$15)),IF(INDEX(Import.PLE,Detalhamento!$E21,Detalhamento!BI$15)<=mediçao,0,OFFSET(Import.PLQ,$A21-1,BI$15-1,1,1)),OFFSET(Import.PLQ,$A21-1,BI$15-1,1,1)))) -> 0
A22: 6 | B22: Nível | E22: 1 | F22: 0 | G22: 1.2. | H22: ESCAVAÇÃO E REATERRO | L22: =IF(L$13="",0,CHOOSE(Detalhamento.OpçãoServiços,OFFSET(Import.PLQ,$A22-1,L$15-1,1,1),IF(ISNUMBER(INDEX(Import.PLE,Detalhamento!$E22,Detalhamento!L$15)),IF(INDEX(Import.PLE,Detalhamento!$E22,Detalhamento!L$15)<=mediçao,OFFSET(Import.PLQ,$A22-1,L$15-1,1,1),0),0),IF(ISNUMBER(INDEX(Import.PLE,Detalhamento!$E22,Detalhamento!L$15)),IF(INDEX(Import.PLE,Detalhamento!$E22,Detalhamento!L$15)<=mediçao,0,OFFSET(Import.PLQ,$A22-1,L$15-1,1,1)),OFFSET(Import.PLQ,$A22-1,L$15-1,1,1)))) -> 0 | M22: =IF(M$13="",0,CHOOSE(Detalhamento.OpçãoServiços,OFFSET(Import.PLQ,$A22-1,M$15-1,1,1),IF(ISNUMBER(INDEX(Import.PLE,Detalhamento!$E22,Detalhamento!M$15)),IF(INDEX(Import.PLE,Detalhamento!$E22,Detalhamento!M$15)<=mediçao,OFFSET(Import.PLQ,$A22-1,M$15-1,1,1),0),0),IF(ISNUMBER(INDEX(Import.PLE,Detalhamento!$E22,Detalhamento!M$15)),IF(INDEX(Import.PLE,Detalhamento!$E22,Detalhamento!M$15)<=mediçao,0,OFFSET(Import.PLQ,$A22-1,M$15-1,1,1)),OFFSET(Import.PLQ,$A22-1,M$15-1,1,1)))) -> 0 | N22: =IF(N$13="",0,CHOOSE(Detalhamento.OpçãoServiços,OFFSET(Import.PLQ,$A22-1,N$15-1,1,1),IF(ISNUMBER(INDEX(Import.PLE,Detalhamento!$E22,Detalhamento!N$15)),IF(INDEX(Import.PLE,Detalhamento!$E22,Detalhamento!N$15)<=mediçao,OFFSET(Import.PLQ,$A22-1,N$15-1,1,1),0),0),IF(ISNUMBER(INDEX(Import.PLE,Detalhamento!$E22,Detalhamento!N$15)),IF(INDEX(Import.PLE,Detalhamento!$E22,Detalhamento!N$15)<=mediçao,0,OFFSET(Import.PLQ,$A22-1,N$15-1,1,1)),OFFSET(Import.PLQ,$A22-1,N$15-1,1,1)))) -> 0 | O22: =IF(O$13="",0,CHOOSE(Detalhamento.OpçãoServiços,OFFSET(Import.PLQ,$A22-1,O$15-1,1,1),IF(ISNUMBER(INDEX(Import.PLE,Detalhamento!$E22,Detalhamento!O$15)),IF(INDEX(Import.PLE,Detalhamento!$E22,Detalhamento!O$15)<=mediçao,OFFSET(Import.PLQ,$A22-1,O$15-1,1,1),0),0),IF(ISNUMBER(INDEX(Import.PLE,Detalhamento!$E22,Detalhamento!O$15)),IF(INDEX(Import.PLE,Detalhamento!$E22,Detalhamento!O$15)<=mediçao,0,OFFSET(Import.PLQ,$A22-1,O$15-1,1,1)),OFFSET(Import.PLQ,$A22-1,O$15-1,1,1)))) -> 0 | P22: =IF(P$13="",0,CHOOSE(Detalhamento.OpçãoServiços,OFFSET(Import.PLQ,$A22-1,P$15-1,1,1),IF(ISNUMBER(INDEX(Import.PLE,Detalhamento!$E22,Detalhamento!P$15)),IF(INDEX(Import.PLE,Detalhamento!$E22,Detalhamento!P$15)<=mediçao,OFFSET(Import.PLQ,$A22-1,P$15-1,1,1),0),0),IF(ISNUMBER(INDEX(Import.PLE,Detalhamento!$E22,Detalhamento!P$15)),IF(INDEX(Import.PLE,Detalhamento!$E22,Detalhamento!P$15)<=mediçao,0,OFFSET(Import.PLQ,$A22-1,P$15-1,1,1)),OFFSET(Import.PLQ,$A22-1,P$15-1,1,1)))) -> 0 | Q22: =IF(Q$13="",0,CHOOSE(Detalhamento.OpçãoServiços,OFFSET(Import.PLQ,$A22-1,Q$15-1,1,1),IF(ISNUMBER(INDEX(Import.PLE,Detalhamento!$E22,Detalhamento!Q$15)),IF(INDEX(Import.PLE,Detalhamento!$E22,Detalhamento!Q$15)<=mediçao,OFFSET(Import.PLQ,$A22-1,Q$15-1,1,1),0),0),IF(ISNUMBER(INDEX(Import.PLE,Detalhamento!$E22,Detalhamento!Q$15)),IF(INDEX(Import.PLE,Detalhamento!$E22,Detalhamento!Q$15)<=mediçao,0,OFFSET(Import.PLQ,$A22-1,Q$15-1,1,1)),OFFSET(Import.PLQ,$A22-1,Q$15-1,1,1)))) -> 0 | R22: =IF(R$13="",0,CHOOSE(Detalhamento.OpçãoServiços,OFFSET(Import.PLQ,$A22-1,R$15-1,1,1),IF(ISNUMBER(INDEX(Import.PLE,Detalhamento!$E22,Detalhamento!R$15)),IF(INDEX(Import.PLE,Detalhamento!$E22,Detalhamento!R$15)<=mediçao,OFFSET(Import.PLQ,$A22-1,R$15-1,1,1),0),0),IF(ISNUMBER(INDEX(Import.PLE,Detalhamento!$E22,Detalhamento!R$15)),IF(INDEX(Import.PLE,Detalhamento!$E22,Detalhamento!R$15)<=mediçao,0,OFFSET(Import.PLQ,$A22-1,R$15-1,1,1)),OFFSET(Import.PLQ,$A22-1,R$15-1,1,1)))) -> 0 | S22: =IF(S$13="",0,CHOOSE(Detalhamento.OpçãoServiços,OFFSET(Import.PLQ,$A22-1,S$15-1,1,1),IF(ISNUMBER(INDEX(Import.PLE,Detalhamento!$E22,Detalhamento!S$15)),IF(INDEX(Import.PLE,Detalhamento!$E22,Detalhamento!S$15)<=mediçao,OFFSET(Import.PLQ,$A22-1,S$15-1,1,1),0),0),IF(ISNUMBER(INDEX(Import.PLE,Detalhamento!$E22,Detalhamento!S$15)),IF(INDEX(Import.PLE,Detalhamento!$E22,Detalhamento!S$15)<=mediçao,0,OFFSET(Import.PLQ,$A22-1,S$15-1,1,1)),OFFSET(Import.PLQ,$A22-1,S$15-1,1,1)))) -> 0 | T22: =IF(T$13="",0,CHOOSE(Detalhamento.OpçãoServiços,OFFSET(Import.PLQ,$A22-1,T$15-1,1,1),IF(ISNUMBER(INDEX(Import.PLE,Detalhamento!$E22,Detalhamento!T$15)),IF(INDEX(Import.PLE,Detalhamento!$E22,Detalhamento!T$15)<=mediçao,OFFSET(Import.PLQ,$A22-1,T$15-1,1,1),0),0),IF(ISNUMBER(INDEX(Import.PLE,Detalhamento!$E22,Detalhamento!T$15)),IF(INDEX(Import.PLE,Detalhamento!$E22,Detalhamento!T$15)<=mediçao,0,OFFSET(Import.PLQ,$A22-1,T$15-1,1,1)),OFFSET(Import.PLQ,$A22-1,T$15-1,1,1)))) -> 0 | U22: =IF(U$13="",0,CHOOSE(Detalhamento.OpçãoServiços,OFFSET(Import.PLQ,$A22-1,U$15-1,1,1),IF(ISNUMBER(INDEX(Import.PLE,Detalhamento!$E22,Detalhamento!U$15)),IF(INDEX(Import.PLE,Detalhamento!$E22,Detalhamento!U$15)<=mediçao,OFFSET(Import.PLQ,$A22-1,U$15-1,1,1),0),0),IF(ISNUMBER(INDEX(Import.PLE,Detalhamento!$E22,Detalhamento!U$15)),IF(INDEX(Import.PLE,Detalhamento!$E22,Detalhamento!U$15)<=mediçao,0,OFFSET(Import.PLQ,$A22-1,U$15-1,1,1)),OFFSET(Import.PLQ,$A22-1,U$15-1,1,1)))) -> 0 | V22: =IF(V$13="",0,CHOOSE(Detalhamento.OpçãoServiços,OFFSET(Import.PLQ,$A22-1,V$15-1,1,1),IF(ISNUMBER(INDEX(Import.PLE,Detalhamento!$E22,Detalhamento!V$15)),IF(INDEX(Import.PLE,Detalhamento!$E22,Detalhamento!V$15)<=mediçao,OFFSET(Import.PLQ,$A22-1,V$15-1,1,1),0),0),IF(ISNUMBER(INDEX(Import.PLE,Detalhamento!$E22,Detalhamento!V$15)),IF(INDEX(Import.PLE,Detalhamento!$E22,Detalhamento!V$15)<=mediçao,0,OFFSET(Import.PLQ,$A22-1,V$15-1,1,1)),OFFSET(Import.PLQ,$A22-1,V$15-1,1,1)))) -> 0 | W22: =IF(W$13="",0,CHOOSE(Detalhamento.OpçãoServiços,OFFSET(Import.PLQ,$A22-1,W$15-1,1,1),IF(ISNUMBER(INDEX(Import.PLE,Detalhamento!$E22,Detalhamento!W$15)),IF(INDEX(Import.PLE,Detalhamento!$E22,Detalhamento!W$15)<=mediçao,OFFSET(Import.PLQ,$A22-1,W$15-1,1,1),0),0),IF(ISNUMBER(INDEX(Import.PLE,Detalhamento!$E22,Detalhamento!W$15)),IF(INDEX(Import.PLE,Detalhamento!$E22,Detalhamento!W$15)<=mediçao,0,OFFSET(Import.PLQ,$A22-1,W$15-1,1,1)),OFFSET(Import.PLQ,$A22-1,W$15-1,1,1)))) -> 0 | X22: =IF(X$13="",0,CHOOSE(Detalhamento.OpçãoServiços,OFFSET(Import.PLQ,$A22-1,X$15-1,1,1),IF(ISNUMBER(INDEX(Import.PLE,Detalhamento!$E22,Detalhamento!X$15)),IF(INDEX(Import.PLE,Detalhamento!$E22,Detalhamento!X$15)<=mediçao,OFFSET(Import.PLQ,$A22-1,X$15-1,1,1),0),0),IF(ISNUMBER(INDEX(Import.PLE,Detalhamento!$E22,Detalhamento!X$15)),IF(INDEX(Import.PLE,Detalhamento!$E22,Detalhamento!X$15)<=mediçao,0,OFFSET(Import.PLQ,$A22-1,X$15-1,1,1)),OFFSET(Import.PLQ,$A22-1,X$15-1,1,1)))) -> 0 | Y22: =IF(Y$13="",0,CHOOSE(Detalhamento.OpçãoServiços,OFFSET(Import.PLQ,$A22-1,Y$15-1,1,1),IF(ISNUMBER(INDEX(Import.PLE,Detalhamento!$E22,Detalhamento!Y$15)),IF(INDEX(Import.PLE,Detalhamento!$E22,Detalhamento!Y$15)<=mediçao,OFFSET(Import.PLQ,$A22-1,Y$15-1,1,1),0),0),IF(ISNUMBER(INDEX(Import.PLE,Detalhamento!$E22,Detalhamento!Y$15)),IF(INDEX(Import.PLE,Detalhamento!$E22,Detalhamento!Y$15)<=mediçao,0,OFFSET(Import.PLQ,$A22-1,Y$15-1,1,1)),OFFSET(Import.PLQ,$A22-1,Y$15-1,1,1)))) -> 0 | Z22: =IF(Z$13="",0,CHOOSE(Detalhamento.OpçãoServiços,OFFSET(Import.PLQ,$A22-1,Z$15-1,1,1),IF(ISNUMBER(INDEX(Import.PLE,Detalhamento!$E22,Detalhamento!Z$15)),IF(INDEX(Import.PLE,Detalhamento!$E22,Detalhamento!Z$15)<=mediçao,OFFSET(Import.PLQ,$A22-1,Z$15-1,1,1),0),0),IF(ISNUMBER(INDEX(Import.PLE,Detalhamento!$E22,Detalhamento!Z$15)),IF(INDEX(Import.PLE,Detalhamento!$E22,Detalhamento!Z$15)<=mediçao,0,OFFSET(Import.PLQ,$A22-1,Z$15-1,1,1)),OFFSET(Import.PLQ,$A22-1,Z$15-1,1,1)))) -> 0 | AA22: =IF(AA$13="",0,CHOOSE(Detalhamento.OpçãoServiços,OFFSET(Import.PLQ,$A22-1,AA$15-1,1,1),IF(ISNUMBER(INDEX(Import.PLE,Detalhamento!$E22,Detalhamento!AA$15)),IF(INDEX(Import.PLE,Detalhamento!$E22,Detalhamento!AA$15)<=mediçao,OFFSET(Import.PLQ,$A22-1,AA$15-1,1,1),0),0),IF(ISNUMBER(INDEX(Import.PLE,Detalhamento!$E22,Detalhamento!AA$15)),IF(INDEX(Import.PLE,Detalhamento!$E22,Detalhamento!AA$15)<=mediçao,0,OFFSET(Import.PLQ,$A22-1,AA$15-1,1,1)),OFFSET(Import.PLQ,$A22-1,AA$15-1,1,1)))) -> 0 | AB22: =IF(AB$13="",0,CHOOSE(Detalhamento.OpçãoServiços,OFFSET(Import.PLQ,$A22-1,AB$15-1,1,1),IF(ISNUMBER(INDEX(Import.PLE,Detalhamento!$E22,Detalhamento!AB$15)),IF(INDEX(Import.PLE,Detalhamento!$E22,Detalhamento!AB$15)<=mediçao,OFFSET(Import.PLQ,$A22-1,AB$15-1,1,1),0),0),IF(ISNUMBER(INDEX(Import.PLE,Detalhamento!$E22,Detalhamento!AB$15)),IF(INDEX(Import.PLE,Detalhamento!$E22,Detalhamento!AB$15)<=mediçao,0,OFFSET(Import.PLQ,$A22-1,AB$15-1,1,1)),OFFSET(Import.PLQ,$A22-1,AB$15-1,1,1)))) -> 0 | AC22: =IF(AC$13="",0,CHOOSE(Detalhamento.OpçãoServiços,OFFSET(Import.PLQ,$A22-1,AC$15-1,1,1),IF(ISNUMBER(INDEX(Import.PLE,Detalhamento!$E22,Detalhamento!AC$15)),IF(INDEX(Import.PLE,Detalhamento!$E22,Detalhamento!AC$15)<=mediçao,OFFSET(Import.PLQ,$A22-1,AC$15-1,1,1),0),0),IF(ISNUMBER(INDEX(Import.PLE,Detalhamento!$E22,Detalhamento!AC$15)),IF(INDEX(Import.PLE,Detalhamento!$E22,Detalhamento!AC$15)<=mediçao,0,OFFSET(Import.PLQ,$A22-1,AC$15-1,1,1)),OFFSET(Import.PLQ,$A22-1,AC$15-1,1,1)))) -> 0 | AD22: =IF(AD$13="",0,CHOOSE(Detalhamento.OpçãoServiços,OFFSET(Import.PLQ,$A22-1,AD$15-1,1,1),IF(ISNUMBER(INDEX(Import.PLE,Detalhamento!$E22,Detalhamento!AD$15)),IF(INDEX(Import.PLE,Detalhamento!$E22,Detalhamento!AD$15)<=mediçao,OFFSET(Import.PLQ,$A22-1,AD$15-1,1,1),0),0),IF(ISNUMBER(INDEX(Import.PLE,Detalhamento!$E22,Detalhamento!AD$15)),IF(INDEX(Import.PLE,Detalhamento!$E22,Detalhamento!AD$15)<=mediçao,0,OFFSET(Import.PLQ,$A22-1,AD$15-1,1,1)),OFFSET(Import.PLQ,$A22-1,AD$15-1,1,1)))) -> 0 | AE22: =IF(AE$13="",0,CHOOSE(Detalhamento.OpçãoServiços,OFFSET(Import.PLQ,$A22-1,AE$15-1,1,1),IF(ISNUMBER(INDEX(Import.PLE,Detalhamento!$E22,Detalhamento!AE$15)),IF(INDEX(Import.PLE,Detalhamento!$E22,Detalhamento!AE$15)<=mediçao,OFFSET(Import.PLQ,$A22-1,AE$15-1,1,1),0),0),IF(ISNUMBER(INDEX(Import.PLE,Detalhamento!$E22,Detalhamento!AE$15)),IF(INDEX(Import.PLE,Detalhamento!$E22,Detalhamento!AE$15)<=mediçao,0,OFFSET(Import.PLQ,$A22-1,AE$15-1,1,1)),OFFSET(Import.PLQ,$A22-1,AE$15-1,1,1)))) -> 0 | AF22: =IF(AF$13="",0,CHOOSE(Detalhamento.OpçãoServiços,OFFSET(Import.PLQ,$A22-1,AF$15-1,1,1),IF(ISNUMBER(INDEX(Import.PLE,Detalhamento!$E22,Detalhamento!AF$15)),IF(INDEX(Import.PLE,Detalhamento!$E22,Detalhamento!AF$15)<=mediçao,OFFSET(Import.PLQ,$A22-1,AF$15-1,1,1),0),0),IF(ISNUMBER(INDEX(Import.PLE,Detalhamento!$E22,Detalhamento!AF$15)),IF(INDEX(Import.PLE,Detalhamento!$E22,Detalhamento!AF$15)<=mediçao,0,OFFSET(Import.PLQ,$A22-1,AF$15-1,1,1)),OFFSET(Import.PLQ,$A22-1,AF$15-1,1,1)))) -> 0 | AG22: =IF(AG$13="",0,CHOOSE(Detalhamento.OpçãoServiços,OFFSET(Import.PLQ,$A22-1,AG$15-1,1,1),IF(ISNUMBER(INDEX(Import.PLE,Detalhamento!$E22,Detalhamento!AG$15)),IF(INDEX(Import.PLE,Detalhamento!$E22,Detalhamento!AG$15)<=mediçao,OFFSET(Import.PLQ,$A22-1,AG$15-1,1,1),0),0),IF(ISNUMBER(INDEX(Import.PLE,Detalhamento!$E22,Detalhamento!AG$15)),IF(INDEX(Import.PLE,Detalhamento!$E22,Detalhamento!AG$15)<=mediçao,0,OFFSET(Import.PLQ,$A22-1,AG$15-1,1,1)),OFFSET(Import.PLQ,$A22-1,AG$15-1,1,1)))) -> 0 | AH22: =IF(AH$13="",0,CHOOSE(Detalhamento.OpçãoServiços,OFFSET(Import.PLQ,$A22-1,AH$15-1,1,1),IF(ISNUMBER(INDEX(Import.PLE,Detalhamento!$E22,Detalhamento!AH$15)),IF(INDEX(Import.PLE,Detalhamento!$E22,Detalhamento!AH$15)<=mediçao,OFFSET(Import.PLQ,$A22-1,AH$15-1,1,1),0),0),IF(ISNUMBER(INDEX(Import.PLE,Detalhamento!$E22,Detalhamento!AH$15)),IF(INDEX(Import.PLE,Detalhamento!$E22,Detalhamento!AH$15)<=mediçao,0,OFFSET(Import.PLQ,$A22-1,AH$15-1,1,1)),OFFSET(Import.PLQ,$A22-1,AH$15-1,1,1)))) -> 0 | AI22: =IF(AI$13="",0,CHOOSE(Detalhamento.OpçãoServiços,OFFSET(Import.PLQ,$A22-1,AI$15-1,1,1),IF(ISNUMBER(INDEX(Import.PLE,Detalhamento!$E22,Detalhamento!AI$15)),IF(INDEX(Import.PLE,Detalhamento!$E22,Detalhamento!AI$15)<=mediçao,OFFSET(Import.PLQ,$A22-1,AI$15-1,1,1),0),0),IF(ISNUMBER(INDEX(Import.PLE,Detalhamento!$E22,Detalhamento!AI$15)),IF(INDEX(Import.PLE,Detalhamento!$E22,Detalhamento!AI$15)<=mediçao,0,OFFSET(Import.PLQ,$A22-1,AI$15-1,1,1)),OFFSET(Import.PLQ,$A22-1,AI$15-1,1,1)))) -> 0 | AJ22: =IF(AJ$13="",0,CHOOSE(Detalhamento.OpçãoServiços,OFFSET(Import.PLQ,$A22-1,AJ$15-1,1,1),IF(ISNUMBER(INDEX(Import.PLE,Detalhamento!$E22,Detalhamento!AJ$15)),IF(INDEX(Import.PLE,Detalhamento!$E22,Detalhamento!AJ$15)<=mediçao,OFFSET(Import.PLQ,$A22-1,AJ$15-1,1,1),0),0),IF(ISNUMBER(INDEX(Import.PLE,Detalhamento!$E22,Detalhamento!AJ$15)),IF(INDEX(Import.PLE,Detalhamento!$E22,Detalhamento!AJ$15)<=mediçao,0,OFFSET(Import.PLQ,$A22-1,AJ$15-1,1,1)),OFFSET(Import.PLQ,$A22-1,AJ$15-1,1,1)))) -> 0 | AK22: =IF(AK$13="",0,CHOOSE(Detalhamento.OpçãoServiços,OFFSET(Import.PLQ,$A22-1,AK$15-1,1,1),IF(ISNUMBER(INDEX(Import.PLE,Detalhamento!$E22,Detalhamento!AK$15)),IF(INDEX(Import.PLE,Detalhamento!$E22,Detalhamento!AK$15)<=mediçao,OFFSET(Import.PLQ,$A22-1,AK$15-1,1,1),0),0),IF(ISNUMBER(INDEX(Import.PLE,Detalhamento!$E22,Detalhamento!AK$15)),IF(INDEX(Import.PLE,Detalhamento!$E22,Detalhamento!AK$15)<=mediçao,0,OFFSET(Import.PLQ,$A22-1,AK$15-1,1,1)),OFFSET(Import.PLQ,$A22-1,AK$15-1,1,1)))) -> 0 | AL22: =IF(AL$13="",0,CHOOSE(Detalhamento.OpçãoServiços,OFFSET(Import.PLQ,$A22-1,AL$15-1,1,1),IF(ISNUMBER(INDEX(Import.PLE,Detalhamento!$E22,Detalhamento!AL$15)),IF(INDEX(Import.PLE,Detalhamento!$E22,Detalhamento!AL$15)<=mediçao,OFFSET(Import.PLQ,$A22-1,AL$15-1,1,1),0),0),IF(ISNUMBER(INDEX(Import.PLE,Detalhamento!$E22,Detalhamento!AL$15)),IF(INDEX(Import.PLE,Detalhamento!$E22,Detalhamento!AL$15)<=mediçao,0,OFFSET(Import.PLQ,$A22-1,AL$15-1,1,1)),OFFSET(Import.PLQ,$A22-1,AL$15-1,1,1)))) -> 0 | AM22: =IF(AM$13="",0,CHOOSE(Detalhamento.OpçãoServiços,OFFSET(Import.PLQ,$A22-1,AM$15-1,1,1),IF(ISNUMBER(INDEX(Import.PLE,Detalhamento!$E22,Detalhamento!AM$15)),IF(INDEX(Import.PLE,Detalhamento!$E22,Detalhamento!AM$15)<=mediçao,OFFSET(Import.PLQ,$A22-1,AM$15-1,1,1),0),0),IF(ISNUMBER(INDEX(Import.PLE,Detalhamento!$E22,Detalhamento!AM$15)),IF(INDEX(Import.PLE,Detalhamento!$E22,Detalhamento!AM$15)<=mediçao,0,OFFSET(Import.PLQ,$A22-1,AM$15-1,1,1)),OFFSET(Import.PLQ,$A22-1,AM$15-1,1,1)))) -> 0 | AN22: =IF(AN$13="",0,CHOOSE(Detalhamento.OpçãoServiços,OFFSET(Import.PLQ,$A22-1,AN$15-1,1,1),IF(ISNUMBER(INDEX(Import.PLE,Detalhamento!$E22,Detalhamento!AN$15)),IF(INDEX(Import.PLE,Detalhamento!$E22,Detalhamento!AN$15)<=mediçao,OFFSET(Import.PLQ,$A22-1,AN$15-1,1,1),0),0),IF(ISNUMBER(INDEX(Import.PLE,Detalhamento!$E22,Detalhamento!AN$15)),IF(INDEX(Import.PLE,Detalhamento!$E22,Detalhamento!AN$15)<=mediçao,0,OFFSET(Import.PLQ,$A22-1,AN$15-1,1,1)),OFFSET(Import.PLQ,$A22-1,AN$15-1,1,1)))) -> 0 | AO22: =IF(AO$13="",0,CHOOSE(Detalhamento.OpçãoServiços,OFFSET(Import.PLQ,$A22-1,AO$15-1,1,1),IF(ISNUMBER(INDEX(Import.PLE,Detalhamento!$E22,Detalhamento!AO$15)),IF(INDEX(Import.PLE,Detalhamento!$E22,Detalhamento!AO$15)<=mediçao,OFFSET(Import.PLQ,$A22-1,AO$15-1,1,1),0),0),IF(ISNUMBER(INDEX(Import.PLE,Detalhamento!$E22,Detalhamento!AO$15)),IF(INDEX(Import.PLE,Detalhamento!$E22,Detalhamento!AO$15)<=mediçao,0,OFFSET(Import.PLQ,$A22-1,AO$15-1,1,1)),OFFSET(Import.PLQ,$A22-1,AO$15-1,1,1)))) -> 0 | AP22: =IF(AP$13="",0,CHOOSE(Detalhamento.OpçãoServiços,OFFSET(Import.PLQ,$A22-1,AP$15-1,1,1),IF(ISNUMBER(INDEX(Import.PLE,Detalhamento!$E22,Detalhamento!AP$15)),IF(INDEX(Import.PLE,Detalhamento!$E22,Detalhamento!AP$15)<=mediçao,OFFSET(Import.PLQ,$A22-1,AP$15-1,1,1),0),0),IF(ISNUMBER(INDEX(Import.PLE,Detalhamento!$E22,Detalhamento!AP$15)),IF(INDEX(Import.PLE,Detalhamento!$E22,Detalhamento!AP$15)<=mediçao,0,OFFSET(Import.PLQ,$A22-1,AP$15-1,1,1)),OFFSET(Import.PLQ,$A22-1,AP$15-1,1,1)))) -> 0 | AQ22: =IF(AQ$13="",0,CHOOSE(Detalhamento.OpçãoServiços,OFFSET(Import.PLQ,$A22-1,AQ$15-1,1,1),IF(ISNUMBER(INDEX(Import.PLE,Detalhamento!$E22,Detalhamento!AQ$15)),IF(INDEX(Import.PLE,Detalhamento!$E22,Detalhamento!AQ$15)<=mediçao,OFFSET(Import.PLQ,$A22-1,AQ$15-1,1,1),0),0),IF(ISNUMBER(INDEX(Import.PLE,Detalhamento!$E22,Detalhamento!AQ$15)),IF(INDEX(Import.PLE,Detalhamento!$E22,Detalhamento!AQ$15)<=mediçao,0,OFFSET(Import.PLQ,$A22-1,AQ$15-1,1,1)),OFFSET(Import.PLQ,$A22-1,AQ$15-1,1,1)))) -> 0 | AR22: =IF(AR$13="",0,CHOOSE(Detalhamento.OpçãoServiços,OFFSET(Import.PLQ,$A22-1,AR$15-1,1,1),IF(ISNUMBER(INDEX(Import.PLE,Detalhamento!$E22,Detalhamento!AR$15)),IF(INDEX(Import.PLE,Detalhamento!$E22,Detalhamento!AR$15)<=mediçao,OFFSET(Import.PLQ,$A22-1,AR$15-1,1,1),0),0),IF(ISNUMBER(INDEX(Import.PLE,Detalhamento!$E22,Detalhamento!AR$15)),IF(INDEX(Import.PLE,Detalhamento!$E22,Detalhamento!AR$15)<=mediçao,0,OFFSET(Import.PLQ,$A22-1,AR$15-1,1,1)),OFFSET(Import.PLQ,$A22-1,AR$15-1,1,1)))) -> 0 | AS22: =IF(AS$13="",0,CHOOSE(Detalhamento.OpçãoServiços,OFFSET(Import.PLQ,$A22-1,AS$15-1,1,1),IF(ISNUMBER(INDEX(Import.PLE,Detalhamento!$E22,Detalhamento!AS$15)),IF(INDEX(Import.PLE,Detalhamento!$E22,Detalhamento!AS$15)<=mediçao,OFFSET(Import.PLQ,$A22-1,AS$15-1,1,1),0),0),IF(ISNUMBER(INDEX(Import.PLE,Detalhamento!$E22,Detalhamento!AS$15)),IF(INDEX(Import.PLE,Detalhamento!$E22,Detalhamento!AS$15)<=mediçao,0,OFFSET(Import.PLQ,$A22-1,AS$15-1,1,1)),OFFSET(Import.PLQ,$A22-1,AS$15-1,1,1)))) -> 0 | AT22: =IF(AT$13="",0,CHOOSE(Detalhamento.OpçãoServiços,OFFSET(Import.PLQ,$A22-1,AT$15-1,1,1),IF(ISNUMBER(INDEX(Import.PLE,Detalhamento!$E22,Detalhamento!AT$15)),IF(INDEX(Import.PLE,Detalhamento!$E22,Detalhamento!AT$15)<=mediçao,OFFSET(Import.PLQ,$A22-1,AT$15-1,1,1),0),0),IF(ISNUMBER(INDEX(Import.PLE,Detalhamento!$E22,Detalhamento!AT$15)),IF(INDEX(Import.PLE,Detalhamento!$E22,Detalhamento!AT$15)<=mediçao,0,OFFSET(Import.PLQ,$A22-1,AT$15-1,1,1)),OFFSET(Import.PLQ,$A22-1,AT$15-1,1,1)))) -> 0 | AU22: =IF(AU$13="",0,CHOOSE(Detalhamento.OpçãoServiços,OFFSET(Import.PLQ,$A22-1,AU$15-1,1,1),IF(ISNUMBER(INDEX(Import.PLE,Detalhamento!$E22,Detalhamento!AU$15)),IF(INDEX(Import.PLE,Detalhamento!$E22,Detalhamento!AU$15)<=mediçao,OFFSET(Import.PLQ,$A22-1,AU$15-1,1,1),0),0),IF(ISNUMBER(INDEX(Import.PLE,Detalhamento!$E22,Detalhamento!AU$15)),IF(INDEX(Import.PLE,Detalhamento!$E22,Detalhamento!AU$15)<=mediçao,0,OFFSET(Import.PLQ,$A22-1,AU$15-1,1,1)),OFFSET(Import.PLQ,$A22-1,AU$15-1,1,1)))) -> 0 | AV22: =IF(AV$13="",0,CHOOSE(Detalhamento.OpçãoServiços,OFFSET(Import.PLQ,$A22-1,AV$15-1,1,1),IF(ISNUMBER(INDEX(Import.PLE,Detalhamento!$E22,Detalhamento!AV$15)),IF(INDEX(Import.PLE,Detalhamento!$E22,Detalhamento!AV$15)<=mediçao,OFFSET(Import.PLQ,$A22-1,AV$15-1,1,1),0),0),IF(ISNUMBER(INDEX(Import.PLE,Detalhamento!$E22,Detalhamento!AV$15)),IF(INDEX(Import.PLE,Detalhamento!$E22,Detalhamento!AV$15)<=mediçao,0,OFFSET(Import.PLQ,$A22-1,AV$15-1,1,1)),OFFSET(Import.PLQ,$A22-1,AV$15-1,1,1)))) -> 0 | AW22: =IF(AW$13="",0,CHOOSE(Detalhamento.OpçãoServiços,OFFSET(Import.PLQ,$A22-1,AW$15-1,1,1),IF(ISNUMBER(INDEX(Import.PLE,Detalhamento!$E22,Detalhamento!AW$15)),IF(INDEX(Import.PLE,Detalhamento!$E22,Detalhamento!AW$15)<=mediçao,OFFSET(Import.PLQ,$A22-1,AW$15-1,1,1),0),0),IF(ISNUMBER(INDEX(Import.PLE,Detalhamento!$E22,Detalhamento!AW$15)),IF(INDEX(Import.PLE,Detalhamento!$E22,Detalhamento!AW$15)<=mediçao,0,OFFSET(Import.PLQ,$A22-1,AW$15-1,1,1)),OFFSET(Import.PLQ,$A22-1,AW$15-1,1,1)))) -> 0 | AX22: =IF(AX$13="",0,CHOOSE(Detalhamento.OpçãoServiços,OFFSET(Import.PLQ,$A22-1,AX$15-1,1,1),IF(ISNUMBER(INDEX(Import.PLE,Detalhamento!$E22,Detalhamento!AX$15)),IF(INDEX(Import.PLE,Detalhamento!$E22,Detalhamento!AX$15)<=mediçao,OFFSET(Import.PLQ,$A22-1,AX$15-1,1,1),0),0),IF(ISNUMBER(INDEX(Import.PLE,Detalhamento!$E22,Detalhamento!AX$15)),IF(INDEX(Import.PLE,Detalhamento!$E22,Detalhamento!AX$15)<=mediçao,0,OFFSET(Import.PLQ,$A22-1,AX$15-1,1,1)),OFFSET(Import.PLQ,$A22-1,AX$15-1,1,1)))) -> 0 | AY22: =IF(AY$13="",0,CHOOSE(Detalhamento.OpçãoServiços,OFFSET(Import.PLQ,$A22-1,AY$15-1,1,1),IF(ISNUMBER(INDEX(Import.PLE,Detalhamento!$E22,Detalhamento!AY$15)),IF(INDEX(Import.PLE,Detalhamento!$E22,Detalhamento!AY$15)<=mediçao,OFFSET(Import.PLQ,$A22-1,AY$15-1,1,1),0),0),IF(ISNUMBER(INDEX(Import.PLE,Detalhamento!$E22,Detalhamento!AY$15)),IF(INDEX(Import.PLE,Detalhamento!$E22,Detalhamento!AY$15)<=mediçao,0,OFFSET(Import.PLQ,$A22-1,AY$15-1,1,1)),OFFSET(Import.PLQ,$A22-1,AY$15-1,1,1)))) -> 0 | AZ22: =IF(AZ$13="",0,CHOOSE(Detalhamento.OpçãoServiços,OFFSET(Import.PLQ,$A22-1,AZ$15-1,1,1),IF(ISNUMBER(INDEX(Import.PLE,Detalhamento!$E22,Detalhamento!AZ$15)),IF(INDEX(Import.PLE,Detalhamento!$E22,Detalhamento!AZ$15)<=mediçao,OFFSET(Import.PLQ,$A22-1,AZ$15-1,1,1),0),0),IF(ISNUMBER(INDEX(Import.PLE,Detalhamento!$E22,Detalhamento!AZ$15)),IF(INDEX(Import.PLE,Detalhamento!$E22,Detalhamento!AZ$15)<=mediçao,0,OFFSET(Import.PLQ,$A22-1,AZ$15-1,1,1)),OFFSET(Import.PLQ,$A22-1,AZ$15-1,1,1)))) -> 0 | BA22: =IF(BA$13="",0,CHOOSE(Detalhamento.OpçãoServiços,OFFSET(Import.PLQ,$A22-1,BA$15-1,1,1),IF(ISNUMBER(INDEX(Import.PLE,Detalhamento!$E22,Detalhamento!BA$15)),IF(INDEX(Import.PLE,Detalhamento!$E22,Detalhamento!BA$15)<=mediçao,OFFSET(Import.PLQ,$A22-1,BA$15-1,1,1),0),0),IF(ISNUMBER(INDEX(Import.PLE,Detalhamento!$E22,Detalhamento!BA$15)),IF(INDEX(Import.PLE,Detalhamento!$E22,Detalhamento!BA$15)<=mediçao,0,OFFSET(Import.PLQ,$A22-1,BA$15-1,1,1)),OFFSET(Import.PLQ,$A22-1,BA$15-1,1,1)))) -> 0 | BB22: =IF(BB$13="",0,CHOOSE(Detalhamento.OpçãoServiços,OFFSET(Import.PLQ,$A22-1,BB$15-1,1,1),IF(ISNUMBER(INDEX(Import.PLE,Detalhamento!$E22,Detalhamento!BB$15)),IF(INDEX(Import.PLE,Detalhamento!$E22,Detalhamento!BB$15)<=mediçao,OFFSET(Import.PLQ,$A22-1,BB$15-1,1,1),0),0),IF(ISNUMBER(INDEX(Import.PLE,Detalhamento!$E22,Detalhamento!BB$15)),IF(INDEX(Import.PLE,Detalhamento!$E22,Detalhamento!BB$15)<=mediçao,0,OFFSET(Import.PLQ,$A22-1,BB$15-1,1,1)),OFFSET(Import.PLQ,$A22-1,BB$15-1,1,1)))) -> 0 | BC22: =IF(BC$13="",0,CHOOSE(Detalhamento.OpçãoServiços,OFFSET(Import.PLQ,$A22-1,BC$15-1,1,1),IF(ISNUMBER(INDEX(Import.PLE,Detalhamento!$E22,Detalhamento!BC$15)),IF(INDEX(Import.PLE,Detalhamento!$E22,Detalhamento!BC$15)<=mediçao,OFFSET(Import.PLQ,$A22-1,BC$15-1,1,1),0),0),IF(ISNUMBER(INDEX(Import.PLE,Detalhamento!$E22,Detalhamento!BC$15)),IF(INDEX(Import.PLE,Detalhamento!$E22,Detalhamento!BC$15)<=mediçao,0,OFFSET(Import.PLQ,$A22-1,BC$15-1,1,1)),OFFSET(Import.PLQ,$A22-1,BC$15-1,1,1)))) -> 0 | BD22: =IF(BD$13="",0,CHOOSE(Detalhamento.OpçãoServiços,OFFSET(Import.PLQ,$A22-1,BD$15-1,1,1),IF(ISNUMBER(INDEX(Import.PLE,Detalhamento!$E22,Detalhamento!BD$15)),IF(INDEX(Import.PLE,Detalhamento!$E22,Detalhamento!BD$15)<=mediçao,OFFSET(Import.PLQ,$A22-1,BD$15-1,1,1),0),0),IF(ISNUMBER(INDEX(Import.PLE,Detalhamento!$E22,Detalhamento!BD$15)),IF(INDEX(Import.PLE,Detalhamento!$E22,Detalhamento!BD$15)<=mediçao,0,OFFSET(Import.PLQ,$A22-1,BD$15-1,1,1)),OFFSET(Import.PLQ,$A22-1,BD$15-1,1,1)))) -> 0 | BE22: =IF(BE$13="",0,CHOOSE(Detalhamento.OpçãoServiços,OFFSET(Import.PLQ,$A22-1,BE$15-1,1,1),IF(ISNUMBER(INDEX(Import.PLE,Detalhamento!$E22,Detalhamento!BE$15)),IF(INDEX(Import.PLE,Detalhamento!$E22,Detalhamento!BE$15)<=mediçao,OFFSET(Import.PLQ,$A22-1,BE$15-1,1,1),0),0),IF(ISNUMBER(INDEX(Import.PLE,Detalhamento!$E22,Detalhamento!BE$15)),IF(INDEX(Import.PLE,Detalhamento!$E22,Detalhamento!BE$15)<=mediçao,0,OFFSET(Import.PLQ,$A22-1,BE$15-1,1,1)),OFFSET(Import.PLQ,$A22-1,BE$15-1,1,1)))) -> 0 | BF22: =IF(BF$13="",0,CHOOSE(Detalhamento.OpçãoServiços,OFFSET(Import.PLQ,$A22-1,BF$15-1,1,1),IF(ISNUMBER(INDEX(Import.PLE,Detalhamento!$E22,Detalhamento!BF$15)),IF(INDEX(Import.PLE,Detalhamento!$E22,Detalhamento!BF$15)<=mediçao,OFFSET(Import.PLQ,$A22-1,BF$15-1,1,1),0),0),IF(ISNUMBER(INDEX(Import.PLE,Detalhamento!$E22,Detalhamento!BF$15)),IF(INDEX(Import.PLE,Detalhamento!$E22,Detalhamento!BF$15)<=mediçao,0,OFFSET(Import.PLQ,$A22-1,BF$15-1,1,1)),OFFSET(Import.PLQ,$A22-1,BF$15-1,1,1)))) -> 0 | BG22: =IF(BG$13="",0,CHOOSE(Detalhamento.OpçãoServiços,OFFSET(Import.PLQ,$A22-1,BG$15-1,1,1),IF(ISNUMBER(INDEX(Import.PLE,Detalhamento!$E22,Detalhamento!BG$15)),IF(INDEX(Import.PLE,Detalhamento!$E22,Detalhamento!BG$15)<=mediçao,OFFSET(Import.PLQ,$A22-1,BG$15-1,1,1),0),0),IF(ISNUMBER(INDEX(Import.PLE,Detalhamento!$E22,Detalhamento!BG$15)),IF(INDEX(Import.PLE,Detalhamento!$E22,Detalhamento!BG$15)<=mediçao,0,OFFSET(Import.PLQ,$A22-1,BG$15-1,1,1)),OFFSET(Import.PLQ,$A22-1,BG$15-1,1,1)))) -> 0 | BH22: =IF(BH$13="",0,CHOOSE(Detalhamento.OpçãoServiços,OFFSET(Import.PLQ,$A22-1,BH$15-1,1,1),IF(ISNUMBER(INDEX(Import.PLE,Detalhamento!$E22,Detalhamento!BH$15)),IF(INDEX(Import.PLE,Detalhamento!$E22,Detalhamento!BH$15)<=mediçao,OFFSET(Import.PLQ,$A22-1,BH$15-1,1,1),0),0),IF(ISNUMBER(INDEX(Import.PLE,Detalhamento!$E22,Detalhamento!BH$15)),IF(INDEX(Import.PLE,Detalhamento!$E22,Detalhamento!BH$15)<=mediçao,0,OFFSET(Import.PLQ,$A22-1,BH$15-1,1,1)),OFFSET(Import.PLQ,$A22-1,BH$15-1,1,1)))) -> 0 | BI22: =IF(BI$13="",0,CHOOSE(Detalhamento.OpçãoServiços,OFFSET(Import.PLQ,$A22-1,BI$15-1,1,1),IF(ISNUMBER(INDEX(Import.PLE,Detalhamento!$E22,Detalhamento!BI$15)),IF(INDEX(Import.PLE,Detalhamento!$E22,Detalhamento!BI$15)<=mediçao,OFFSET(Import.PLQ,$A22-1,BI$15-1,1,1),0),0),IF(ISNUMBER(INDEX(Import.PLE,Detalhamento!$E22,Detalhamento!BI$15)),IF(INDEX(Import.PLE,Detalhamento!$E22,Detalhamento!BI$15)<=mediçao,0,OFFSET(Import.PLQ,$A22-1,BI$15-1,1,1)),OFFSET(Import.PLQ,$A22-1,BI$15-1,1,1)))) -> 0
